Workbook

Sheet Simulación Cliente
D4: SIMULADOR ACTIVO FIJO
V6: Porcentaje %
D7: Valor del Activo a financiar | E7: 549810.4533 | G7: Ingresa el valor total del Activo | V7: Valor
D8: % Desembolso | E8: =E9/E7 -> 0.5456425904
D9: Monto financiado (no mayor al 80% del activo) | E9: 300000 | G9: Ingresa el monto a financiar
D10: Monto a Financiar (Desembolso + Prima Seguro) | E10: =IF($E$16="Natural",'Simulador Cronograma'!$C$3,'Simulador para calculos'!$C$3) -> 321289.1166 | W10: SD. Exonerado | X10: 0
D12: Fecha de Desembolso | E12: 2024-01-05 | G12: Ingresar Fecha de Desembolso y Primera fecha de pago
D13: Fecha Primer Pago | E13: 2024-03-02
Z14: =E17+AC23 -> 85
Q15: PN | R15: Tasa | W15: Columna1 | X15: Columna2 | Z15: Identificador | AA15: Plazo | AB15: TITULAR | AC15: TITULAR +CONYUGE
D16: Persona | E16: Natural | G16: Selecciona si eres Persona Natural o Persona Jurídica | Q16: Seguro Desgravamen sin devolución - Titular | R16: 0.2 | W16: SD. Exonerado | X16: 0 | Z16: =IF(Z14<13,1,0) -> 0 | AA16: 0-12 | AB16: 0.002195 | AC16: 0.00439
D17: Plazo (meses) | E17: 84 | G17: Ingresa el plazo en meses de tu préstamo | Q17: Seguro Desgravamen con devolución - Titular | R17: 0.26 | W17: Endosado | X17: 0 | Z17: =IF(AND(Z14>12,Z14<=36),1,0) -> 0 | AA17: 13-36 | AB17: 0.0014 | AC17: 0.0028
D18: Tipo de Seguro Desgravamen/Vida (%mensual) | E18: Seguro Vida Titular | F18: =IFERROR(IF($E$16="Natural",VLOOKUP($E$18,$Q$15:$R$23,2,FALSE),VLOOKUP($E$18,$Q$26:$R$30,2,FALSE))/100,"No aplica este seguro en esta Persona Jurídica") -> 0.00045 | G18: Selecciona el Seguro que deseas adquirir | Q18: Seguro Desgravamen sin devolución Titular + Cónyuge | R18: 0.4 | W18: SR Titular Premium | X18: 0.025 | Z18: =IF(AND(Z14>36,Z14<=60),1,0) -> 0 | AA18: 37-60 | AB18: 0.000975 | AC18: 0.00195
D19: Valor asegurable del bien/Seguro del bien | E19: =0.75*E7 -> 412357.84 | F19: 0.00028 | G19: * 75% del valor del activo fijo como aproximación | Q19: Seguro Desgravamen con devolución Titular + Cónyuge | R19: 0.52 | W19: CR Titular Premium | X19: 0.047 | Z19: =IF(AND(Z14>60,Z14<=84),1,0) -> 0 | AA19: 61-84 | AB19: 0.000575 | AC19: 0.00115
D20: TEA (Tasa efectiva anual) | E20: 0.153 | G20: Ingresa la Tasa Efectiva Anual | Q20: Seguro Vida Titular | R20: =_xlfn.XLOOKUP(1,Z16:Z21,AB16:AB21)*100 -> 0.045 | W20: SR Titular + Cony. Premium | X20: 0.0425 | Z20: =IF(AND(Z14>84,Z14<=108),1,0) -> 1 | AA20: 85-108 | AB20: 0.00045 | AC20: 0.0009
D21: TCEA (Tasa de costo efectivo anual) | E21: 0.1791561423 | Q21: Seguro Vida Titular + Cónyuge | R21: =_xlfn.XLOOKUP(1,Z16:Z21,AC16:AC21)*100 -> 0.09 | W21: CR Titular + Cony. Premium | X21: 0.0799 | Z21: =IF(Z14>108,1,0) -> 0 | AA21: 109-más | AB21: 0.00035 | AC21: 0.0007
Q22: Exonerado | R22: 0 | W22: SR SD. Hipotecario CV/BF Titular CAMPAØA | X22: 0.0285
Q23: Endosado | R23: 0 | W23: CR SD. Hipotecario CV/BF Titular CAMPAØA | X23: 0.0485 | Z23: Identificador | AA23: Periodo Gracia | AB23: Meses | AC23: =SUMPRODUCT(Z24:Z30,AB24:AB30) -> 1
W24: SR SD. Hipotecario CV/BF Tit.+ Cony.CAMP | X24: 0.0546 | Z24: =IF($E$13-$E$12<31,1,0) -> 0 | AA24: 0-30 | AB24: 0
D25: Valor Cuota | E25: =IFERROR(IF($E$16="Natural",'Simulador Cronograma'!$C$17, 'Simulador para calculos'!$C$17),"NO APLICA") -> 6182.148168 | W25: CR SD. Hipotecario CV/BF Tit.+ Cony.CAMP | X25: 0.0928 | Z25: =IF(AND($E$13-$E$12>30,$E$13-$E$12<=60),1,0) -> 1 | AA25: 31-60 | AB25: 1
D26: =IF(E16="Natural","Prima total del seguros","Seguro de desgravamen total máximo a cobrar") -> Prima total del seguros | E26: =IFERROR(IF(E16="Natural",E10-E9,'Simulador para calculos'!F5),"NO APLICA") -> 21289.11659 | Q26: PJ | R26: Tasa | W26: SR Desgravamen TIT Sobretasa (100%) | X26: 0.057 | Z26: =IF(AND($E$13-$E$12>60,$E$13-$E$12<=90),1,0) -> 0 | AA26: 61-90 | AB26: 2
Q27: Seguro Desgravamen sin devolución - Titular | R27: 0.0909 | W27: CR Desgravamen TIT Sobretasa (100%) | X27: 0.0969 | Z27: =IF(AND($E$13-$E$12>90,$E$13-$E$12<=120),1,0) -> 0 | AA27: 91-120 | AB27: 3
Q28: Seguro Desgravamen sin devolución Titular + Cónyuge | R28: 0.1591 | W28: SR Desgravamen TIT + CONY Sobretasa (100 | X28: 0.0819
G29: =+TODAY() -> 2024-01-15 | Q29: Exonerado | R29: 0 | W29: CR Desgravamen TIT + CONY Sobretasa (100 | X29: 0.1392 | Z29: =IF(AND($E$13-$E$12>120,$E$13-$E$12<=150),1,0) -> 0 | AA29: 121-150 | AB29: 4
Q30: Endosado | R30: 0 | W30: SR Degravamen TIT Sobretasa 50% | X30: 0.0428 | Z30: =IF(AND($E$13-$E$12>150,$E$13-$E$12<=180),1,0) -> 0 | AA30: 151-180 | AB30: 5
W31: CR Degravamen TIT Sobretasa 50% | X31: 0.0728
W32: SR Degravamen TIT Sobretasa(50%)+CONY | X32: 0.0683
W33: CR Degravamen TIT Sobretasa(50%)+CONY | X33: 0.1161
W34: SR Desgravamen TIT+ CONY Sobretasa (50%) | X34: 0.0683
W35: CR Desgravamen TIT+ CONY Sobretasa (50%) | X35: 0.11
W36: SR Desgravamen TIT Sobretasa(100%)+CONY | X36: 0.0819
W37: CR Desgravamen TIT Sobretasa(100%)+CONY | X37: 0.13
D38: Importante: | W38: SR Desgravamen (TIT+CONY)Sobretasa (50%) | X38: 0.0819
D39: - Cargos mensuales que se incluyen: Seguro de desgravamen individual CARDIF BNP PARIBAS (sobre el monto del crédito adeudado a la fecha) - Valores aproximados y referenciales. - Los términos y condiciones presentados son indicativos y vigentes en la medida que no ocurra cambios sustantivos en el mercado que afecten las condiciones existentes a la fecha de la presente propuesta. - Crédito sujeto a evaluación crediticia. | W39: CR Desgravamen (TIT+CONY)Sobretasa (50%) | X39: 0.1392
W40: SR Desgravamen (TIT+CONY ) Sobretasa (10 | X40: 0.1092
W41: CR Desgravamen (TIT+CONY ) Sobretasa (10 | X41: 0.1856
W42: SR SD Titul.Sobretasa100%+Cony.Sobretasa | X42: 0.0956
W43: CR SD Titul.Sobretasa100%+Cony.Sobretasa | X43: 0.1625
W44: SR SD Titul.Sobretasa50%+Cony.Sobretasa1 | X44: 0.0956
V45: Colaborador | W45: CR SD Titul.Sobretasa50%+Cony.Sobretasa1 | X45: 0.1625
V46: Colaborador | W46: CR Desgravamen TIT Sobretasa(100%)+CONY | X46: 0.13
V47: Colaborador | W47: CR Desgravamen (TIT+CONY)Sobretasa (50%) | X47: 0.1392
W48: CR SD. HIPOT. WP(Tit + Cony)Sobretasa (N | X48: 0.1392
W49: CR Desgravamen TIT + CONY Sobretasa (100 | X49: 0.1392
W50: CR SD Titul.Sobretasa50%+Cony.Sobretasa1 | X50: 0.1625
W51: CR SD Titul.Sobretasa100%+Cony.Sobretasa | X51: 0.1625
V52: CV | W52: CR Desgravamen (TIT+CONY ) Sobretasa (10 | X52: 0.18
V53: CV | W53: Seguro del Bien Hipotecario | X53: 0.028
V54: CV | W54: Seguro del Bien Lib.Disp. Garantía Hipotecaria | X54: 0.028
V55: LDGH | W55: Seguro del Bien Exonerado | X55: 0

Sheet datos (hidden)
A1: Tarifa | B1: Tipo de Seguro | C1: Nombre Seguro | D1: TASA | F1: Nombre Seguro | G1: TASA
A2: Exonerado | B2: Exonerado | C2: SD. Exonerado | D2: 0 | F2: SD. Exonerado | G2: 0
A3: Titular | B3: Sin Retorno | C3: SR Titular Premium | D3: 0.02 | F3: Endosado | G3: 0
A4: Titular | B4: Sin Retorno | C4: SR SD. Hipotecario CV/BF Titular CAMPAØA | D4: 0.0285 | F4: SR Titular Premium | G4: 0.025
A5: Titular | B5: Sin Retorno | C5: SR Degravamen TIT Sobretasa 50% | D5: 0.0428 | F5: CR Titular Premium | G5: 0.047
A6: Titular | B6: Sin Retorno | C6: SR SD. HIPOT. WP Tit Sobretasa (Nvo) | D6: 0.0428 | F6: SR Titular + Cony. Premium | G6: 0.0425
A7: Titular | B7: Sin Retorno | C7: SR Desgravamen TIT Sobretasa (100%) | D7: 0.057 | F7: CR Titular + Cony. Premium | G7: 0.0799
A8: Titular + Cónyuge | B8: Sin Retorno | C8: SR Titular + Cony. Premium | D8: 0.047 | F8: SR SD. Hipotecario CV/BF Titular CAMPAØA | G8: 0.0285
A9: Titular + Cónyuge | B9: Sin Retorno | C9: SR SD. HIPOT. WP Tit Sobretasa + Cony (N | D9: 0.05 | F9: CR SD. Hipotecario CV/BF Titular CAMPAØA | G9: 0.0485
A10: Titular + Cónyuge | B10: Sin Retorno | C10: SR SD. Hipotecario CV/BF Tit.+ Cony.CAMP | D10: 0.0546 | F10: SR SD. Hipotecario CV/BF Tit.+ Cony.CAMP | G10: 0.0546
A11: Titular + Cónyuge | B11: Sin Retorno | C11: SR Desgravamen TIT+ CONY Sobretasa (50%) | D11: 0.06 | F11: CR SD. Hipotecario CV/BF Tit.+ Cony.CAMP | G11: 0.0928
A12: Titular + Cónyuge | B12: Sin Retorno | C12: SR Degravamen TIT Sobretasa(50%)+CONY | D12: 0.0683 | F12: SR Desgravamen TIT Sobretasa (100%) | G12: 0.057
A13: Titular + Cónyuge | B13: Sin Retorno | C13: SR SD. HIPOT. WP Tit + Cony Sobretasa (N | D13: 0.0683 | F13: CR Desgravamen TIT Sobretasa (100%) | G13: 0.0969
A14: Titular + Cónyuge | B14: Sin Retorno | C14: SR Desgravamen TIT Sobretasa(100%)+CONY | D14: 0.08 | F14: SR Desgravamen TIT + CONY Sobretasa (100 | G14: 0.0819
A15: Titular + Cónyuge | B15: Sin Retorno | C15: SR Desgravamen (TIT+CONY)Sobretasa (50%) | D15: 0.0819 | F15: CR Desgravamen TIT + CONY Sobretasa (100 | G15: 0.1392
A16: Titular + Cónyuge | B16: Sin Retorno | C16: SR SD. HIPOT. WP(Tit + Cony)Sobretasa (N | D16: 0.0819 | F16: SR Degravamen TIT Sobretasa 50% | G16: 0.0428
A17: Titular + Cónyuge | B17: Sin Retorno | C17: SR Desgravamen TIT + CONY Sobretasa (100 | D17: 0.0819 | F17: CR Degravamen TIT Sobretasa 50% | G17: 0.0728
A18: Titular + Cónyuge | B18: Sin Retorno | C18: SR SD Titul.Sobretasa50%+Cony.Sobretasa1 | D18: 0.0956 | F18: SR Degravamen TIT Sobretasa(50%)+CONY | G18: 0.0683
A19: Titular + Cónyuge | B19: Sin Retorno | C19: SR SD Titul.Sobretasa100%+Cony.Sobretasa | D19: 0.0956 | F19: CR Degravamen TIT Sobretasa(50%)+CONY | G19: 0.1161
A20: Titular + Cónyuge | B20: Sin Retorno | C20: SR Desgravamen (TIT+CONY ) Sobretasa (10 | D20: 0.1 | F20: SR Desgravamen TIT+ CONY Sobretasa (50%) | G20: 0.0683
A21: Titular | B21: Con Retorno | C21: CR Titular Premium | D21: 0.04 | F21: CR Desgravamen TIT+ CONY Sobretasa (50%) | G21: 0.11
A22: Titular | B22: Con Retorno | C22: CR SD. Hipotecario CV/BF Titular CAMPAØA | D22: 0.0485 | F22: SR Desgravamen TIT Sobretasa(100%)+CONY | G22: 0.0819
A23: Titular | B23: Con Retorno | C23: CR Degravamen TIT Sobretasa 50% | D23: 0.0728 | F23: CR Desgravamen TIT Sobretasa(100%)+CONY | G23: 0.13
A24: Titular | B24: Con Retorno | C24: CR SD. HIPOT. WP Tit Sobretasa (Nvo) | D24: 0.0728 | F24: SR Desgravamen (TIT+CONY)Sobretasa (50%) | G24: 0.0819
A25: Titular | B25: Con Retorno | C25: CR Desgravamen TIT Sobretasa (100%) | D25: 0.0969 | F25: CR Desgravamen (TIT+CONY)Sobretasa (50%) | G25: 0.1392
A26: Titular + Cónyuge | B26: Con Retorno | C26: CR Titular + Cony. Premium | D26: 0.0799 | F26: SR Desgravamen (TIT+CONY ) Sobretasa (10 | G26: 0.1092
A27: Titular + Cónyuge | B27: Con Retorno | C27: CR SD. Hipotecario CV/BF Tit.+ Cony.CAMP | D27: 0.09 | F27: CR Desgravamen (TIT+CONY ) Sobretasa (10 | G27: 0.1856
A28: Titular + Cónyuge | B28: Con Retorno | C28: CR SD. HIPOT. WP Tit Sobretasa + Cony (N | D28: 0.09 | F28: SR SD Titul.Sobretasa100%+Cony.Sobretasa | G28: 0.0956
A29: Titular + Cónyuge | B29: Con Retorno | C29: CR Desgravamen TIT+ CONY Sobretasa (50%) | D29: 0.11 | F29: CR SD Titul.Sobretasa100%+Cony.Sobretasa | G29: 0.1625
A30: Titular + Cónyuge | B30: Con Retorno | C30: CR Degravamen TIT Sobretasa(50%)+CONY | D30: 0.1161 | F30: SR SD Titul.Sobretasa50%+Cony.Sobretasa1 | G30: 0.0956
A31: Titular + Cónyuge | B31: Con Retorno | C31: CR SD. HIPOT. WP Tit + Cony Sobretasa (N | D31: 0.1161 | F31: CR SD Titul.Sobretasa50%+Cony.Sobretasa1 | G31: 0.1625
A32: Titular + Cónyuge | B32: Con Retorno | C32: CR Desgravamen TIT Sobretasa(100%)+CONY | D32: 0.13
A33: Titular + Cónyuge | B33: Con Retorno | C33: CR Desgravamen (TIT+CONY)Sobretasa (50%) | D33: 0.1392
A34: Titular + Cónyuge | B34: Con Retorno | C34: CR SD. HIPOT. WP(Tit + Cony)Sobretasa (N | D34: 0.1392
A35: Titular + Cónyuge | B35: Con Retorno | C35: CR Desgravamen TIT + CONY Sobretasa (100 | D35: 0.1392
A36: Titular + Cónyuge | B36: Con Retorno | C36: CR SD Titul.Sobretasa50%+Cony.Sobretasa1 | D36: 0.1625
A37: Titular + Cónyuge | B37: Con Retorno | C37: CR SD Titul.Sobretasa100%+Cony.Sobretasa | D37: 0.1625
A38: Titular + Cónyuge | B38: Con Retorno | C38: CR Desgravamen (TIT+CONY ) Sobretasa (10 | D38: 0.18

Sheet Simulador Cronograma (hidden)
B1: simulacion con Cuota simple | AB1: simulacion con CD | AS1: simulacion a 180 | BJ1: simulacion a 180 con CD | CA1: simulacion a 240 | CR1: simulacion a 240 con CD
B3: MAF | C3: ='Simulación Cliente'!E9*(1+C12*I12*'Simulación Cliente'!$Z$14)+'Simulador para calculos'!$F$11+'Simulador para calculos'!I8 -> 321289.1166 | AB3: MAF | AC3: =+'Simulación Cliente'!$E$10 -> 321289.1166 | AS3: MAF | AT3: =+'Simulación Cliente'!$E$10 -> 321289.1166 | BJ3: MAF | BK3: =+'Simulación Cliente'!$E$10 -> 321289.1166 | CA3: MAF | CB3: =+'Simulación Cliente'!$E$10 -> 321289.1166 | CR3: MAF | CS3: =+'Simulación Cliente'!$E$10 -> 321289.1166
B4: Monto del Bien | C4: =+'Simulación Cliente'!$E$19 -> 412357.84 | D4: =C4*'Simulador para calculos'!J12 -> 0 | AB4: Monto del Bien | AC4: =+'Simulación Cliente'!$E$7 -> 549810.4533 | AS4: Monto del Bien | AT4: =+'Simulación Cliente'!$E$7 -> 549810.4533 | BJ4: Monto del Bien | BK4: =+'Simulación Cliente'!$E$7 -> 549810.4533 | CA4: Monto del Bien | CB4: =+'Simulación Cliente'!$E$7 -> 549810.4533 | CR4: Monto del Bien | CS4: =+'Simulación Cliente'!$E$7 -> 549810.4533
B5: Moneda | C5: Soles | AB5: Moneda | AC5: Soles | AS5: Moneda | AT5: Soles | BJ5: Moneda | BK5: Soles | CA5: Moneda | CB5: Soles | CR5: Moneda | CS5: Soles
B6: Plazo | C6: =+'Simulación Cliente'!$E$17 -> 84 | AB6: Plazo | AC6: =+'Simulación Cliente'!$E$17 -> 84 | AS6: Plazo | AT6: 180 | BJ6: Plazo | BK6: 180 | CA6: Plazo | CB6: 240 | CR6: Plazo | CS6: 240
B7: Fecha de Desembolso | C7: ='Simulación Cliente'!E12 -> 2024-01-05 | AB7: Fecha de Desembolso | AC7: 2022-09-01 | AS7: Fecha de Desembolso | AT7: 2022-09-01 | BJ7: Fecha de Desembolso | BK7: 2022-09-01 | CA7: Fecha de Desembolso | CB7: 2022-09-01 | CR7: Fecha de Desembolso | CS7: 2022-09-01
B8: Fecha de 1er Pago | C8: ='Simulación Cliente'!E13 -> 2024-03-02 | AB8: Fecha de 1er Pago | AC8: 2022-10-01 | AS8: Fecha de 1er Pago | AT8: 2022-10-01 | BJ8: Fecha de 1er Pago | BK8: 2022-10-01 | CA8: Fecha de 1er Pago | CB8: 2022-10-01 | CR8: Fecha de 1er Pago | CS8: 2022-10-01
B9: Cuota Julio | C9: 1 | AB9: Cuota Julio | AC9: 2 | AS9: Cuota Julio | AT9: 1 | BJ9: Cuota Julio | BK9: 2 | CA9: Cuota Julio | CB9: 1 | CR9: Cuota Julio | CS9: 2
B10: Cuota Diciembre | C10: 1 | AB10: Cuota Diciembre | AC10: 2 | AS10: Cuota Diciembre | AT10: 1 | BJ10: Cuota Diciembre | BK10: 2 | CA10: Cuota Diciembre | CB10: 1 | CR10: Cuota Diciembre | CS10: 2
B11: TEA | C11: =+'Simulación Cliente'!$E$20 -> 0.153 | H11: seg desg/exon/end | I11: seg vida | J11: Natural | AB11: TEA | AC11: =+'Simulación Cliente'!$E$20 -> 0.153 | AS11: TEA | AT11: =+'Simulación Cliente'!$E$20 -> 0.153 | BJ11: TEA | BK11: =+'Simulación Cliente'!$E$20 -> 0.153 | CA11: TEA | CB11: =+'Simulación Cliente'!$E$20 -> 0.153 | CR11: TEA | CS11: =+'Simulación Cliente'!$E$20 -> 0.153
B12: Seguro de Desgravamen/Vida | C12: =+'Simulación Cliente'!$F$18 -> 0.00045 | H12: =NOT(OR('Simulación Cliente'!$E$18='Simulación Cliente'!$Q$20,'Simulación Cliente'!$E$18='Simulación Cliente'!$Q$21)) -> FALSE | I12: =OR('Simulación Cliente'!$E$18='Simulación Cliente'!$Q$20,'Simulación Cliente'!$E$18='Simulación Cliente'!$Q$21) -> TRUE | J12: =('Simulación Cliente'!$E$16="Natural") -> TRUE | AB12: Seguro de Desgravamen | AC12: =+'Simulación Cliente'!$F$18 -> 0.00045 | AS12: Seguro de Desgravamen | AT12: =+'Simulación Cliente'!$F$18 -> 0.00045 | BJ12: Seguro de Desgravamen | BK12: =+'Simulación Cliente'!$F$18 -> 0.00045 | CA12: Seguro de Desgravamen | CB12: =+'Simulación Cliente'!$F$18 -> 0.00045 | CR12: Seguro de Desgravamen | CS12: =+'Simulación Cliente'!$F$18 -> 0.00045
B13: TEA Total | C13: =(1+(((1+C11)^(30/360)-1)+C12*H12+C16+C14))^12-1 -> 0.1568342213 | AB13: TCEA | AC13: =(1+(((1+AC11)^(30/360)-1)+AC12+AC16))^12-1 -> 21441.84285 | AS13: TCEA | AT13: =(1+(((1+AT11)^(30/360)-1)+AT12+AT16))^12-1 -> 21441.84285 | BJ13: TCEA | BK13: =(1+(((1+BK11)^(30/360)-1)+BK12+BK16))^12-1 -> 21441.84285 | CA13: TCEA | CB13: =(1+(((1+CB11)^(30/360)-1)+CB12+CB16))^12-1 -> 21441.84285 | CR13: TCEA | CS13: =(1+(((1+CS11)^(30/360)-1)+CS12+CS16))^12-1 -> 21441.84285
B14: Seguro del Bien | C14: =+'Simulación Cliente'!$F$19 -> 0.00028 | AB14: Seguro del Bien | AC14: =+'Simulación Cliente'!$F$19 -> 0.00028 | AS14: Seguro del Bien | AT14: =+'Simulación Cliente'!$F$19 -> 0.00028 | BJ14: Seguro del Bien | BK14: =+'Simulación Cliente'!$F$19 -> 0.00028 | CA14: Seguro del Bien | CB14: =+'Simulación Cliente'!$F$19 -> 0.00028 | CR14: Seguro del Bien | CS14: =+'Simulación Cliente'!$F$19 -> 0.00028
B15: Portes | U15: Seg desg | V15: ='Simulador para calculos'!$F$6*'Simulador Cronograma'!J12 -> 0 | AB15: Portes | AC15: =+'Simulación Cliente'!$E$19 -> 412357.84 | AS15: Portes | AT15: =+'Simulación Cliente'!$E$19 -> 412357.84 | BJ15: Portes | BK15: =+'Simulación Cliente'!$E$19 -> 412357.84 | CA15: Portes | CB15: =+'Simulación Cliente'!$E$19 -> 412357.84 | CR15: Portes | CS15: =+'Simulación Cliente'!$E$19 -> 412357.84
B16: % Portes | C16: =C15/C3 -> 0 | U16: Seg vida | V16: ='Simulación Cliente'!$E$9*I12*C12*'Simulación Cliente'!$E$17 -> 11340 | AB16: % Portes | AC16: =AC15/AC3 -> 1.283447894 | AS16: % Portes | AT16: =AT15/AT3 -> 1.283447894 | BJ16: % Portes | BK16: =BK15/BK3 -> 1.283447894 | CA16: % Portes | CB16: =CB15/CB3 -> 1.283447894 | CR16: % Portes | CS16: =CS15/CS3 -> 1.283447894
B17: VALOR CUOTA | C17: =(C3+(C14*D4)*Q20)/P20 -> 6182.148168 | U17: Seg bien | V17: ='Simulador para calculos'!I8 -> 9814.116592 | AB17: VALOR CUOTA | AC17: =(AC3+(AC14*AC4)*AO20)/AN20 -> 382090.4622 | AS17: VALOR CUOTA | AT17: =(AT3+(AT14*AT4)*BF20)/BE20 -> 422586.6245 | BJ17: VALOR CUOTA | BK17: =(BK3+(BK14*BK4)*BW20)/BV20 -> 382090.4622 | CA17: VALOR CUOTA | CB17: =(CB3+(CB14*CB4)*CN20)/CM20 -> 422586.6245 | CR17: VALOR CUOTA | CS17: =(CS3+(CS14*CS4)*DE20)/DD20 -> 382090.4622
V19: ='Simulación Cliente'!$E$10-V15-V16-V17-'Simulador Cronograma'!$V$20 -> 0
P20: =SUM(P22:P381) -> 51.97046526 | Q20: =SUM(Q22:Q381) -> 51.97046526 | V20: =SUM(V22:V381) -> 300135 | AN20: =SUM(AN22:AN381) -> 0.8411782958 | AO20: =SUM(AO22:AO381) -> 0.7605688046 | BE20: =SUM(BE22:BE381) -> 0.7605688046 | BF20: =SUM(BF22:BF381) -> 0.7605688046 | BV20: =SUM(BV22:BV381) -> 0.8411782958 | BW20: =SUM(BW22:BW381) -> 0.7605688046 | CM20: =SUM(CM22:CM381) -> 0.7605688046 | CN20: =SUM(CN22:CN381) -> 0.7605688046 | DD20: =SUM(DD22:DD381) -> 0.8411782958 | DE20: =SUM(DE22:DE381) -> 0.7605688046
B21: N° Cuota | C21: Fecha de pago Simul | D21: Día | E21: Fecha Pago | F21: Días | G21: Dias Acumulados | H21: Saldo Inicial | I21: Amortización | J21: Interés | K21: Seguro Desgravamen | L21: Seguro del Bien | M21: Portes | N21: VALOR CUOTA | O21: Saldo Final | P21: Factor Cronograma | Q21: Factor Cronograma 2 | S21: Vector i,1 Cuota | T21: Vector i,2 Días Acum | U21: Vector i,3 Factor | V21: Vector i,4 Calculo VA | AB21: N° Cuota | AC21: Fecha de pago | AD21: Días | AE21: Dias Acumulados | AF21: Saldo Inicial | AG21: Amortización | AH21: Interés | AI21: Seguro Desgravamen | AJ21: Seguro del Bien | AK21: Portes | AL21: VALOR CUOTA | AM21: Saldo Final | AN21: Factor Cronograma | AO21: Factor Cronograma 2 | AS21: N° Cuota | AT21: Fecha de pago | AU21: Días | AV21: Dias Acumulados | AW21: Saldo Inicial | AX21: Amortización | AY21: Interés | AZ21: Seguro Desgravamen | BA21: Seguro del Bien | BB21: Portes | BC21: VALOR CUOTA | BD21: Saldo Final | BE21: Factor Cronograma | BF21: Factor Cronograma 2 | BJ21: N° Cuota | BK21: Fecha de pago | BL21: Días | BM21: Dias Acumulados | BN21: Saldo Inicial | BO21: Amortización | BP21: Interés | BQ21: Seguro Desgravamen | BR21: Seguro del Bien | BS21: Portes | BT21: VALOR CUOTA | BU21: Saldo Final | BV21: Factor Cronograma | BW21: Factor Cronograma 2 | CA21: N° Cuota | CB21: Fecha de pago | CC21: Días | CD21: Dias Acumulados | CE21: Saldo Inicial | CF21: Amortización | CG21: Interés | CH21: Seguro Desgravamen | CI21: Seguro del Bien | CJ21: Portes | CK21: VALOR CUOTA | CL21: Saldo Final | CM21: Factor Cronograma | CN21: Factor Cronograma 2 | CR21: N° Cuota | CS21: Fecha de pago | CT21: Días | CU21: Dias Acumulados | CV21: Saldo Inicial | CW21: Amortización | CX21: Interés | CY21: Seguro Desgravamen | CZ21: Seguro del Bien | DA21: Portes | DB21: VALOR CUOTA | DC21: Saldo Final | DD21: Factor Cronograma | DE21: Factor Cronograma 2
B22: 1 | C22: =C8 -> 2024-03-02 | D22: =IF(B22<=$C$6,WEEKDAY(C22,2),"") -> 6 | E22: =IF(D22=7,C22+1,C22) -> 2024-03-02 | F22: =E22-C7 -> 57 | G22: =F22 -> 57 | H22: =C3 -> 321289.1166 | I22: =IF(B22>C$6,"",N22-M22-L22-K22-J22) -> -1142.427227 | J22: =IF(B22>C$6,"",((1+C$11)^(F22/360)-1)*H22) -> 7324.575395 | K22: =IF(B22>C$6,"",0) -> 0 | L22: =IF(B22>C$6,"",D$4*C$14) -> 0 | M22: =IF(B22>C$6,"",C$15) -> 0 | N22: =IF(B22>C$6,"",IF(B22=C$6,H22+J22+K22+L22+M22,IF(AND(C$9=2,MONTH(C22)=7),2*C$17,IF(AND(C$10=2,MONTH(C22)=12),2*C$17,C$17)))) -> 6182.148168 | O22: =IF(B22>C$6,"",H22-I22) -> 322431.5438 | P22: =IFERROR(IF(AND(MONTH(C22)=7,C$9=2),2/(1+C$11)^(G22/360),IF(AND(MONTH(C22)=12,C$10=2),2/(1+C$11)^(G22/360),1/(1+C$11)^(G22/360))),"") -> 0.977710681 | Q22: =IFERROR(1/(1+C$11)^(G22/360),"") -> 0.977710681 | S22: =IFERROR((I22+J22+K22+L22+M22)*$J$12+('Simulador para calculos'!I22+'Simulador para calculos'!J22+'Simulador para calculos'!K22+'Simulador para calculos'!L22+'Simulador para calculos'!M22)*NOT($J$12),"") -> 6182.148168 | T22: =G22 -> 57 | U22: =IFERROR((1+'Simulación Cliente'!$E$21)^(T22/360),"") -> 1.02643659 | V22: =IFERROR(ROUND(S22/U22,2),"") -> 6022.92 | AB22: 1 | AC22: =AC8 -> 2022-10-01 | AD22: =AC22-AC7 -> 30 | AE22: =AD22 -> 30 | AF22: =AC3 -> 321289.1166 | AG22: =IF(AB22>AC$6,"",AL22-AK22-AJ22-AI22-AH22) -> -34400.35951 | AH22: =IF(AB22>AC$6,"",((1+AC$11)^(AD22/360)-1)*AF22) -> 3834.454653 | AI22: =IF(AB22>AC$6,"",((1+AC$12)^(AD22/30)-1)*AF22) -> 144.5801025 | AJ22: =IF(AB22>AC$6,"",AC$4*AC$14) -> 153.9469269 | AK22: =IF(AB22>AC$6,"",AC$15) -> 412357.84 | AL22: =IF(AB22>AC$6,"",IF(AB22=AC$6,AF22+AH22+AI22+AJ22+AK22,IF(AND(AC$9=2,MONTH(AC22)=7),2*AC$17,IF(AND(AC$10=2,MONTH(AC22)=12),2*AC$17,AC$17)))) -> 382090.4622 | AM22: =IF(AB22>AC$6,"",AF22-AG22) -> 355689.4761 | AN22: =IFERROR(IF(AND(MONTH(AC22)=7,AC$9=2),2/(1+AC$13)^(AE22/360),IF(AND(MONTH(AC22)=12,AC$10=2),2/(1+AC$13)^(AE22/360),1/(1+AC$13)^(AE22/360))),"") -> 0.4355718486 | AO22: =IFERROR(1/(1+AC$13)^(AE22/360),"") -> 0.4355718486 | AS22: 1 | AT22: =AT8 -> 2022-10-01 | AU22: =AT22-AT7 -> 30 | AV22: =AU22 -> 30 | AW22: =AT3 -> 321289.1166 | AX22: =IF(AS22>AT$6,"",BC22-BB22-BA22-AZ22-AY22) -> 6095.802785 | AY22: =IF(AS22>AT$6,"",((1+AT$11)^(AU22/360)-1)*AW22) -> 3834.454653 | AZ22: =IF(AS22>AT$6,"",((1+AT$12)^(AU22/30)-1)*AW22) -> 144.5801025 | BA22: =IF(AS22>AT$6,"",AT$4*AT$14) -> 153.9469269 | BB22: =IF(AS22>AT$6,"",AT$15) -> 412357.84 | BC22: =IF(AS22>AT$6,"",IF(AS22=AT$6,AW22+AY22+AZ22+BA22+BB22,IF(AND(AT$9=2,MONTH(AT22)=7),2*AT$17,IF(AND(AT$10=2,MONTH(AT22)=12),2*AT$17,AT$17)))) -> 422586.6245 | BD22: =IF(AS22>AT$6,"",AW22-AX22) -> 315193.3138 | BE22: =IFERROR(IF(AND(MONTH(AT22)=7,AT$9=2),2/(1+AT$13)^(AV22/360),IF(AND(MONTH(AT22)=12,AT$10=2),2/(1+AT$13)^(AV22/360),1/(1+AT$13)^(AV22/360))),"") -> 0.4355718486 | BF22: =IFERROR(1/(1+AT$13)^(AV22/360),"") -> 0.4355718486 | BJ22: 1 | BK22: =BK8 -> 2022-10-01 | BL22: =BK22-BK7 -> 30 | BM22: =BL22 -> 30 | BN22: =BK3 -> 321289.1166 | BO22: =IF(BJ22>BK$6,"",BT22-BS22-BR22-BQ22-BP22) -> -34400.35951 | BP22: =IF(BJ22>BK$6,"",((1+BK$11)^(BL22/360)-1)*BN22) -> 3834.454653 | BQ22: =IF(BJ22>BK$6,"",((1+BK$12)^(BL22/30)-1)*BN22) -> 144.5801025 | BR22: =IF(BJ22>BK$6,"",BK$4*BK$14) -> 153.9469269 | BS22: =IF(BJ22>BK$6,"",BK$15) -> 412357.84 | BT22: =IF(BJ22>BK$6,"",IF(BJ22=BK$6,BN22+BP22+BQ22+BR22+BS22,IF(AND(BK$9=2,MONTH(BK22)=7),2*BK$17,IF(AND(BK$10=2,MONTH(BK22)=12),2*BK$17,BK$17)))) -> 382090.4622 | BU22: =IF(BJ22>BK$6,"",BN22-BO22) -> 355689.4761 | BV22: =IFERROR(IF(AND(MONTH(BK22)=7,BK$9=2),2/(1+BK$13)^(BM22/360),IF(AND(MONTH(BK22)=12,BK$10=2),2/(1+BK$13)^(BM22/360),1/(1+BK$13)^(BM22/360))),"") -> 0.4355718486 | BW22: =IFERROR(1/(1+BK$13)^(BM22/360),"") -> 0.4355718486 | CA22: 1 | CB22: =CB8 -> 2022-10-01 | CC22: =CB22-CB7 -> 30 | CD22: =CC22 -> 30 | CE22: =CB3 -> 321289.1166 | CF22: =IF(CA22>CB$6,"",CK22-CJ22-CI22-CH22-CG22) -> 6095.802785 | CG22: =IF(CA22>CB$6,"",((1+CB$11)^(CC22/360)-1)*CE22) -> 3834.454653 | CH22: =IF(CA22>CB$6,"",((1+CB$12)^(CC22/30)-1)*CE22) -> 144.5801025 | CI22: =IF(CA22>CB$6,"",CB$4*CB$14) -> 153.9469269 | CJ22: =IF(CA22>CB$6,"",CB$15) -> 412357.84 | CK22: =IF(CA22>CB$6,"",IF(CA22=CB$6,CE22+CG22+CH22+CI22+CJ22,IF(AND(CB$9=2,MONTH(CB22)=7),2*CB$17,IF(AND(CB$10=2,MONTH(CB22)=12),2*CB$17,CB$17)))) -> 422586.6245 | CL22: =IF(CA22>CB$6,"",CE22-CF22) -> 315193.3138 | CM22: =IFERROR(IF(AND(MONTH(CB22)=7,CB$9=2),2/(1+CB$13)^(CD22/360),IF(AND(MONTH(CB22)=12,CB$10=2),2/(1+CB$13)^(CD22/360),1/(1+CB$13)^(CD22/360))),"") -> 0.4355718486 | CN22: =IFERROR(1/(1+CB$13)^(CD22/360),"") -> 0.4355718486 | CR22: 1 | CS22: =CS8 -> 2022-10-01 | CT22: =CS22-CS7 -> 30 | CU22: =CT22 -> 30 | CV22: =CS3 -> 321289.1166 | CW22: =IF(CR22>CS$6,"",DB22-DA22-CZ22-CY22-CX22) -> -34400.35951 | CX22: =IF(CR22>CS$6,"",((1+CS$11)^(CT22/360)-1)*CV22) -> 3834.454653 | CY22: =IF(CR22>CS$6,"",((1+CS$12)^(CT22/30)-1)*CV22) -> 144.5801025 | CZ22: =IF(CR22>CS$6,"",CS$4*CS$14) -> 153.9469269 | DA22: =IF(CR22>CS$6,"",CS$15) -> 412357.84 | DB22: =IF(CR22>CS$6,"",IF(CR22=CS$6,CV22+CX22+CY22+CZ22+DA22,IF(AND(CS$9=2,MONTH(CS22)=7),2*CS$17,IF(AND(CS$10=2,MONTH(CS22)=12),2*CS$17,CS$17)))) -> 382090.4622 | DC22: =IF(CR22>CS$6,"",CV22-CW22) -> 355689.4761 | DD22: =IFERROR(IF(AND(MONTH(CS22)=7,CS$9=2),2/(1+CS$13)^(CU22/360),IF(AND(MONTH(CS22)=12,CS$10=2),2/(1+CS$13)^(CU22/360),1/(1+CS$13)^(CU22/360))),"") -> 0.4355718486 | DE22: =IFERROR(1/(1+CS$13)^(CU22/360),"") -> 0.4355718486
B23: 2 | C23: =IF(B23>C$6,"",EDATE(C$22,B22)) -> 2024-04-02 | D23: =IF(B23<=$C$6,WEEKDAY(C23,2),"") -> 2 | E23: =IF(D23=7,C23+1,C23) -> 2024-04-02 | F23: =IF(B23>C$6,"",E23-E22) -> 31 | G23: =IFERROR(F23+G22,"") -> 88 | H23: =IF(B23>C$6,"",O22) -> 322431.5438 | I23: =IF(B23>C$6,"",N23-M23-L23-K23-J23) -> 2205.001563 | J23: =IF(B23>C$6,"",((1+C$11)^(F23/360)-1)*H23) -> 3977.146605 | K23: =IF(B23>C$6,"",0) -> 0 | L23: =IF(B23>C$6,"",D$4*C$14) -> 0 | M23: 0 | N23: =IF(B23>C$6,"",IF(B23=C$6,H23+J23+K23+L23+M23,IF(AND(C$9=2,MONTH(C23)=7),2*C$17,IF(AND(C$10=2,MONTH(C23)=12),2*C$17,C$17)))) -> 6182.148168 | O23: =IF(B23>C$6,"",H23-I23) -> 320226.5423 | P23: =IFERROR(IF(AND(MONTH(C23)=7,C$9=2),2/(1+C$11)^(G23/360),IF(AND(MONTH(C23)=12,C$10=2),2/(1+C$11)^(G23/360),1/(1+C$11)^(G23/360))),"") -> 0.9657977056 | Q23: =IFERROR(1/(1+C$11)^(G23/360),"") -> 0.9657977056 | S23: =IFERROR((I23+J23+K23+L23+M23)*$J$12+('Simulador para calculos'!I23+'Simulador para calculos'!J23+'Simulador para calculos'!K23+'Simulador para calculos'!L23+'Simulador para calculos'!M23)*NOT($J$12),"") -> 6182.148168 | T23: =G23 -> 88 | U23: =IFERROR((1+'Simulación Cliente'!$E$21)^(T23/360),"") -> 1.041106627 | V23: =IFERROR(ROUND(S23/U23,2),"") -> 5938.05 | AB23: 2 | AC23: =IF(AB23>AC$6,"",EDATE(AC$22,AB22)) -> 2022-11-01 | AD23: =IF(AB23>AC$6,"",AC23-AC22) -> 31 | AE23: =IFERROR(AD23+AE22,"") -> 61 | AF23: =IF(AB23>AC$6,"",AM22) -> 355689.4761 | AG23: -34974.1 | AH23: =IF(AB23>AC$6,"",((1+AC$11)^(AD23/360)-1)*AF23) -> 4387.378405 | AI23: 165.3968467 | AJ23: 153.9469269 | AK23: 412357.84 | AL23: 382090.4622 | AM23: 390663.5761 | AN23: =IFERROR(IF(AND(MONTH(AC23)=7,AC$9=2),2/(1+AC$13)^(AE23/360),IF(AND(MONTH(AC23)=12,AC$10=2),2/(1+AC$13)^(AE23/360),1/(1+AC$13)^(AE23/360))),"") -> 0.1845390439 | AO23: =IFERROR(1/(1+AC$13)^(AE23/360),"") -> 0.1845390439 | AS23: 2 | AT23: =IF(AS23>AT$6,"",EDATE(AT$22,AS22)) -> 2022-11-01 | AU23: =IF(AS23>AT$6,"",AT23-AT22) -> 31 | AV23: =IFERROR(AU23+AV22,"") -> 61 | AW23: =IF(AS23>AT$6,"",BD22) -> 315193.3138 | AX23: 6040.40747 | AY23: =IF(AS23>AT$6,"",((1+AT$11)^(AU23/360)-1)*AW23) -> 3887.864081 | AZ23: 146.56599 | BA23: 153.9469269 | BB23: 412357.84 | BC23: 422586.6245 | BD23: 309152.9063 | BE23: =IFERROR(IF(AND(MONTH(AT23)=7,AT$9=2),2/(1+AT$13)^(AV23/360),IF(AND(MONTH(AT23)=12,AT$10=2),2/(1+AT$13)^(AV23/360),1/(1+AT$13)^(AV23/360))),"") -> 0.1845390439 | BF23: =IFERROR(1/(1+AT$13)^(AV23/360),"") -> 0.1845390439 | BJ23: 2 | BK23: =IF(BJ23>BK$6,"",EDATE(BK$22,BJ22)) -> 2022-11-01 | BL23: =IF(BJ23>BK$6,"",BK23-BK22) -> 31 | BM23: =IFERROR(BL23+BM22,"") -> 61 | BN23: =IF(BJ23>BK$6,"",BU22) -> 355689.4761 | BO23: -34974.1 | BP23: =IF(BJ23>BK$6,"",((1+BK$11)^(BL23/360)-1)*BN23) -> 4387.378405 | BQ23: 165.3968467 | BR23: 153.9469269 | BS23: 412357.84 | BT23: 382090.4622 | BU23: 390663.5761 | BV23: =IFERROR(IF(AND(MONTH(BK23)=7,BK$9=2),2/(1+BK$13)^(BM23/360),IF(AND(MONTH(BK23)=12,BK$10=2),2/(1+BK$13)^(BM23/360),1/(1+BK$13)^(BM23/360))),"") -> 0.1845390439 | BW23: =IFERROR(1/(1+BK$13)^(BM23/360),"") -> 0.1845390439 | CA23: 2 | CB23: =IF(CA23>CB$6,"",EDATE(CB$22,CA22)) -> 2022-11-01 | CC23: =IF(CA23>CB$6,"",CB23-CB22) -> 31 | CD23: =IFERROR(CC23+CD22,"") -> 61 | CE23: =IF(CA23>CB$6,"",CL22) -> 315193.3138 | CF23: 6040.40747 | CG23: =IF(CA23>CB$6,"",((1+CB$11)^(CC23/360)-1)*CE23) -> 3887.864081 | CH23: 146.56599 | CI23: 153.9469269 | CJ23: 412357.84 | CK23: 422586.6245 | CL23: 309152.9063 | CM23: =IFERROR(IF(AND(MONTH(CB23)=7,CB$9=2),2/(1+CB$13)^(CD23/360),IF(AND(MONTH(CB23)=12,CB$10=2),2/(1+CB$13)^(CD23/360),1/(1+CB$13)^(CD23/360))),"") -> 0.1845390439 | CN23: =IFERROR(1/(1+CB$13)^(CD23/360),"") -> 0.1845390439 | CR23: 2 | CS23: =IF(CR23>CS$6,"",EDATE(CS$22,CR22)) -> 2022-11-01 | CT23: =IF(CR23>CS$6,"",CS23-CS22) -> 31 | CU23: =IFERROR(CT23+CU22,"") -> 61 | CV23: =IF(CR23>CS$6,"",DC22) -> 355689.4761 | CW23: -34974.1 | CX23: =IF(CR23>CS$6,"",((1+CS$11)^(CT23/360)-1)*CV23) -> 4387.378405 | CY23: 165.3968467 | CZ23: 153.9469269 | DA23: 412357.84 | DB23: 382090.4622 | DC23: 390663.5761 | DD23: =IFERROR(IF(AND(MONTH(CS23)=7,CS$9=2),2/(1+CS$13)^(CU23/360),IF(AND(MONTH(CS23)=12,CS$10=2),2/(1+CS$13)^(CU23/360),1/(1+CS$13)^(CU23/360))),"") -> 0.1845390439 | DE23: =IFERROR(1/(1+CS$13)^(CU23/360),"") -> 0.1845390439
B24: 3 | C24: =IF(B24>C$6,"",EDATE(C$22,B23)) -> 2024-05-02 | D24: 4 | E24: 2024-05-02 | F24: =IF(B24>C$6,"",E24-E23) -> 30 | G24: 118 | H24: 320226.5423 | I24: =IF(B24>C$6,"",N24-M24-L24-K24-J24) -> 2360.374907 | J24: =IF(B24>C$6,"",((1+C$11)^(F24/360)-1)*H24) -> 3821.773262 | K24: 0 | L24: 0 | M24: 0 | N24: 6182.148168 | O24: 317866.1673 | P24: 0.9544072441 | Q24: 0.9544072441 | S24: =IFERROR((I24+J24+K24+L24+M24)*$J$12+('Simulador para calculos'!I24+'Simulador para calculos'!J24+'Simulador para calculos'!K24+'Simulador para calculos'!L24+'Simulador para calculos'!M24)*NOT($J$12),"") -> 6182.148168 | T24: 118 | U24: =IFERROR((1+'Simulación Cliente'!$E$21)^(T24/360),"") -> 1.055503037 | V24: 5857.06 | AB24: 3 | AC24: 2022-12-01 | AD24: =IF(AB24>AC$6,"",AC24-AC23) -> 30 | AE24: 91 | AF24: 390663.5761 | AG24: =IF(AB24>AC$6,"",AL24-AK24-AJ24-AI24-AH24) -> 346830.9283 | AH24: =IF(AB24>AC$6,"",((1+AC$11)^(AD24/360)-1)*AF24) -> 4662.410552 | AI24: 175.7986092 | AJ24: 153.9469269 | AK24: 412357.84 | AL24: 764180.9243 | AM24: 43832.64785 | AN24: 0.160760025 | AO24: 0.0803800125 | AS24: 3 | AT24: 2022-12-01 | AU24: =IF(AS24>AT$6,"",AT24-AT23) -> 30 | AV24: 91 | AW24: 309152.9063 | AX24: =IF(AS24>AT$6,"",BC24-BB24-BA24-AZ24-AY24) -> 6246.104803 | AY24: =IF(AS24>AT$6,"",((1+AT$11)^(AU24/360)-1)*AW24) -> 3689.613931 | AZ24: 139.1188079 | BA24: 153.9469269 | BB24: 412357.84 | BC24: 422586.6245 | BD24: 302906.8015 | BE24: 0.0803800125 | BF24: 0.0803800125 | BJ24: 3 | BK24: 2022-12-01 | BL24: =IF(BJ24>BK$6,"",BK24-BK23) -> 30 | BM24: 91 | BN24: 390663.5761 | BO24: =IF(BJ24>BK$6,"",BT24-BS24-BR24-BQ24-BP24) -> 346830.9283 | BP24: =IF(BJ24>BK$6,"",((1+BK$11)^(BL24/360)-1)*BN24) -> 4662.410552 | BQ24: 175.7986092 | BR24: 153.9469269 | BS24: 412357.84 | BT24: 764180.9243 | BU24: 43832.64785 | BV24: 0.160760025 | BW24: 0.0803800125 | CA24: 3 | CB24: 2022-12-01 | CC24: =IF(CA24>CB$6,"",CB24-CB23) -> 30 | CD24: 91 | CE24: 309152.9063 | CF24: =IF(CA24>CB$6,"",CK24-CJ24-CI24-CH24-CG24) -> 6246.104803 | CG24: =IF(CA24>CB$6,"",((1+CB$11)^(CC24/360)-1)*CE24) -> 3689.613931 | CH24: 139.1188079 | CI24: 153.9469269 | CJ24: 412357.84 | CK24: 422586.6245 | CL24: 302906.8015 | CM24: 0.0803800125 | CN24: 0.0803800125 | CR24: 3 | CS24: 2022-12-01 | CT24: =IF(CR24>CS$6,"",CS24-CS23) -> 30 | CU24: 91 | CV24: 390663.5761 | CW24: =IF(CR24>CS$6,"",DB24-DA24-CZ24-CY24-CX24) -> 346830.9283 | CX24: =IF(CR24>CS$6,"",((1+CS$11)^(CT24/360)-1)*CV24) -> 4662.410552 | CY24: 175.7986092 | CZ24: 153.9469269 | DA24: 412357.84 | DB24: 764180.9243 | DC24: 43832.64785 | DD24: 0.160760025 | DE24: 0.0803800125
B25: 4 | C25: 2024-06-02 | D25: 7 | E25: 2024-06-03 | F25: 32 | G25: 150 | H25: 317866.1673 | I25: 2134.034304 | J25: 4048.113865 | K25: 0 | L25: 0 | M25: 0 | N25: 6182.148168 | O25: 315732.133 | P25: 0.9424054492 | Q25: 0.9424054492 | S25: =IFERROR((I25+J25+K25+L25+M25)*$J$12+('Simulador para calculos'!I25+'Simulador para calculos'!J25+'Simulador para calculos'!K25+'Simulador para calculos'!L25+'Simulador para calculos'!M25)*NOT($J$12),"") -> 6182.148168 | T25: 150 | U25: =IFERROR((1+'Simulación Cliente'!$E$21)^(T25/360),"") -> 1.071078699 | V25: 5771.89 | AB25: 4 | AC25: 2023-01-01 | AD25: =IF(AB25>AC$6,"",AC25-AC24) -> 31 | AE25: 122 | AF25: 43832.64785 | AG25: =IF(AB25>AC$6,"",AL25-AK25-AJ25-AI25-AH25) -> -30982.37648 | AH25: 540.6693914 | AI25: 20.38233409 | AJ25: 153.9469269 | AK25: 412357.84 | AL25: 382090.4622 | AM25: 74815.02432 | AN25: 0.03405465874 | AO25: 0.03405465874 | AS25: 4 | AT25: 2023-01-01 | AU25: =IF(AS25>AT$6,"",AT25-AT24) -> 31 | AV25: 122 | AW25: 302906.8015 | AX25: =IF(AS25>AT$6,"",BC25-BB25-BA25-AZ25-AY25) -> 6197.673098 | AY25: 3736.311724 | AZ25: 140.8527189 | BA25: 153.9469269 | BB25: 412357.84 | BC25: 422586.6245 | BD25: 296709.1284 | BE25: 0.03405465874 | BF25: 0.03405465874 | BJ25: 4 | BK25: 2023-01-01 | BL25: =IF(BJ25>BK$6,"",BK25-BK24) -> 31 | BM25: 122 | BN25: 43832.64785 | BO25: =IF(BJ25>BK$6,"",BT25-BS25-BR25-BQ25-BP25) -> -30982.37648 | BP25: 540.6693914 | BQ25: 20.38233409 | BR25: 153.9469269 | BS25: 412357.84 | BT25: 382090.4622 | BU25: 74815.02432 | BV25: 0.03405465874 | BW25: 0.03405465874 | CA25: 4 | CB25: 2023-01-01 | CC25: =IF(CA25>CB$6,"",CB25-CB24) -> 31 | CD25: 122 | CE25: 302906.8015 | CF25: =IF(CA25>CB$6,"",CK25-CJ25-CI25-CH25-CG25) -> 6197.673098 | CG25: 3736.311724 | CH25: 140.8527189 | CI25: 153.9469269 | CJ25: 412357.84 | CK25: 422586.6245 | CL25: 296709.1284 | CM25: 0.03405465874 | CN25: 0.03405465874 | CR25: 4 | CS25: 2023-01-01 | CT25: =IF(CR25>CS$6,"",CS25-CS24) -> 31 | CU25: 122 | CV25: 43832.64785 | CW25: =IF(CR25>CS$6,"",DB25-DA25-CZ25-CY25-CX25) -> -30982.37648 | CX25: 540.6693914 | CY25: 20.38233409 | CZ25: 153.9469269 | DA25: 412357.84 | DB25: 382090.4622 | DC25: 74815.02432 | DD25: 0.03405465874 | DE25: 0.03405465874
B26: 5 | C26: 2024-07-02 | D26: 2 | E26: 2024-07-02 | F26: 29 | G26: 179 | H26: 315732.133 | I26: 2540.339901 | J26: 3641.808268 | K26: 0 | L26: 0 | M26: 0 | N26: 6182.148168 | O26: 313191.7931 | P26: 0.9316592376 | Q26: 0.9316592376 | S26: =IFERROR((I26+J26+K26+L26+M26)*$J$12+('Simulador para calculos'!I26+'Simulador para calculos'!J26+'Simulador para calculos'!K26+'Simulador para calculos'!L26+'Simulador para calculos'!M26)*NOT($J$12),"") -> 6182.148168 | T26: 179 | U26: =IFERROR((1+'Simulación Cliente'!$E$21)^(T26/360),"") -> 1.085392583 | V26: 5695.77 | AB26: 5 | AC26: 2023-02-01 | AD26: 31 | AE26: 153 | AF26: 74815.02432 | AG26: -31378.94654 | AH26: 922.8325382 | AI26: 34.78924719 | AJ26: 153.9469269 | AK26: 412357.84 | AL26: 382090.4622 | AM26: 106193.9709 | AN26: 0.0144279622 | AO26: 0.0144279622 | AS26: 5 | AT26: 2023-02-01 | AU26: 31 | AV26: 153 | AW26: 296709.1284 | AX26: 6277.002442 | AY26: 3659.86432 | AZ26: 137.9707793 | BA26: 153.9469269 | BB26: 412357.84 | BC26: 422586.6245 | BD26: 290432.126 | BE26: 0.0144279622 | BF26: 0.0144279622 | BJ26: 5 | BK26: 2023-02-01 | BL26: 31 | BM26: 153 | BN26: 74815.02432 | BO26: -31378.94654 | BP26: 922.8325382 | BQ26: 34.78924719 | BR26: 153.9469269 | BS26: 412357.84 | BT26: 382090.4622 | BU26: 106193.9709 | BV26: 0.0144279622 | BW26: 0.0144279622 | CA26: 5 | CB26: 2023-02-01 | CC26: 31 | CD26: 153 | CE26: 296709.1284 | CF26: 6277.002442 | CG26: 3659.86432 | CH26: 137.9707793 | CI26: 153.9469269 | CJ26: 412357.84 | CK26: 422586.6245 | CL26: 290432.126 | CM26: 0.0144279622 | CN26: 0.0144279622 | CR26: 5 | CS26: 2023-02-01 | CT26: 31 | CU26: 153 | CV26: 74815.02432 | CW26: -31378.94654 | CX26: 922.8325382 | CY26: 34.78924719 | CZ26: 153.9469269 | DA26: 412357.84 | DB26: 382090.4622 | DC26: 106193.9709 | DD26: 0.0144279622 | DE26: 0.0144279622
B27: 6 | C27: 2024-08-02 | D27: 5 | E27: 2024-08-02 | F27: 31 | G27: 210 | H27: 313191.7931 | I27: 2318.972556 | J27: 3863.175613 | K27: 0 | L27: 0 | M27: 0 | N27: 6182.148168 | O27: 310872.8206 | P27: 0.9203073787 | Q27: 0.9203073787 | S27: =IFERROR((I27+J27+K27+L27+M27)*$J$12+('Simulador para calculos'!I27+'Simulador para calculos'!J27+'Simulador para calculos'!K27+'Simulador para calculos'!L27+'Simulador para calculos'!M27)*NOT($J$12),"") -> 6182.148168 | T27: 210 | U27: =IFERROR((1+'Simulación Cliente'!$E$21)^(T27/360),"") -> 1.100905231 | V27: 5615.51 | AB27: 6 | AC27: 2023-03-01 | AD27: 28 | AE27: 181 | AF27: 106193.9709 | AG27: -31648.3466 | AH27: 1182.42105 | AI27: 44.60079885 | AJ27: 153.9469269 | AK27: 412357.84 | AL27: 382090.4622 | AM27: 137842.3175 | AN27: 0.00664243753 | AO27: 0.00664243753 | AS27: 6 | AT27: 2023-03-01 | AU27: 28 | AV27: 181 | AW27: 290432.126 | AX27: 6719.029663 | AY27: 3233.828215 | AZ27: 121.9796635 | BA27: 153.9469269 | BB27: 412357.84 | BC27: 422586.6245 | BD27: 283713.0963 | BE27: 0.00664243753 | BF27: 0.00664243753 | BJ27: 6 | BK27: 2023-03-01 | BL27: 28 | BM27: 181 | BN27: 106193.9709 | BO27: -31648.3466 | BP27: 1182.42105 | BQ27: 44.60079885 | BR27: 153.9469269 | BS27: 412357.84 | BT27: 382090.4622 | BU27: 137842.3175 | BV27: 0.00664243753 | BW27: 0.00664243753 | CA27: 6 | CB27: 2023-03-01 | CC27: 28 | CD27: 181 | CE27: 290432.126 | CF27: 6719.029663 | CG27: 3233.828215 | CH27: 121.9796635 | CI27: 153.9469269 | CJ27: 412357.84 | CK27: 422586.6245 | CL27: 283713.0963 | CM27: 0.00664243753 | CN27: 0.00664243753 | CR27: 6 | CS27: 2023-03-01 | CT27: 28 | CU27: 181 | CV27: 106193.9709 | CW27: -31648.3466 | CX27: 1182.42105 | CY27: 44.60079885 | CZ27: 153.9469269 | DA27: 412357.84 | DB27: 382090.4622 | DC27: 137842.3175 | DD27: 0.00664243753 | DE27: 0.00664243753
B28: 7 | C28: 2024-09-02 | D28: 1 | E28: 2024-09-02 | F28: 31 | G28: 241 | H28: 310872.8206 | I28: 2347.576748 | J28: 3834.57142 | K28: 0 | L28: 0 | M28: 0 | N28: 6182.148168 | O28: 308525.2438 | P28: 0.9090938373 | Q28: 0.9090938373 | S28: =IFERROR((I28+J28+K28+L28+M28)*$J$12+('Simulador para calculos'!I28+'Simulador para calculos'!J28+'Simulador para calculos'!K28+'Simulador para calculos'!L28+'Simulador para calculos'!M28)*NOT($J$12),"") -> 6182.148168 | T28: 241 | U28: =IFERROR((1+'Simulación Cliente'!$E$21)^(T28/360),"") -> 1.116639589 | V28: 5536.39 | AB28: 7 | AC28: 2023-04-01 | AD28: 31 | AE28: 212 | AF28: 137842.3175 | AG28: -32185.68702 | AH28: 1700.265112 | AI28: 64.09715828 | AJ28: 153.9469269 | AK28: 412357.84 | AL28: 382090.4622 | AM28: 170028.0045 | AN28: 0.002814206371 | AO28: 0.002814206371 | AS28: 7 | AT28: 2023-04-01 | AU28: 31 | AV28: 212 | AW28: 283713.0963 | AX28: 6443.349824 | AY28: 3499.560138 | AZ28: 131.9275791 | BA28: 153.9469269 | BB28: 412357.84 | BC28: 422586.6245 | BD28: 277269.7465 | BE28: 0.002814206371 | BF28: 0.002814206371 | BJ28: 7 | BK28: 2023-04-01 | BL28: 31 | BM28: 212 | BN28: 137842.3175 | BO28: -32185.68702 | BP28: 1700.265112 | BQ28: 64.09715828 | BR28: 153.9469269 | BS28: 412357.84 | BT28: 382090.4622 | BU28: 170028.0045 | BV28: 0.002814206371 | BW28: 0.002814206371 | CA28: 7 | CB28: 2023-04-01 | CC28: 31 | CD28: 212 | CE28: 283713.0963 | CF28: 6443.349824 | CG28: 3499.560138 | CH28: 131.9275791 | CI28: 153.9469269 | CJ28: 412357.84 | CK28: 422586.6245 | CL28: 277269.7465 | CM28: 0.002814206371 | CN28: 0.002814206371 | CR28: 7 | CS28: 2023-04-01 | CT28: 31 | CU28: 212 | CV28: 137842.3175 | CW28: -32185.68702 | CX28: 1700.265112 | CY28: 64.09715828 | CZ28: 153.9469269 | DA28: 412357.84 | DB28: 382090.4622 | DC28: 170028.0045 | DD28: 0.002814206371 | DE28: 0.002814206371
B29: 8 | C29: 2024-10-02 | D29: 3 | E29: 2024-10-02 | F29: 30 | G29: 271 | H29: 308525.2438 | I29: 2500.025134 | J29: 3682.123034 | K29: 0 | L29: 0 | M29: 0 | N29: 6182.148168 | O29: 306025.2187 | P29: 0.8983721321 | Q29: 0.8983721321 | S29: =IFERROR((I29+J29+K29+L29+M29)*$J$12+('Simulador para calculos'!I29+'Simulador para calculos'!J29+'Simulador para calculos'!K29+'Simulador para calculos'!L29+'Simulador para calculos'!M29)*NOT($J$12),"") -> 6182.148168 | T29: 271 | U29: =IFERROR((1+'Simulación Cliente'!$E$21)^(T29/360),"") -> 1.132080468 | V29: 5460.87 | AB29: 8 | AC29: 2023-05-01 | AD29: 30 | AE29: 242 | AF29: 170028.0045 | AG29: -32527.05229 | AH29: 2029.214932 | AI29: 76.51260202 | AJ29: 153.9469269 | AK29: 412357.84 | AL29: 382090.4622 | AM29: 202555.0568 | AN29: 0.001225789071 | AO29: 0.001225789071 | AS29: 8 | AT29: 2023-05-01 | AU29: 30 | AV29: 242 | AW29: 277269.7465 | AX29: 6640.964742 | AY29: 3309.101413 | AZ29: 124.7713859 | BA29: 153.9469269 | BB29: 412357.84 | BC29: 422586.6245 | BD29: 270628.7818 | BE29: 0.001225789071 | BF29: 0.001225789071 | BJ29: 8 | BK29: 2023-05-01 | BL29: 30 | BM29: 242 | BN29: 170028.0045 | BO29: -32527.05229 | BP29: 2029.214932 | BQ29: 76.51260202 | BR29: 153.9469269 | BS29: 412357.84 | BT29: 382090.4622 | BU29: 202555.0568 | BV29: 0.001225789071 | BW29: 0.001225789071 | CA29: 8 | CB29: 2023-05-01 | CC29: 30 | CD29: 242 | CE29: 277269.7465 | CF29: 6640.964742 | CG29: 3309.101413 | CH29: 124.7713859 | CI29: 153.9469269 | CJ29: 412357.84 | CK29: 422586.6245 | CL29: 270628.7818 | CM29: 0.001225789071 | CN29: 0.001225789071 | CR29: 8 | CS29: 2023-05-01 | CT29: 30 | CU29: 242 | CV29: 170028.0045 | CW29: -32527.05229 | CX29: 2029.214932 | CY29: 76.51260202 | CZ29: 153.9469269 | DA29: 412357.84 | DB29: 382090.4622 | DC29: 202555.0568 | DD29: 0.001225789071 | DE29: 0.001225789071
B30: 9 | C30: 2024-11-02 | D30: 6 | E30: 2024-11-02 | F30: 31 | G30: 302 | H30: 306025.2187 | I30: 2407.371218 | J30: 3774.77695 | K30: 0 | L30: 0 | M30: 0 | N30: 6182.148168 | O30: 303617.8475 | P30: 0.887425862 | Q30: 0.887425862 | S30: =IFERROR((I30+J30+K30+L30+M30)*$J$12+('Simulador para calculos'!I30+'Simulador para calculos'!J30+'Simulador para calculos'!K30+'Simulador para calculos'!L30+'Simulador para calculos'!M30)*NOT($J$12),"") -> 6182.148168 | T30: 302 | U30: =IFERROR((1+'Simulación Cliente'!$E$21)^(T30/360),"") -> 1.148260388 | V30: 5383.93 | AB30: 9 | AC30: 2023-06-01 | AD30: 31 | AE30: 273 | AF30: 202555.0568 | AG30: -33014.00098 | AH30: 2498.487421 | AI30: 94.18880771 | AJ30: 153.9469269 | AK30: 412357.84 | AL30: 382090.4622 | AM30: 235569.0578 | AN30: 0.0005193309532 | AO30: 0.0005193309532 | AS30: 9 | AT30: 2023-06-01 | AU30: 31 | AV30: 273 | AW30: 270628.7818 | AX30: 6610.82721 | AY30: 3338.167004 | AZ30: 125.8433272 | BA30: 153.9469269 | BB30: 412357.84 | BC30: 422586.6245 | BD30: 264017.9546 | BE30: 0.0005193309532 | BF30: 0.0005193309532 | BJ30: 9 | BK30: 2023-06-01 | BL30: 31 | BM30: 273 | BN30: 202555.0568 | BO30: -33014.00098 | BP30: 2498.487421 | BQ30: 94.18880771 | BR30: 153.9469269 | BS30: 412357.84 | BT30: 382090.4622 | BU30: 235569.0578 | BV30: 0.0005193309532 | BW30: 0.0005193309532 | CA30: 9 | CB30: 2023-06-01 | CC30: 31 | CD30: 273 | CE30: 270628.7818 | CF30: 6610.82721 | CG30: 3338.167004 | CH30: 125.8433272 | CI30: 153.9469269 | CJ30: 412357.84 | CK30: 422586.6245 | CL30: 264017.9546 | CM30: 0.0005193309532 | CN30: 0.0005193309532 | CR30: 9 | CS30: 2023-06-01 | CT30: 31 | CU30: 273 | CV30: 202555.0568 | CW30: -33014.00098 | CX30: 2498.487421 | CY30: 94.18880771 | CZ30: 153.9469269 | DA30: 412357.84 | DB30: 382090.4622 | DC30: 235569.0578 | DD30: 0.0005193309532 | DE30: 0.0005193309532
B31: 10 | C31: 2024-12-02 | D31: 1 | E31: 2024-12-02 | F31: 30 | G31: 332 | H31: 303617.8475 | I31: =IF(B31>C$6,"",N31-M31-L31-K31-J31) -> 2558.592909 | J31: 3623.555259 | K31: 0 | L31: 0 | M31: 0 | N31: 6182.148168 | O31: 301059.2546 | P31: 0.8769597054 | Q31: 0.8769597054 | S31: =IFERROR((I31+J31+K31+L31+M31)*$J$12+('Simulador para calculos'!I31+'Simulador para calculos'!J31+'Simulador para calculos'!K31+'Simulador para calculos'!L31+'Simulador para calculos'!M31)*NOT($J$12),"") -> 6182.148168 | T31: 332 | U31: =IFERROR((1+'Simulación Cliente'!$E$21)^(T31/360),"") -> 1.164138519 | V31: 5310.49 | AB31: 10 | AC31: 2023-07-01 | AD31: 30 | AE31: 303 | AF31: 235569.0578 | AG31: 348751.7107 | AH31: 2811.42069 | AI31: 106.006076 | AJ31: 153.9469269 | AK31: 412357.84 | AL31: 764180.9243 | AM31: -113182.6529 | AN31: 0.0004524118866 | AO31: 0.0002262059433 | AS31: 10 | AT31: 2023-07-01 | AU31: 30 | AV31: 303 | AW31: 264017.9546 | AX31: 6805.082784 | AY31: 3150.946677 | AZ31: 118.8080795 | BA31: 153.9469269 | BB31: 412357.84 | BC31: 422586.6245 | BD31: 257212.8718 | BE31: 0.0002262059433 | BF31: 0.0002262059433 | BJ31: 10 | BK31: 2023-07-01 | BL31: 30 | BM31: 303 | BN31: 235569.0578 | BO31: 348751.7107 | BP31: 2811.42069 | BQ31: 106.006076 | BR31: 153.9469269 | BS31: 412357.84 | BT31: 764180.9243 | BU31: -113182.6529 | BV31: 0.0004524118866 | BW31: 0.0002262059433 | CA31: 10 | CB31: 2023-07-01 | CC31: 30 | CD31: 303 | CE31: 264017.9546 | CF31: 6805.082784 | CG31: 3150.946677 | CH31: 118.8080795 | CI31: 153.9469269 | CJ31: 412357.84 | CK31: 422586.6245 | CL31: 257212.8718 | CM31: 0.0002262059433 | CN31: 0.0002262059433 | CR31: 10 | CS31: 2023-07-01 | CT31: 30 | CU31: 303 | CV31: 235569.0578 | CW31: 348751.7107 | CX31: 2811.42069 | CY31: 106.006076 | CZ31: 153.9469269 | DA31: 412357.84 | DB31: 764180.9243 | DC31: -113182.6529 | DD31: 0.0004524118866 | DE31: 0.0002262059433
B32: 11 | C32: 2025-01-02 | D32: 4 | E32: 2025-01-02 | F32: 31 | G32: 363 | H32: 301059.2546 | I32: 2468.62567 | J32: 3713.522499 | K32: 0 | L32: 0 | M32: 0 | N32: 6182.148168 | O32: 298590.6289 | P32: 0.8662743363 | Q32: 0.8662743363 | S32: =IFERROR((I32+J32+K32+L32+M32)*$J$12+('Simulador para calculos'!I32+'Simulador para calculos'!J32+'Simulador para calculos'!K32+'Simulador para calculos'!L32+'Simulador para calculos'!M32)*NOT($J$12),"") -> 6182.148168 | T32: 363 | U32: =IFERROR((1+'Simulación Cliente'!$E$21)^(T32/360),"") -> 1.18077662 | V32: 5235.66 | AB32: 11 | AC32: 2023-08-01 | AD32: 31 | AE32: 334 | AF32: -113182.6529 | AG32: -28972.60272 | AH32: -1396.091705 | AI32: -52.63032827 | AJ32: 153.9469269 | AK32: 412357.84 | AL32: 382090.4622 | AM32: -84210.05018 | AN32: 9.58368376e-05 | AO32: 9.58368376e-05 | AS32: 11 | AT32: 2023-08-01 | AU32: 31 | AV32: 334 | AW32: 257212.8718 | AX32: 6782.54897 | AY32: 3172.683688 | AZ32: 119.6048823 | BA32: 153.9469269 | BB32: 412357.84 | BC32: 422586.6245 | BD32: 250430.3228 | BE32: 9.58368376e-05 | BF32: 9.58368376e-05 | BJ32: 11 | BK32: 2023-08-01 | BL32: 31 | BM32: 334 | BN32: -113182.6529 | BO32: -28972.60272 | BP32: -1396.091705 | BQ32: -52.63032827 | BR32: 153.9469269 | BS32: 412357.84 | BT32: 382090.4622 | BU32: -84210.05018 | BV32: 9.58368376e-05 | BW32: 9.58368376e-05 | CA32: 11 | CB32: 2023-08-01 | CC32: 31 | CD32: 334 | CE32: 257212.8718 | CF32: 6782.54897 | CG32: 3172.683688 | CH32: 119.6048823 | CI32: 153.9469269 | CJ32: 412357.84 | CK32: 422586.6245 | CL32: 250430.3228 | CM32: 9.58368376e-05 | CN32: 9.58368376e-05 | CR32: 11 | CS32: 2023-08-01 | CT32: 31 | CU32: 334 | CV32: -113182.6529 | CW32: -28972.60272 | CX32: -1396.091705 | CY32: -52.63032827 | CZ32: 153.9469269 | DA32: 412357.84 | DB32: 382090.4622 | DC32: -84210.05018 | DD32: 9.58368376e-05 | DE32: 9.58368376e-05
B33: 12 | C33: 2025-02-02 | D33: 7 | E33: 2025-02-03 | F33: 32 | G33: 395 | H33: 298590.6289 | I33: 2379.513636 | J33: 3802.634533 | K33: 0 | L33: 0 | M33: 0 | N33: =IF(B33>C$6,"",IF(B33=C$6,H33+J33+K33+L33+M33,IF(AND(C$9=2,MONTH(C33)=7),2*C$17,IF(AND(C$10=2,MONTH(C33)=12),2*C$17,C$17)))) -> 6182.148168 | O33: 296211.1153 | P33: 0.8553808241 | Q33: 0.8553808241 | S33: =IFERROR((I33+J33+K33+L33+M33)*$J$12+('Simulador para calculos'!I33+'Simulador para calculos'!J33+'Simulador para calculos'!K33+'Simulador para calculos'!L33+'Simulador para calculos'!M33)*NOT($J$12),"") -> 6182.148168 | T33: 395 | U33: =IFERROR((1+'Simulación Cliente'!$E$21)^(T33/360),"") -> 1.198200896 | V33: 5159.53 | AB33: 12 | AC33: 2023-09-01 | AD33: 31 | AE33: 365 | AF33: -84210.05018 | AG33: -29343.44796 | AH33: -1038.718828 | AI33: -39.15796697 | AJ33: 153.9469269 | AK33: 412357.84 | AL33: 382090.4622 | AM33: -54866.60222 | AN33: 4.060326314e-05 | AO33: 4.060326314e-05 | AS33: 12 | AT33: 2023-09-01 | AU33: 31 | AV33: 365 | AW33: 250430.3228 | AX33: 6869.364643 | AY33: 3089.021925 | AZ33: 116.4509734 | BA33: 153.9469269 | BB33: 412357.84 | BC33: 422586.6245 | BD33: 243560.9582 | BE33: 4.060326314e-05 | BF33: 4.060326314e-05 | BJ33: 12 | BK33: 2023-09-01 | BL33: 31 | BM33: 365 | BN33: -84210.05018 | BO33: -29343.44796 | BP33: -1038.718828 | BQ33: -39.15796697 | BR33: 153.9469269 | BS33: 412357.84 | BT33: 382090.4622 | BU33: -54866.60222 | BV33: 4.060326314e-05 | BW33: 4.060326314e-05 | CA33: 12 | CB33: 2023-09-01 | CC33: 31 | CD33: 365 | CE33: 250430.3228 | CF33: 6869.364643 | CG33: 3089.021925 | CH33: 116.4509734 | CI33: 153.9469269 | CJ33: 412357.84 | CK33: 422586.6245 | CL33: 243560.9582 | CM33: 4.060326314e-05 | CN33: 4.060326314e-05 | CR33: 12 | CS33: 2023-09-01 | CT33: 31 | CU33: 365 | CV33: -84210.05018 | CW33: -29343.44796 | CX33: -1038.718828 | CY33: -39.15796697 | CZ33: 153.9469269 | DA33: 412357.84 | DB33: 382090.4622 | DC33: -54866.60222 | DD33: 4.060326314e-05 | DE33: 4.060326314e-05
B34: 13 | C34: 2025-03-02 | D34: 7 | E34: 2025-03-03 | F34: 28 | G34: 423 | H34: 296211.1153 | I34: 2883.973564 | J34: 3298.174604 | K34: 0 | L34: 0 | M34: 0 | N34: 6182.148168 | O34: 293327.1417 | P34: 0.8459614325 | Q34: 0.8459614325 | S34: =IFERROR((I34+J34+K34+L34+M34)*$J$12+('Simulador para calculos'!I34+'Simulador para calculos'!J34+'Simulador para calculos'!K34+'Simulador para calculos'!L34+'Simulador para calculos'!M34)*NOT($J$12),"") -> 6182.148168 | T34: 423 | U34: =IFERROR((1+'Simulación Cliente'!$E$21)^(T34/360),"") -> 1.213657931 | V34: 5093.81 | AB34: 13 | AC34: 2023-10-01 | AD34: 30 | AE34: 395 | AF34: -54866.60222 | AG34: -29741.82425 | AH34: -654.8105346 | AI34: -24.689971 | AJ34: 153.9469269 | AK34: 412357.84 | AL34: 382090.4622 | AM34: -25124.77797 | AN34: 1.768563839e-05 | AO34: 1.768563839e-05 | AS34: 13 | AT34: 2023-10-01 | AU34: 30 | AV34: 395 | AW34: 243560.9582 | AX34: 7058.434347 | AY34: 2906.800763 | AZ34: 109.6024312 | BA34: 153.9469269 | BB34: 412357.84 | BC34: 422586.6245 | BD34: 236502.5238 | BE34: 1.768563839e-05 | BF34: 1.768563839e-05 | BJ34: 13 | BK34: 2023-10-01 | BL34: 30 | BM34: 395 | BN34: -54866.60222 | BO34: -29741.82425 | BP34: -654.8105346 | BQ34: -24.689971 | BR34: 153.9469269 | BS34: 412357.84 | BT34: 382090.4622 | BU34: -25124.77797 | BV34: 1.768563839e-05 | BW34: 1.768563839e-05 | CA34: 13 | CB34: 2023-10-01 | CC34: 30 | CD34: 395 | CE34: 243560.9582 | CF34: 7058.434347 | CG34: 2906.800763 | CH34: 109.6024312 | CI34: 153.9469269 | CJ34: 412357.84 | CK34: 422586.6245 | CL34: 236502.5238 | CM34: 1.768563839e-05 | CN34: 1.768563839e-05 | CR34: 13 | CS34: 2023-10-01 | CT34: 30 | CU34: 395 | CV34: -54866.60222 | CW34: -29741.82425 | CX34: -654.8105346 | CY34: -24.689971 | CZ34: 153.9469269 | DA34: 412357.84 | DB34: 382090.4622 | DC34: -25124.77797 | DD34: 1.768563839e-05 | DE34: 1.768563839e-05
B35: 14 | C35: 2025-04-02 | D35: 3 | E35: 2025-04-02 | F35: 30 | G35: 453 | H35: 293327.1417 | I35: 2681.408288 | J35: 3500.73988 | K35: 0 | L35: 0 | M35: 0 | N35: 6182.148168 | O35: 290645.7334 | P35: 0.8359843006 | Q35: 0.8359843006 | S35: =IFERROR((I35+J35+K35+L35+M35)*$J$12+('Simulador para calculos'!I35+'Simulador para calculos'!J35+'Simulador para calculos'!K35+'Simulador para calculos'!L35+'Simulador para calculos'!M35)*NOT($J$12),"") -> 6182.148168 | T35: 453 | U35: =IFERROR((1+'Simulación Cliente'!$E$21)^(T35/360),"") -> 1.230440379 | V35: 5024.34 | AB35: 14 | AC35: 2023-11-01 | AD35: 31 | AE35: 426 | AF35: -25124.77797 | AG35: -30099.73113 | AH35: -309.9105138 | AI35: -11.68310937 | AJ35: 153.9469269 | AK35: 412357.84 | AL35: 382090.4622 | AM35: 4974.953157 | AN35: 7.492887362e-06 | AO35: 7.492887362e-06 | AS35: 14 | AT35: 2023-11-01 | AU35: 31 | AV35: 426 | AW35: 236502.5238 | AX35: 7047.63851 | AY35: 2917.224532 | AZ35: 109.9744983 | BA35: 153.9469269 | BB35: 412357.84 | BC35: 422586.6245 | BD35: 229454.8853 | BE35: 7.492887362e-06 | BF35: 7.492887362e-06 | BJ35: 14 | BK35: 2023-11-01 | BL35: 31 | BM35: 426 | BN35: -25124.77797 | BO35: -30099.73113 | BP35: -309.9105138 | BQ35: -11.68310937 | BR35: 153.9469269 | BS35: 412357.84 | BT35: 382090.4622 | BU35: 4974.953157 | BV35: 7.492887362e-06 | BW35: 7.492887362e-06 | CA35: 14 | CB35: 2023-11-01 | CC35: 31 | CD35: 426 | CE35: 236502.5238 | CF35: 7047.63851 | CG35: 2917.224532 | CH35: 109.9744983 | CI35: 153.9469269 | CJ35: 412357.84 | CK35: 422586.6245 | CL35: 229454.8853 | CM35: 7.492887362e-06 | CN35: 7.492887362e-06 | CR35: 14 | CS35: 2023-11-01 | CT35: 31 | CU35: 426 | CV35: -25124.77797 | CW35: -30099.73113 | CX35: -309.9105138 | CY35: -11.68310937 | CZ35: 153.9469269 | DA35: 412357.84 | DB35: 382090.4622 | DC35: 4974.953157 | DD35: 7.492887362e-06 | DE35: 7.492887362e-06
B36: 15 | C36: 2025-05-02 | D36: 5 | E36: 2025-05-02 | F36: 30 | G36: 483 | H36: 290645.7334 | I36: 2713.409803 | J36: 3468.738365 | K36: 0 | L36: 0 | M36: 0 | N36: 6182.148168 | O36: 287932.3236 | P36: 0.8261248374 | Q36: 0.8261248374 | S36: =IFERROR((I36+J36+K36+L36+M36)*$J$12+('Simulador para calculos'!I36+'Simulador para calculos'!J36+'Simulador para calculos'!K36+'Simulador para calculos'!L36+'Simulador para calculos'!M36)*NOT($J$12),"") -> 6182.148168 | T36: 483 | U36: =IFERROR((1+'Simulación Cliente'!$E$21)^(T36/360),"") -> 1.247454894 | V36: 4955.81 | AB36: 15 | AC36: 2023-12-01 | AD36: 30 | AE36: 456 | AF36: 4974.953157 | AG36: 351607.5247 | AH36: 59.37403821 | AI36: 2.238728921 | AJ36: 153.9469269 | AK36: 412357.84 | AL36: 764180.9243 | AM36: -346632.5715 | AN36: 6.527381598e-06 | AO36: 3.263690799e-06 | AS36: 15 | AT36: 2023-12-01 | AU36: 30 | AV36: 456 | AW36: 229454.8853 | AX36: 7233.132309 | AY36: 2738.450533 | AZ36: 103.2546984 | BA36: 153.9469269 | BB36: 412357.84 | BC36: 422586.6245 | BD36: 222221.753 | BE36: 3.263690799e-06 | BF36: 3.263690799e-06 | BJ36: 15 | BK36: 2023-12-01 | BL36: 30 | BM36: 456 | BN36: 4974.953157 | BO36: 351607.5247 | BP36: 59.37403821 | BQ36: 2.238728921 | BR36: 153.9469269 | BS36: 412357.84 | BT36: 764180.9243 | BU36: -346632.5715 | BV36: 6.527381598e-06 | BW36: 3.263690799e-06 | CA36: 15 | CB36: 2023-12-01 | CC36: 30 | CD36: 456 | CE36: 229454.8853 | CF36: 7233.132309 | CG36: 2738.450533 | CH36: 103.2546984 | CI36: 153.9469269 | CJ36: 412357.84 | CK36: 422586.6245 | CL36: 222221.753 | CM36: 3.263690799e-06 | CN36: 3.263690799e-06 | CR36: 15 | CS36: 2023-12-01 | CT36: 30 | CU36: 456 | CV36: 4974.953157 | CW36: 351607.5247 | CX36: 59.37403821 | CY36: 2.238728921 | CZ36: 153.9469269 | DA36: 412357.84 | DB36: 764180.9243 | DC36: -346632.5715 | DD36: 6.527381598e-06 | DE36: 3.263690799e-06
B37: 16 | C37: 2025-06-02 | D37: 1 | E37: 2025-06-02 | F37: 31 | G37: 514 | H37: 287932.3236 | I37: 2630.544471 | J37: 3551.603698 | K37: 0 | L37: 0 | M37: 0 | N37: 6182.148168 | O37: 285301.7791 | P37: 0.8160588689 | Q37: 0.8160588689 | S37: =IFERROR((I37+J37+K37+L37+M37)*$J$12+('Simulador para calculos'!I37+'Simulador para calculos'!J37+'Simulador para calculos'!K37+'Simulador para calculos'!L37+'Simulador para calculos'!M37)*NOT($J$12),"") -> 6182.148168 | T37: 514 | U37: =IFERROR((1+'Simulación Cliente'!$E$21)^(T37/360),"") -> 1.265283768 | V37: 4885.98 | AB37: 16 | AC37: 2024-01-01 | AD37: 31 | AE37: 487 | AF37: -346632.5715 | AG37: -25984.47661 | AH37: -4275.662792 | AI37: -161.1853545 | AJ37: 153.9469269 | AK37: 412357.84 | AL37: 382090.4622 | AM37: -320648.0949 | AN37: 1.38273027e-06 | AO37: 1.38273027e-06 | AS37: 16 | AT37: 2024-01-01 | AU37: 31 | AV37: 487 | AW37: 222221.753 | AX37: 7230.430368 | AY37: 2741.073283 | AZ37: 103.33389 | BA37: 153.9469269 | BB37: 412357.84 | BC37: 422586.6245 | BD37: 214991.3226 | BE37: 1.38273027e-06 | BF37: 1.38273027e-06 | BJ37: 16 | BK37: 2024-01-01 | BL37: 31 | BM37: 487 | BN37: -346632.5715 | BO37: -25984.47661 | BP37: -4275.662792 | BQ37: -161.1853545 | BR37: 153.9469269 | BS37: 412357.84 | BT37: 382090.4622 | BU37: -320648.0949 | BV37: 1.38273027e-06 | BW37: 1.38273027e-06 | CA37: 16 | CB37: 2024-01-01 | CC37: 31 | CD37: 487 | CE37: 222221.753 | CF37: 7230.430368 | CG37: 2741.073283 | CH37: 103.33389 | CI37: 153.9469269 | CJ37: 412357.84 | CK37: 422586.6245 | CL37: 214991.3226 | CM37: 1.38273027e-06 | CN37: 1.38273027e-06 | CR37: 16 | CS37: 2024-01-01 | CT37: 31 | CU37: 487 | CV37: -346632.5715 | CW37: -25984.47661 | CX37: -4275.662792 | CY37: -161.1853545 | CZ37: 153.9469269 | DA37: 412357.84 | DB37: 382090.4622 | DC37: -320648.0949 | DD37: 1.38273027e-06 | DE37: 1.38273027e-06
B38: 17 | C38: 2025-07-02 | D38: 3 | E38: 2025-07-02 | F38: 30 | G38: 544 | H38: 285301.7791 | I38: 2777.18772 | J38: 3404.960449 | K38: 0 | L38: 0 | M38: 0 | N38: 6182.148168 | O38: 282524.5914 | P38: 0.806434403 | Q38: 0.806434403 | S38: =IFERROR((I38+J38+K38+L38+M38)*$J$12+('Simulador para calculos'!I38+'Simulador para calculos'!J38+'Simulador para calculos'!K38+'Simulador para calculos'!L38+'Simulador para calculos'!M38)*NOT($J$12),"") -> 6182.148168 | T38: 544 | U38: =IFERROR((1+'Simulación Cliente'!$E$21)^(T38/360),"") -> 1.282780098 | V38: 4819.34 | AB38: 17 | AC38: 2024-02-01 | AD38: 31 | AE38: 518 | AF38: -320648.0949 | AG38: -26317.07425 | AH38: -3955.14802 | AI38: -149.1024822 | AJ38: 153.9469269 | AK38: 412357.84 | AL38: 382090.4622 | AM38: -294331.0206 | AN38: 5.858223458e-07 | AO38: 5.858223458e-07 | AS38: 17 | AT38: 2024-02-01 | AU38: 31 | AV38: 518 | AW38: 214991.3226 | AX38: 7322.978859 | AY38: 2651.886967 | AZ38: 99.97171469 | BA38: 153.9469269 | BB38: 412357.84 | BC38: 422586.6245 | BD38: 207668.3438 | BE38: 5.858223458e-07 | BF38: 5.858223458e-07 | BJ38: 17 | BK38: 2024-02-01 | BL38: 31 | BM38: 518 | BN38: -320648.0949 | BO38: -26317.07425 | BP38: -3955.14802 | BQ38: -149.1024822 | BR38: 153.9469269 | BS38: 412357.84 | BT38: 382090.4622 | BU38: -294331.0206 | BV38: 5.858223458e-07 | BW38: 5.858223458e-07 | CA38: 17 | CB38: 2024-02-01 | CC38: 31 | CD38: 518 | CE38: 214991.3226 | CF38: 7322.978859 | CG38: 2651.886967 | CH38: 99.97171469 | CI38: 153.9469269 | CJ38: 412357.84 | CK38: 422586.6245 | CL38: 207668.3438 | CM38: 5.858223458e-07 | CN38: 5.858223458e-07 | CR38: 17 | CS38: 2024-02-01 | CT38: 31 | CU38: 518 | CV38: -320648.0949 | CW38: -26317.07425 | CX38: -3955.14802 | CY38: -149.1024822 | CZ38: 153.9469269 | DA38: 412357.84 | DB38: 382090.4622 | DC38: -294331.0206 | DD38: 5.858223458e-07 | DE38: 5.858223458e-07
B39: 18 | C39: 2025-08-02 | D39: 6 | E39: 2025-08-02 | F39: 31 | G39: 575 | H39: 282524.5914 | I39: 2697.248067 | J39: 3484.900101 | K39: 0 | L39: 0 | M39: 0 | N39: =IF(B39>C$6,"",IF(B39=C$6,H39+J39+K39+L39+M39,IF(AND(C$9=2,MONTH(C39)=7),2*C$17,IF(AND(C$10=2,MONTH(C39)=12),2*C$17,C$17)))) -> 6182.148168 | O39: 279827.3434 | P39: 0.7966083538 | Q39: 0.7966083538 | S39: =IFERROR((I39+J39+K39+L39+M39)*$J$12+('Simulador para calculos'!I39+'Simulador para calculos'!J39+'Simulador para calculos'!K39+'Simulador para calculos'!L39+'Simulador para calculos'!M39)*NOT($J$12),"") -> 6182.148168 | T39: 575 | U39: =IFERROR((1+'Simulación Cliente'!$E$21)^(T39/360),"") -> 1.301113847 | V39: 4751.43 | AB39: 18 | AC39: 2024-03-01 | AD39: 29 | AE39: 547 | AF39: -294331.0206 | AG39: -26898.33431 | AH39: -3394.957409 | AI39: -128.0330339 | AJ39: 153.9469269 | AK39: 412357.84 | AL39: 382090.4622 | AM39: -267432.6863 | AN39: 2.623355072e-07 | AO39: 2.623355072e-07 | AS39: 18 | AT39: 2024-03-01 | AU39: 29 | AV39: 547 | AW39: 207668.3438 | AX39: 7589.154623 | AY39: 2395.347866 | AZ39: 90.33505212 | BA39: 153.9469269 | BB39: 412357.84 | BC39: 422586.6245 | BD39: 200079.1891 | BE39: 2.623355072e-07 | BF39: 2.623355072e-07 | BJ39: 18 | BK39: 2024-03-01 | BL39: 29 | BM39: 547 | BN39: -294331.0206 | BO39: -26898.33431 | BP39: -3394.957409 | BQ39: -128.0330339 | BR39: 153.9469269 | BS39: 412357.84 | BT39: 382090.4622 | BU39: -267432.6863 | BV39: 2.623355072e-07 | BW39: 2.623355072e-07 | CA39: 18 | CB39: 2024-03-01 | CC39: 29 | CD39: 547 | CE39: 207668.3438 | CF39: 7589.154623 | CG39: 2395.347866 | CH39: 90.33505212 | CI39: 153.9469269 | CJ39: 412357.84 | CK39: 422586.6245 | CL39: 200079.1891 | CM39: 2.623355072e-07 | CN39: 2.623355072e-07 | CR39: 18 | CS39: 2024-03-01 | CT39: 29 | CU39: 547 | CV39: -294331.0206 | CW39: -26898.33431 | CX39: -3394.957409 | CY39: -128.0330339 | CZ39: 153.9469269 | DA39: 412357.84 | DB39: 382090.4622 | DC39: -267432.6863 | DD39: 2.623355072e-07 | DE39: 2.623355072e-07
B40: 19 | C40: 2025-09-02 | D40: 2 | E40: 2025-09-02 | F40: 31 | G40: 606 | H40: 279827.3434 | I40: 2730.518233 | J40: 3451.629935 | K40: 0 | L40: 0 | M40: 0 | N40: 6182.148168 | O40: =IF(B40>C$6,"",H40-I40) -> 277096.8251 | P40: 0.7869020307 | Q40: 0.7869020307 | S40: =IFERROR((I40+J40+K40+L40+M40)*$J$12+('Simulador para calculos'!I40+'Simulador para calculos'!J40+'Simulador para calculos'!K40+'Simulador para calculos'!L40+'Simulador para calculos'!M40)*NOT($J$12),"") -> 6182.148168 | T40: 606 | U40: =IFERROR((1+'Simulación Cliente'!$E$21)^(T40/360),"") -> 1.319709626 | V40: 4684.48 | AB40: 19 | AC40: 2024-04-01 | AD40: 31 | AE40: 578 | AF40: -267432.6863 | AG40: -26998.22399 | AH40: -3298.743628 | AI40: -124.3571317 | AJ40: 153.9469269 | AK40: 412357.84 | AL40: 382090.4622 | AM40: -240434.4623 | AN40: 1.111438764e-07 | AO40: 1.111438764e-07 | AS40: 19 | AT40: 2024-04-01 | AU40: 31 | AV40: 578 | AW40: 200079.1891 | AX40: 7513.85207 | AY40: 2467.947951 | AZ40: 93.03752063 | BA40: 153.9469269 | BB40: 412357.84 | BC40: 422586.6245 | BD40: 192565.3371 | BE40: 1.111438764e-07 | BF40: 1.111438764e-07 | BJ40: 19 | BK40: 2024-04-01 | BL40: 31 | BM40: 578 | BN40: -267432.6863 | BO40: -26998.22399 | BP40: -3298.743628 | BQ40: -124.3571317 | BR40: 153.9469269 | BS40: 412357.84 | BT40: 382090.4622 | BU40: -240434.4623 | BV40: 1.111438764e-07 | BW40: 1.111438764e-07 | CA40: 19 | CB40: 2024-04-01 | CC40: 31 | CD40: 578 | CE40: 200079.1891 | CF40: 7513.85207 | CG40: 2467.947951 | CH40: 93.03752063 | CI40: 153.9469269 | CJ40: 412357.84 | CK40: 422586.6245 | CL40: 192565.3371 | CM40: 1.111438764e-07 | CN40: 1.111438764e-07 | CR40: 19 | CS40: 2024-04-01 | CT40: 31 | CU40: 578 | CV40: -267432.6863 | CW40: -26998.22399 | CX40: -3298.743628 | CY40: -124.3571317 | CZ40: 153.9469269 | DA40: 412357.84 | DB40: 382090.4622 | DC40: -240434.4623 | DD40: 1.111438764e-07 | DE40: 1.111438764e-07
B41: 20 | C41: 2025-10-02 | D41: 4 | E41: 2025-10-02 | F41: 30 | G41: 636 | H41: 277096.8251 | I41: 2875.110502 | J41: 3307.037667 | K41: 0 | L41: 0 | M41: 0 | N41: =IF(B41>C$6,"",IF(B41=C$6,H41+J41+K41+L41+M41,IF(AND(C$9=2,MONTH(C41)=7),2*C$17,IF(AND(C$10=2,MONTH(C41)=12),2*C$17,C$17)))) -> 6182.148168 | O41: =IF(B41>C$6,"",H41-I41) -> 274221.7146 | P41: 0.7776214358 | Q41: 0.7776214358 | S41: =IFERROR((I41+J41+K41+L41+M41)*$J$12+('Simulador para calculos'!I41+'Simulador para calculos'!J41+'Simulador para calculos'!K41+'Simulador para calculos'!L41+'Simulador para calculos'!M41)*NOT($J$12),"") -> 6182.148168 | T41: 636 | U41: =IFERROR((1+'Simulación Cliente'!$E$21)^(T41/360),"") -> 1.337958556 | V41: 4620.58 | AB41: 20 | AC41: 2024-05-01 | AD41: 30 | AE41: 608 | AF41: -240434.4623 | AG41: -27443.64193 | AH41: -2869.48731 | AI41: -108.1955081 | AJ41: 153.9469269 | AK41: 412357.84 | AL41: 382090.4622 | AM41: -212990.8204 | AN41: 4.84111437e-08 | AO41: 4.84111437e-08 | AS41: 20 | AT41: 2024-05-01 | AU41: 30 | AV41: 608 | AW41: 192565.3371 | AX41: 7689.994329 | AY41: 2298.188811 | AZ41: 86.65440168 | BA41: 153.9469269 | BB41: 412357.84 | BC41: 422586.6245 | BD41: 184875.3427 | BE41: 4.84111437e-08 | BF41: 4.84111437e-08 | BJ41: 20 | BK41: 2024-05-01 | BL41: 30 | BM41: 608 | BN41: -240434.4623 | BO41: -27443.64193 | BP41: -2869.48731 | BQ41: -108.1955081 | BR41: 153.9469269 | BS41: 412357.84 | BT41: 382090.4622 | BU41: -212990.8204 | BV41: 4.84111437e-08 | BW41: 4.84111437e-08 | CA41: 20 | CB41: 2024-05-01 | CC41: 30 | CD41: 608 | CE41: 192565.3371 | CF41: 7689.994329 | CG41: 2298.188811 | CH41: 86.65440168 | CI41: 153.9469269 | CJ41: 412357.84 | CK41: 422586.6245 | CL41: 184875.3427 | CM41: 4.84111437e-08 | CN41: 4.84111437e-08 | CR41: 20 | CS41: 2024-05-01 | CT41: 30 | CU41: 608 | CV41: -240434.4623 | CW41: -27443.64193 | CX41: -2869.48731 | CY41: -108.1955081 | CZ41: 153.9469269 | DA41: 412357.84 | DB41: 382090.4622 | DC41: -212990.8204 | DD41: 4.84111437e-08 | DE41: 4.84111437e-08
B42: 21 | C42: 2025-11-02 | D42: 7 | E42: 2025-11-03 | F42: 32 | G42: 668 | H42: 274221.7146 | I42: 2689.858523 | J42: 3492.289646 | K42: 0 | L42: 0 | M42: 0 | N42: 6182.148168 | O42: 271531.8561 | P42: 0.7678427453 | Q42: 0.7678427453 | S42: =IFERROR((I42+J42+K42+L42+M42)*$J$12+('Simulador para calculos'!I42+'Simulador para calculos'!J42+'Simulador para calculos'!K42+'Simulador para calculos'!L42+'Simulador para calculos'!M42)*NOT($J$12),"") -> 6182.148168 | T42: 668 | U42: =IFERROR((1+'Simulación Cliente'!$E$21)^(T42/360),"") -> 1.357702307 | V42: 4553.39 | AB42: 21 | AC42: 2024-06-01 | AD42: 31 | AE42: 639 | AF42: -212990.8204 | AG42: -27695.07222 | AH42: -2627.211061 | AI42: -99.04147418 | AJ42: 153.9469269 | AK42: 412357.84 | AL42: 382090.4622 | AM42: -185295.7482 | AN42: 2.051038469e-08 | AO42: 2.051038469e-08 | AS42: 21 | AT42: 2024-06-01 | AU42: 31 | AV42: 639 | AW42: 184875.3427 | AX42: 7708.459165 | AY42: 2280.410698 | AZ42: 85.96767903 | BA42: 153.9469269 | BB42: 412357.84 | BC42: 422586.6245 | BD42: 177166.8836 | BE42: 2.051038469e-08 | BF42: 2.051038469e-08 | BJ42: 21 | BK42: 2024-06-01 | BL42: 31 | BM42: 639 | BN42: -212990.8204 | BO42: -27695.07222 | BP42: -2627.211061 | BQ42: -99.04147418 | BR42: 153.9469269 | BS42: 412357.84 | BT42: 382090.4622 | BU42: -185295.7482 | BV42: 2.051038469e-08 | BW42: 2.051038469e-08 | CA42: 21 | CB42: 2024-06-01 | CC42: 31 | CD42: 639 | CE42: 184875.3427 | CF42: 7708.459165 | CG42: 2280.410698 | CH42: 85.96767903 | CI42: 153.9469269 | CJ42: 412357.84 | CK42: 422586.6245 | CL42: 177166.8836 | CM42: 2.051038469e-08 | CN42: 2.051038469e-08 | CR42: 21 | CS42: 2024-06-01 | CT42: 31 | CU42: 639 | CV42: -212990.8204 | CW42: -27695.07222 | CX42: -2627.211061 | CY42: -99.04147418 | CZ42: 153.9469269 | DA42: 412357.84 | DB42: 382090.4622 | DC42: -185295.7482 | DD42: 2.051038469e-08 | DE42: 2.051038469e-08
B43: 22 | C43: 2025-12-02 | D43: 2 | E43: 2025-12-02 | F43: 29 | G43: 697 | H43: 271531.8561 | I43: 3050.167432 | J43: 3131.980736 | K43: 0 | L43: 0 | M43: 0 | N43: 6182.148168 | O43: 268481.6887 | P43: 0.7590870652 | Q43: 0.7590870652 | S43: =IFERROR((I43+J43+K43+L43+M43)*$J$12+('Simulador para calculos'!I43+'Simulador para calculos'!J43+'Simulador para calculos'!K43+'Simulador para calculos'!L43+'Simulador para calculos'!M43)*NOT($J$12),"") -> 6182.148168 | T43: 697 | U43: =IFERROR((1+'Simulación Cliente'!$E$21)^(T43/360),"") -> 1.375846626 | V43: 4493.34 | AB43: 22 | AC43: 2024-07-01 | AD43: 30 | AE43: 669 | AF43: -185295.7482 | AG43: 353963.9497 | AH43: -2211.42923 | AI43: -83.38308668 | AJ43: 153.9469269 | AK43: 412357.84 | AL43: 764180.9243 | AM43: -539259.6979 | AN43: 1.786749235e-08 | AO43: 8.933746175e-09 | AS43: 22 | AT43: 2024-07-01 | AU43: 30 | AV43: 669 | AW43: 177166.8836 | AX43: 7880.697899 | AY43: 2114.414545 | AZ43: 79.72509761 | BA43: 153.9469269 | BB43: 412357.84 | BC43: 422586.6245 | BD43: 169286.1857 | BE43: 8.933746175e-09 | BF43: 8.933746175e-09 | BJ43: 22 | BK43: 2024-07-01 | BL43: 30 | BM43: 669 | BN43: -185295.7482 | BO43: 353963.9497 | BP43: -2211.42923 | BQ43: -83.38308668 | BR43: 153.9469269 | BS43: 412357.84 | BT43: 764180.9243 | BU43: -539259.6979 | BV43: 1.786749235e-08 | BW43: 8.933746175e-09 | CA43: 22 | CB43: 2024-07-01 | CC43: 30 | CD43: 669 | CE43: 177166.8836 | CF43: 7880.697899 | CG43: 2114.414545 | CH43: 79.72509761 | CI43: 153.9469269 | CJ43: 412357.84 | CK43: 422586.6245 | CL43: 169286.1857 | CM43: 8.933746175e-09 | CN43: 8.933746175e-09 | CR43: 22 | CS43: 2024-07-01 | CT43: 30 | CU43: 669 | CV43: -185295.7482 | CW43: 353963.9497 | CX43: -2211.42923 | CY43: -83.38308668 | CZ43: 153.9469269 | DA43: 412357.84 | DB43: 764180.9243 | DC43: -539259.6979 | DD43: 1.786749235e-08 | DE43: 8.933746175e-09
B44: 23 | C44: 2026-01-02 | D44: 5 | E44: 2026-01-02 | F44: 31 | G44: 728 | H44: 268481.6887 | I44: 2870.465248 | J44: 3311.68292 | K44: 0 | L44: 0 | M44: 0 | N44: 6182.148168 | O44: 265611.2234 | P44: 0.7498379226 | Q44: 0.7498379226 | S44: =IFERROR((I44+J44+K44+L44+M44)*$J$12+('Simulador para calculos'!I44+'Simulador para calculos'!J44+'Simulador para calculos'!K44+'Simulador para calculos'!L44+'Simulador para calculos'!M44)*NOT($J$12),"") -> 6182.148168 | T44: 728 | U44: =IFERROR((1+'Simulación Cliente'!$E$21)^(T44/360),"") -> 1.395510501 | V44: 4430.03 | AB44: 23 | AC44: 2024-08-01 | AD44: 31 | AE44: 700 | AF44: -539259.6979 | AG44: -23518.87649 | AH44: -6651.690624 | AI44: -250.7576399 | AJ44: 153.9469269 | AK44: 412357.84 | AL44: 382090.4622 | AM44: -515740.8214 | AN44: 3.784966782e-09 | AO44: 3.784966782e-09 | AS44: 23 | AT44: 2024-08-01 | AU44: 31 | AV44: 700 | AW44: 169286.1857 | AX44: 7907.998182 | AY44: 2088.120693 | AZ44: 78.71866664 | BA44: 153.9469269 | BB44: 412357.84 | BC44: 422586.6245 | BD44: 161378.1875 | BE44: 3.784966782e-09 | BF44: 3.784966782e-09 | BJ44: 23 | BK44: 2024-08-01 | BL44: 31 | BM44: 700 | BN44: -539259.6979 | BO44: -23518.87649 | BP44: -6651.690624 | BQ44: -250.7576399 | BR44: 153.9469269 | BS44: 412357.84 | BT44: 382090.4622 | BU44: -515740.8214 | BV44: 3.784966782e-09 | BW44: 3.784966782e-09 | CA44: 23 | CB44: 2024-08-01 | CC44: 31 | CD44: 700 | CE44: 169286.1857 | CF44: 7907.998182 | CG44: 2088.120693 | CH44: 78.71866664 | CI44: 153.9469269 | CJ44: 412357.84 | CK44: 422586.6245 | CL44: 161378.1875 | CM44: 3.784966782e-09 | CN44: 3.784966782e-09 | CR44: 23 | CS44: 2024-08-01 | CT44: 31 | CU44: 700 | CV44: -539259.6979 | CW44: -23518.87649 | CX44: -6651.690624 | CY44: -250.7576399 | CZ44: 153.9469269 | DA44: 412357.84 | DB44: 382090.4622 | DC44: -515740.8214 | DD44: 3.784966782e-09 | DE44: 3.784966782e-09
B45: 24 | C45: 2026-02-02 | D45: 1 | E45: 2026-02-02 | F45: 31 | G45: 759 | H45: 265611.2234 | I45: 2905.872023 | J45: 3276.276145 | K45: 0 | L45: 0 | M45: 0 | N45: 6182.148168 | O45: 262705.3514 | P45: 0.7407014766 | Q45: 0.7407014766 | S45: =IFERROR((I45+J45+K45+L45+M45)*$J$12+('Simulador para calculos'!I45+'Simulador para calculos'!J45+'Simulador para calculos'!K45+'Simulador para calculos'!L45+'Simulador para calculos'!M45)*NOT($J$12),"") -> 6182.148168 | T45: 759 | U45: =IFERROR((1+'Simulación Cliente'!$E$21)^(T45/360),"") -> 1.415455416 | V45: 4367.6 | AB45: 24 | AC45: 2024-09-01 | AD45: 31 | AE45: 731 | AF45: -515740.8214 | AG45: -23819.9148 | AH45: -6361.588673 | AI45: -239.8212804 | AJ45: 153.9469269 | AK45: 412357.84 | AL45: 382090.4622 | AM45: -491920.9066 | AN45: 1.603579647e-09 | AO45: 1.603579647e-09 | AS45: 24 | AT45: 2024-09-01 | AU45: 31 | AV45: 731 | AW45: 161378.1875 | AX45: 8009.219446 | AY45: 1990.576675 | AZ45: 75.04141991 | BA45: 153.9469269 | BB45: 412357.84 | BC45: 422586.6245 | BD45: 153368.9681 | BE45: 1.603579647e-09 | BF45: 1.603579647e-09 | BJ45: 24 | BK45: 2024-09-01 | BL45: 31 | BM45: 731 | BN45: -515740.8214 | BO45: -23819.9148 | BP45: -6361.588673 | BQ45: -239.8212804 | BR45: 153.9469269 | BS45: 412357.84 | BT45: 382090.4622 | BU45: -491920.9066 | BV45: 1.603579647e-09 | BW45: 1.603579647e-09 | CA45: 24 | CB45: 2024-09-01 | CC45: 31 | CD45: 731 | CE45: 161378.1875 | CF45: 8009.219446 | CG45: 1990.576675 | CH45: 75.04141991 | CI45: 153.9469269 | CJ45: 412357.84 | CK45: 422586.6245 | CL45: 153368.9681 | CM45: 1.603579647e-09 | CN45: 1.603579647e-09 | CR45: 24 | CS45: 2024-09-01 | CT45: 31 | CU45: 731 | CV45: -515740.8214 | CW45: -23819.9148 | CX45: -6361.588673 | CY45: -239.8212804 | CZ45: 153.9469269 | DA45: 412357.84 | DB45: 382090.4622 | DC45: -491920.9066 | DD45: 1.603579647e-09 | DE45: 1.603579647e-09
B46: 25 | C46: 2026-03-02 | D46: 1 | E46: 2026-03-02 | F46: 28 | G46: 787 | H46: 262705.3514 | I46: 3257.044843 | J46: 2925.103325 | K46: 0 | L46: 0 | M46: 0 | N46: 6182.148168 | O46: 259448.3066 | P46: 0.7325449256 | Q46: 0.7325449256 | S46: =IFERROR((I46+J46+K46+L46+M46)*$J$12+('Simulador para calculos'!I46+'Simulador para calculos'!J46+'Simulador para calculos'!K46+'Simulador para calculos'!L46+'Simulador para calculos'!M46)*NOT($J$12),"") -> 6182.148168 | T46: 787 | U46: =IFERROR((1+'Simulación Cliente'!$E$21)^(T46/360),"") -> 1.433715078 | V46: 4311.98 | AB46: 25 | AC46: 2024-10-01 | AD46: 30 | AE46: 761 | AF46: -491920.9066 | AG46: -24329.08482 | AH46: -5870.87552 | AI46: -221.364408 | AJ46: 153.9469269 | AK46: 412357.84 | AL46: 382090.4622 | AM46: -467591.8218 | AN46: 6.984741513e-10 | AO46: 6.984741513e-10 | AS46: 25 | AT46: 2024-10-01 | AU46: 30 | AV46: 761 | AW46: 153368.9681 | AX46: 8175.425383 | AY46: 1830.396123 | AZ46: 69.01603562 | BA46: 153.9469269 | BB46: 412357.84 | BC46: 422586.6245 | BD46: 145193.5427 | BE46: 6.984741513e-10 | BF46: 6.984741513e-10 | BJ46: 25 | BK46: 2024-10-01 | BL46: 30 | BM46: 761 | BN46: -491920.9066 | BO46: -24329.08482 | BP46: -5870.87552 | BQ46: -221.364408 | BR46: 153.9469269 | BS46: 412357.84 | BT46: 382090.4622 | BU46: -467591.8218 | BV46: 6.984741513e-10 | BW46: 6.984741513e-10 | CA46: 25 | CB46: 2024-10-01 | CC46: 30 | CD46: 761 | CE46: 153368.9681 | CF46: 8175.425383 | CG46: 1830.396123 | CH46: 69.01603562 | CI46: 153.9469269 | CJ46: 412357.84 | CK46: 422586.6245 | CL46: 145193.5427 | CM46: 6.984741513e-10 | CN46: 6.984741513e-10 | CR46: 25 | CS46: 2024-10-01 | CT46: 30 | CU46: 761 | CV46: -491920.9066 | CW46: -24329.08482 | CX46: -5870.87552 | CY46: -221.364408 | CZ46: 153.9469269 | DA46: 412357.84 | DB46: 382090.4622 | DC46: -467591.8218 | DD46: 6.984741513e-10 | DE46: 6.984741513e-10
B47: 26 | C47: 2026-04-02 | D47: 4 | E47: 2026-04-02 | F47: 31 | G47: 818 | H47: 259448.3066 | I47: 2981.890714 | J47: 3200.257454 | K47: 0 | L47: 0 | M47: 0 | N47: 6182.148168 | O47: 256466.4158 | P47: 0.7236191873 | Q47: 0.7236191873 | S47: =IFERROR((I47+J47+K47+L47+M47)*$J$12+('Simulador para calculos'!I47+'Simulador para calculos'!J47+'Simulador para calculos'!K47+'Simulador para calculos'!L47+'Simulador para calculos'!M47)*NOT($J$12),"") -> 6182.148168 | T47: 818 | U47: =IFERROR((1+'Simulación Cliente'!$E$21)^(T47/360),"") -> 1.45420602 | V47: 4251.22 | AB47: 26 | AC47: 2024-11-01 | AD47: 31 | AE47: 792 | AF47: -467591.8218 | AG47: -24436.21522 | AH47: -5767.677705 | AI47: -217.4318276 | AJ47: 153.9469269 | AK47: 412357.84 | AL47: 382090.4622 | AM47: -443155.6066 | AN47: 2.95923055e-10 | AO47: 2.95923055e-10 | AS47: 26 | AT47: 2024-11-01 | AU47: 31 | AV47: 792 | AW47: 145193.5427 | AX47: 8216.380623 | AY47: 1790.941415 | AZ47: 67.51550363 | BA47: 153.9469269 | BB47: 412357.84 | BC47: 422586.6245 | BD47: 136977.162 | BE47: 2.95923055e-10 | BF47: 2.95923055e-10 | BJ47: 26 | BK47: 2024-11-01 | BL47: 31 | BM47: 792 | BN47: -467591.8218 | BO47: -24436.21522 | BP47: -5767.677705 | BQ47: -217.4318276 | BR47: 153.9469269 | BS47: 412357.84 | BT47: 382090.4622 | BU47: -443155.6066 | BV47: 2.95923055e-10 | BW47: 2.95923055e-10 | CA47: 26 | CB47: 2024-11-01 | CC47: 31 | CD47: 792 | CE47: 145193.5427 | CF47: 8216.380623 | CG47: 1790.941415 | CH47: 67.51550363 | CI47: 153.9469269 | CJ47: 412357.84 | CK47: 422586.6245 | CL47: 136977.162 | CM47: 2.95923055e-10 | CN47: 2.95923055e-10 | CR47: 26 | CS47: 2024-11-01 | CT47: 31 | CU47: 792 | CV47: -467591.8218 | CW47: -24436.21522 | CX47: -5767.677705 | CY47: -217.4318276 | CZ47: 153.9469269 | DA47: 412357.84 | DB47: 382090.4622 | DC47: -443155.6066 | DD47: 2.95923055e-10 | DE47: 2.95923055e-10
B48: 27 | C48: 2026-05-02 | D48: 6 | E48: 2026-05-02 | F48: 30 | G48: 848 | H48: 256466.4158 | I48: 3121.326028 | J48: 3060.822141 | K48: 0 | L48: 0 | M48: 0 | N48: 6182.148168 | O48: 253345.0898 | P48: 0.71508494 | Q48: 0.71508494 | S48: =IFERROR((I48+J48+K48+L48+M48)*$J$12+('Simulador para calculos'!I48+'Simulador para calculos'!J48+'Simulador para calculos'!K48+'Simulador para calculos'!L48+'Simulador para calculos'!M48)*NOT($J$12),"") -> 6182.148168 | T48: 848 | U48: =IFERROR((1+'Simulación Cliente'!$E$21)^(T48/360),"") -> 1.474314764 | V48: 4193.23 | AB48: 27 | AC48: 2024-12-01 | AD48: 30 | AE48: 822 | AF48: -443155.6066 | AG48: 357157.439 | AH48: -5288.88154 | AI48: -199.420023 | AJ48: 153.9469269 | AK48: 412357.84 | AL48: 764180.9243 | AM48: -800313.0456 | AN48: 2.577915042e-10 | AO48: 1.288957521e-10 | AS48: 27 | AT48: 2024-12-01 | AU48: 30 | AV48: 822 | AW48: 136977.162 | AX48: 8378.431219 | AY48: 1634.766599 | AZ48: 61.63972292 | BA48: 153.9469269 | BB48: 412357.84 | BC48: 422586.6245 | BD48: 128598.7308 | BE48: 1.288957521e-10 | BF48: 1.288957521e-10 | BJ48: 27 | BK48: 2024-12-01 | BL48: 30 | BM48: 822 | BN48: -443155.6066 | BO48: 357157.439 | BP48: -5288.88154 | BQ48: -199.420023 | BR48: 153.9469269 | BS48: 412357.84 | BT48: 764180.9243 | BU48: -800313.0456 | BV48: 2.577915042e-10 | BW48: 1.288957521e-10 | CA48: 27 | CB48: 2024-12-01 | CC48: 30 | CD48: 822 | CE48: 136977.162 | CF48: 8378.431219 | CG48: 1634.766599 | CH48: 61.63972292 | CI48: 153.9469269 | CJ48: 412357.84 | CK48: 422586.6245 | CL48: 128598.7308 | CM48: 1.288957521e-10 | CN48: 1.288957521e-10 | CR48: 27 | CS48: 2024-12-01 | CT48: 30 | CU48: 822 | CV48: -443155.6066 | CW48: 357157.439 | CX48: -5288.88154 | CY48: -199.420023 | CZ48: 153.9469269 | DA48: 412357.84 | DB48: 764180.9243 | DC48: -800313.0456 | DD48: 2.577915042e-10 | DE48: 1.288957521e-10
B49: 28 | C49: 2026-06-02 | D49: 2 | E49: 2026-06-02 | F49: 31 | G49: 879 | H49: 253345.0898 | I49: 3057.173013 | J49: 3124.975156 | K49: 0 | L49: 0 | M49: 0 | N49: 6182.148168 | O49: 250287.9168 | P49: 0.7063719439 | Q49: 0.7063719439 | S49: =IFERROR((I49+J49+K49+L49+M49)*$J$12+('Simulador para calculos'!I49+'Simulador para calculos'!J49+'Simulador para calculos'!K49+'Simulador para calculos'!L49+'Simulador para calculos'!M49)*NOT($J$12),"") -> 6182.148168 | T49: 879 | U49: =IFERROR((1+'Simulación Cliente'!$E$21)^(T49/360),"") -> 1.495385966 | V49: 4134.15 | AB49: 28 | AC49: 2025-01-01 | AD49: 31 | AE49: 853 | AF49: -800313.0456 | AG49: -20177.43037 | AH49: -9871.746028 | AI49: -372.1483569 | AJ49: 153.9469269 | AK49: 412357.84 | AL49: 382090.4622 | AM49: -780135.6152 | AN49: 5.460935766e-11 | AO49: 5.460935766e-11 | AS49: 28 | AT49: 2025-01-01 | AU49: 31 | AV49: 853 | AW49: 128598.7308 | AX49: 8428.791879 | AY49: 1586.246803 | AZ49: 59.79885826 | BA49: 153.9469269 | BB49: 412357.84 | BC49: 422586.6245 | BD49: 120169.9389 | BE49: 5.460935766e-11 | BF49: 5.460935766e-11 | BJ49: 28 | BK49: 2025-01-01 | BL49: 31 | BM49: 853 | BN49: -800313.0456 | BO49: -20177.43037 | BP49: -9871.746028 | BQ49: -372.1483569 | BR49: 153.9469269 | BS49: 412357.84 | BT49: 382090.4622 | BU49: -780135.6152 | BV49: 5.460935766e-11 | BW49: 5.460935766e-11 | CA49: 28 | CB49: 2025-01-01 | CC49: 31 | CD49: 853 | CE49: 128598.7308 | CF49: 8428.791879 | CG49: 1586.246803 | CH49: 59.79885826 | CI49: 153.9469269 | CJ49: 412357.84 | CK49: 422586.6245 | CL49: 120169.9389 | CM49: 5.460935766e-11 | CN49: 5.460935766e-11 | CR49: 28 | CS49: 2025-01-01 | CT49: 31 | CU49: 853 | CV49: -800313.0456 | CW49: -20177.43037 | CX49: -9871.746028 | CY49: -372.1483569 | CZ49: 153.9469269 | DA49: 412357.84 | DB49: 382090.4622 | DC49: -780135.6152 | DD49: 5.460935766e-11 | DE49: 5.460935766e-11
B50: 29 | C50: 2026-07-02 | D50: 4 | E50: 2026-07-02 | F50: 30 | G50: 909 | H50: 250287.9168 | I50: 3195.063895 | J50: 2987.084273 | K50: 0 | L50: 0 | M50: 0 | N50: 6182.148168 | O50: 247092.8529 | P50: 0.6980411078 | Q50: 0.6980411078 | S50: =IFERROR((I50+J50+K50+L50+M50)*$J$12+('Simulador para calculos'!I50+'Simulador para calculos'!J50+'Simulador para calculos'!K50+'Simulador para calculos'!L50+'Simulador para calculos'!M50)*NOT($J$12),"") -> 6182.148168 | T50: 909 | U50: =IFERROR((1+'Simulación Cliente'!$E$21)^(T50/360),"") -> 1.516064146 | V50: 4077.76 | AB50: 29 | AC50: 2025-02-01 | AD50: 31 | AE50: 884 | AF50: -780135.6152 | AG50: -20435.69864 | AH50: -9622.860334 | AI50: -362.7657814 | AJ50: 153.9469269 | AK50: 412357.84 | AL50: 382090.4622 | AM50: -759699.9166 | AN50: 2.313638654e-11 | AO50: 2.313638654e-11 | AS50: 29 | AT50: 2025-02-01 | AU50: 31 | AV50: 884 | AW50: 120169.9389 | AX50: 8536.67923 | AY50: 1482.278871 | AZ50: 55.87944064 | BA50: 153.9469269 | BB50: 412357.84 | BC50: 422586.6245 | BD50: 111633.2597 | BE50: 2.313638654e-11 | BF50: 2.313638654e-11 | BJ50: 29 | BK50: 2025-02-01 | BL50: 31 | BM50: 884 | BN50: -780135.6152 | BO50: -20435.69864 | BP50: -9622.860334 | BQ50: -362.7657814 | BR50: 153.9469269 | BS50: 412357.84 | BT50: 382090.4622 | BU50: -759699.9166 | BV50: 2.313638654e-11 | BW50: 2.313638654e-11 | CA50: 29 | CB50: 2025-02-01 | CC50: 31 | CD50: 884 | CE50: 120169.9389 | CF50: 8536.67923 | CG50: 1482.278871 | CH50: 55.87944064 | CI50: 153.9469269 | CJ50: 412357.84 | CK50: 422586.6245 | CL50: 111633.2597 | CM50: 2.313638654e-11 | CN50: 2.313638654e-11 | CR50: 29 | CS50: 2025-02-01 | CT50: 31 | CU50: 884 | CV50: -780135.6152 | CW50: -20435.69864 | CX50: -9622.860334 | CY50: -362.7657814 | CZ50: 153.9469269 | DA50: 412357.84 | DB50: 382090.4622 | DC50: -759699.9166 | DD50: 2.313638654e-11 | DE50: 2.313638654e-11
B51: 30 | C51: 2026-08-02 | D51: 7 | E51: 2026-08-03 | F51: 32 | G51: 941 | H51: 247092.8529 | I51: 3035.352106 | J51: 3146.796062 | K51: 0 | L51: 0 | M51: 0 | N51: 6182.148168 | O51: 244057.5008 | P51: 0.6892631503 | Q51: 0.6892631503 | S51: =IFERROR((I51+J51+K51+L51+M51)*$J$12+('Simulador para calculos'!I51+'Simulador para calculos'!J51+'Simulador para calculos'!K51+'Simulador para calculos'!L51+'Simulador para calculos'!M51)*NOT($J$12),"") -> 6182.148168 | T51: 941 | U51: =IFERROR((1+'Simulación Cliente'!$E$21)^(T51/360),"") -> 1.538436134 | V51: 4018.46 | AB51: 30 | AC51: 2025-03-01 | AD51: 28 | AE51: 912 | AF51: -759699.9166 | AG51: -21643.34623 | AH51: -8458.909346 | AI51: -319.0691796 | AJ51: 153.9469269 | AK51: 412357.84 | AL51: 382090.4622 | AM51: -738056.5703 | AN51: 1.065167763e-11 | AO51: 1.065167763e-11 | AS51: 30 | AT51: 2025-03-01 | AU51: 28 | AV51: 912 | AW51: 111633.2597 | AX51: 8784.967245 | AY51: 1242.985031 | AZ51: 46.8852659 | BA51: 153.9469269 | BB51: 412357.84 | BC51: 422586.6245 | BD51: 102848.2925 | BE51: 1.065167763e-11 | BF51: 1.065167763e-11 | BJ51: 30 | BK51: 2025-03-01 | BL51: 28 | BM51: 912 | BN51: -759699.9166 | BO51: -21643.34623 | BP51: -8458.909346 | BQ51: -319.0691796 | BR51: 153.9469269 | BS51: 412357.84 | BT51: 382090.4622 | BU51: -738056.5703 | BV51: 1.065167763e-11 | BW51: 1.065167763e-11 | CA51: 30 | CB51: 2025-03-01 | CC51: 28 | CD51: 912 | CE51: 111633.2597 | CF51: 8784.967245 | CG51: 1242.985031 | CH51: 46.8852659 | CI51: 153.9469269 | CJ51: 412357.84 | CK51: 422586.6245 | CL51: 102848.2925 | CM51: 1.065167763e-11 | CN51: 1.065167763e-11 | CR51: 30 | CS51: 2025-03-01 | CT51: 28 | CU51: 912 | CV51: -759699.9166 | CW51: -21643.34623 | CX51: -8458.909346 | CY51: -319.0691796 | CZ51: 153.9469269 | DA51: 412357.84 | DB51: 382090.4622 | DC51: -738056.5703 | DD51: 1.065167763e-11 | DE51: 1.065167763e-11
B52: 31 | C52: 2026-09-02 | D52: 3 | E52: 2026-09-02 | F52: 30 | G52: 971 | H52: 244057.5008 | I52: 3269.421371 | J52: 2912.726797 | K52: 0 | L52: 0 | M52: 0 | N52: 6182.148168 | O52: 240788.0794 | P52: 0.6811340925 | Q52: 0.6811340925 | S52: =IFERROR((I52+J52+K52+L52+M52)*$J$12+('Simulador para calculos'!I52+'Simulador para calculos'!J52+'Simulador para calculos'!K52+'Simulador para calculos'!L52+'Simulador para calculos'!M52)*NOT($J$12),"") -> 6182.148168 | T52: 971 | U52: =IFERROR((1+'Simulación Cliente'!$E$21)^(T52/360),"") -> 1.559709611 | V52: 3963.65 | AB52: 31 | AC52: 2025-04-01 | AD52: 31 | AE52: 943 | AF52: -738056.5703 | AG52: -20974.30449 | AH52: -9103.821383 | AI52: -343.1988788 | AJ52: 153.9469269 | AK52: 412357.84 | AL52: 382090.4622 | AM52: -717082.2658 | AN52: 4.51280406e-12 | AO52: 4.51280406e-12 | AS52: 31 | AT52: 2025-04-01 | AU52: 31 | AV52: 943 | AW52: 102848.2925 | AX52: 8758.393867 | AY52: 1268.618859 | AZ52: 47.82481463 | BA52: 153.9469269 | BB52: 412357.84 | BC52: 422586.6245 | BD52: 94089.89861 | BE52: 4.51280406e-12 | BF52: 4.51280406e-12 | BJ52: 31 | BK52: 2025-04-01 | BL52: 31 | BM52: 943 | BN52: -738056.5703 | BO52: -20974.30449 | BP52: -9103.821383 | BQ52: -343.1988788 | BR52: 153.9469269 | BS52: 412357.84 | BT52: 382090.4622 | BU52: -717082.2658 | BV52: 4.51280406e-12 | BW52: 4.51280406e-12 | CA52: 31 | CB52: 2025-04-01 | CC52: 31 | CD52: 943 | CE52: 102848.2925 | CF52: 8758.393867 | CG52: 1268.618859 | CH52: 47.82481463 | CI52: 153.9469269 | CJ52: 412357.84 | CK52: 422586.6245 | CL52: 94089.89861 | CM52: 4.51280406e-12 | CN52: 4.51280406e-12 | CR52: 31 | CS52: 2025-04-01 | CT52: 31 | CU52: 943 | CV52: -738056.5703 | CW52: -20974.30449 | CX52: -9103.821383 | CY52: -343.1988788 | CZ52: 153.9469269 | DA52: 412357.84 | DB52: 382090.4622 | DC52: -717082.2658 | DD52: 4.51280406e-12 | DE52: 4.51280406e-12
B53: 32 | C53: 2026-10-02 | D53: 5 | E53: 2026-10-02 | F53: 30 | G53: 1001 | H53: 240788.0794 | I53: 3308.440582 | J53: 2873.707586 | K53: 0 | L53: 0 | M53: 0 | N53: 6182.148168 | O53: 237479.6388 | P53: 0.6731009075 | Q53: 0.6731009075 | S53: =IFERROR((I53+J53+K53+L53+M53)*$J$12+('Simulador para calculos'!I53+'Simulador para calculos'!J53+'Simulador para calculos'!K53+'Simulador para calculos'!L53+'Simulador para calculos'!M53)*NOT($J$12),"") -> 6182.148168 | T53: 1001 | U53: =IFERROR((1+'Simulación Cliente'!$E$21)^(T53/360),"") -> 1.581277257 | V53: 3909.59 | AB53: 32 | AC53: 2025-05-01 | AD53: 30 | AE53: 973 | AF53: -717082.2658 | AG53: -21540.55316 | AH53: -8558.08457 | AI53: -322.6870196 | AJ53: 153.9469269 | AK53: 412357.84 | AL53: 382090.4622 | AM53: -695541.7127 | AN53: 1.965650407e-12 | AO53: 1.965650407e-12 | AS53: 32 | AT53: 2025-05-01 | AU53: 30 | AV53: 973 | AW53: 94089.89861 | AX53: 8909.572497 | AY53: 1122.92459 | AZ53: 42.34045437 | BA53: 153.9469269 | BB53: 412357.84 | BC53: 422586.6245 | BD53: 85180.32611 | BE53: 1.965650407e-12 | BF53: 1.965650407e-12 | BJ53: 32 | BK53: 2025-05-01 | BL53: 30 | BM53: 973 | BN53: -717082.2658 | BO53: -21540.55316 | BP53: -8558.08457 | BQ53: -322.6870196 | BR53: 153.9469269 | BS53: 412357.84 | BT53: 382090.4622 | BU53: -695541.7127 | BV53: 1.965650407e-12 | BW53: 1.965650407e-12 | CA53: 32 | CB53: 2025-05-01 | CC53: 30 | CD53: 973 | CE53: 94089.89861 | CF53: 8909.572497 | CG53: 1122.92459 | CH53: 42.34045437 | CI53: 153.9469269 | CJ53: 412357.84 | CK53: 422586.6245 | CL53: 85180.32611 | CM53: 1.965650407e-12 | CN53: 1.965650407e-12 | CR53: 32 | CS53: 2025-05-01 | CT53: 30 | CU53: 973 | CV53: -717082.2658 | CW53: -21540.55316 | CX53: -8558.08457 | CY53: -322.6870196 | CZ53: 153.9469269 | DA53: 412357.84 | DB53: 382090.4622 | DC53: -695541.7127 | DD53: 1.965650407e-12 | DE53: 1.965650407e-12
B54: 33 | C54: 2026-11-02 | D54: 1 | E54: 2026-11-02 | F54: 31 | G54: 1032 | H54: 237479.6388 | I54: 3252.871063 | J54: 2929.277105 | K54: 0 | L54: 0 | M54: 0 | N54: 6182.148168 | O54: 234226.7678 | P54: 0.6648994684 | Q54: 0.6648994684 | S54: =IFERROR((I54+J54+K54+L54+M54)*$J$12+('Simulador para calculos'!I54+'Simulador para calculos'!J54+'Simulador para calculos'!K54+'Simulador para calculos'!L54+'Simulador para calculos'!M54)*NOT($J$12),"") -> 6182.148168 | T54: 1032 | U54: =IFERROR((1+'Simulación Cliente'!$E$21)^(T54/360),"") -> 1.603877188 | V54: 3854.5 | AB54: 33 | AC54: 2025-06-01 | AD54: 31 | AE54: 1004 | AF54: -695541.7127 | AG54: -21518.48869 | AH54: -8579.406743 | AI54: -323.4293217 | AJ54: 153.9469269 | AK54: 412357.84 | AL54: 382090.4622 | AM54: -674023.224 | AN54: 8.327885468e-13 | AO54: 8.327885468e-13 | AS54: 33 | AT54: 2025-06-01 | AU54: 31 | AV54: 1004 | AW54: 85180.32611 | AX54: 8984.541351 | AY54: 1050.687041 | AZ54: 39.60914866 | BA54: 153.9469269 | BB54: 412357.84 | BC54: 422586.6245 | BD54: 76195.78476 | BE54: 8.327885468e-13 | BF54: 8.327885468e-13 | BJ54: 33 | BK54: 2025-06-01 | BL54: 31 | BM54: 1004 | BN54: -695541.7127 | BO54: -21518.48869 | BP54: -8579.406743 | BQ54: -323.4293217 | BR54: 153.9469269 | BS54: 412357.84 | BT54: 382090.4622 | BU54: -674023.224 | BV54: 8.327885468e-13 | BW54: 8.327885468e-13 | CA54: 33 | CB54: 2025-06-01 | CC54: 31 | CD54: 1004 | CE54: 85180.32611 | CF54: 8984.541351 | CG54: 1050.687041 | CH54: 39.60914866 | CI54: 153.9469269 | CJ54: 412357.84 | CK54: 422586.6245 | CL54: 76195.78476 | CM54: 8.327885468e-13 | CN54: 8.327885468e-13 | CR54: 33 | CS54: 2025-06-01 | CT54: 31 | CU54: 1004 | CV54: -695541.7127 | CW54: -21518.48869 | CX54: -8579.406743 | CY54: -323.4293217 | CZ54: 153.9469269 | DA54: 412357.84 | DB54: 382090.4622 | DC54: -674023.224 | DD54: 8.327885468e-13 | DE54: 8.327885468e-13
B55: 34 | C55: 2026-12-02 | D55: 3 | E55: 2026-12-02 | F55: 30 | G55: 1062 | H55: 234226.7678 | I55: 3386.747163 | J55: 2795.401006 | K55: 0 | L55: 0 | M55: 0 | N55: 6182.148168 | O55: 230840.0206 | P55: 0.657057752 | Q55: 0.657057752 | S55: =IFERROR((I55+J55+K55+L55+M55)*$J$12+('Simulador para calculos'!I55+'Simulador para calculos'!J55+'Simulador para calculos'!K55+'Simulador para calculos'!L55+'Simulador para calculos'!M55)*NOT($J$12),"") -> 6182.148168 | T55: 1062 | U55: =IFERROR((1+'Simulación Cliente'!$E$21)^(T55/360),"") -> 1.626055583 | V55: 3801.93 | AB55: 34 | AC55: 2025-07-01 | AD55: 30 | AE55: 1034 | AF55: -674023.224 | AG55: 360016.6403 | AH55: -8044.192455 | AI55: -303.3104508 | AJ55: 153.9469269 | AK55: 412357.84 | AL55: 764180.9243 | AM55: -1034039.864 | AN55: 7.254784936e-13 | AO55: 3.627392468e-13 | AS55: 34 | AT55: 2025-07-01 | AU55: 30 | AV55: 1034 | AW55: 76195.78476 | AX55: 9131.183803 | AY55: 909.3656347 | AZ55: 34.28810314 | BA55: 153.9469269 | BB55: 412357.84 | BC55: 422586.6245 | BD55: 67064.60096 | BE55: 3.627392468e-13 | BF55: 3.627392468e-13 | BJ55: 34 | BK55: 2025-07-01 | BL55: 30 | BM55: 1034 | BN55: -674023.224 | BO55: 360016.6403 | BP55: -8044.192455 | BQ55: -303.3104508 | BR55: 153.9469269 | BS55: 412357.84 | BT55: 764180.9243 | BU55: -1034039.864 | BV55: 7.254784936e-13 | BW55: 3.627392468e-13 | CA55: 34 | CB55: 2025-07-01 | CC55: 30 | CD55: 1034 | CE55: 76195.78476 | CF55: 9131.183803 | CG55: 909.3656347 | CH55: 34.28810314 | CI55: 153.9469269 | CJ55: 412357.84 | CK55: 422586.6245 | CL55: 67064.60096 | CM55: 3.627392468e-13 | CN55: 3.627392468e-13 | CR55: 34 | CS55: 2025-07-01 | CT55: 30 | CU55: 1034 | CV55: -674023.224 | CW55: 360016.6403 | CX55: -8044.192455 | CY55: -303.3104508 | CZ55: 153.9469269 | DA55: 412357.84 | DB55: 764180.9243 | DC55: -1034039.864 | DD55: 7.254784936e-13 | DE55: 3.627392468e-13
B56: 35 | C56: 2027-01-02 | D56: 6 | E56: 2027-01-02 | F56: 31 | G56: 1093 | H56: 230840.0206 | I56: 3334.769796 | J56: 2847.378372 | K56: 0 | L56: 0 | M56: 0 | N56: 6182.148168 | O56: 227505.2508 | P56: 0.6490517917 | Q56: 0.6490517917 | S56: =IFERROR((I56+J56+K56+L56+M56)*$J$12+('Simulador para calculos'!I56+'Simulador para calculos'!J56+'Simulador para calculos'!K56+'Simulador para calculos'!L56+'Simulador para calculos'!M56)*NOT($J$12),"") -> 6182.148168 | T56: 1093 | U56: =IFERROR((1+'Simulación Cliente'!$E$21)^(T56/360),"") -> 1.649295494 | V56: 3748.36 | AB56: 35 | AC56: 2025-08-01 | AD56: 31 | AE56: 1065 | AF56: -1034039.864 | AG56: -17185.75997 | AH56: -12754.73264 | AI56: -480.8321426 | AJ56: 153.9469269 | AK56: 412357.84 | AL56: 382090.4622 | AM56: -1016854.104 | AN56: 1.536820022e-13 | AO56: 1.536820022e-13 | AS56: 35 | AT56: 2025-08-01 | AU56: 31 | AV56: 1065 | AW56: 67064.60096 | AX56: 9216.420084 | AY56: 827.2321835 | AZ56: 31.1852733 | BA56: 153.9469269 | BB56: 412357.84 | BC56: 422586.6245 | BD56: 57848.18087 | BE56: 1.536820022e-13 | BF56: 1.536820022e-13 | BJ56: 35 | BK56: 2025-08-01 | BL56: 31 | BM56: 1065 | BN56: -1034039.864 | BO56: -17185.75997 | BP56: -12754.73264 | BQ56: -480.8321426 | BR56: 153.9469269 | BS56: 412357.84 | BT56: 382090.4622 | BU56: -1016854.104 | BV56: 1.536820022e-13 | BW56: 1.536820022e-13 | CA56: 35 | CB56: 2025-08-01 | CC56: 31 | CD56: 1065 | CE56: 67064.60096 | CF56: 9216.420084 | CG56: 827.2321835 | CH56: 31.1852733 | CI56: 153.9469269 | CJ56: 412357.84 | CK56: 422586.6245 | CL56: 57848.18087 | CM56: 1.536820022e-13 | CN56: 1.536820022e-13 | CR56: 35 | CS56: 2025-08-01 | CT56: 31 | CU56: 1065 | CV56: -1034039.864 | CW56: -17185.75997 | CX56: -12754.73264 | CY56: -480.8321426 | CZ56: 153.9469269 | DA56: 412357.84 | DB56: 382090.4622 | DC56: -1016854.104 | DD56: 1.536820022e-13 | DE56: 1.536820022e-13
B57: 36 | C57: 2027-02-02 | D57: 2 | E57: 2027-02-02 | F57: 31 | G57: 1124 | H57: 227505.2508 | I57: 3375.903701 | J57: 2806.244467 | K57: 0 | L57: 0 | M57: 0 | N57: 6182.148168 | O57: 224129.3471 | P57: 0.6411433806 | Q57: 0.6411433806 | S57: =IFERROR((I57+J57+K57+L57+M57)*$J$12+('Simulador para calculos'!I57+'Simulador para calculos'!J57+'Simulador para calculos'!K57+'Simulador para calculos'!L57+'Simulador para calculos'!M57)*NOT($J$12),"") -> 6182.148168 | T57: 1124 | U57: =IFERROR((1+'Simulación Cliente'!$E$21)^(T57/360),"") -> 1.672867555 | V57: 3695.54 | AB57: 36 | AC57: 2025-09-01 | AD57: 31 | AE57: 1096 | AF57: -1016854.104 | AG57: -17405.73528 | AH57: -12542.74877 | AI57: -472.8407043 | AJ57: 153.9469269 | AK57: 412357.84 | AL57: 382090.4622 | AM57: -999448.3691 | AN57: 6.51105664e-14 | AO57: 6.51105664e-14 | AS57: 36 | AT57: 2025-09-01 | AU57: 31 | AV57: 1096 | AW57: 57848.18087 | AX57: 9334.388965 | AY57: 713.5489705 | AZ57: 26.89960582 | BA57: 153.9469269 | BB57: 412357.84 | BC57: 422586.6245 | BD57: 48513.79191 | BE57: 6.51105664e-14 | BF57: 6.51105664e-14 | BJ57: 36 | BK57: 2025-09-01 | BL57: 31 | BM57: 1096 | BN57: -1016854.104 | BO57: -17405.73528 | BP57: -12542.74877 | BQ57: -472.8407043 | BR57: 153.9469269 | BS57: 412357.84 | BT57: 382090.4622 | BU57: -999448.3691 | BV57: 6.51105664e-14 | BW57: 6.51105664e-14 | CA57: 36 | CB57: 2025-09-01 | CC57: 31 | CD57: 1096 | CE57: 57848.18087 | CF57: 9334.388965 | CG57: 713.5489705 | CH57: 26.89960582 | CI57: 153.9469269 | CJ57: 412357.84 | CK57: 422586.6245 | CL57: 48513.79191 | CM57: 6.51105664e-14 | CN57: 6.51105664e-14 | CR57: 36 | CS57: 2025-09-01 | CT57: 31 | CU57: 1096 | CV57: -1016854.104 | CW57: -17405.73528 | CX57: -12542.74877 | CY57: -472.8407043 | CZ57: 153.9469269 | DA57: 412357.84 | DB57: 382090.4622 | DC57: -999448.3691 | DD57: 6.51105664e-14 | DE57: 6.51105664e-14
B58: 37 | C58: 2027-03-02 | D58: 2 | E58: 2027-03-02 | F58: 28 | G58: 1152 | H58: 224129.3471 | I58: 3686.570918 | J58: 2495.577251 | K58: 0 | L58: 0 | M58: 0 | N58: 6182.148168 | O58: 220442.7762 | P58: 0.6340831561 | Q58: 0.6340831561 | S58: =IFERROR((I58+J58+K58+L58+M58)*$J$12+('Simulador para calculos'!I58+'Simulador para calculos'!J58+'Simulador para calculos'!K58+'Simulador para calculos'!L58+'Simulador para calculos'!M58)*NOT($J$12),"") -> 6182.148168 | T58: 1152 | U58: =IFERROR((1+'Simulación Cliente'!$E$21)^(T58/360),"") -> 1.694447886 | V58: 3648.47 | AB58: 37 | AC58: 2025-10-01 | AD58: 30 | AE58: 1126 | AF58: -999448.3691 | AG58: -18043.56406 | AH58: -11928.00892 | AI58: -449.7517661 | AJ58: 153.9469269 | AK58: 412357.84 | AL58: 382090.4622 | AM58: -981404.805 | AN58: 2.836032977e-14 | AO58: 2.836032977e-14 | AS58: 37 | AT58: 2025-10-01 | AU58: 30 | AV58: 1126 | AW58: 48513.79191 | AX58: 9474.014002 | AY58: 578.9923328 | AZ58: 21.83120636 | BA58: 153.9469269 | BB58: 412357.84 | BC58: 422586.6245 | BD58: 39039.7779 | BE58: 2.836032977e-14 | BF58: 2.836032977e-14 | BJ58: 37 | BK58: 2025-10-01 | BL58: 30 | BM58: 1126 | BN58: -999448.3691 | BO58: -18043.56406 | BP58: -11928.00892 | BQ58: -449.7517661 | BR58: 153.9469269 | BS58: 412357.84 | BT58: 382090.4622 | BU58: -981404.805 | BV58: 2.836032977e-14 | BW58: 2.836032977e-14 | CA58: 37 | CB58: 2025-10-01 | CC58: 30 | CD58: 1126 | CE58: 48513.79191 | CF58: 9474.014002 | CG58: 578.9923328 | CH58: 21.83120636 | CI58: 153.9469269 | CJ58: 412357.84 | CK58: 422586.6245 | CL58: 39039.7779 | CM58: 2.836032977e-14 | CN58: 2.836032977e-14 | CR58: 37 | CS58: 2025-10-01 | CT58: 30 | CU58: 1126 | CV58: -999448.3691 | CW58: -18043.56406 | CX58: -11928.00892 | CY58: -449.7517661 | CZ58: 153.9469269 | DA58: 412357.84 | DB58: 382090.4622 | DC58: -981404.805 | DD58: 2.836032977e-14 | DE58: 2.836032977e-14
B59: 38 | C59: 2027-04-02 | D59: 5 | E59: 2027-04-02 | F59: 31 | G59: 1183 | H59: 220442.7762 | I59: 3463.018307 | J59: 2719.129861 | K59: 0 | L59: 0 | M59: 0 | N59: 6182.148168 | O59: 216979.7579 | P59: 0.6263571312 | Q59: 0.6263571312 | S59: =IFERROR((I59+J59+K59+L59+M59)*$J$12+('Simulador para calculos'!I59+'Simulador para calculos'!J59+'Simulador para calculos'!K59+'Simulador para calculos'!L59+'Simulador para calculos'!M59)*NOT($J$12),"") -> 6182.148168 | T59: 1183 | U59: =IFERROR((1+'Simulación Cliente'!$E$21)^(T59/360),"") -> 1.718665274 | V59: 3597.06 | AB59: 38 | AC59: 2025-11-01 | AD59: 31 | AE59: 1157 | AF59: -981404.805 | AG59: -17859.48133 | AH59: -12105.48677 | AI59: -456.3566565 | AJ59: 153.9469269 | AK59: 412357.84 | AL59: 382090.4622 | AM59: -963545.3237 | AN59: 1.201544167e-14 | AO59: 1.201544167e-14 | AS59: 38 | AT59: 2025-11-01 | AU59: 31 | AV59: 1157 | AW59: 39039.7779 | AX59: 9575.133877 | AY59: 481.5500317 | AZ59: 18.15363286 | BA59: 153.9469269 | BB59: 412357.84 | BC59: 422586.6245 | BD59: 29464.64403 | BE59: 1.201544167e-14 | BF59: 1.201544167e-14 | BJ59: 38 | BK59: 2025-11-01 | BL59: 31 | BM59: 1157 | BN59: -981404.805 | BO59: -17859.48133 | BP59: -12105.48677 | BQ59: -456.3566565 | BR59: 153.9469269 | BS59: 412357.84 | BT59: 382090.4622 | BU59: -963545.3237 | BV59: 1.201544167e-14 | BW59: 1.201544167e-14 | CA59: 38 | CB59: 2025-11-01 | CC59: 31 | CD59: 1157 | CE59: 39039.7779 | CF59: 9575.133877 | CG59: 481.5500317 | CH59: 18.15363286 | CI59: 153.9469269 | CJ59: 412357.84 | CK59: 422586.6245 | CL59: 29464.64403 | CM59: 1.201544167e-14 | CN59: 1.201544167e-14 | CR59: 38 | CS59: 2025-11-01 | CT59: 31 | CU59: 1157 | CV59: -981404.805 | CW59: -17859.48133 | CX59: -12105.48677 | CY59: -456.3566565 | CZ59: 153.9469269 | DA59: 412357.84 | DB59: 382090.4622 | DC59: -963545.3237 | DD59: 1.201544167e-14 | DE59: 1.201544167e-14
B60: 39 | C60: 2027-05-02 | D60: 7 | E60: 2027-05-03 | F60: 31 | G60: 1214 | H60: 216979.7579 | I60: 3505.734139 | J60: 2676.41403 | K60: 0 | L60: 0 | M60: 0 | N60: 6182.148168 | O60: 213474.0238 | P60: 0.6187252445 | Q60: 0.6187252445 | S60: =IFERROR((I60+J60+K60+L60+M60)*$J$12+('Simulador para calculos'!I60+'Simulador para calculos'!J60+'Simulador para calculos'!K60+'Simulador para calculos'!L60+'Simulador para calculos'!M60)*NOT($J$12),"") -> 6182.148168 | T60: 1214 | U60: =IFERROR((1+'Simulación Cliente'!$E$21)^(T60/360),"") -> 1.743228781 | V60: 3546.38 | AB60: 39 | AC60: 2025-12-01 | AD60: 30 | AE60: 1187 | AF60: -963545.3237 | AG60: 363602.2535 | AH60: -11499.52071 | AI60: -433.5953957 | AJ60: 153.9469269 | AK60: 412357.84 | AL60: 764180.9243 | AM60: -1327147.577 | AN60: 1.046717628e-14 | AO60: 5.233588141e-15 | AS60: 39 | AT60: 2025-12-01 | AU60: 30 | AV60: 1187 | AW60: 29464.64403 | AX60: 9709.929934 | AY60: 351.6485171 | AZ60: 13.25908981 | BA60: 153.9469269 | BB60: 412357.84 | BC60: 422586.6245 | BD60: 19754.71409 | BE60: 5.233588141e-15 | BF60: 5.233588141e-15 | BJ60: 39 | BK60: 2025-12-01 | BL60: 30 | BM60: 1187 | BN60: -963545.3237 | BO60: 363602.2535 | BP60: -11499.52071 | BQ60: -433.5953957 | BR60: 153.9469269 | BS60: 412357.84 | BT60: 764180.9243 | BU60: -1327147.577 | BV60: 1.046717628e-14 | BW60: 5.233588141e-15 | CA60: 39 | CB60: 2025-12-01 | CC60: 30 | CD60: 1187 | CE60: 29464.64403 | CF60: 9709.929934 | CG60: 351.6485171 | CH60: 13.25908981 | CI60: 153.9469269 | CJ60: 412357.84 | CK60: 422586.6245 | CL60: 19754.71409 | CM60: 5.233588141e-15 | CN60: 5.233588141e-15 | CR60: 39 | CS60: 2025-12-01 | CT60: 30 | CU60: 1187 | CV60: -963545.3237 | CW60: 363602.2535 | CX60: -11499.52071 | CY60: -433.5953957 | CZ60: 153.9469269 | DA60: 412357.84 | DB60: 764180.9243 | DC60: -1327147.577 | DD60: 1.046717628e-14 | DE60: 5.233588141e-15
B61: 40 | C61: 2027-06-02 | D61: 3 | E61: 2027-06-02 | F61: 30 | G61: 1244 | H61: 213474.0238 | I61: 3634.422704 | J61: 2547.725464 | K61: 0 | L61: 0 | M61: 0 | N61: 6182.148168 | O61: 209839.6011 | P61: 0.6114280993 | Q61: 0.6114280993 | S61: =IFERROR((I61+J61+K61+L61+M61)*$J$12+('Simulador para calculos'!I61+'Simulador para calculos'!J61+'Simulador para calculos'!K61+'Simulador para calculos'!L61+'Simulador para calculos'!M61)*NOT($J$12),"") -> 6182.148168 | T61: 1244 | U61: =IFERROR((1+'Simulación Cliente'!$E$21)^(T61/360),"") -> 1.767334129 | V61: 3498.01 | AB61: 40 | AC61: 2026-01-01 | AD61: 31 | AE61: 1218 | AF61: -1327147.577 | AG61: -13434.02248 | AH61: -16370.17402 | AI61: -617.1282512 | AJ61: 153.9469269 | AK61: 412357.84 | AL61: 382090.4622 | AM61: -1313713.555 | AN61: 2.217318119e-15 | AO61: 2.217318119e-15 | AS61: 40 | AT61: 2026-01-01 | AU61: 31 | AV61: 1218 | AW61: 19754.71409 | AX61: 9821.97998 | AY61: 243.6715501 | AZ61: 9.186010938 | BA61: 153.9469269 | BB61: 412357.84 | BC61: 422586.6245 | BD61: 9932.734114 | BE61: 2.217318119e-15 | BF61: 2.217318119e-15 | BJ61: 40 | BK61: 2026-01-01 | BL61: 31 | BM61: 1218 | BN61: -1327147.577 | BO61: -13434.02248 | BP61: -16370.17402 | BQ61: -617.1282512 | BR61: 153.9469269 | BS61: 412357.84 | BT61: 382090.4622 | BU61: -1313713.555 | BV61: 2.217318119e-15 | BW61: 2.217318119e-15 | CA61: 40 | CB61: 2026-01-01 | CC61: 31 | CD61: 1218 | CE61: 19754.71409 | CF61: 9821.97998 | CG61: 243.6715501 | CH61: 9.186010938 | CI61: 153.9469269 | CJ61: 412357.84 | CK61: 422586.6245 | CL61: 9932.734114 | CM61: 2.217318119e-15 | CN61: 2.217318119e-15 | CR61: 40 | CS61: 2026-01-01 | CT61: 31 | CU61: 1218 | CV61: -1327147.577 | CW61: -13434.02248 | CX61: -16370.17402 | CY61: -617.1282512 | CZ61: 153.9469269 | DA61: 412357.84 | DB61: 382090.4622 | DC61: -1313713.555 | DD61: 2.217318119e-15 | DE61: 2.217318119e-15
B62: 41 | C62: 2027-07-02 | D62: 5 | E62: 2027-07-02 | F62: 30 | G62: 1274 | H62: 209839.6011 | I62: 3677.798058 | J62: 2504.350111 | K62: 0 | L62: 0 | M62: 0 | N62: 6182.148168 | O62: 206161.803 | P62: 0.6042170155 | Q62: 0.6042170155 | S62: =IFERROR((I62+J62+K62+L62+M62)*$J$12+('Simulador para calculos'!I62+'Simulador para calculos'!J62+'Simulador para calculos'!K62+'Simulador para calculos'!L62+'Simulador para calculos'!M62)*NOT($J$12),"") -> 6182.148168 | T62: 1274 | U62: =IFERROR((1+'Simulación Cliente'!$E$21)^(T62/360),"") -> 1.791772805 | V62: 3450.3 | AB62: 41 | AC62: 2026-02-01 | AD62: 31 | AE62: 1249 | AF62: -1313713.555 | AG62: -13605.97608 | AH62: -16204.46729 | AI62: -610.8813839 | AJ62: 153.9469269 | AK62: 412357.84 | AL62: 382090.4622 | AM62: -1300107.579 | AN62: 9.394127908e-16 | AO62: 9.394127908e-16 | AS62: 41 | AT62: 2026-02-01 | AU62: 31 | AV62: 1249 | AW62: 9932.734114 | AX62: 9947.699942 | AY62: 122.5188432 | AZ62: 4.618755998 | BA62: 153.9469269 | BB62: 412357.84 | BC62: 422586.6245 | BD62: -14.96582826 | BE62: 9.394127908e-16 | BF62: 9.394127908e-16 | BJ62: 41 | BK62: 2026-02-01 | BL62: 31 | BM62: 1249 | BN62: -1313713.555 | BO62: -13605.97608 | BP62: -16204.46729 | BQ62: -610.8813839 | BR62: 153.9469269 | BS62: 412357.84 | BT62: 382090.4622 | BU62: -1300107.579 | BV62: 9.394127908e-16 | BW62: 9.394127908e-16 | CA62: 41 | CB62: 2026-02-01 | CC62: 31 | CD62: 1249 | CE62: 9932.734114 | CF62: 9947.699942 | CG62: 122.5188432 | CH62: 4.618755998 | CI62: 153.9469269 | CJ62: 412357.84 | CK62: 422586.6245 | CL62: -14.96582826 | CM62: 9.394127908e-16 | CN62: 9.394127908e-16 | CR62: 41 | CS62: 2026-02-01 | CT62: 31 | CU62: 1249 | CV62: -1313713.555 | CW62: -13605.97608 | CX62: -16204.46729 | CY62: -610.8813839 | CZ62: 153.9469269 | DA62: 412357.84 | DB62: 382090.4622 | DC62: -1300107.579 | DD62: 9.394127908e-16 | DE62: 9.394127908e-16
B63: 42 | C63: 2027-08-02 | D63: 1 | E63: 2027-08-02 | F63: 31 | G63: 1305 | H63: 206161.803 | I63: 3639.172053 | J63: 2542.976116 | K63: 0 | L63: 0 | M63: 0 | N63: 6182.148168 | O63: 202522.6309 | P63: 0.5968548964 | Q63: 0.5968548964 | S63: =IFERROR((I63+J63+K63+L63+M63)*$J$12+('Simulador para calculos'!I63+'Simulador para calculos'!J63+'Simulador para calculos'!K63+'Simulador para calculos'!L63+'Simulador para calculos'!M63)*NOT($J$12),"") -> 6182.148168 | T63: 1305 | U63: =IFERROR((1+'Simulación Cliente'!$E$21)^(T63/360),"") -> 1.81738118 | V63: 3401.68 | AB63: 42 | AC63: 2026-03-01 | AD63: 28 | AE63: 1277 | AF63: -1300107.579 | AG63: -15399.18751 | AH63: -14476.10024 | AI63: -546.0369937 | AJ63: 153.9469269 | AK63: 412357.84 | AL63: 382090.4622 | AM63: -1284708.391 | AN63: 4.324928698e-16 | AO63: 4.324928698e-16 | AS63: 42 | AT63: 2026-03-01 | AU63: 28 | AV63: 1277 | AW63: -14.96582826 | AX63: 10075.01046 | AY63: -0.1666376181 | AZ63: -0.006285553601 | BA63: 153.9469269 | BB63: 412357.84 | BC63: 422586.6245 | BD63: -10089.97629 | BE63: 4.324928698e-16 | BF63: 4.324928698e-16 | BJ63: 42 | BK63: 2026-03-01 | BL63: 28 | BM63: 1277 | BN63: -1300107.579 | BO63: -15399.18751 | BP63: -14476.10024 | BQ63: -546.0369937 | BR63: 153.9469269 | BS63: 412357.84 | BT63: 382090.4622 | BU63: -1284708.391 | BV63: 4.324928698e-16 | BW63: 4.324928698e-16 | CA63: 42 | CB63: 2026-03-01 | CC63: 28 | CD63: 1277 | CE63: -14.96582826 | CF63: 10075.01046 | CG63: -0.1666376181 | CH63: -0.006285553601 | CI63: 153.9469269 | CJ63: 412357.84 | CK63: 422586.6245 | CL63: -10089.97629 | CM63: 4.324928698e-16 | CN63: 4.324928698e-16 | CR63: 42 | CS63: 2026-03-01 | CT63: 28 | CU63: 1277 | CV63: -1300107.579 | CW63: -15399.18751 | CX63: -14476.10024 | CY63: -546.0369937 | CZ63: 153.9469269 | DA63: 412357.84 | DB63: 382090.4622 | DC63: -1284708.391 | DD63: 4.324928698e-16 | DE63: 4.324928698e-16
B64: 43 | C64: 2027-09-02 | D64: 4 | E64: 2027-09-02 | F64: 31 | G64: 1336 | H64: 202522.6309 | I64: 3684.060715 | J64: 2498.087453 | K64: 0 | L64: 0 | M64: 0 | N64: 6182.148168 | O64: 198838.5702 | P64: 0.5895824815 | Q64: 0.5895824815 | S64: =IFERROR((I64+J64+K64+L64+M64)*$J$12+('Simulador para calculos'!I64+'Simulador para calculos'!J64+'Simulador para calculos'!K64+'Simulador para calculos'!L64+'Simulador para calculos'!M64)*NOT($J$12),"") -> 6182.148168 | T64: 1336 | U64: =IFERROR((1+'Simulación Cliente'!$E$21)^(T64/360),"") -> 1.843355555 | V64: 3353.75 | AB64: 43 | AC64: 2026-04-01 | AD64: 31 | AE64: 1308 | AF64: -1284708.391 | AG64: -13977.2381 | AH64: -15846.69278 | AI64: -597.3938816 | AJ64: 153.9469269 | AK64: 412357.84 | AL64: 382090.4622 | AM64: -1270731.153 | AN64: 1.832345708e-16 | AO64: 1.832345708e-16 | AS64: 43 | AT64: 2026-04-01 | AU64: 31 | AV64: 1308 | AW64: -10089.97629 | AX64: 10203.98782 | AY64: -124.4584028 | AZ64: -4.69187416 | BA64: 153.9469269 | BB64: 412357.84 | BC64: 422586.6245 | BD64: -20293.96411 | BE64: 1.832345708e-16 | BF64: 1.832345708e-16 | BJ64: 43 | BK64: 2026-04-01 | BL64: 31 | BM64: 1308 | BN64: -1284708.391 | BO64: -13977.2381 | BP64: -15846.69278 | BQ64: -597.3938816 | BR64: 153.9469269 | BS64: 412357.84 | BT64: 382090.4622 | BU64: -1270731.153 | BV64: 1.832345708e-16 | BW64: 1.832345708e-16 | CA64: 43 | CB64: 2026-04-01 | CC64: 31 | CD64: 1308 | CE64: -10089.97629 | CF64: 10203.98782 | CG64: -124.4584028 | CH64: -4.69187416 | CI64: 153.9469269 | CJ64: 412357.84 | CK64: 422586.6245 | CL64: -20293.96411 | CM64: 1.832345708e-16 | CN64: 1.832345708e-16 | CR64: 43 | CS64: 2026-04-01 | CT64: 31 | CU64: 1308 | CV64: -1284708.391 | CW64: -13977.2381 | CX64: -15846.69278 | CY64: -597.3938816 | CZ64: 153.9469269 | DA64: 412357.84 | DB64: 382090.4622 | DC64: -1270731.153 | DD64: 1.832345708e-16 | DE64: 1.832345708e-16
B65: 44 | C65: 2027-10-02 | D65: 6 | E65: 2027-10-02 | F65: 30 | G65: 1366 | H65: 198838.5702 | I65: 3809.090877 | J65: 2373.057292 | K65: 0 | L65: 0 | M65: 0 | N65: 6182.148168 | O65: 195029.4794 | P65: 0.5826290414 | Q65: 0.5826290414 | S65: =IFERROR((I65+J65+K65+L65+M65)*$J$12+('Simulador para calculos'!I65+'Simulador para calculos'!J65+'Simulador para calculos'!K65+'Simulador para calculos'!L65+'Simulador para calculos'!M65)*NOT($J$12),"") -> 6182.148168 | T65: 1366 | U65: =IFERROR((1+'Simulación Cliente'!$E$21)^(T65/360),"") -> 1.868845454 | V65: 3308 | AB65: 44 | AC65: 2026-05-01 | AD65: 30 | AE65: 1338 | AF65: -1270731.153 | AG65: -14683.83736 | AH65: -15165.65838 | AI65: -571.8290189 | AJ65: 153.9469269 | AK65: 412357.84 | AL65: 382090.4622 | AM65: -1256047.316 | AN65: 7.981182072e-17 | AO65: 7.981182072e-17 | AS65: 44 | AT65: 2026-05-01 | AU65: 30 | AV65: 1338 | AW65: -20293.96411 | AX65: 10326.17002 | AY65: -242.2001901 | AZ65: -9.13228385 | BA65: 153.9469269 | BB65: 412357.84 | BC65: 422586.6245 | BD65: -30620.13413 | BE65: 7.981182072e-17 | BF65: 7.981182072e-17 | BJ65: 44 | BK65: 2026-05-01 | BL65: 30 | BM65: 1338 | BN65: -1270731.153 | BO65: -14683.83736 | BP65: -15165.65838 | BQ65: -571.8290189 | BR65: 153.9469269 | BS65: 412357.84 | BT65: 382090.4622 | BU65: -1256047.316 | BV65: 7.981182072e-17 | BW65: 7.981182072e-17 | CA65: 44 | CB65: 2026-05-01 | CC65: 30 | CD65: 1338 | CE65: -20293.96411 | CF65: 10326.17002 | CG65: -242.2001901 | CH65: -9.13228385 | CI65: 153.9469269 | CJ65: 412357.84 | CK65: 422586.6245 | CL65: -30620.13413 | CM65: 7.981182072e-17 | CN65: 7.981182072e-17 | CR65: 44 | CS65: 2026-05-01 | CT65: 30 | CU65: 1338 | CV65: -1270731.153 | CW65: -14683.83736 | CX65: -15165.65838 | CY65: -571.8290189 | CZ65: 153.9469269 | DA65: 412357.84 | DB65: 382090.4622 | DC65: -1256047.316 | DD65: 7.981182072e-17 | DE65: 7.981182072e-17
B66: 45 | C66: 2027-11-02 | D66: 2 | E66: 2027-11-02 | F66: 31 | G66: 1397 | H66: 195029.4794 | I66: 3776.48766 | J66: 2405.660509 | K66: 0 | L66: 0 | M66: 0 | N66: 6182.148168 | O66: 191252.9917 | P66: 0.5755299623 | Q66: 0.5755299623 | S66: =IFERROR((I66+J66+K66+L66+M66)*$J$12+('Simulador para calculos'!I66+'Simulador para calculos'!J66+'Simulador para calculos'!K66+'Simulador para calculos'!L66+'Simulador para calculos'!M66)*NOT($J$12),"") -> 6182.148168 | T66: 1397 | U66: =IFERROR((1+'Simulación Cliente'!$E$21)^(T66/360),"") -> 1.895555367 | V66: 3261.39 | AB66: 45 | AC66: 2026-06-01 | AD66: 31 | AE66: 1369 | AF66: -1256047.316 | AG66: -14344.09583 | AH66: -15493.16254 | AI66: -584.0663816 | AJ66: 153.9469269 | AK66: 412357.84 | AL66: 382090.4622 | AM66: -1241703.22 | AN66: 3.381393251e-17 | AO66: 3.381393251e-17 | AS66: 45 | AT66: 2026-06-01 | AU66: 31 | AV66: 1369 | AW66: -30620.13413 | AX66: 10466.77095 | AY66: -377.6949396 | AZ66: -14.23846914 | BA66: 153.9469269 | BB66: 412357.84 | BC66: 422586.6245 | BD66: -41086.90508 | BE66: 3.381393251e-17 | BF66: 3.381393251e-17 | BJ66: 45 | BK66: 2026-06-01 | BL66: 31 | BM66: 1369 | BN66: -1256047.316 | BO66: -14344.09583 | BP66: -15493.16254 | BQ66: -584.0663816 | BR66: 153.9469269 | BS66: 412357.84 | BT66: 382090.4622 | BU66: -1241703.22 | BV66: 3.381393251e-17 | BW66: 3.381393251e-17 | CA66: 45 | CB66: 2026-06-01 | CC66: 31 | CD66: 1369 | CE66: -30620.13413 | CF66: 10466.77095 | CG66: -377.6949396 | CH66: -14.23846914 | CI66: 153.9469269 | CJ66: 412357.84 | CK66: 422586.6245 | CL66: -41086.90508 | CM66: 3.381393251e-17 | CN66: 3.381393251e-17 | CR66: 45 | CS66: 2026-06-01 | CT66: 31 | CU66: 1369 | CV66: -1256047.316 | CW66: -14344.09583 | CX66: -15493.16254 | CY66: -584.0663816 | CZ66: 153.9469269 | DA66: 412357.84 | DB66: 382090.4622 | DC66: -1241703.22 | DD66: 3.381393251e-17 | DE66: 3.381393251e-17
B67: 46 | C67: 2027-12-02 | D67: 4 | E67: 2027-12-02 | F67: 30 | G67: 1427 | H67: 191252.9917 | I67: 3899.621665 | J67: 2282.526504 | K67: 0 | L67: 0 | M67: 0 | N67: 6182.148168 | O67: 187353.37 | P67: 0.5687422553 | Q67: 0.5687422553 | S67: =IFERROR((I67+J67+K67+L67+M67)*$J$12+('Simulador para calculos'!I67+'Simulador para calculos'!J67+'Simulador para calculos'!K67+'Simulador para calculos'!L67+'Simulador para calculos'!M67)*NOT($J$12),"") -> 6182.148168 | T67: 1427 | U67: =IFERROR((1+'Simulación Cliente'!$E$21)^(T67/360),"") -> 1.921767084 | V67: 3216.91 | AB67: 46 | AC67: 2026-07-01 | AD67: 30 | AE67: 1399 | AF67: -1241703.22 | AG67: 367047.1257 | AH67: -14819.22183 | AI67: -558.7664489 | AJ67: 153.9469269 | AK67: 412357.84 | AL67: 764180.9243 | AM67: -1608750.346 | AN67: 2.945679418e-17 | AO67: 1.472839709e-17 | AS67: 46 | AT67: 2026-07-01 | AU67: 30 | AV67: 1399 | AW67: -41086.90508 | AX67: 10583.68211 | AY67: -490.3554656 | AZ67: -18.48910728 | BA67: 153.9469269 | BB67: 412357.84 | BC67: 422586.6245 | BD67: -51670.58719 | BE67: 1.472839709e-17 | BF67: 1.472839709e-17 | BJ67: 46 | BK67: 2026-07-01 | BL67: 30 | BM67: 1399 | BN67: -1241703.22 | BO67: 367047.1257 | BP67: -14819.22183 | BQ67: -558.7664489 | BR67: 153.9469269 | BS67: 412357.84 | BT67: 764180.9243 | BU67: -1608750.346 | BV67: 2.945679418e-17 | BW67: 1.472839709e-17 | CA67: 46 | CB67: 2026-07-01 | CC67: 30 | CD67: 1399 | CE67: -41086.90508 | CF67: 10583.68211 | CG67: -490.3554656 | CH67: -18.48910728 | CI67: 153.9469269 | CJ67: 412357.84 | CK67: 422586.6245 | CL67: -51670.58719 | CM67: 1.472839709e-17 | CN67: 1.472839709e-17 | CR67: 46 | CS67: 2026-07-01 | CT67: 30 | CU67: 1399 | CV67: -1241703.22 | CW67: 367047.1257 | CX67: -14819.22183 | CY67: -558.7664489 | CZ67: 153.9469269 | DA67: 412357.84 | DB67: 764180.9243 | DC67: -1608750.346 | DD67: 2.945679418e-17 | DE67: 1.472839709e-17
B68: 47 | C68: 2028-01-02 | D68: 7 | E68: 2028-01-03 | F68: 32 | G68: 1459 | H68: 187353.37 | I68: 3796.151001 | J68: 2385.997167 | K68: 0 | L68: 0 | M68: 0 | N68: 6182.148168 | O68: 183557.219 | P68: 0.5615902476 | Q68: 0.5615902476 | S68: =IFERROR((I68+J68+K68+L68+M68)*$J$12+('Simulador para calculos'!I68+'Simulador para calculos'!J68+'Simulador para calculos'!K68+'Simulador para calculos'!L68+'Simulador para calculos'!M68)*NOT($J$12),"") -> 6182.148168 | T68: 1459 | U68: =IFERROR((1+'Simulación Cliente'!$E$21)^(T68/360),"") -> 1.950125878 | V68: 3170.13 | AB68: 47 | AC68: 2026-08-01 | AD68: 31 | AE68: 1430 | AF68: -1608750.346 | AG68: -9829.546669 | AH68: -19843.70356 | AI68: -748.0745204 | AJ68: 153.9469269 | AK68: 412357.84 | AL68: 382090.4622 | AM68: -1598920.799 | AN68: 6.239990778e-18 | AO68: 6.239990778e-18 | AS68: 47 | AT68: 2026-08-01 | AU68: 31 | AV68: 1430 | AW68: -51670.58719 | AX68: 10736.21379 | AY68: -637.3492431 | AZ68: -24.02700322 | BA68: 153.9469269 | BB68: 412357.84 | BC68: 422586.6245 | BD68: -62406.80098 | BE68: 6.239990778e-18 | BF68: 6.239990778e-18 | BJ68: 47 | BK68: 2026-08-01 | BL68: 31 | BM68: 1430 | BN68: -1608750.346 | BO68: -9829.546669 | BP68: -19843.70356 | BQ68: -748.0745204 | BR68: 153.9469269 | BS68: 412357.84 | BT68: 382090.4622 | BU68: -1598920.799 | BV68: 6.239990778e-18 | BW68: 6.239990778e-18 | CA68: 47 | CB68: 2026-08-01 | CC68: 31 | CD68: 1430 | CE68: -51670.58719 | CF68: 10736.21379 | CG68: -637.3492431 | CH68: -24.02700322 | CI68: 153.9469269 | CJ68: 412357.84 | CK68: 422586.6245 | CL68: -62406.80098 | CM68: 6.239990778e-18 | CN68: 6.239990778e-18 | CR68: 47 | CS68: 2026-08-01 | CT68: 31 | CU68: 1430 | CV68: -1608750.346 | CW68: -9829.546669 | CX68: -19843.70356 | CY68: -748.0745204 | CZ68: 153.9469269 | DA68: 412357.84 | DB68: 382090.4622 | DC68: -1598920.799 | DD68: 6.239990778e-18 | DE68: 6.239990778e-18
B69: 48 | C69: 2028-02-02 | D69: 3 | E69: 2028-02-02 | F69: 30 | G69: 1489 | H69: 183557.219 | I69: 3991.467575 | J69: 2190.680594 | K69: 0 | L69: 0 | M69: 0 | N69: 6182.148168 | O69: 179565.7515 | P69: 0.5549669433 | Q69: 0.5549669433 | S69: =IFERROR((I69+J69+K69+L69+M69)*$J$12+('Simulador para calculos'!I69+'Simulador para calculos'!J69+'Simulador para calculos'!K69+'Simulador para calculos'!L69+'Simulador para calculos'!M69)*NOT($J$12),"") -> 6182.148168 | T69: 1489 | U69: =IFERROR((1+'Simulación Cliente'!$E$21)^(T69/360),"") -> 1.977092196 | V69: 3126.89 | AB69: 48 | AC69: 2026-09-01 | AD69: 31 | AE69: 1461 | AF69: -1598920.799 | AG69: -9955.363484 | AH69: -19722.45752 | AI69: -743.5037469 | AJ69: 153.9469269 | AK69: 412357.84 | AL69: 382090.4622 | AM69: -1588965.435 | AN69: 2.643701461e-18 | AO69: 2.643701461e-18 | AS69: 48 | AT69: 2026-09-01 | AU69: 31 | AV69: 1461 | AW69: -62406.80098 | AX69: 10873.63581 | AY69: -769.7788923 | AZ69: -29.01938007 | BA69: 153.9469269 | BB69: 412357.84 | BC69: 422586.6245 | BD69: -73280.43679 | BE69: 2.643701461e-18 | BF69: 2.643701461e-18 | BJ69: 48 | BK69: 2026-09-01 | BL69: 31 | BM69: 1461 | BN69: -1598920.799 | BO69: -9955.363484 | BP69: -19722.45752 | BQ69: -743.5037469 | BR69: 153.9469269 | BS69: 412357.84 | BT69: 382090.4622 | BU69: -1588965.435 | BV69: 2.643701461e-18 | BW69: 2.643701461e-18 | CA69: 48 | CB69: 2026-09-01 | CC69: 31 | CD69: 1461 | CE69: -62406.80098 | CF69: 10873.63581 | CG69: -769.7788923 | CH69: -29.01938007 | CI69: 153.9469269 | CJ69: 412357.84 | CK69: 422586.6245 | CL69: -73280.43679 | CM69: 2.643701461e-18 | CN69: 2.643701461e-18 | CR69: 48 | CS69: 2026-09-01 | CT69: 31 | CU69: 1461 | CV69: -1598920.799 | CW69: -9955.363484 | CX69: -19722.45752 | CY69: -743.5037469 | CZ69: 153.9469269 | DA69: 412357.84 | DB69: 382090.4622 | DC69: -1588965.435 | DD69: 2.643701461e-18 | DE69: 2.643701461e-18
B70: 49 | C70: 2028-03-02 | D70: 4 | E70: 2028-03-02 | F70: 29 | G70: 1518 | H70: 179565.7515 | I70: 4110.949295 | J70: 2071.198873 | K70: 0 | L70: 0 | M70: 0 | N70: 6182.148168 | O70: 175454.8022 | P70: 0.5486386775 | Q70: 0.5486386775 | S70: =IFERROR((I70+J70+K70+L70+M70)*$J$12+('Simulador para calculos'!I70+'Simulador para calculos'!J70+'Simulador para calculos'!K70+'Simulador para calculos'!L70+'Simulador para calculos'!M70)*NOT($J$12),"") -> 6182.148168 | T70: 1518 | U70: =IFERROR((1+'Simulación Cliente'!$E$21)^(T70/360),"") -> 2.003514035 | V70: 3085.65 | AB70: 49 | AC70: 2026-10-01 | AD70: 30 | AE70: 1491 | AF70: -1588965.435 | AG70: -10742.63548 | AH70: -18963.65483 | AI70: -715.0344459 | AJ70: 153.9469269 | AK70: 412357.84 | AL70: 382090.4622 | AM70: -1578222.8 | AN70: 1.151521932e-18 | AO70: 1.151521932e-18 | AS70: 49 | AT70: 2026-10-01 | AU70: 30 | AV70: 1491 | AW70: -73280.43679 | AX70: 10982.38588 | AY70: -874.572145 | AZ70: -32.97619656 | BA70: 153.9469269 | BB70: 412357.84 | BC70: 422586.6245 | BD70: -84262.82267 | BE70: 1.151521932e-18 | BF70: 1.151521932e-18 | BJ70: 49 | BK70: 2026-10-01 | BL70: 30 | BM70: 1491 | BN70: -1588965.435 | BO70: -10742.63548 | BP70: -18963.65483 | BQ70: -715.0344459 | BR70: 153.9469269 | BS70: 412357.84 | BT70: 382090.4622 | BU70: -1578222.8 | BV70: 1.151521932e-18 | BW70: 1.151521932e-18 | CA70: 49 | CB70: 2026-10-01 | CC70: 30 | CD70: 1491 | CE70: -73280.43679 | CF70: 10982.38588 | CG70: -874.572145 | CH70: -32.97619656 | CI70: 153.9469269 | CJ70: 412357.84 | CK70: 422586.6245 | CL70: -84262.82267 | CM70: 1.151521932e-18 | CN70: 1.151521932e-18 | CR70: 49 | CS70: 2026-10-01 | CT70: 30 | CU70: 1491 | CV70: -1588965.435 | CW70: -10742.63548 | CX70: -18963.65483 | CY70: -715.0344459 | CZ70: 153.9469269 | DA70: 412357.84 | DB70: 382090.4622 | DC70: -1578222.8 | DD70: 1.151521932e-18 | DE70: 1.151521932e-18
B71: 50 | C71: 2028-04-02 | D71: 7 | E71: 2028-04-03 | F71: 32 | G71: 1550 | H71: 175454.8022 | I71: 3947.682566 | J71: 2234.465603 | K71: 0 | L71: 0 | M71: 0 | N71: 6182.148168 | O71: 171507.1196 | P71: 0.5417394749 | Q71: 0.5417394749 | S71: =IFERROR((I71+J71+K71+L71+M71)*$J$12+('Simulador para calculos'!I71+'Simulador para calculos'!J71+'Simulador para calculos'!K71+'Simulador para calculos'!L71+'Simulador para calculos'!M71)*NOT($J$12),"") -> 6182.148168 | T71: 1550 | U71: =IFERROR((1+'Simulación Cliente'!$E$21)^(T71/360),"") -> 2.033079139 | V71: 3040.78 | AB71: 50 | AC71: 2026-11-01 | AD71: 31 | AE71: 1522 | AF71: -1578222.8 | AG71: -10220.29496 | AH71: -19467.15069 | AI71: -733.8791052 | AJ71: 153.9469269 | AK71: 412357.84 | AL71: 382090.4622 | AM71: -1568002.505 | AN71: 4.878661401e-19 | AO71: 4.878661401e-19 | AS71: 50 | AT71: 2026-11-01 | AU71: 31 | AV71: 1522 | AW71: -84262.82267 | AX71: 11153.38982 | AY71: -1039.369769 | AZ71: -39.18250637 | BA71: 153.9469269 | BB71: 412357.84 | BC71: 422586.6245 | BD71: -95416.21249 | BE71: 4.878661401e-19 | BF71: 4.878661401e-19 | BJ71: 50 | BK71: 2026-11-01 | BL71: 31 | BM71: 1522 | BN71: -1578222.8 | BO71: -10220.29496 | BP71: -19467.15069 | BQ71: -733.8791052 | BR71: 153.9469269 | BS71: 412357.84 | BT71: 382090.4622 | BU71: -1568002.505 | BV71: 4.878661401e-19 | BW71: 4.878661401e-19 | CA71: 50 | CB71: 2026-11-01 | CC71: 31 | CD71: 1522 | CE71: -84262.82267 | CF71: 11153.38982 | CG71: -1039.369769 | CH71: -39.18250637 | CI71: 153.9469269 | CJ71: 412357.84 | CK71: 422586.6245 | CL71: -95416.21249 | CM71: 4.878661401e-19 | CN71: 4.878661401e-19 | CR71: 50 | CS71: 2026-11-01 | CT71: 31 | CU71: 1522 | CV71: -1578222.8 | CW71: -10220.29496 | CX71: -19467.15069 | CY71: -733.8791052 | CZ71: 153.9469269 | DA71: 412357.84 | DB71: 382090.4622 | DC71: -1568002.505 | DD71: 4.878661401e-19 | DE71: 4.878661401e-19
B72: 51 | C72: 2028-05-02 | D72: 2 | E72: 2028-05-02 | F72: 29 | G72: 1579 | H72: 171507.1196 | I72: 4203.901482 | J72: 1978.246687 | K72: 0 | L72: 0 | M72: 0 | N72: 6182.148168 | O72: 167303.2181 | P72: 0.5355620414 | Q72: 0.5355620414 | S72: =IFERROR((I72+J72+K72+L72+M72)*$J$12+('Simulador para calculos'!I72+'Simulador para calculos'!J72+'Simulador para calculos'!K72+'Simulador para calculos'!L72+'Simulador para calculos'!M72)*NOT($J$12),"") -> 6182.148168 | T72: 1579 | U72: =IFERROR((1+'Simulación Cliente'!$E$21)^(T72/360),"") -> 2.060249187 | V72: 3000.68 | AB72: 51 | AC72: 2026-12-01 | AD72: 30 | AE72: 1552 | AF72: -1568002.505 | AG72: 371088.2093 | AH72: -18713.4708 | AI72: -705.6011272 | AJ72: 153.9469269 | AK72: 412357.84 | AL72: 764180.9243 | AM72: -1939090.714 | AN72: 4.25001513e-19 | AO72: 2.125007565e-19 | AS72: 51 | AT72: 2026-12-01 | AU72: 30 | AV72: 1552 | AW72: -95416.21249 | AX72: 11256.52844 | AY72: -1138.753606 | AZ72: -42.93729562 | BA72: 153.9469269 | BB72: 412357.84 | BC72: 422586.6245 | BD72: -106672.7409 | BE72: 2.125007565e-19 | BF72: 2.125007565e-19 | BJ72: 51 | BK72: 2026-12-01 | BL72: 30 | BM72: 1552 | BN72: -1568002.505 | BO72: 371088.2093 | BP72: -18713.4708 | BQ72: -705.6011272 | BR72: 153.9469269 | BS72: 412357.84 | BT72: 764180.9243 | BU72: -1939090.714 | BV72: 4.25001513e-19 | BW72: 2.125007565e-19 | CA72: 51 | CB72: 2026-12-01 | CC72: 30 | CD72: 1552 | CE72: -95416.21249 | CF72: 11256.52844 | CG72: -1138.753606 | CH72: -42.93729562 | CI72: 153.9469269 | CJ72: 412357.84 | CK72: 422586.6245 | CL72: -106672.7409 | CM72: 2.125007565e-19 | CN72: 2.125007565e-19 | CR72: 51 | CS72: 2026-12-01 | CT72: 30 | CU72: 1552 | CV72: -1568002.505 | CW72: 371088.2093 | CX72: -18713.4708 | CY72: -705.6011272 | CZ72: 153.9469269 | DA72: 412357.84 | DB72: 764180.9243 | DC72: -1939090.714 | DD72: 4.25001513e-19 | DE72: 2.125007565e-19
B73: 52 | C73: 2028-06-02 | D73: 5 | E73: 2028-06-02 | F73: 31 | G73: 1610 | H73: 167303.2181 | I73: 4118.487095 | J73: 2063.661074 | K73: 0 | L73: 0 | M73: 0 | N73: 6182.148168 | O73: 163184.731 | P73: 0.529036453 | Q73: 0.529036453 | S73: =IFERROR((I73+J73+K73+L73+M73)*$J$12+('Simulador para calculos'!I73+'Simulador para calculos'!J73+'Simulador para calculos'!K73+'Simulador para calculos'!L73+'Simulador para calculos'!M73)*NOT($J$12),"") -> 6182.148168 | T73: 1610 | U73: =IFERROR((1+'Simulación Cliente'!$E$21)^(T73/360),"") -> 2.08969468 | V73: 2958.4 | AB73: 52 | AC73: 2027-01-01 | AD73: 31 | AE73: 1583 | AF73: -1939090.714 | AG73: -5601.236425 | AH73: -23918.40438 | AI73: -901.6839437 | AJ73: 153.9469269 | AK73: 412357.84 | AL73: 382090.4622 | AM73: -1933489.478 | AN73: 9.003035106e-20 | AO73: 9.003035106e-20 | AS73: 52 | AT73: 2027-01-01 | AU73: 31 | AV73: 1583 | AW73: -106672.7409 | AX73: 11440.23362 | AY73: -1315.792879 | AZ73: -49.6031965 | BA73: 153.9469269 | BB73: 412357.84 | BC73: 422586.6245 | BD73: -118112.9745 | BE73: 9.003035106e-20 | BF73: 9.003035106e-20 | BJ73: 52 | BK73: 2027-01-01 | BL73: 31 | BM73: 1583 | BN73: -1939090.714 | BO73: -5601.236425 | BP73: -23918.40438 | BQ73: -901.6839437 | BR73: 153.9469269 | BS73: 412357.84 | BT73: 382090.4622 | BU73: -1933489.478 | BV73: 9.003035106e-20 | BW73: 9.003035106e-20 | CA73: 52 | CB73: 2027-01-01 | CC73: 31 | CD73: 1583 | CE73: -106672.7409 | CF73: 11440.23362 | CG73: -1315.792879 | CH73: -49.6031965 | CI73: 153.9469269 | CJ73: 412357.84 | CK73: 422586.6245 | CL73: -118112.9745 | CM73: 9.003035106e-20 | CN73: 9.003035106e-20 | CR73: 52 | CS73: 2027-01-01 | CT73: 31 | CU73: 1583 | CV73: -1939090.714 | CW73: -5601.236425 | CX73: -23918.40438 | CY73: -901.6839437 | CZ73: 153.9469269 | DA73: 412357.84 | DB73: 382090.4622 | DC73: -1933489.478 | DD73: 9.003035106e-20 | DE73: 9.003035106e-20
B74: 53 | C74: 2028-07-02 | D74: 7 | E74: 2028-07-03 | F74: 31 | G74: 1641 | H74: 163184.731 | I74: 4169.288039 | J74: 2012.860129 | K74: 0 | L74: 0 | M74: 0 | N74: 6182.148168 | O74: 159015.443 | P74: 0.5225903761 | Q74: 0.5225903761 | S74: =IFERROR((I74+J74+K74+L74+M74)*$J$12+('Simulador para calculos'!I74+'Simulador para calculos'!J74+'Simulador para calculos'!K74+'Simulador para calculos'!L74+'Simulador para calculos'!M74)*NOT($J$12),"") -> 6182.148168 | T74: 1641 | U74: =IFERROR((1+'Simulación Cliente'!$E$21)^(T74/360),"") -> 2.119561014 | V74: 2916.71 | AB74: 53 | AC74: 2027-02-01 | AD74: 31 | AE74: 1614 | AF74: -1933489.478 | AG74: -5672.931464 | AH74: -23849.31394 | AI74: -899.0793493 | AJ74: 153.9469269 | AK74: 412357.84 | AL74: 382090.4622 | AM74: -1927816.546 | AN74: 3.814322474e-20 | AO74: 3.814322474e-20 | AS74: 53 | AT74: 2027-02-01 | AU74: 31 | AV74: 1614 | AW74: -118112.9745 | AX74: 11586.667 | AY74: -1456.906512 | AZ74: -54.92294502 | BA74: 153.9469269 | BB74: 412357.84 | BC74: 422586.6245 | BD74: -129699.6415 | BE74: 3.814322474e-20 | BF74: 3.814322474e-20 | BJ74: 53 | BK74: 2027-02-01 | BL74: 31 | BM74: 1614 | BN74: -1933489.478 | BO74: -5672.931464 | BP74: -23849.31394 | BQ74: -899.0793493 | BR74: 153.9469269 | BS74: 412357.84 | BT74: 382090.4622 | BU74: -1927816.546 | BV74: 3.814322474e-20 | BW74: 3.814322474e-20 | CA74: 53 | CB74: 2027-02-01 | CC74: 31 | CD74: 1614 | CE74: -118112.9745 | CF74: 11586.667 | CG74: -1456.906512 | CH74: -54.92294502 | CI74: 153.9469269 | CJ74: 412357.84 | CK74: 422586.6245 | CL74: -129699.6415 | CM74: 3.814322474e-20 | CN74: 3.814322474e-20 | CR74: 53 | CS74: 2027-02-01 | CT74: 31 | CU74: 1614 | CV74: -1933489.478 | CW74: -5672.931464 | CX74: -23849.31394 | CY74: -899.0793493 | CZ74: 153.9469269 | DA74: 412357.84 | DB74: 382090.4622 | DC74: -1927816.546 | DD74: 3.814322474e-20 | DE74: 3.814322474e-20
B75: 54 | C75: 2028-08-02 | D75: 3 | E75: 2028-08-02 | F75: 30 | G75: 1671 | H75: 159015.443 | I75: 4284.363669 | J75: 1897.784499 | K75: 0 | L75: 0 | M75: 0 | N75: 6182.148168 | O75: 154731.0793 | P75: 0.51642703 | Q75: 0.51642703 | S75: =IFERROR((I75+J75+K75+L75+M75)*$J$12+('Simulador para calculos'!I75+'Simulador para calculos'!J75+'Simulador para calculos'!K75+'Simulador para calculos'!L75+'Simulador para calculos'!M75)*NOT($J$12),"") -> 6182.148168 | T75: 1671 | U75: =IFERROR((1+'Simulación Cliente'!$E$21)^(T75/360),"") -> 2.148870279 | V75: 2876.93 | AB75: 54 | AC75: 2027-03-01 | AD75: 28 | AE75: 1642 | AF75: -1927816.546 | AG75: -8146.302896 | AH75: -21465.35105 | AI75: -809.6708062 | AJ75: 153.9469269 | AK75: 412357.84 | AL75: 382090.4622 | AM75: -1919670.244 | AN75: 1.75606218e-20 | AO75: 1.75606218e-20 | AS75: 54 | AT75: 2027-03-01 | AU75: 28 | AV75: 1642 | AW75: -129699.6415 | AX75: 11573.45646 | AY75: -1444.145887 | AZ75: -54.47303247 | BA75: 153.9469269 | BB75: 412357.84 | BC75: 422586.6245 | BD75: -141273.098 | BE75: 1.75606218e-20 | BF75: 1.75606218e-20 | BJ75: 54 | BK75: 2027-03-01 | BL75: 28 | BM75: 1642 | BN75: -1927816.546 | BO75: -8146.302896 | BP75: -21465.35105 | BQ75: -809.6708062 | BR75: 153.9469269 | BS75: 412357.84 | BT75: 382090.4622 | BU75: -1919670.244 | BV75: 1.75606218e-20 | BW75: 1.75606218e-20 | CA75: 54 | CB75: 2027-03-01 | CC75: 28 | CD75: 1642 | CE75: -129699.6415 | CF75: 11573.45646 | CG75: -1444.145887 | CH75: -54.47303247 | CI75: 153.9469269 | CJ75: 412357.84 | CK75: 422586.6245 | CL75: -141273.098 | CM75: 1.75606218e-20 | CN75: 1.75606218e-20 | CR75: 54 | CS75: 2027-03-01 | CT75: 28 | CU75: 1642 | CV75: -1927816.546 | CW75: -8146.302896 | CX75: -21465.35105 | CY75: -809.6708062 | CZ75: 153.9469269 | DA75: 412357.84 | DB75: 382090.4622 | DC75: -1919670.244 | DD75: 1.75606218e-20 | DE75: 1.75606218e-20
B76: 55 | C76: 2028-09-02 | D76: 6 | E76: 2028-09-02 | F76: 31 | G76: 1702 | H76: 154731.0793 | I76: 4273.562614 | J76: 1908.585554 | K76: 0 | L76: 0 | M76: 0 | N76: 6182.148168 | O76: 150457.5167 | P76: 0.5101345933 | Q76: 0.5101345933 | S76: =IFERROR((I76+J76+K76+L76+M76)*$J$12+('Simulador para calculos'!I76+'Simulador para calculos'!J76+'Simulador para calculos'!K76+'Simulador para calculos'!L76+'Simulador para calculos'!M76)*NOT($J$12),"") -> 6182.148168 | T76: 1702 | U76: =IFERROR((1+'Simulación Cliente'!$E$21)^(T76/360),"") -> 2.179582362 | V76: 2836.39 | AB76: 55 | AC76: 2027-04-01 | AD76: 31 | AE76: 1673 | AF76: -1919670.244 | AG76: -5849.815719 | AH76: -23678.85568 | AI76: -892.6533571 | AJ76: 153.9469269 | AK76: 412357.84 | AL76: 382090.4622 | AM76: -1913820.428 | AN76: 7.439921495e-21 | AO76: 7.439921495e-21 | AS76: 55 | AT76: 2027-04-01 | AU76: 31 | AV76: 1673 | AW76: -141273.098 | AX76: 11883.11332 | AY76: -1742.583295 | AZ76: -65.69248319 | BA76: 153.9469269 | BB76: 412357.84 | BC76: 422586.6245 | BD76: -153156.2113 | BE76: 7.439921495e-21 | BF76: 7.439921495e-21 | BJ76: 55 | BK76: 2027-04-01 | BL76: 31 | BM76: 1673 | BN76: -1919670.244 | BO76: -5849.815719 | BP76: -23678.85568 | BQ76: -892.6533571 | BR76: 153.9469269 | BS76: 412357.84 | BT76: 382090.4622 | BU76: -1913820.428 | BV76: 7.439921495e-21 | BW76: 7.439921495e-21 | CA76: 55 | CB76: 2027-04-01 | CC76: 31 | CD76: 1673 | CE76: -141273.098 | CF76: 11883.11332 | CG76: -1742.583295 | CH76: -65.69248319 | CI76: 153.9469269 | CJ76: 412357.84 | CK76: 422586.6245 | CL76: -153156.2113 | CM76: 7.439921495e-21 | CN76: 7.439921495e-21 | CR76: 55 | CS76: 2027-04-01 | CT76: 31 | CU76: 1673 | CV76: -1919670.244 | CW76: -5849.815719 | CX76: -23678.85568 | CY76: -892.6533571 | CZ76: 153.9469269 | DA76: 412357.84 | DB76: 382090.4622 | DC76: -1913820.428 | DD76: 7.439921495e-21 | DE76: 7.439921495e-21
B77: 56 | C77: 2028-10-02 | D77: 1 | E77: 2028-10-02 | F77: 30 | G77: 1732 | H77: 150457.5167 | I77: 4386.499031 | J77: 1795.649137 | K77: 0 | L77: 0 | M77: 0 | N77: 6182.148168 | O77: 146071.0177 | P77: 0.5041181487 | Q77: 0.5041181487 | S77: =IFERROR((I77+J77+K77+L77+M77)*$J$12+('Simulador para calculos'!I77+'Simulador para calculos'!J77+'Simulador para calculos'!K77+'Simulador para calculos'!L77+'Simulador para calculos'!M77)*NOT($J$12),"") -> 6182.148168 | T77: 1732 | U77: =IFERROR((1+'Simulación Cliente'!$E$21)^(T77/360),"") -> 2.209721602 | V77: 2797.7 | AB77: 56 | AC77: 2027-05-01 | AD77: 30 | AE77: 1703 | AF77: -1913820.428 | AG77: -6719.438803 | AH77: -22840.66676 | AI77: -861.2191925 | AJ77: 153.9469269 | AK77: 412357.84 | AL77: 382090.4622 | AM77: -1907100.989 | AN77: 3.240620359e-21 | AO77: 3.240620359e-21 | AS77: 56 | AT77: 2027-05-01 | AU77: 30 | AV77: 1703 | AW77: -153156.2113 | AX77: 11971.61479 | AY77: -1827.856958 | AZ77: -68.9202951 | BA77: 153.9469269 | BB77: 412357.84 | BC77: 422586.6245 | BD77: -165127.8261 | BE77: 3.240620359e-21 | BF77: 3.240620359e-21 | BJ77: 56 | BK77: 2027-05-01 | BL77: 30 | BM77: 1703 | BN77: -1913820.428 | BO77: -6719.438803 | BP77: -22840.66676 | BQ77: -861.2191925 | BR77: 153.9469269 | BS77: 412357.84 | BT77: 382090.4622 | BU77: -1907100.989 | BV77: 3.240620359e-21 | BW77: 3.240620359e-21 | CA77: 56 | CB77: 2027-05-01 | CC77: 30 | CD77: 1703 | CE77: -153156.2113 | CF77: 11971.61479 | CG77: -1827.856958 | CH77: -68.9202951 | CI77: 153.9469269 | CJ77: 412357.84 | CK77: 422586.6245 | CL77: -165127.8261 | CM77: 3.240620359e-21 | CN77: 3.240620359e-21 | CR77: 56 | CS77: 2027-05-01 | CT77: 30 | CU77: 1703 | CV77: -1913820.428 | CW77: -6719.438803 | CX77: -22840.66676 | CY77: -861.2191925 | CZ77: 153.9469269 | DA77: 412357.84 | DB77: 382090.4622 | DC77: -1907100.989 | DD77: 3.240620359e-21 | DE77: 3.240620359e-21
B78: 57 | C78: 2028-11-02 | D78: 4 | E78: 2028-11-02 | F78: 31 | G78: 1763 | H78: 146071.0177 | I78: 4380.383226 | J78: 1801.764942 | K78: 0 | L78: 0 | M78: 0 | N78: 6182.148168 | O78: 141690.6344 | P78: 0.4979756903 | Q78: 0.4979756903 | S78: =IFERROR((I78+J78+K78+L78+M78)*$J$12+('Simulador para calculos'!I78+'Simulador para calculos'!J78+'Simulador para calculos'!K78+'Simulador para calculos'!L78+'Simulador para calculos'!M78)*NOT($J$12),"") -> 6182.148168 | T78: 1763 | U78: =IFERROR((1+'Simulación Cliente'!$E$21)^(T78/360),"") -> 2.241303385 | V78: 2758.28 | AB78: 57 | AC78: 2027-06-01 | AD78: 31 | AE78: 1734 | AF78: -1907100.989 | AG78: -6010.700409 | AH78: -23523.81573 | AI78: -886.8086099 | AJ78: 153.9469269 | AK78: 412357.84 | AL78: 382090.4622 | AM78: -1901090.289 | AN78: 1.372956e-21 | AO78: 1.372956e-21 | AS78: 57 | AT78: 2027-06-01 | AU78: 31 | AV78: 1734 | AW78: -165127.8261 | AX78: 12188.45048 | AY78: -2036.827927 | AZ78: -76.78501495 | BA78: 153.9469269 | BB78: 412357.84 | BC78: 422586.6245 | BD78: -177316.2766 | BE78: 1.372956e-21 | BF78: 1.372956e-21 | BJ78: 57 | BK78: 2027-06-01 | BL78: 31 | BM78: 1734 | BN78: -1907100.989 | BO78: -6010.700409 | BP78: -23523.81573 | BQ78: -886.8086099 | BR78: 153.9469269 | BS78: 412357.84 | BT78: 382090.4622 | BU78: -1901090.289 | BV78: 1.372956e-21 | BW78: 1.372956e-21 | CA78: 57 | CB78: 2027-06-01 | CC78: 31 | CD78: 1734 | CE78: -165127.8261 | CF78: 12188.45048 | CG78: -2036.827927 | CH78: -76.78501495 | CI78: 153.9469269 | CJ78: 412357.84 | CK78: 422586.6245 | CL78: -177316.2766 | CM78: 1.372956e-21 | CN78: 1.372956e-21 | CR78: 57 | CS78: 2027-06-01 | CT78: 31 | CU78: 1734 | CV78: -1907100.989 | CW78: -6010.700409 | CX78: -23523.81573 | CY78: -886.8086099 | CZ78: 153.9469269 | DA78: 412357.84 | DB78: 382090.4622 | DC78: -1901090.289 | DD78: 1.372956e-21 | DE78: 1.372956e-21
B79: 58 | C79: 2028-12-02 | D79: 6 | E79: 2028-12-02 | F79: 30 | G79: 1793 | H79: 141690.6344 | I79: 4491.128198 | J79: 1691.019971 | K79: 0 | L79: 0 | M79: 0 | N79: 6182.148168 | O79: 137199.5062 | P79: 0.4921026458 | Q79: 0.4921026458 | S79: =IFERROR((I79+J79+K79+L79+M79)*$J$12+('Simulador para calculos'!I79+'Simulador para calculos'!J79+'Simulador para calculos'!K79+'Simulador para calculos'!L79+'Simulador para calculos'!M79)*NOT($J$12),"") -> 6182.148168 | T79: 1793 | U79: =IFERROR((1+'Simulación Cliente'!$E$21)^(T79/360),"") -> 2.272296102 | V79: 2720.66 | AB79: 58 | AC79: 2027-07-01 | AD79: 30 | AE79: 1764 | AF79: -1901090.289 | AG79: 375213.3658 | AH79: -22688.73774 | AI79: -855.4906299 | AJ79: 153.9469269 | AK79: 412357.84 | AL79: 764180.9243 | AM79: -2276303.654 | AN79: 1.196041966e-21 | AO79: 5.980209828e-22 | AS79: 58 | AT79: 2027-07-01 | AU79: 30 | AV79: 1764 | AW79: -177316.2766 | AX79: 12270.82736 | AY79: -2116.19749 | AZ79: -79.79232447 | BA79: 153.9469269 | BB79: 412357.84 | BC79: 422586.6245 | BD79: -189587.104 | BE79: 5.980209828e-22 | BF79: 5.980209828e-22 | BJ79: 58 | BK79: 2027-07-01 | BL79: 30 | BM79: 1764 | BN79: -1901090.289 | BO79: 375213.3658 | BP79: -22688.73774 | BQ79: -855.4906299 | BR79: 153.9469269 | BS79: 412357.84 | BT79: 764180.9243 | BU79: -2276303.654 | BV79: 1.196041966e-21 | BW79: 5.980209828e-22 | CA79: 58 | CB79: 2027-07-01 | CC79: 30 | CD79: 1764 | CE79: -177316.2766 | CF79: 12270.82736 | CG79: -2116.19749 | CH79: -79.79232447 | CI79: 153.9469269 | CJ79: 412357.84 | CK79: 422586.6245 | CL79: -189587.104 | CM79: 5.980209828e-22 | CN79: 5.980209828e-22 | CR79: 58 | CS79: 2027-07-01 | CT79: 30 | CU79: 1764 | CV79: -1901090.289 | CW79: 375213.3658 | CX79: -22688.73774 | CY79: -855.4906299 | CZ79: 153.9469269 | DA79: 412357.84 | DB79: 764180.9243 | DC79: -2276303.654 | DD79: 1.196041966e-21 | DE79: 5.980209828e-22
B80: 59 | C80: 2029-01-02 | D80: 2 | E80: 2029-01-02 | F80: 31 | G80: 1824 | H80: 137199.5062 | I80: 4489.81204 | J80: 1692.336128 | K80: 0 | L80: 0 | M80: 0 | N80: 6182.148168 | O80: 132709.6942 | P80: 0.4861065911 | Q80: 0.4861065911 | S80: =IFERROR((I80+J80+K80+L80+M80)*$J$12+('Simulador para calculos'!I80+'Simulador para calculos'!J80+'Simulador para calculos'!K80+'Simulador para calculos'!L80+'Simulador para calculos'!M80)*NOT($J$12),"") -> 6182.148168 | T80: 1824 | U80: =IFERROR((1+'Simulación Cliente'!$E$21)^(T80/360),"") -> 2.304772212 | V80: 2682.33 | AB80: 59 | AC80: 2027-08-01 | AD80: 31 | AE80: 1795 | AF80: -2276303.654 | AG80: -1284.958236 | AH80: -28077.87738 | AI80: -1058.489137 | AJ80: 153.9469269 | AK80: 412357.84 | AL80: 382090.4622 | AM80: -2275018.696 | AN80: 2.533639876e-22 | AO80: 2.533639876e-22 | AS80: 59 | AT80: 2027-08-01 | AU80: 31 | AV80: 1795 | AW80: -189587.104 | AX80: 12501.5258 | AY80: -2338.529593 | AZ80: -88.15866443 | BA80: 153.9469269 | BB80: 412357.84 | BC80: 422586.6245 | BD80: -202088.6298 | BE80: 2.533639876e-22 | BF80: 2.533639876e-22 | BJ80: 59 | BK80: 2027-08-01 | BL80: 31 | BM80: 1795 | BN80: -2276303.654 | BO80: -1284.958236 | BP80: -28077.87738 | BQ80: -1058.489137 | BR80: 153.9469269 | BS80: 412357.84 | BT80: 382090.4622 | BU80: -2275018.696 | BV80: 2.533639876e-22 | BW80: 2.533639876e-22 | CA80: 59 | CB80: 2027-08-01 | CC80: 31 | CD80: 1795 | CE80: -189587.104 | CF80: 12501.5258 | CG80: -2338.529593 | CH80: -88.15866443 | CI80: 153.9469269 | CJ80: 412357.84 | CK80: 422586.6245 | CL80: -202088.6298 | CM80: 2.533639876e-22 | CN80: 2.533639876e-22 | CR80: 59 | CS80: 2027-08-01 | CT80: 31 | CU80: 1795 | CV80: -2276303.654 | CW80: -1284.958236 | CX80: -28077.87738 | CY80: -1058.489137 | CZ80: 153.9469269 | DA80: 412357.84 | DB80: 382090.4622 | DC80: -2275018.696 | DD80: 2.533639876e-22 | DE80: 2.533639876e-22
B81: 60 | C81: 2029-02-02 | D81: 5 | E81: 2029-02-02 | F81: 31 | G81: 1855 | H81: 132709.6942 | I81: 4545.193225 | J81: 1636.954944 | K81: 0 | L81: 0 | M81: 0 | N81: 6182.148168 | O81: 128164.501 | P81: 0.4801835957 | Q81: 0.4801835957 | S81: =IFERROR((I81+J81+K81+L81+M81)*$J$12+('Simulador para calculos'!I81+'Simulador para calculos'!J81+'Simulador para calculos'!K81+'Simulador para calculos'!L81+'Simulador para calculos'!M81)*NOT($J$12),"") -> 6182.148168 | T81: 1855 | U81: =IFERROR((1+'Simulación Cliente'!$E$21)^(T81/360),"") -> 2.337712477 | V81: 2644.53 | AB81: 60 | AC81: 2027-09-01 | AD81: 31 | AE81: 1826 | AF81: -2275018.696 | AG81: -1301.40552 | AH81: -28062.02761 | AI81: -1057.891627 | AJ81: 153.9469269 | AK81: 412357.84 | AL81: 382090.4622 | AM81: -2273717.291 | AN81: 1.073429061e-22 | AO81: 1.073429061e-22 | AS81: 60 | AT81: 2027-09-01 | AU81: 31 | AV81: 1826 | AW81: -202088.6298 | AX81: 12661.54357 | AY81: -2492.734111 | AZ81: -93.97191752 | BA81: 153.9469269 | BB81: 412357.84 | BC81: 422586.6245 | BD81: -214750.1733 | BE81: 1.073429061e-22 | BF81: 1.073429061e-22 | BJ81: 60 | BK81: 2027-09-01 | BL81: 31 | BM81: 1826 | BN81: -2275018.696 | BO81: -1301.40552 | BP81: -28062.02761 | BQ81: -1057.891627 | BR81: 153.9469269 | BS81: 412357.84 | BT81: 382090.4622 | BU81: -2273717.291 | BV81: 1.073429061e-22 | BW81: 1.073429061e-22 | CA81: 60 | CB81: 2027-09-01 | CC81: 31 | CD81: 1826 | CE81: -202088.6298 | CF81: 12661.54357 | CG81: -2492.734111 | CH81: -93.97191752 | CI81: 153.9469269 | CJ81: 412357.84 | CK81: 422586.6245 | CL81: -214750.1733 | CM81: 1.073429061e-22 | CN81: 1.073429061e-22 | CR81: 60 | CS81: 2027-09-01 | CT81: 31 | CU81: 1826 | CV81: -2275018.696 | CW81: -1301.40552 | CX81: -28062.02761 | CY81: -1057.891627 | CZ81: 153.9469269 | DA81: 412357.84 | DB81: 382090.4622 | DC81: -2273717.291 | DD81: 1.073429061e-22 | DE81: 1.073429061e-22
B82: 61 | C82: 2029-03-02 | D82: 5 | E82: 2029-03-02 | F82: 28 | G82: 1883 | H82: 128164.501 | I82: 4755.095366 | J82: 1427.052803 | K82: 0 | L82: 0 | M82: 0 | N82: 6182.148168 | O82: 123409.4056 | P82: 0.4748958487 | Q82: 0.4748958487 | S82: =IFERROR((I82+J82+K82+L82+M82)*$J$12+('Simulador para calculos'!I82+'Simulador para calculos'!J82+'Simulador para calculos'!K82+'Simulador para calculos'!L82+'Simulador para calculos'!M82)*NOT($J$12),"") -> 6182.148168 | T82: 1883 | U82: =IFERROR((1+'Simulación Cliente'!$E$21)^(T82/360),"") -> 2.367869442 | V82: 2610.85 | AB82: 61 | AC82: 2027-10-01 | AD82: 30 | AE82: 1856 | AF82: -2273717.291 | AG82: -2262.262846 | AH82: -27135.88913 | AI82: -1023.172781 | AJ82: 153.9469269 | AK82: 412357.84 | AL82: 382090.4622 | AM82: -2271455.028 | AN82: 4.675554804e-23 | AO82: 4.675554804e-23 | AS82: 61 | AT82: 2027-10-01 | AU82: 30 | AV82: 1856 | AW82: -214750.1733 | AX82: 12734.43091 | AY82: -2562.955789 | AZ82: -96.637578 | BA82: 153.9469269 | BB82: 412357.84 | BC82: 422586.6245 | BD82: -227484.6042 | BE82: 4.675554804e-23 | BF82: 4.675554804e-23 | BJ82: 61 | BK82: 2027-10-01 | BL82: 30 | BM82: 1856 | BN82: -2273717.291 | BO82: -2262.262846 | BP82: -27135.88913 | BQ82: -1023.172781 | BR82: 153.9469269 | BS82: 412357.84 | BT82: 382090.4622 | BU82: -2271455.028 | BV82: 4.675554804e-23 | BW82: 4.675554804e-23 | CA82: 61 | CB82: 2027-10-01 | CC82: 30 | CD82: 1856 | CE82: -214750.1733 | CF82: 12734.43091 | CG82: -2562.955789 | CH82: -96.637578 | CI82: 153.9469269 | CJ82: 412357.84 | CK82: 422586.6245 | CL82: -227484.6042 | CM82: 4.675554804e-23 | CN82: 4.675554804e-23 | CR82: 61 | CS82: 2027-10-01 | CT82: 30 | CU82: 1856 | CV82: -2273717.291 | CW82: -2262.262846 | CX82: -27135.88913 | CY82: -1023.172781 | CZ82: 153.9469269 | DA82: 412357.84 | DB82: 382090.4622 | DC82: -2271455.028 | DD82: 4.675554804e-23 | DE82: 4.675554804e-23
B83: 62 | C83: 2029-04-02 | D83: 1 | E83: 2029-04-02 | F83: 31 | G83: 1914 | H83: 123409.4056 | I83: 4659.910943 | J83: 1522.237225 | K83: 0 | L83: 0 | M83: 0 | N83: 6182.148168 | O83: 118749.4947 | P83: 0.4691094513 | Q83: 0.4691094513 | S83: =IFERROR((I83+J83+K83+L83+M83)*$J$12+('Simulador para calculos'!I83+'Simulador para calculos'!J83+'Simulador para calculos'!K83+'Simulador para calculos'!L83+'Simulador para calculos'!M83)*NOT($J$12),"") -> 6182.148168 | T83: 1914 | U83: =IFERROR((1+'Simulación Cliente'!$E$21)^(T83/360),"") -> 2.401711505 | V83: 2574.06 | AB83: 62 | AC83: 2027-11-01 | AD83: 31 | AE83: 1887 | AF83: -2271455.028 | AG83: -1347.019974 | AH83: -28018.07027 | AI83: -1056.234508 | AJ83: 153.9469269 | AK83: 412357.84 | AL83: 382090.4622 | AM83: -2270108.008 | AN83: 1.980895726e-23 | AO83: 1.980895726e-23 | AS83: 62 | AT83: 2027-11-01 | AU83: 31 | AV83: 1887 | AW83: -227484.6042 | AX83: 12986.60847 | AY83: -2805.989795 | AZ83: -105.7811342 | BA83: 153.9469269 | BB83: 412357.84 | BC83: 422586.6245 | BD83: -240471.2127 | BE83: 1.980895726e-23 | BF83: 1.980895726e-23 | BJ83: 62 | BK83: 2027-11-01 | BL83: 31 | BM83: 1887 | BN83: -2271455.028 | BO83: -1347.019974 | BP83: -28018.07027 | BQ83: -1056.234508 | BR83: 153.9469269 | BS83: 412357.84 | BT83: 382090.4622 | BU83: -2270108.008 | BV83: 1.980895726e-23 | BW83: 1.980895726e-23 | CA83: 62 | CB83: 2027-11-01 | CC83: 31 | CD83: 1887 | CE83: -227484.6042 | CF83: 12986.60847 | CG83: -2805.989795 | CH83: -105.7811342 | CI83: 153.9469269 | CJ83: 412357.84 | CK83: 422586.6245 | CL83: -240471.2127 | CM83: 1.980895726e-23 | CN83: 1.980895726e-23 | CR83: 62 | CS83: 2027-11-01 | CT83: 31 | CU83: 1887 | CV83: -2271455.028 | CW83: -1347.019974 | CX83: -28018.07027 | CY83: -1056.234508 | CZ83: 153.9469269 | DA83: 412357.84 | DB83: 382090.4622 | DC83: -2270108.008 | DD83: 1.980895726e-23 | DE83: 1.980895726e-23
B84: 63 | C84: 2029-05-02 | D84: 3 | E84: 2029-05-02 | F84: 30 | G84: 1944 | H84: 118749.4947 | I84: 4764.92135 | J84: 1417.226818 | K84: 0 | L84: 0 | M84: 0 | N84: 6182.148168 | O84: 113984.5733 | P84: 0.4635768505 | Q84: 0.4635768505 | S84: =IFERROR((I84+J84+K84+L84+M84)*$J$12+('Simulador para calculos'!I84+'Simulador para calculos'!J84+'Simulador para calculos'!K84+'Simulador para calculos'!L84+'Simulador para calculos'!M84)*NOT($J$12),"") -> 6182.148168 | T84: 1944 | U84: =IFERROR((1+'Simulación Cliente'!$E$21)^(T84/360),"") -> 2.434922344 | V84: 2538.95 | AB84: 63 | AC84: 2027-12-01 | AD84: 30 | AE84: 1917 | AF84: -2270108.008 | AG84: 379783.4998 | AH84: -27092.81381 | AI84: -1021.548604 | AJ84: 153.9469269 | AK84: 412357.84 | AL84: 764180.9243 | AM84: -2649891.508 | AN84: 1.725644827e-23 | AO84: 8.628224134e-24 | AS84: 63 | AT84: 2027-12-01 | AU84: 30 | AV84: 1917 | AW84: -240471.2127 | AX84: 13052.9755 | AY84: -2869.925911 | AZ84: -108.2120457 | BA84: 153.9469269 | BB84: 412357.84 | BC84: 422586.6245 | BD84: -253524.1882 | BE84: 8.628224134e-24 | BF84: 8.628224134e-24 | BJ84: 63 | BK84: 2027-12-01 | BL84: 30 | BM84: 1917 | BN84: -2270108.008 | BO84: 379783.4998 | BP84: -27092.81381 | BQ84: -1021.548604 | BR84: 153.9469269 | BS84: 412357.84 | BT84: 764180.9243 | BU84: -2649891.508 | BV84: 1.725644827e-23 | BW84: 8.628224134e-24 | CA84: 63 | CB84: 2027-12-01 | CC84: 30 | CD84: 1917 | CE84: -240471.2127 | CF84: 13052.9755 | CG84: -2869.925911 | CH84: -108.2120457 | CI84: 153.9469269 | CJ84: 412357.84 | CK84: 422586.6245 | CL84: -253524.1882 | CM84: 8.628224134e-24 | CN84: 8.628224134e-24 | CR84: 63 | CS84: 2027-12-01 | CT84: 30 | CU84: 1917 | CV84: -2270108.008 | CW84: 379783.4998 | CX84: -27092.81381 | CY84: -1021.548604 | CZ84: 153.9469269 | DA84: 412357.84 | DB84: 764180.9243 | DC84: -2649891.508 | DD84: 1.725644827e-23 | DE84: 8.628224134e-24
B85: 64 | C85: 2029-06-02 | D85: 6 | E85: 2029-06-02 | F85: 31 | G85: 1975 | H85: 113984.5733 | I85: 4776.164891 | J85: 1405.983278 | K85: 0 | L85: 0 | M85: 0 | N85: 6182.148168 | O85: 109208.4084 | P85: 0.4579283701 | Q85: 0.4579283701 | S85: =IFERROR((I85+J85+K85+L85+M85)*$J$12+('Simulador para calculos'!I85+'Simulador para calculos'!J85+'Simulador para calculos'!K85+'Simulador para calculos'!L85+'Simulador para calculos'!M85)*NOT($J$12),"") -> 6182.148168 | T85: 1975 | U85: =IFERROR((1+'Simulación Cliente'!$E$21)^(T85/360),"") -> 2.469722741 | V85: 2503.17 | AB85: 64 | AC85: 2028-01-01 | AD85: 31 | AE85: 1948 | AF85: -2649891.508 | AG85: 3496.913725 | AH85: -32686.02969 | AI85: -1232.208791 | AJ85: 153.9469269 | AK85: 412357.84 | AL85: 382090.4622 | AM85: -2653388.421 | AN85: 3.655526035e-24 | AO85: 3.655526035e-24 | AS85: 64 | AT85: 2028-01-01 | AU85: 31 | AV85: 1948 | AW85: -253524.1882 | AX85: 13319.91148 | AY85: -3127.184309 | AZ85: -117.8896316 | BA85: 153.9469269 | BB85: 412357.84 | BC85: 422586.6245 | BD85: -266844.0997 | BE85: 3.655526035e-24 | BF85: 3.655526035e-24 | BJ85: 64 | BK85: 2028-01-01 | BL85: 31 | BM85: 1948 | BN85: -2649891.508 | BO85: 3496.913725 | BP85: -32686.02969 | BQ85: -1232.208791 | BR85: 153.9469269 | BS85: 412357.84 | BT85: 382090.4622 | BU85: -2653388.421 | BV85: 3.655526035e-24 | BW85: 3.655526035e-24 | CA85: 64 | CB85: 2028-01-01 | CC85: 31 | CD85: 1948 | CE85: -253524.1882 | CF85: 13319.91148 | CG85: -3127.184309 | CH85: -117.8896316 | CI85: 153.9469269 | CJ85: 412357.84 | CK85: 422586.6245 | CL85: -266844.0997 | CM85: 3.655526035e-24 | CN85: 3.655526035e-24 | CR85: 64 | CS85: 2028-01-01 | CT85: 31 | CU85: 1948 | CV85: -2649891.508 | CW85: 3496.913725 | CX85: -32686.02969 | CY85: -1232.208791 | CZ85: 153.9469269 | DA85: 412357.84 | DB85: 382090.4622 | DC85: -2653388.421 | DD85: 3.655526035e-24 | DE85: 3.655526035e-24
B86: 65 | C86: 2029-07-02 | D86: 1 | E86: 2029-07-02 | F86: 30 | G86: 2005 | H86: 109208.4084 | I86: 4878.790326 | J86: 1303.357843 | K86: 0 | L86: 0 | M86: =IF(B86>C$6,"",C$15) -> 0 | N86: 6182.148168 | O86: 104329.6181 | P86: 0.4525276372 | Q86: 0.4525276372 | S86: =IFERROR((I86+J86+K86+L86+M86)*$J$12+('Simulador para calculos'!I86+'Simulador para calculos'!J86+'Simulador para calculos'!K86+'Simulador para calculos'!L86+'Simulador para calculos'!M86)*NOT($J$12),"") -> 6182.148168 | T86: 2005 | U86: =IFERROR((1+'Simulación Cliente'!$E$21)^(T86/360),"") -> 2.503874038 | V86: 2469.03 | AB86: 65 | AC86: 2028-02-01 | AD86: 31 | AE86: 1979 | AF86: -2653388.421 | AG86: 3541.673729 | AH86: -32729.16361 | AI86: =IF(AB86>AC$6,"",((1+AC$12)^(AD86/30)-1)*AF86) -> -1233.834868 | AJ86: =IF(AB86>AC$6,"",AC$4*AC$14) -> 153.9469269 | AK86: =IF(AB86>AC$6,"",AC$15) -> 412357.84 | AL86: =IF(AB86>AC$6,"",IF(AB86=AC$6,AF86+AH86+AI86+AJ86+AK86,IF(AND(AC$9=2,MONTH(AC86)=7),2*AC$17,IF(AND(AC$10=2,MONTH(AC86)=12),2*AC$17,AC$17)))) -> 382090.4622 | AM86: =IF(AB86>AC$6,"",AF86-AG86) -> -2656930.095 | AN86: 1.548739391e-24 | AO86: 1.548739391e-24 | AS86: 65 | AT86: 2028-02-01 | AU86: 31 | AV86: 1979 | AW86: -266844.0997 | AX86: 13490.40447 | AY86: -3291.483496 | AZ86: =IF(AS86>AT$6,"",((1+AT$12)^(AU86/30)-1)*AW86) -> -124.0834368 | BA86: =IF(AS86>AT$6,"",AT$4*AT$14) -> 153.9469269 | BB86: =IF(AS86>AT$6,"",AT$15) -> 412357.84 | BC86: =IF(AS86>AT$6,"",IF(AS86=AT$6,AW86+AY86+AZ86+BA86+BB86,IF(AND(AT$9=2,MONTH(AT86)=7),2*AT$17,IF(AND(AT$10=2,MONTH(AT86)=12),2*AT$17,AT$17)))) -> 422586.6245 | BD86: =IF(AS86>AT$6,"",AW86-AX86) -> -280334.5042 | BE86: 1.548739391e-24 | BF86: 1.548739391e-24 | BJ86: 65 | BK86: 2028-02-01 | BL86: 31 | BM86: 1979 | BN86: -2653388.421 | BO86: 3541.673729 | BP86: -32729.16361 | BQ86: =IF(BJ86>BK$6,"",((1+BK$12)^(BL86/30)-1)*BN86) -> -1233.834868 | BR86: =IF(BJ86>BK$6,"",BK$4*BK$14) -> 153.9469269 | BS86: =IF(BJ86>BK$6,"",BK$15) -> 412357.84 | BT86: =IF(BJ86>BK$6,"",IF(BJ86=BK$6,BN86+BP86+BQ86+BR86+BS86,IF(AND(BK$9=2,MONTH(BK86)=7),2*BK$17,IF(AND(BK$10=2,MONTH(BK86)=12),2*BK$17,BK$17)))) -> 382090.4622 | BU86: =IF(BJ86>BK$6,"",BN86-BO86) -> -2656930.095 | BV86: 1.548739391e-24 | BW86: 1.548739391e-24 | CA86: 65 | CB86: 2028-02-01 | CC86: 31 | CD86: 1979 | CE86: -266844.0997 | CF86: 13490.40447 | CG86: -3291.483496 | CH86: =IF(CA86>CB$6,"",((1+CB$12)^(CC86/30)-1)*CE86) -> -124.0834368 | CI86: =IF(CA86>CB$6,"",CB$4*CB$14) -> 153.9469269 | CJ86: =IF(CA86>CB$6,"",CB$15) -> 412357.84 | CK86: =IF(CA86>CB$6,"",IF(CA86=CB$6,CE86+CG86+CH86+CI86+CJ86,IF(AND(CB$9=2,MONTH(CB86)=7),2*CB$17,IF(AND(CB$10=2,MONTH(CB86)=12),2*CB$17,CB$17)))) -> 422586.6245 | CL86: =IF(CA86>CB$6,"",CE86-CF86) -> -280334.5042 | CM86: 1.548739391e-24 | CN86: 1.548739391e-24 | CR86: 65 | CS86: 2028-02-01 | CT86: 31 | CU86: 1979 | CV86: -2653388.421 | CW86: 3541.673729 | CX86: -32729.16361 | CY86: =IF(CR86>CS$6,"",((1+CS$12)^(CT86/30)-1)*CV86) -> -1233.834868 | CZ86: =IF(CR86>CS$6,"",CS$4*CS$14) -> 153.9469269 | DA86: =IF(CR86>CS$6,"",CS$15) -> 412357.84 | DB86: =IF(CR86>CS$6,"",IF(CR86=CS$6,CV86+CX86+CY86+CZ86+DA86,IF(AND(CS$9=2,MONTH(CS86)=7),2*CS$17,IF(AND(CS$10=2,MONTH(CS86)=12),2*CS$17,CS$17)))) -> 382090.4622 | DC86: =IF(CR86>CS$6,"",CV86-CW86) -> -2656930.095 | DD86: 1.548739391e-24 | DE86: 1.548739391e-24
B87: 66 | C87: 2029-08-02 | D87: =IF(B87<=$C$6,WEEKDAY(C87,2),"") -> 4 | E87: =IF(D87=7,C87+1,C87) -> 2029-08-02 | F87: 31 | G87: =IFERROR(F87+G86,"") -> 2036 | H87: =IF(B87>C$6,"",O86) -> 104329.6181 | I87: =IF(B87>C$6,"",N87-M87-L87-K87-J87) -> 4895.257371 | J87: 1286.890797 | K87: =IF(B87>C$6,"",0) -> 0 | L87: =IF(B87>C$6,"",D$4*C$14) -> 0 | M87: 0 | N87: =IF(B87>C$6,"",IF(B87=C$6,H87+J87+K87+L87+M87,IF(AND(C$9=2,MONTH(C87)=7),2*C$17,IF(AND(C$10=2,MONTH(C87)=12),2*C$17,C$17)))) -> 6182.148168 | O87: =IF(B87>C$6,"",H87-I87) -> 99434.36073 | P87: =IFERROR(IF(AND(MONTH(C87)=7,C$9=2),2/(1+C$11)^(G87/360),IF(AND(MONTH(C87)=12,C$10=2),2/(1+C$11)^(G87/360),1/(1+C$11)^(G87/360))),"") -> 0.4470137866 | Q87: =IFERROR(1/(1+C$11)^(G87/360),"") -> 0.4470137866 | S87: =IFERROR((I87+J87+K87+L87+M87)*$J$12+('Simulador para calculos'!I87+'Simulador para calculos'!J87+'Simulador para calculos'!K87+'Simulador para calculos'!L87+'Simulador para calculos'!M87)*NOT($J$12),"") -> 6182.148168 | T87: =G87 -> 2036 | U87: =IFERROR((1+'Simulación Cliente'!$E$21)^(T87/360),"") -> 2.539659906 | V87: =IFERROR(ROUND(S87/U87,2),"") -> 2434.24 | AB87: 66 | AC87: =IF(AB87>AC$6,"",EDATE(AC$22,AB86)) -> 2028-03-01 | AD87: 29 | AE87: =IFERROR(AD87+AE86,"") -> 2008 | AF87: =IF(AB87>AC$6,"",AM86) -> -2656930.095 | AG87: 1380.757517 | AH87: -30646.32635 | AI87: -1155.755924 | AJ87: 153.9469269 | AK87: 412357.84 | AL87: 382090.4622 | AM87: -2658310.853 | AN87: =IFERROR(IF(AND(MONTH(AC87)=7,AC$9=2),2/(1+AC$13)^(AE87/360),IF(AND(MONTH(AC87)=12,AC$10=2),2/(1+AC$13)^(AE87/360),1/(1+AC$13)^(AE87/360))),"") -> 6.935367637e-25 | AO87: =IFERROR(1/(1+AC$13)^(AE87/360),"") -> 6.935367637e-25 | AS87: 66 | AT87: =IF(AS87>AT$6,"",EDATE(AT$22,AS86)) -> 2028-03-01 | AU87: 29 | AV87: =IFERROR(AU87+AV86,"") -> 2008 | AW87: =IF(AS87>AT$6,"",BD86) -> -280334.5042 | AX87: 13430.2969 | AY87: -3233.514768 | AZ87: -121.9445949 | BA87: 153.9469269 | BB87: 412357.84 | BC87: 422586.6245 | BD87: -293764.8011 | BE87: =IFERROR(IF(AND(MONTH(AT87)=7,AT$9=2),2/(1+AT$13)^(AV87/360),IF(AND(MONTH(AT87)=12,AT$10=2),2/(1+AT$13)^(AV87/360),1/(1+AT$13)^(AV87/360))),"") -> 6.935367637e-25 | BF87: =IFERROR(1/(1+AT$13)^(AV87/360),"") -> 6.935367637e-25 | BJ87: 66 | BK87: =IF(BJ87>BK$6,"",EDATE(BK$22,BJ86)) -> 2028-03-01 | BL87: 29 | BM87: =IFERROR(BL87+BM86,"") -> 2008 | BN87: =IF(BJ87>BK$6,"",BU86) -> -2656930.095 | BO87: 1380.757517 | BP87: -30646.32635 | BQ87: -1155.755924 | BR87: 153.9469269 | BS87: 412357.84 | BT87: 382090.4622 | BU87: -2658310.853 | BV87: =IFERROR(IF(AND(MONTH(BK87)=7,BK$9=2),2/(1+BK$13)^(BM87/360),IF(AND(MONTH(BK87)=12,BK$10=2),2/(1+BK$13)^(BM87/360),1/(1+BK$13)^(BM87/360))),"") -> 6.935367637e-25 | BW87: =IFERROR(1/(1+BK$13)^(BM87/360),"") -> 6.935367637e-25 | CA87: 66 | CB87: =IF(CA87>CB$6,"",EDATE(CB$22,CA86)) -> 2028-03-01 | CC87: 29 | CD87: =IFERROR(CC87+CD86,"") -> 2008 | CE87: =IF(CA87>CB$6,"",CL86) -> -280334.5042 | CF87: 13430.2969 | CG87: -3233.514768 | CH87: -121.9445949 | CI87: 153.9469269 | CJ87: 412357.84 | CK87: 422586.6245 | CL87: -293764.8011 | CM87: =IFERROR(IF(AND(MONTH(CB87)=7,CB$9=2),2/(1+CB$13)^(CD87/360),IF(AND(MONTH(CB87)=12,CB$10=2),2/(1+CB$13)^(CD87/360),1/(1+CB$13)^(CD87/360))),"") -> 6.935367637e-25 | CN87: =IFERROR(1/(1+CB$13)^(CD87/360),"") -> 6.935367637e-25 | CR87: 66 | CS87: =IF(CR87>CS$6,"",EDATE(CS$22,CR86)) -> 2028-03-01 | CT87: 29 | CU87: =IFERROR(CT87+CU86,"") -> 2008 | CV87: =IF(CR87>CS$6,"",DC86) -> -2656930.095 | CW87: 1380.757517 | CX87: -30646.32635 | CY87: -1155.755924 | CZ87: 153.9469269 | DA87: 412357.84 | DB87: 382090.4622 | DC87: -2658310.853 | DD87: =IFERROR(IF(AND(MONTH(CS87)=7,CS$9=2),2/(1+CS$13)^(CU87/360),IF(AND(MONTH(CS87)=12,CS$10=2),2/(1+CS$13)^(CU87/360),1/(1+CS$13)^(CU87/360))),"") -> 6.935367637e-25 | DE87: =IFERROR(1/(1+CS$13)^(CU87/360),"") -> 6.935367637e-25
B88: 67 | C88: =IF(B88>C$6,"",EDATE(C$22,B87)) -> 2029-09-02 | D88: 7 | E88: 2029-09-03 | F88: =IF(B88>C$6,"",E88-E87) -> 32 | G88: 2068 | H88: 99434.36073 | I88: 4915.823987 | J88: =IF(B88>C$6,"",((1+C$11)^(F88/360)-1)*H88) -> 1266.324182 | K88: 0 | L88: 0 | M88: 0 | N88: 6182.148168 | O88: 94518.53674 | P88: 0.4413925302 | Q88: 0.4413925302 | S88: =IFERROR((I88+J88+K88+L88+M88)*$J$12+('Simulador para calculos'!I88+'Simulador para calculos'!J88+'Simulador para calculos'!K88+'Simulador para calculos'!L88+'Simulador para calculos'!M88)*NOT($J$12),"") -> 6182.148168 | T88: 2068 | U88: =IFERROR((1+'Simulación Cliente'!$E$21)^(T88/360),"") -> 2.577136713 | V88: 2398.84 | AB88: 67 | AC88: 2028-04-01 | AD88: 31 | AE88: 2039 | AF88: -2658310.853 | AG88: 3604.680156 | AH88: =IF(AB88>AC$6,"",((1+AC$11)^(AD88/360)-1)*AF88) -> -32789.88109 | AI88: -1236.123816 | AJ88: 153.9469269 | AK88: 412357.84 | AL88: 382090.4622 | AM88: -2661915.533 | AN88: 2.938312284e-25 | AO88: 2.938312284e-25 | AS88: 67 | AT88: 2028-04-01 | AU88: 31 | AV88: 2039 | AW88: -293764.8011 | AX88: 13834.98566 | AY88: =IF(AS88>AT$6,"",((1+AT$11)^(AU88/360)-1)*AW88) -> -3623.546466 | AZ88: -136.6016569 | BA88: 153.9469269 | BB88: 412357.84 | BC88: 422586.6245 | BD88: -307599.7867 | BE88: 2.938312284e-25 | BF88: 2.938312284e-25 | BJ88: 67 | BK88: 2028-04-01 | BL88: 31 | BM88: 2039 | BN88: -2658310.853 | BO88: 3604.680156 | BP88: =IF(BJ88>BK$6,"",((1+BK$11)^(BL88/360)-1)*BN88) -> -32789.88109 | BQ88: -1236.123816 | BR88: 153.9469269 | BS88: 412357.84 | BT88: 382090.4622 | BU88: -2661915.533 | BV88: 2.938312284e-25 | BW88: 2.938312284e-25 | CA88: 67 | CB88: 2028-04-01 | CC88: 31 | CD88: 2039 | CE88: -293764.8011 | CF88: 13834.98566 | CG88: =IF(CA88>CB$6,"",((1+CB$11)^(CC88/360)-1)*CE88) -> -3623.546466 | CH88: -136.6016569 | CI88: 153.9469269 | CJ88: 412357.84 | CK88: 422586.6245 | CL88: -307599.7867 | CM88: 2.938312284e-25 | CN88: 2.938312284e-25 | CR88: 67 | CS88: 2028-04-01 | CT88: 31 | CU88: 2039 | CV88: -2658310.853 | CW88: 3604.680156 | CX88: =IF(CR88>CS$6,"",((1+CS$11)^(CT88/360)-1)*CV88) -> -32789.88109 | CY88: -1236.123816 | CZ88: 153.9469269 | DA88: 412357.84 | DB88: 382090.4622 | DC88: -2661915.533 | DD88: 2.938312284e-25 | DE88: 2.938312284e-25
B89: 68 | C89: 2029-10-02 | D89: 2 | E89: 2029-10-02 | F89: 29 | G89: 2097 | H89: 94518.53674 | I89: 5091.92531 | J89: 1090.222858 | K89: 0 | L89: 0 | M89: 0 | N89: 6182.148168 | O89: 89426.61143 | P89: 0.4363593488 | Q89: 0.4363593488 | S89: =IFERROR((I89+J89+K89+L89+M89)*$J$12+('Simulador para calculos'!I89+'Simulador para calculos'!J89+'Simulador para calculos'!K89+'Simulador para calculos'!L89+'Simulador para calculos'!M89)*NOT($J$12),"") -> 6182.148168 | T89: 2097 | U89: =IFERROR((1+'Simulación Cliente'!$E$21)^(T89/360),"") -> 2.61157754 | V89: 2367.21 | AB89: 68 | AC89: 2028-05-01 | AD89: =IF(AB89>AC$6,"",AC89-AC88) -> 30 | AE89: 2069 | AF89: -2661915.533 | AG89: =IF(AB89>AC$6,"",AL89-AK89-AJ89-AI89-AH89) -> 2545.414159 | AH89: -31768.87692 | AI89: -1197.86199 | AJ89: 153.9469269 | AK89: 412357.84 | AL89: 382090.4622 | AM89: -2664460.947 | AN89: 1.279846113e-25 | AO89: 1.279846113e-25 | AS89: 68 | AT89: 2028-05-01 | AU89: =IF(AS89>AT$6,"",AT89-AT88) -> 30 | AV89: 2069 | AW89: -307599.7867 | AX89: =IF(AS89>AT$6,"",BC89-BB89-BA89-AZ89-AY89) -> 13884.33553 | AY89: -3671.078081 | AZ89: -138.419904 | BA89: 153.9469269 | BB89: 412357.84 | BC89: 422586.6245 | BD89: -321484.1223 | BE89: 1.279846113e-25 | BF89: 1.279846113e-25 | BJ89: 68 | BK89: 2028-05-01 | BL89: =IF(BJ89>BK$6,"",BK89-BK88) -> 30 | BM89: 2069 | BN89: -2661915.533 | BO89: =IF(BJ89>BK$6,"",BT89-BS89-BR89-BQ89-BP89) -> 2545.414159 | BP89: -31768.87692 | BQ89: -1197.86199 | BR89: 153.9469269 | BS89: 412357.84 | BT89: 382090.4622 | BU89: -2664460.947 | BV89: 1.279846113e-25 | BW89: 1.279846113e-25 | CA89: 68 | CB89: 2028-05-01 | CC89: =IF(CA89>CB$6,"",CB89-CB88) -> 30 | CD89: 2069 | CE89: -307599.7867 | CF89: =IF(CA89>CB$6,"",CK89-CJ89-CI89-CH89-CG89) -> 13884.33553 | CG89: -3671.078081 | CH89: -138.419904 | CI89: 153.9469269 | CJ89: 412357.84 | CK89: 422586.6245 | CL89: -321484.1223 | CM89: 1.279846113e-25 | CN89: 1.279846113e-25 | CR89: 68 | CS89: 2028-05-01 | CT89: =IF(CR89>CS$6,"",CS89-CS88) -> 30 | CU89: 2069 | CV89: -2661915.533 | CW89: =IF(CR89>CS$6,"",DB89-DA89-CZ89-CY89-CX89) -> 2545.414159 | CX89: -31768.87692 | CY89: -1197.86199 | CZ89: 153.9469269 | DA89: 412357.84 | DB89: 382090.4622 | DC89: -2664460.947 | DD89: 1.279846113e-25 | DE89: 1.279846113e-25
B90: 69 | C90: 2029-11-02 | D90: 5 | E90: 2029-11-02 | F90: 31 | G90: 2128 | H90: 89426.61143 | I90: 5079.08381 | J90: 1103.064358 | K90: 0 | L90: 0 | M90: 0 | N90: 6182.148168 | O90: 84347.52762 | P90: 0.4310425017 | Q90: 0.4310425017 | S90: =IFERROR((I90+J90+K90+L90+M90)*$J$12+('Simulador para calculos'!I90+'Simulador para calculos'!J90+'Simulador para calculos'!K90+'Simulador para calculos'!L90+'Simulador para calculos'!M90)*NOT($J$12),"") -> 6182.148168 | T90: 2128 | U90: =IFERROR((1+'Simulación Cliente'!$E$21)^(T90/360),"") -> 2.648902728 | V90: 2333.85 | AB90: 69 | AC90: 2028-06-01 | AD90: 31 | AE90: 2100 | AF90: -2664460.947 | AG90: 3683.400498 | AH90: -32865.74162 | AI90: -1238.983631 | AJ90: 153.9469269 | AK90: 412357.84 | AL90: 382090.4622 | AM90: -2668144.347 | AN90: 5.422333397e-26 | AO90: 5.422333397e-26 | AS90: 69 | AT90: 2028-06-01 | AU90: 31 | AV90: 2100 | AW90: -321484.1223 | AX90: 14189.78908 | AY90: -3965.460297 | AZ90: -149.4912379 | BA90: 153.9469269 | BB90: 412357.84 | BC90: 422586.6245 | BD90: -335673.9113 | BE90: 5.422333397e-26 | BF90: 5.422333397e-26 | BJ90: 69 | BK90: 2028-06-01 | BL90: 31 | BM90: 2100 | BN90: -2664460.947 | BO90: 3683.400498 | BP90: -32865.74162 | BQ90: -1238.983631 | BR90: 153.9469269 | BS90: 412357.84 | BT90: 382090.4622 | BU90: -2668144.347 | BV90: 5.422333397e-26 | BW90: 5.422333397e-26 | CA90: 69 | CB90: 2028-06-01 | CC90: 31 | CD90: 2100 | CE90: -321484.1223 | CF90: 14189.78908 | CG90: -3965.460297 | CH90: -149.4912379 | CI90: 153.9469269 | CJ90: 412357.84 | CK90: 422586.6245 | CL90: -335673.9113 | CM90: 5.422333397e-26 | CN90: 5.422333397e-26 | CR90: 69 | CS90: 2028-06-01 | CT90: 31 | CU90: 2100 | CV90: -2664460.947 | CW90: 3683.400498 | CX90: -32865.74162 | CY90: -1238.983631 | CZ90: 153.9469269 | DA90: 412357.84 | DB90: 382090.4622 | DC90: -2668144.347 | DD90: 5.422333397e-26 | DE90: 5.422333397e-26
B91: 70 | C91: 2029-12-02 | D91: 7 | E91: 2029-12-03 | F91: 31 | G91: 2159 | H91: 84347.52762 | I91: 5141.733576 | J91: 1040.414592 | K91: 0 | L91: 0 | M91: 0 | N91: 6182.148168 | O91: 79205.79404 | P91: 0.4257904381 | Q91: 0.4257904381 | S91: =IFERROR((I91+J91+K91+L91+M91)*$J$12+('Simulador para calculos'!I91+'Simulador para calculos'!J91+'Simulador para calculos'!K91+'Simulador para calculos'!L91+'Simulador para calculos'!M91)*NOT($J$12),"") -> 6182.148168 | T91: 2159 | U91: =IFERROR((1+'Simulación Cliente'!$E$21)^(T91/360),"") -> 2.686761376 | V91: 2300.97 | AB91: 70 | AC91: 2028-07-01 | AD91: 30 | AE91: 2130 | AF91: -2668144.347 | AG91: 384713.0177 | AH91: -31843.21529 | AI91: -1200.664956 | AJ91: 153.9469269 | AK91: 412357.84 | AL91: 764180.9243 | AM91: -3052857.365 | AN91: 4.723631563e-26 | AO91: 2.361815781e-26 | AS91: 70 | AT91: 2028-07-01 | AU91: 30 | AV91: 2130 | AW91: -335673.9113 | AX91: 14232.02212 | AY91: -4006.131316 | AZ91: -151.0532601 | BA91: 153.9469269 | BB91: 412357.84 | BC91: 422586.6245 | BD91: -349905.9334 | BE91: 2.361815781e-26 | BF91: 2.361815781e-26 | BJ91: 70 | BK91: 2028-07-01 | BL91: 30 | BM91: 2130 | BN91: -2668144.347 | BO91: 384713.0177 | BP91: -31843.21529 | BQ91: -1200.664956 | BR91: 153.9469269 | BS91: 412357.84 | BT91: 764180.9243 | BU91: -3052857.365 | BV91: 4.723631563e-26 | BW91: 2.361815781e-26 | CA91: 70 | CB91: 2028-07-01 | CC91: 30 | CD91: 2130 | CE91: -335673.9113 | CF91: 14232.02212 | CG91: -4006.131316 | CH91: -151.0532601 | CI91: 153.9469269 | CJ91: 412357.84 | CK91: 422586.6245 | CL91: -349905.9334 | CM91: 2.361815781e-26 | CN91: 2.361815781e-26 | CR91: 70 | CS91: 2028-07-01 | CT91: 30 | CU91: 2130 | CV91: -2668144.347 | CW91: 384713.0177 | CX91: -31843.21529 | CY91: -1200.664956 | CZ91: 153.9469269 | DA91: 412357.84 | DB91: 764180.9243 | DC91: -3052857.365 | DD91: 4.723631563e-26 | DE91: 2.361815781e-26
B92: 71 | C92: 2030-01-02 | D92: 3 | E92: 2030-01-02 | F92: 30 | G92: 2189 | H92: 79205.79404 | I92: 5236.8593 | J92: 945.2888687 | K92: 0 | L92: 0 | M92: 0 | N92: 6182.148168 | O92: 73968.93474 | P92: 0.4207687347 | Q92: 0.4207687347 | S92: =IFERROR((I92+J92+K92+L92+M92)*$J$12+('Simulador para calculos'!I92+'Simulador para calculos'!J92+'Simulador para calculos'!K92+'Simulador para calculos'!L92+'Simulador para calculos'!M92)*NOT($J$12),"") -> 6182.148168 | T92: 2189 | U92: =IFERROR((1+'Simulación Cliente'!$E$21)^(T92/360),"") -> 2.723913881 | V92: 2269.58 | AB92: 71 | AC92: 2028-08-01 | AD92: 31 | AE92: 2161 | AF92: -3052857.365 | AG92: 8654.820006 | AH92: -37656.55544 | AI92: -1419.58932 | AJ92: 153.9469269 | AK92: 412357.84 | AL92: 382090.4622 | AM92: -3061512.185 | AN92: 1.000632221e-26 | AO92: 1.000632221e-26 | AS92: 71 | AT92: 2028-08-01 | AU92: 31 | AV92: 2161 | AW92: -349905.9334 | AX92: 14553.58426 | AY92: -4316.03924 | AZ92: -162.7074792 | BA92: 153.9469269 | BB92: 412357.84 | BC92: 422586.6245 | BD92: -364459.5177 | BE92: 1.000632221e-26 | BF92: 1.000632221e-26 | BJ92: 71 | BK92: 2028-08-01 | BL92: 31 | BM92: 2161 | BN92: -3052857.365 | BO92: 8654.820006 | BP92: -37656.55544 | BQ92: -1419.58932 | BR92: 153.9469269 | BS92: 412357.84 | BT92: 382090.4622 | BU92: -3061512.185 | BV92: 1.000632221e-26 | BW92: 1.000632221e-26 | CA92: 71 | CB92: 2028-08-01 | CC92: 31 | CD92: 2161 | CE92: -349905.9334 | CF92: 14553.58426 | CG92: -4316.03924 | CH92: -162.7074792 | CI92: 153.9469269 | CJ92: 412357.84 | CK92: 422586.6245 | CL92: -364459.5177 | CM92: 1.000632221e-26 | CN92: 1.000632221e-26 | CR92: 71 | CS92: 2028-08-01 | CT92: 31 | CU92: 2161 | CV92: -3052857.365 | CW92: 8654.820006 | CX92: -37656.55544 | CY92: -1419.58932 | CZ92: 153.9469269 | DA92: 412357.84 | DB92: 382090.4622 | DC92: -3061512.185 | DD92: 1.000632221e-26 | DE92: 1.000632221e-26
B93: 72 | C93: 2030-02-02 | D93: 6 | E93: 2030-02-02 | F93: 31 | G93: 2220 | H93: 73968.93474 | I93: 5269.752023 | J93: 912.3961453 | K93: 0 | L93: 0 | M93: 0 | N93: 6182.148168 | O93: 68699.18272 | P93: 0.4156418524 | Q93: 0.4156418524 | S93: =IFERROR((I93+J93+K93+L93+M93)*$J$12+('Simulador para calculos'!I93+'Simulador para calculos'!J93+'Simulador para calculos'!K93+'Simulador para calculos'!L93+'Simulador para calculos'!M93)*NOT($J$12),"") -> 6182.148168 | T93: 2220 | U93: =IFERROR((1+'Simulación Cliente'!$E$21)^(T93/360),"") -> 2.762844602 | V93: 2237.6 | AB93: 72 | AC93: 2028-09-01 | AD93: 31 | AE93: 2192 | AF93: -3061512.185 | AG93: 8765.600484 | AH93: -37763.3114 | AI93: -1423.613842 | AJ93: 153.9469269 | AK93: 412357.84 | AL93: 382090.4622 | AM93: -3070277.786 | AN93: 4.239385857e-27 | AO93: 4.239385857e-27 | AS93: 72 | AT93: 2028-09-01 | AU93: 31 | AV93: 2192 | AW93: -364459.5177 | AX93: 14739.86809 | AY93: -4495.555603 | AZ93: -169.4749466 | BA93: 153.9469269 | BB93: 412357.84 | BC93: 422586.6245 | BD93: -379199.3858 | BE93: 4.239385857e-27 | BF93: 4.239385857e-27 | BJ93: 72 | BK93: 2028-09-01 | BL93: 31 | BM93: 2192 | BN93: -3061512.185 | BO93: 8765.600484 | BP93: -37763.3114 | BQ93: -1423.613842 | BR93: 153.9469269 | BS93: 412357.84 | BT93: 382090.4622 | BU93: -3070277.786 | BV93: 4.239385857e-27 | BW93: 4.239385857e-27 | CA93: 72 | CB93: 2028-09-01 | CC93: 31 | CD93: 2192 | CE93: -364459.5177 | CF93: 14739.86809 | CG93: -4495.555603 | CH93: -169.4749466 | CI93: 153.9469269 | CJ93: 412357.84 | CK93: 422586.6245 | CL93: -379199.3858 | CM93: 4.239385857e-27 | CN93: 4.239385857e-27 | CR93: 72 | CS93: 2028-09-01 | CT93: 31 | CU93: 2192 | CV93: -3061512.185 | CW93: 8765.600484 | CX93: -37763.3114 | CY93: -1423.613842 | CZ93: 153.9469269 | DA93: 412357.84 | DB93: 382090.4622 | DC93: -3070277.786 | DD93: 4.239385857e-27 | DE93: 4.239385857e-27
B94: 73 | C94: 2030-03-02 | D94: 6 | E94: 2030-03-02 | F94: 28 | G94: 2248 | H94: 68699.18272 | I94: 5417.214349 | J94: 764.9338194 | K94: 0 | L94: 0 | M94: 0 | N94: 6182.148168 | O94: 63281.96837 | P94: 0.4110648344 | Q94: 0.4110648344 | S94: =IFERROR((I94+J94+K94+L94+M94)*$J$12+('Simulador para calculos'!I94+'Simulador para calculos'!J94+'Simulador para calculos'!K94+'Simulador para calculos'!L94+'Simulador para calculos'!M94)*NOT($J$12),"") -> 6182.148168 | T94: 2248 | U94: =IFERROR((1+'Simulación Cliente'!$E$21)^(T94/360),"") -> 2.798485858 | V94: 2209.1 | AB94: 73 | AC94: 2028-10-01 | AD94: 30 | AE94: 2222 | AF94: -3070277.786 | AG94: 7602.814217 | AH94: -36642.51397 | AI94: -1381.625004 | AJ94: 153.9469269 | AK94: 412357.84 | AL94: 382090.4622 | AM94: -3077880.6 | AN94: 1.846557134e-27 | AO94: 1.846557134e-27 | AS94: 73 | AT94: 2028-10-01 | AU94: 30 | AV94: 2222 | AW94: -379199.3858 | AX94: 14771.06738 | AY94: -4525.590113 | AZ94: -170.6397236 | BA94: 153.9469269 | BB94: 412357.84 | BC94: 422586.6245 | BD94: -393970.4532 | BE94: 1.846557134e-27 | BF94: 1.846557134e-27 | BJ94: 73 | BK94: 2028-10-01 | BL94: 30 | BM94: 2222 | BN94: -3070277.786 | BO94: 7602.814217 | BP94: -36642.51397 | BQ94: -1381.625004 | BR94: 153.9469269 | BS94: 412357.84 | BT94: 382090.4622 | BU94: -3077880.6 | BV94: 1.846557134e-27 | BW94: 1.846557134e-27 | CA94: 73 | CB94: 2028-10-01 | CC94: 30 | CD94: 2222 | CE94: -379199.3858 | CF94: 14771.06738 | CG94: -4525.590113 | CH94: -170.6397236 | CI94: 153.9469269 | CJ94: 412357.84 | CK94: 422586.6245 | CL94: -393970.4532 | CM94: 1.846557134e-27 | CN94: 1.846557134e-27 | CR94: 73 | CS94: 2028-10-01 | CT94: 30 | CU94: 2222 | CV94: -3070277.786 | CW94: 7602.814217 | CX94: -36642.51397 | CY94: -1381.625004 | CZ94: 153.9469269 | DA94: 412357.84 | DB94: 382090.4622 | DC94: -3077880.6 | DD94: 1.846557134e-27 | DE94: 1.846557134e-27
B95: 74 | C95: 2030-04-02 | D95: 2 | E95: 2030-04-02 | F95: 31 | G95: 2279 | H95: 63281.96837 | I95: 5401.574213 | J95: 780.5739559 | K95: 0 | L95: 0 | M95: 0 | N95: 6182.148168 | O95: 57880.39416 | P95: 0.4060561899 | Q95: 0.4060561899 | S95: =IFERROR((I95+J95+K95+L95+M95)*$J$12+('Simulador para calculos'!I95+'Simulador para calculos'!J95+'Simulador para calculos'!K95+'Simulador para calculos'!L95+'Simulador para calculos'!M95)*NOT($J$12),"") -> 6182.148168 | T95: 2279 | U95: =IFERROR((1+'Simulación Cliente'!$E$21)^(T95/360),"") -> 2.838482377 | V95: 2177.98 | AB95: 74 | AC95: 2028-11-01 | AD95: 31 | AE95: 2253 | AF95: -3077880.6 | AG95: 8975.11389 | AH95: -37965.21343 | AI95: -1431.225211 | AJ95: 153.9469269 | AK95: 412357.84 | AL95: 382090.4622 | AM95: -3086855.714 | AN95: 7.823322129e-28 | AO95: 7.823322129e-28 | AS95: 74 | AT95: 2028-11-01 | AU95: 31 | AV95: 2253 | AW95: -393970.4532 | AX95: 15117.60391 | AY95: -4859.568737 | AZ95: -183.1976345 | BA95: 153.9469269 | BB95: 412357.84 | BC95: 422586.6245 | BD95: -409088.0571 | BE95: 7.823322129e-28 | BF95: 7.823322129e-28 | BJ95: 74 | BK95: 2028-11-01 | BL95: 31 | BM95: 2253 | BN95: -3077880.6 | BO95: 8975.11389 | BP95: -37965.21343 | BQ95: -1431.225211 | BR95: 153.9469269 | BS95: 412357.84 | BT95: 382090.4622 | BU95: -3086855.714 | BV95: 7.823322129e-28 | BW95: 7.823322129e-28 | CA95: 74 | CB95: 2028-11-01 | CC95: 31 | CD95: 2253 | CE95: -393970.4532 | CF95: 15117.60391 | CG95: -4859.568737 | CH95: -183.1976345 | CI95: 153.9469269 | CJ95: 412357.84 | CK95: 422586.6245 | CL95: -409088.0571 | CM95: 7.823322129e-28 | CN95: 7.823322129e-28 | CR95: 74 | CS95: 2028-11-01 | CT95: 31 | CU95: 2253 | CV95: -3077880.6 | CW95: 8975.11389 | CX95: -37965.21343 | CY95: -1431.225211 | CZ95: 153.9469269 | DA95: 412357.84 | DB95: 382090.4622 | DC95: -3086855.714 | DD95: 7.823322129e-28 | DE95: 7.823322129e-28
B96: 75 | C96: 2030-05-02 | D96: 4 | E96: 2030-05-02 | F96: 30 | G96: 2309 | H96: 57880.39416 | I96: 5491.369255 | J96: 690.778913 | K96: 0 | L96: 0 | M96: 0 | N96: 6182.148168 | O96: 52389.0249 | P96: 0.401267229 | Q96: 0.401267229 | S96: =IFERROR((I96+J96+K96+L96+M96)*$J$12+('Simulador para calculos'!I96+'Simulador para calculos'!J96+'Simulador para calculos'!K96+'Simulador para calculos'!L96+'Simulador para calculos'!M96)*NOT($J$12),"") -> 6182.148168 | T96: 2309 | U96: =IFERROR((1+'Simulación Cliente'!$E$21)^(T96/360),"") -> 2.877732878 | V96: 2148.27 | AB96: 75 | AC96: 2028-12-01 | AD96: 30 | AE96: 2283 | AF96: -3086855.714 | AG96: 389898.5873 | AH96: -36840.36478 | AI96: -1389.085071 | AJ96: 153.9469269 | AK96: 412357.84 | AL96: 764180.9243 | AM96: -3476754.301 | AN96: 6.815237763e-28 | AO96: 3.407618882e-28 | AS96: 75 | AT96: 2028-12-01 | AU96: 30 | AV96: 2283 | AW96: -409088.0571 | AX96: 15141.22639 | AY96: -4882.299223 | AZ96: -184.0896257 | BA96: 153.9469269 | BB96: 412357.84 | BC96: 422586.6245 | BD96: -424229.2835 | BE96: 3.407618882e-28 | BF96: 3.407618882e-28 | BJ96: 75 | BK96: 2028-12-01 | BL96: 30 | BM96: 2283 | BN96: -3086855.714 | BO96: 389898.5873 | BP96: -36840.36478 | BQ96: -1389.085071 | BR96: 153.9469269 | BS96: 412357.84 | BT96: 764180.9243 | BU96: -3476754.301 | BV96: 6.815237763e-28 | BW96: 3.407618882e-28 | CA96: 75 | CB96: 2028-12-01 | CC96: 30 | CD96: 2283 | CE96: -409088.0571 | CF96: 15141.22639 | CG96: -4882.299223 | CH96: -184.0896257 | CI96: 153.9469269 | CJ96: 412357.84 | CK96: 422586.6245 | CL96: -424229.2835 | CM96: 3.407618882e-28 | CN96: 3.407618882e-28 | CR96: 75 | CS96: 2028-12-01 | CT96: 30 | CU96: 2283 | CV96: -3086855.714 | CW96: 389898.5873 | CX96: -36840.36478 | CY96: -1389.085071 | CZ96: 153.9469269 | DA96: 412357.84 | DB96: 764180.9243 | DC96: -3476754.301 | DD96: 6.815237763e-28 | DE96: 3.407618882e-28
B97: 76 | C97: 2030-06-02 | D97: 7 | E97: 2030-06-03 | F97: 32 | G97: 2341 | H97: 52389.0249 | I97: 5514.959396 | J97: 667.1887727 | K97: 0 | L97: 0 | M97: 0 | N97: 6182.148168 | O97: 46874.06551 | P97: 0.3962212416 | Q97: 0.3962212416 | S97: =IFERROR((I97+J97+K97+L97+M97)*$J$12+('Simulador para calculos'!I97+'Simulador para calculos'!J97+'Simulador para calculos'!K97+'Simulador para calculos'!L97+'Simulador para calculos'!M97)*NOT($J$12),"") -> 6182.148168 | T97: 2341 | U97: =IFERROR((1+'Simulación Cliente'!$E$21)^(T97/360),"") -> 2.9201985 | V97: 2117.03 | AB97: 76 | AC97: 2029-01-01 | AD97: 31 | AE97: 2314 | AF97: -3476754.301 | AG97: 14080.64115 | AH97: -42885.26303 | AI97: -1616.702873 | AJ97: 153.9469269 | AK97: 412357.84 | AL97: 382090.4622 | AM97: -3490834.942 | AN97: 1.443708386e-28 | AO97: 1.443708386e-28 | AS97: 76 | AT97: 2029-01-01 | AU97: 31 | AV97: 2314 | AW97: -424229.2835 | AX97: 15504.91268 | AY97: -5232.807047 | AZ97: -197.2680961 | BA97: 153.9469269 | BB97: 412357.84 | BC97: 422586.6245 | BD97: -439734.1962 | BE97: 1.443708386e-28 | BF97: 1.443708386e-28 | BJ97: 76 | BK97: 2029-01-01 | BL97: 31 | BM97: 2314 | BN97: -3476754.301 | BO97: 14080.64115 | BP97: -42885.26303 | BQ97: -1616.702873 | BR97: 153.9469269 | BS97: 412357.84 | BT97: 382090.4622 | BU97: -3490834.942 | BV97: 1.443708386e-28 | BW97: 1.443708386e-28 | CA97: 76 | CB97: 2029-01-01 | CC97: 31 | CD97: 2314 | CE97: -424229.2835 | CF97: 15504.91268 | CG97: -5232.807047 | CH97: -197.2680961 | CI97: 153.9469269 | CJ97: 412357.84 | CK97: 422586.6245 | CL97: -439734.1962 | CM97: 1.443708386e-28 | CN97: 1.443708386e-28 | CR97: 76 | CS97: 2029-01-01 | CT97: 31 | CU97: 2314 | CV97: -3476754.301 | CW97: 14080.64115 | CX97: -42885.26303 | CY97: -1616.702873 | CZ97: 153.9469269 | DA97: 412357.84 | DB97: 382090.4622 | DC97: -3490834.942 | DD97: 1.443708386e-28 | DE97: 1.443708386e-28
B98: 77 | C98: 2030-07-02 | D98: 2 | E98: 2030-07-02 | F98: 29 | G98: 2370 | H98: 46874.06551 | I98: 5641.479857 | J98: 540.6683116 | K98: 0 | L98: 0 | M98: 0 | N98: 6182.148168 | O98: 41232.58565 | P98: 0.3917031466 | Q98: 0.3917031466 | S98: =IFERROR((I98+J98+K98+L98+M98)*$J$12+('Simulador para calculos'!I98+'Simulador para calculos'!J98+'Simulador para calculos'!K98+'Simulador para calculos'!L98+'Simulador para calculos'!M98)*NOT($J$12),"") -> 6182.148168 | T98: 2370 | U98: =IFERROR((1+'Simulación Cliente'!$E$21)^(T98/360),"") -> 2.959224002 | V98: 2089.11 | AB98: 77 | AC98: 2029-02-01 | AD98: 31 | AE98: 2345 | AF98: -3490834.942 | AG98: 14260.87137 | AH98: -43058.9457 | AI98: -1623.250421 | AJ98: 153.9469269 | AK98: 412357.84 | AL98: 382090.4622 | AM98: -3505095.813 | AN98: 6.116569889e-29 | AO98: 6.116569889e-29 | AS98: 77 | AT98: 2029-02-01 | AU98: 31 | AV98: 2345 | AW98: -439734.1962 | AX98: 15703.37338 | AY98: -5424.057909 | AZ98: -204.4779346 | BA98: 153.9469269 | BB98: 412357.84 | BC98: 422586.6245 | BD98: -455437.5695 | BE98: 6.116569889e-29 | BF98: 6.116569889e-29 | BJ98: 77 | BK98: 2029-02-01 | BL98: 31 | BM98: 2345 | BN98: -3490834.942 | BO98: 14260.87137 | BP98: -43058.9457 | BQ98: -1623.250421 | BR98: 153.9469269 | BS98: 412357.84 | BT98: 382090.4622 | BU98: -3505095.813 | BV98: 6.116569889e-29 | BW98: 6.116569889e-29 | CA98: 77 | CB98: 2029-02-01 | CC98: 31 | CD98: 2345 | CE98: -439734.1962 | CF98: 15703.37338 | CG98: -5424.057909 | CH98: -204.4779346 | CI98: 153.9469269 | CJ98: 412357.84 | CK98: 422586.6245 | CL98: -455437.5695 | CM98: 6.116569889e-29 | CN98: 6.116569889e-29 | CR98: 77 | CS98: 2029-02-01 | CT98: 31 | CU98: 2345 | CV98: -3490834.942 | CW98: 14260.87137 | CX98: -43058.9457 | CY98: -1623.250421 | CZ98: 153.9469269 | DA98: 412357.84 | DB98: 382090.4622 | DC98: -3505095.813 | DD98: 6.116569889e-29 | DE98: 6.116569889e-29
B99: 78 | C99: 2030-08-02 | D99: 5 | E99: 2030-08-02 | F99: 31 | G99: 2401 | H99: 41232.58565 | I99: 5673.550169 | J99: 508.5979991 | K99: 0 | L99: 0 | M99: 0 | N99: 6182.148168 | O99: 35559.03548 | P99: 0.3869304157 | Q99: 0.3869304157 | S99: =IFERROR((I99+J99+K99+L99+M99)*$J$12+('Simulador para calculos'!I99+'Simulador para calculos'!J99+'Simulador para calculos'!K99+'Simulador para calculos'!L99+'Simulador para calculos'!M99)*NOT($J$12),"") -> 6182.148168 | T99: 2401 | U99: =IFERROR((1+'Simulación Cliente'!$E$21)^(T99/360),"") -> 3.001517823 | V99: 2059.67 | AB99: 78 | AC99: 2029-03-01 | AD99: 28 | AE99: 2373 | AF99: -3505095.813 | AG99: 10078.42404 | AH99: -39027.63063 | AI99: -1472.118163 | AJ99: 153.9469269 | AK99: 412357.84 | AL99: 382090.4622 | AM99: -3515174.238 | AN99: 2.815985572e-29 | AO99: 2.815985572e-29 | AS99: 78 | AT99: 2029-03-01 | AU99: 28 | AV99: 2373 | AW99: -455437.5695 | AX99: 15337.20643 | AY99: -5071.087978 | AZ99: -191.2809104 | BA99: 153.9469269 | BB99: 412357.84 | BC99: 422586.6245 | BD99: -470774.776 | BE99: 2.815985572e-29 | BF99: 2.815985572e-29 | BJ99: 78 | BK99: 2029-03-01 | BL99: 28 | BM99: 2373 | BN99: -3505095.813 | BO99: 10078.42404 | BP99: -39027.63063 | BQ99: -1472.118163 | BR99: 153.9469269 | BS99: 412357.84 | BT99: 382090.4622 | BU99: -3515174.238 | BV99: 2.815985572e-29 | BW99: 2.815985572e-29 | CA99: 78 | CB99: 2029-03-01 | CC99: 28 | CD99: 2373 | CE99: -455437.5695 | CF99: 15337.20643 | CG99: -5071.087978 | CH99: -191.2809104 | CI99: 153.9469269 | CJ99: 412357.84 | CK99: 422586.6245 | CL99: -470774.776 | CM99: 2.815985572e-29 | CN99: 2.815985572e-29 | CR99: 78 | CS99: 2029-03-01 | CT99: 28 | CU99: 2373 | CV99: -3505095.813 | CW99: 10078.42404 | CX99: -39027.63063 | CY99: -1472.118163 | CZ99: 153.9469269 | DA99: 412357.84 | DB99: 382090.4622 | DC99: -3515174.238 | DD99: 2.815985572e-29 | DE99: 2.815985572e-29
B100: 79 | C100: 2030-09-02 | D100: 1 | E100: 2030-09-02 | F100: 31 | G100: 2432 | H100: 35559.03548 | I100: 5743.532593 | J100: 438.6155758 | K100: 0 | L100: 0 | M100: 0 | N100: 6182.148168 | O100: 29815.50289 | P100: 0.3822158385 | Q100: 0.3822158385 | S100: =IFERROR((I100+J100+K100+L100+M100)*$J$12+('Simulador para calculos'!I100+'Simulador para calculos'!J100+'Simulador para calculos'!K100+'Simulador para calculos'!L100+'Simulador para calculos'!M100)*NOT($J$12),"") -> 6182.148168 | T100: 2432 | U100: =IFERROR((1+'Simulación Cliente'!$E$21)^(T100/360),"") -> 3.044416115 | V100: 2030.65 | AB100: 79 | AC100: 2029-04-01 | AD100: 31 | AE100: 2404 | AF100: -3515174.238 | AG100: 14572.41093 | AH100: -43359.1674 | AI100: -1634.568278 | AJ100: 153.9469269 | AK100: 412357.84 | AL100: 382090.4622 | AM100: -3529746.648 | AN100: 1.193050669e-29 | AO100: 1.193050669e-29 | AS100: 79 | AT100: 2029-04-01 | AU100: 31 | AV100: 2404 | AW100: -470774.776 | AX100: 16100.68844 | AY100: -5806.938986 | AZ100: -218.9119124 | BA100: 153.9469269 | BB100: 412357.84 | BC100: 422586.6245 | BD100: -486875.4644 | BE100: 1.193050669e-29 | BF100: 1.193050669e-29 | BJ100: 79 | BK100: 2029-04-01 | BL100: 31 | BM100: 2404 | BN100: -3515174.238 | BO100: 14572.41093 | BP100: -43359.1674 | BQ100: -1634.568278 | BR100: 153.9469269 | BS100: 412357.84 | BT100: 382090.4622 | BU100: -3529746.648 | BV100: 1.193050669e-29 | BW100: 1.193050669e-29 | CA100: 79 | CB100: 2029-04-01 | CC100: 31 | CD100: 2404 | CE100: -470774.776 | CF100: 16100.68844 | CG100: -5806.938986 | CH100: -218.9119124 | CI100: 153.9469269 | CJ100: 412357.84 | CK100: 422586.6245 | CL100: -486875.4644 | CM100: 1.193050669e-29 | CN100: 1.193050669e-29 | CR100: 79 | CS100: 2029-04-01 | CT100: 31 | CU100: 2404 | CV100: -3515174.238 | CW100: 14572.41093 | CX100: -43359.1674 | CY100: -1634.568278 | CZ100: 153.9469269 | DA100: 412357.84 | DB100: 382090.4622 | DC100: -3529746.648 | DD100: 1.193050669e-29 | DE100: 1.193050669e-29
B101: 80 | C101: 2030-10-02 | D101: 3 | E101: 2030-10-02 | F101: 30 | G101: 2462 | H101: 29815.50289 | I101: 5826.312294 | J101: 355.8358746 | K101: 0 | L101: 0 | M101: 0 | N101: 6182.148168 | O101: 23989.19059 | P101: 0.3777080469 | Q101: 0.3777080469 | S101: =IFERROR((I101+J101+K101+L101+M101)*$J$12+('Simulador para calculos'!I101+'Simulador para calculos'!J101+'Simulador para calculos'!K101+'Simulador para calculos'!L101+'Simulador para calculos'!M101)*NOT($J$12),"") -> 6182.148168 | T101: 2462 | U101: =IFERROR((1+'Simulación Cliente'!$E$21)^(T101/360),"") -> 3.086514266 | V101: 2002.95 | AB101: 80 | AC101: 2029-05-01 | AD101: 30 | AE101: 2434 | AF101: -3529746.648 | AG101: 13293.14881 | AH101: -42126.08757 | AI101: -1588.385992 | AJ101: 153.9469269 | AK101: 412357.84 | AL101: 382090.4622 | AM101: -3543039.797 | AN101: 5.196592852e-30 | AO101: 5.196592852e-30 | AS101: 80 | AT101: 2029-05-01 | AU101: 30 | AV101: 2434 | AW101: -486875.4644 | AX101: 16104.59172 | AY101: -5810.660224 | AZ101: -219.093959 | BA101: 153.9469269 | BB101: 412357.84 | BC101: 422586.6245 | BD101: -502980.0561 | BE101: 5.196592852e-30 | BF101: 5.196592852e-30 | BJ101: 80 | BK101: 2029-05-01 | BL101: 30 | BM101: 2434 | BN101: -3529746.648 | BO101: 13293.14881 | BP101: -42126.08757 | BQ101: -1588.385992 | BR101: 153.9469269 | BS101: 412357.84 | BT101: 382090.4622 | BU101: -3543039.797 | BV101: 5.196592852e-30 | BW101: 5.196592852e-30 | CA101: 80 | CB101: 2029-05-01 | CC101: 30 | CD101: 2434 | CE101: -486875.4644 | CF101: 16104.59172 | CG101: -5810.660224 | CH101: -219.093959 | CI101: 153.9469269 | CJ101: 412357.84 | CK101: 422586.6245 | CL101: -502980.0561 | CM101: 5.196592852e-30 | CN101: 5.196592852e-30 | CR101: 80 | CS101: 2029-05-01 | CT101: 30 | CU101: 2434 | CV101: -3529746.648 | CW101: 13293.14881 | CX101: -42126.08757 | CY101: -1588.385992 | CZ101: 153.9469269 | DA101: 412357.84 | DB101: 382090.4622 | DC101: -3543039.797 | DD101: 5.196592852e-30 | DE101: 5.196592852e-30
B102: 81 | C102: 2030-11-02 | D102: 6 | E102: 2030-11-02 | F102: 31 | G102: 2493 | H102: 23989.19059 | I102: 5886.244961 | J102: 295.9032072 | K102: 0 | L102: 0 | M102: 0 | N102: 6182.148168 | O102: 18102.94563 | P102: 0.3731058401 | Q102: 0.3731058401 | S102: =IFERROR((I102+J102+K102+L102+M102)*$J$12+('Simulador para calculos'!I102+'Simulador para calculos'!J102+'Simulador para calculos'!K102+'Simulador para calculos'!L102+'Simulador para calculos'!M102)*NOT($J$12),"") -> 6182.148168 | T102: 2493 | U102: =IFERROR((1+'Simulación Cliente'!$E$21)^(T102/360),"") -> 3.130627345 | V102: 1974.73 | AB102: 81 | AC102: 2029-06-01 | AD102: 31 | AE102: 2465 | AF102: -3543039.797 | AG102: 14929.08617 | AH102: -43702.88507 | AI102: -1647.52586 | AJ102: 153.9469269 | AK102: 412357.84 | AL102: 382090.4622 | AM102: -3557968.883 | AN102: 2.201644298e-30 | AO102: 2.201644298e-30 | AS102: 81 | AT102: 2029-06-01 | AU102: 31 | AV102: 2465 | AW102: -502980.0561 | AX102: 16512.91149 | AY102: -6204.186473 | AZ102: -233.88748 | BA102: 153.9469269 | BB102: 412357.84 | BC102: 422586.6245 | BD102: -519492.9676 | BE102: 2.201644298e-30 | BF102: 2.201644298e-30 | BJ102: 81 | BK102: 2029-06-01 | BL102: 31 | BM102: 2465 | BN102: -3543039.797 | BO102: 14929.08617 | BP102: -43702.88507 | BQ102: -1647.52586 | BR102: 153.9469269 | BS102: 412357.84 | BT102: 382090.4622 | BU102: -3557968.883 | BV102: 2.201644298e-30 | BW102: 2.201644298e-30 | CA102: 81 | CB102: 2029-06-01 | CC102: 31 | CD102: 2465 | CE102: -502980.0561 | CF102: 16512.91149 | CG102: -6204.186473 | CH102: -233.88748 | CI102: 153.9469269 | CJ102: 412357.84 | CK102: 422586.6245 | CL102: -519492.9676 | CM102: 2.201644298e-30 | CN102: 2.201644298e-30 | CR102: 81 | CS102: 2029-06-01 | CT102: 31 | CU102: 2465 | CV102: -3543039.797 | CW102: 14929.08617 | CX102: -43702.88507 | CY102: -1647.52586 | CZ102: 153.9469269 | DA102: 412357.84 | DB102: 382090.4622 | DC102: -3557968.883 | DD102: 2.201644298e-30 | DE102: 2.201644298e-30
B103: 82 | C103: 2030-12-02 | D103: 1 | E103: 2030-12-02 | F103: 30 | G103: 2523 | H103: 18102.94563 | I103: 5966.096891 | J103: 216.0512776 | K103: 0 | L103: 0 | M103: 0 | N103: 6182.148168 | O103: 12136.84874 | P103: 0.3687054904 | Q103: 0.3687054904 | S103: =IFERROR((I103+J103+K103+L103+M103)*$J$12+('Simulador para calculos'!I103+'Simulador para calculos'!J103+'Simulador para calculos'!K103+'Simulador para calculos'!L103+'Simulador para calculos'!M103)*NOT($J$12),"") -> 6182.148168 | T103: 2523 | U103: =IFERROR((1+'Simulación Cliente'!$E$21)^(T103/360),"") -> 3.173917623 | V103: 1947.8 | AB103: 82 | AC103: 2029-07-01 | AD103: 30 | AE103: 2495 | AF103: -3557968.883 | AG103: 395733.1319 | AH103: -42462.90844 | AI103: -1601.085998 | AJ103: 153.9469269 | AK103: 412357.84 | AL103: 764180.9243 | AM103: -3953702.015 | AN103: 1.917948553e-30 | AO103: 9.589742767e-31 | AS103: 82 | AT103: 2029-07-01 | AU103: 30 | AV103: 2495 | AW103: -519492.9676 | AX103: 16508.54621 | AY103: -6199.93683 | AZ103: -233.7718354 | BA103: 153.9469269 | BB103: 412357.84 | BC103: 422586.6245 | BD103: -536001.5138 | BE103: 9.589742767e-31 | BF103: 9.589742767e-31 | BJ103: 82 | BK103: 2029-07-01 | BL103: 30 | BM103: 2495 | BN103: -3557968.883 | BO103: 395733.1319 | BP103: -42462.90844 | BQ103: -1601.085998 | BR103: 153.9469269 | BS103: 412357.84 | BT103: 764180.9243 | BU103: -3953702.015 | BV103: 1.917948553e-30 | BW103: 9.589742767e-31 | CA103: 82 | CB103: 2029-07-01 | CC103: 30 | CD103: 2495 | CE103: -519492.9676 | CF103: 16508.54621 | CG103: -6199.93683 | CH103: -233.7718354 | CI103: 153.9469269 | CJ103: 412357.84 | CK103: 422586.6245 | CL103: -536001.5138 | CM103: 9.589742767e-31 | CN103: 9.589742767e-31 | CR103: 82 | CS103: 2029-07-01 | CT103: 30 | CU103: 2495 | CV103: -3557968.883 | CW103: 395733.1319 | CX103: -42462.90844 | CY103: -1601.085998 | CZ103: 153.9469269 | DA103: 412357.84 | DB103: 764180.9243 | DC103: -3953702.015 | DD103: 1.917948553e-30 | DE103: 9.589742767e-31
B104: 83 | C104: 2031-01-02 | D104: 4 | E104: 2031-01-02 | F104: 31 | G104: 2554 | H104: 12136.84874 | I104: 6032.441889 | J104: 149.7062793 | K104: 0 | L104: 0 | M104: 0 | N104: 6182.148168 | O104: 6104.406853 | P104: 0.3642129758 | Q104: 0.3642129758 | S104: =IFERROR((I104+J104+K104+L104+M104)*$J$12+('Simulador para calculos'!I104+'Simulador para calculos'!J104+'Simulador para calculos'!K104+'Simulador para calculos'!L104+'Simulador para calculos'!M104)*NOT($J$12),"") -> 6182.148168 | T104: 2554 | U104: =IFERROR((1+'Simulación Cliente'!$E$21)^(T104/360),"") -> 3.219279889 | V104: 1920.35 | AB104: 83 | AC104: 2029-08-01 | AD104: 31 | AE104: 2526 | AF104: -3953702.015 | AG104: 20185.50479 | AH104: -48768.34432 | AI104: -1838.485224 | AJ104: 153.9469269 | AK104: 412357.84 | AL104: 382090.4622 | AM104: -3973887.52 | AN104: 4.062893338e-31 | AO104: 4.062893338e-31 | AS104: 83 | AT104: 2029-08-01 | AU104: 31 | AV104: 2526 | AW104: -536001.5138 | AX104: 16935.58151 | AY104: -6611.501393 | AZ104: -249.242573 | BA104: 153.9469269 | BB104: 412357.84 | BC104: 422586.6245 | BD104: -552937.0953 | BE104: 4.062893338e-31 | BF104: 4.062893338e-31 | BJ104: 83 | BK104: 2029-08-01 | BL104: 31 | BM104: 2526 | BN104: -3953702.015 | BO104: 20185.50479 | BP104: -48768.34432 | BQ104: -1838.485224 | BR104: 153.9469269 | BS104: 412357.84 | BT104: 382090.4622 | BU104: -3973887.52 | BV104: 4.062893338e-31 | BW104: 4.062893338e-31 | CA104: 83 | CB104: 2029-08-01 | CC104: 31 | CD104: 2526 | CE104: -536001.5138 | CF104: 16935.58151 | CG104: -6611.501393 | CH104: -249.242573 | CI104: 153.9469269 | CJ104: 412357.84 | CK104: 422586.6245 | CL104: -552937.0953 | CM104: 4.062893338e-31 | CN104: 4.062893338e-31 | CR104: 83 | CS104: 2029-08-01 | CT104: 31 | CU104: 2526 | CV104: -3953702.015 | CW104: 20185.50479 | CX104: -48768.34432 | CY104: -1838.485224 | CZ104: 153.9469269 | DA104: 412357.84 | DB104: 382090.4622 | DC104: -3973887.52 | DD104: 4.062893338e-31 | DE104: 4.062893338e-31
B105: 84 | C105: 2031-02-02 | D105: 7 | E105: 2031-02-03 | F105: 32 | G105: 2586 | H105: 6104.406853 | I105: 6104.406853 | J105: 77.74131554 | K105: 0 | L105: 0 | M105: 0 | N105: 6182.148168 | O105: 0 | P105: 0.3596329504 | Q105: 0.3596329504 | S105: =IFERROR((I105+J105+K105+L105+M105)*$J$12+('Simulador para calculos'!I105+'Simulador para calculos'!J105+'Simulador para calculos'!K105+'Simulador para calculos'!L105+'Simulador para calculos'!M105)*NOT($J$12),"") -> 6182.148168 | T105: 2586 | U105: =IFERROR((1+'Simulación Cliente'!$E$21)^(T105/360),"") -> 3.266785591 | V105: 1892.43 | AB105: 84 | AC105: 2029-09-01 | AD105: 31 | AE105: 2557 | AF105: -3973887.52 | AG105: -3973887.52 | AH105: -49017.32961 | AI105: -1847.871554 | AJ105: 153.9469269 | AK105: 412357.84 | AL105: -3612240.934 | AM105: 0 | AN105: 1.721328995e-31 | AO105: 1.721328995e-31 | AS105: 84 | AT105: 2029-09-01 | AU105: 31 | AV105: 2557 | AW105: -552937.0953 | AX105: 17152.35457 | AY105: -6820.399349 | AZ105: -257.1176774 | BA105: 153.9469269 | BB105: 412357.84 | BC105: 422586.6245 | BD105: -570089.4499 | BE105: 1.721328995e-31 | BF105: 1.721328995e-31 | BJ105: 84 | BK105: 2029-09-01 | BL105: 31 | BM105: 2557 | BN105: -3973887.52 | BO105: 20443.87641 | BP105: -49017.32961 | BQ105: -1847.871554 | BR105: 153.9469269 | BS105: 412357.84 | BT105: 382090.4622 | BU105: -3994331.396 | BV105: 1.721328995e-31 | BW105: 1.721328995e-31 | CA105: 84 | CB105: 2029-09-01 | CC105: 31 | CD105: 2557 | CE105: -552937.0953 | CF105: 17152.35457 | CG105: -6820.399349 | CH105: -257.1176774 | CI105: 153.9469269 | CJ105: 412357.84 | CK105: 422586.6245 | CL105: -570089.4499 | CM105: 1.721328995e-31 | CN105: 1.721328995e-31 | CR105: 84 | CS105: 2029-09-01 | CT105: 31 | CU105: 2557 | CV105: -3973887.52 | CW105: 20443.87641 | CX105: -49017.32961 | CY105: -1847.871554 | CZ105: 153.9469269 | DA105: 412357.84 | DB105: 382090.4622 | DC105: -3994331.396 | DD105: 1.721328995e-31 | DE105: 1.721328995e-31
B106: 85 | S106: =IFERROR((I106+J106+K106+L106+M106)*$J$12+('Simulador para calculos'!I106+'Simulador para calculos'!J106+'Simulador para calculos'!K106+'Simulador para calculos'!L106+'Simulador para calculos'!M106)*NOT($J$12),"") ->  | U106: =IFERROR((1+'Simulación Cliente'!$E$21)^(T106/360),"") ->  | AB106: 85 | AS106: 85 | AT106: 2029-10-01 | AU106: 30 | AV106: 2587 | AW106: -570089.4499 | AX106: 17135.16302 | AY106: -6803.785224 | AZ106: -256.5402525 | BA106: 153.9469269 | BB106: 412357.84 | BC106: 422586.6245 | BD106: -587224.6129 | BE106: 7.497624523e-32 | BF106: 7.497624523e-32 | BJ106: 85 | BK106: 2029-10-01 | BL106: 30 | BM106: 2587 | BN106: -3994331.396 | BO106: 19046.84156 | BP106: -47670.71718 | BQ106: -1797.449128 | BR106: 153.9469269 | BS106: 412357.84 | BT106: 382090.4622 | BU106: -4013378.238 | BV106: 7.497624523e-32 | BW106: 7.497624523e-32 | CA106: 85 | CB106: 2029-10-01 | CC106: 30 | CD106: 2587 | CE106: -570089.4499 | CF106: 17135.16302 | CG106: -6803.785224 | CH106: -256.5402525 | CI106: 153.9469269 | CJ106: 412357.84 | CK106: 422586.6245 | CL106: -587224.6129 | CM106: 7.497624523e-32 | CN106: 7.497624523e-32 | CR106: 85 | CS106: 2029-10-01 | CT106: 30 | CU106: 2587 | CV106: -3994331.396 | CW106: 19046.84156 | CX106: -47670.71718 | CY106: -1797.449128 | CZ106: 153.9469269 | DA106: 412357.84 | DB106: 382090.4622 | DC106: -4013378.238 | DD106: 7.497624523e-32 | DE106: 7.497624523e-32
B107: 86 | S107: =IFERROR((I107+J107+K107+L107+M107)*$J$12+('Simulador para calculos'!I107+'Simulador para calculos'!J107+'Simulador para calculos'!K107+'Simulador para calculos'!L107+'Simulador para calculos'!M107)*NOT($J$12),"") ->  | U107: =IFERROR((1+'Simulación Cliente'!$E$21)^(T107/360),"") ->  | AB107: 86 | AS107: 86 | AT107: 2029-11-01 | AU107: 31 | AV107: 2618 | AW107: -587224.6129 | AX107: 17591.22997 | AY107: -7243.330935 | AZ107: -273.0614927 | BA107: 153.9469269 | BB107: 412357.84 | BC107: 422586.6245 | BD107: -604815.8429 | BE107: 3.176524071e-32 | BF107: 3.176524071e-32 | BJ107: 86 | BK107: 2029-11-01 | BL107: 31 | BM107: 2618 | BN107: -4013378.238 | BO107: 20949.35204 | BP107: -49504.44192 | BQ107: -1866.234875 | BR107: 153.9469269 | BS107: 412357.84 | BT107: 382090.4622 | BU107: -4034327.59 | BV107: 3.176524071e-32 | BW107: 3.176524071e-32 | CA107: 86 | CB107: 2029-11-01 | CC107: 31 | CD107: 2618 | CE107: -587224.6129 | CF107: 17591.22997 | CG107: -7243.330935 | CH107: -273.0614927 | CI107: 153.9469269 | CJ107: 412357.84 | CK107: 422586.6245 | CL107: -604815.8429 | CM107: 3.176524071e-32 | CN107: 3.176524071e-32 | CR107: 86 | CS107: 2029-11-01 | CT107: 31 | CU107: 2618 | CV107: -4013378.238 | CW107: 20949.35204 | CX107: -49504.44192 | CY107: -1866.234875 | CZ107: 153.9469269 | DA107: 412357.84 | DB107: 382090.4622 | DC107: -4034327.59 | DD107: 3.176524071e-32 | DE107: 3.176524071e-32
B108: 87 | S108: =IFERROR((I108+J108+K108+L108+M108)*$J$12+('Simulador para calculos'!I108+'Simulador para calculos'!J108+'Simulador para calculos'!K108+'Simulador para calculos'!L108+'Simulador para calculos'!M108)*NOT($J$12),"") ->  | U108: =IFERROR((1+'Simulación Cliente'!$E$21)^(T108/360),"") ->  | AB108: 87 | AS108: 87 | AT108: 2029-12-01 | AU108: 30 | AV108: 2648 | AW108: -604815.8429 | AX108: 17565.23524 | AY108: -7218.23057 | AZ108: -272.1671293 | BA108: 153.9469269 | BB108: 412357.84 | BC108: 422586.6245 | BD108: -622381.0781 | BE108: 1.383604461e-32 | BF108: 1.383604461e-32 | BJ108: 87 | BK108: 2029-12-01 | BL108: 30 | BM108: 2648 | BN108: -4034327.59 | BO108: 401632.6403 | BP108: -48148.05545 | BQ108: -1815.447416 | BR108: 153.9469269 | BS108: 412357.84 | BT108: 764180.9243 | BU108: -4435960.23 | BV108: 2.767208923e-32 | BW108: 1.383604461e-32 | CA108: 87 | CB108: 2029-12-01 | CC108: 30 | CD108: 2648 | CE108: -604815.8429 | CF108: 17565.23524 | CG108: -7218.23057 | CH108: -272.1671293 | CI108: 153.9469269 | CJ108: 412357.84 | CK108: 422586.6245 | CL108: -622381.0781 | CM108: 1.383604461e-32 | CN108: 1.383604461e-32 | CR108: 87 | CS108: 2029-12-01 | CT108: 30 | CU108: 2648 | CV108: -4034327.59 | CW108: 401632.6403 | CX108: -48148.05545 | CY108: -1815.447416 | CZ108: 153.9469269 | DA108: 412357.84 | DB108: 764180.9243 | DC108: -4435960.23 | DD108: 2.767208923e-32 | DE108: 1.383604461e-32
B109: 88 | S109: =IFERROR((I109+J109+K109+L109+M109)*$J$12+('Simulador para calculos'!I109+'Simulador para calculos'!J109+'Simulador para calculos'!K109+'Simulador para calculos'!L109+'Simulador para calculos'!M109)*NOT($J$12),"") ->  | U109: =IFERROR((1+'Simulación Cliente'!$E$21)^(T109/360),"") ->  | AB109: 88 | AS109: 88 | AT109: 2030-01-01 | AU109: 31 | AV109: 2679 | AW109: -622381.0781 | AX109: 18041.22778 | AY109: -7676.980864 | AZ109: -289.4093716 | BA109: 153.9469269 | BB109: 412357.84 | BC109: 422586.6245 | BD109: -640422.3059 | BE109: 5.861927151e-33 | BF109: 5.861927151e-33 | BJ109: 88 | BK109: 2030-01-01 | BL109: 31 | BM109: 2679 | BN109: -4435960.23 | BO109: 26358.34209 | BP109: -54716.92987 | BQ109: -2062.736975 | BR109: 153.9469269 | BS109: 412357.84 | BT109: 382090.4622 | BU109: -4462318.572 | BV109: 5.861927151e-33 | BW109: 5.861927151e-33 | CA109: 88 | CB109: 2030-01-01 | CC109: 31 | CD109: 2679 | CE109: -622381.0781 | CF109: 18041.22778 | CG109: -7676.980864 | CH109: -289.4093716 | CI109: 153.9469269 | CJ109: 412357.84 | CK109: 422586.6245 | CL109: -640422.3059 | CM109: 5.861927151e-33 | CN109: 5.861927151e-33 | CR109: 88 | CS109: 2030-01-01 | CT109: 31 | CU109: 2679 | CV109: -4435960.23 | CW109: 26358.34209 | CX109: -54716.92987 | CY109: -2062.736975 | CZ109: 153.9469269 | DA109: 412357.84 | DB109: 382090.4622 | DC109: -4462318.572 | DD109: 5.861927151e-33 | DE109: 5.861927151e-33
B110: 89 | S110: =IFERROR((I110+J110+K110+L110+M110)*$J$12+('Simulador para calculos'!I110+'Simulador para calculos'!J110+'Simulador para calculos'!K110+'Simulador para calculos'!L110+'Simulador para calculos'!M110)*NOT($J$12),"") ->  | U110: =IFERROR((1+'Simulación Cliente'!$E$21)^(T110/360),"") ->  | AB110: 89 | AS110: 89 | AT110: 2030-02-01 | AU110: 31 | AV110: 2710 | AW110: -640422.3059 | AX110: 18272.15295 | AY110: -7899.516808 | AZ110: -297.7986054 | BA110: 153.9469269 | BB110: 412357.84 | BC110: 422586.6245 | BD110: -658694.4589 | BE110: 2.483526967e-33 | BF110: 2.483526967e-33 | BJ110: 89 | BK110: 2030-02-01 | BL110: 31 | BM110: 2710 | BN110: -4462318.572 | BO110: 26695.72516 | BP110: -55042.05622 | BQ110: -2074.993696 | BR110: 153.9469269 | BS110: 412357.84 | BT110: 382090.4622 | BU110: -4489014.298 | BV110: 2.483526967e-33 | BW110: 2.483526967e-33 | CA110: 89 | CB110: 2030-02-01 | CC110: 31 | CD110: 2710 | CE110: -640422.3059 | CF110: 18272.15295 | CG110: -7899.516808 | CH110: -297.7986054 | CI110: 153.9469269 | CJ110: 412357.84 | CK110: 422586.6245 | CL110: -658694.4589 | CM110: 2.483526967e-33 | CN110: 2.483526967e-33 | CR110: 89 | CS110: 2030-02-01 | CT110: 31 | CU110: 2710 | CV110: -4462318.572 | CW110: 26695.72516 | CX110: -55042.05622 | CY110: -2074.993696 | CZ110: 153.9469269 | DA110: 412357.84 | DB110: 382090.4622 | DC110: -4489014.298 | DD110: 2.483526967e-33 | DE110: 2.483526967e-33
B111: 90 | S111: =IFERROR((I111+J111+K111+L111+M111)*$J$12+('Simulador para calculos'!I111+'Simulador para calculos'!J111+'Simulador para calculos'!K111+'Simulador para calculos'!L111+'Simulador para calculos'!M111)*NOT($J$12),"") ->  | U111: =IFERROR((1+'Simulación Cliente'!$E$21)^(T111/360),"") ->  | AB111: 90 | AS111: 90 | AT111: 2030-03-01 | AU111: 28 | AV111: 2738 | AW111: -658694.4589 | AX111: 17685.74507 | AY111: -7334.260006 | AZ111: -276.6475236 | BA111: 153.9469269 | BB111: 412357.84 | BC111: 422586.6245 | BD111: -676380.2039 | BE111: 1.143382032e-33 | BF111: 1.143382032e-33 | BJ111: 90 | BK111: 2030-03-01 | BL111: 28 | BM111: 2738 | BN111: -4489014.298 | BO111: 21447.14364 | BP111: -49983.11066 | BQ111: -1885.357729 | BR111: 153.9469269 | BS111: 412357.84 | BT111: 382090.4622 | BU111: -4510461.441 | BV111: 1.143382032e-33 | BW111: 1.143382032e-33 | CA111: 90 | CB111: 2030-03-01 | CC111: 28 | CD111: 2738 | CE111: -658694.4589 | CF111: 17685.74507 | CG111: -7334.260006 | CH111: -276.6475236 | CI111: 153.9469269 | CJ111: 412357.84 | CK111: 422586.6245 | CL111: -676380.2039 | CM111: 1.143382032e-33 | CN111: 1.143382032e-33 | CR111: 90 | CS111: 2030-03-01 | CT111: 28 | CU111: 2738 | CV111: -4489014.298 | CW111: 21447.14364 | CX111: -49983.11066 | CY111: -1885.357729 | CZ111: 153.9469269 | DA111: 412357.84 | DB111: 382090.4622 | DC111: -4510461.441 | DD111: 1.143382032e-33 | DE111: 1.143382032e-33
B112: 91 | S112: =IFERROR((I112+J112+K112+L112+M112)*$J$12+('Simulador para calculos'!I112+'Simulador para calculos'!J112+'Simulador para calculos'!K112+'Simulador para calculos'!L112+'Simulador para calculos'!M112)*NOT($J$12),"") ->  | U112: =IFERROR((1+'Simulación Cliente'!$E$21)^(T112/360),"") ->  | AB112: 91 | AS112: 91 | AT112: 2030-04-01 | AU112: 31 | AV112: 2769 | AW112: -676380.2039 | AX112: 18732.40899 | AY112: -8343.052296 | AZ112: -314.5191534 | BA112: 153.9469269 | BB112: 412357.84 | BC112: 422586.6245 | BD112: -695112.6129 | BE112: 4.844175025e-34 | BF112: 4.844175025e-34 | BJ112: 91 | BK112: 2030-04-01 | BL112: 31 | BM112: 2769 | BN112: -4510461.441 | BO112: 27311.94711 | BP112: -55635.89156 | BQ112: -2097.380298 | BR112: 153.9469269 | BS112: 412357.84 | BT112: 382090.4622 | BU112: -4537773.388 | BV112: 4.844175025e-34 | BW112: 4.844175025e-34 | CA112: 91 | CB112: 2030-04-01 | CC112: 31 | CD112: 2769 | CE112: -676380.2039 | CF112: 18732.40899 | CG112: -8343.052296 | CH112: -314.5191534 | CI112: 153.9469269 | CJ112: 412357.84 | CK112: 422586.6245 | CL112: -695112.6129 | CM112: 4.844175025e-34 | CN112: 4.844175025e-34 | CR112: 91 | CS112: 2030-04-01 | CT112: 31 | CU112: 2769 | CV112: -4510461.441 | CW112: 27311.94711 | CX112: -55635.89156 | CY112: -2097.380298 | CZ112: 153.9469269 | DA112: 412357.84 | DB112: 382090.4622 | DC112: -4537773.388 | DD112: 4.844175025e-34 | DE112: 4.844175025e-34
B113: 92 | S113: =IFERROR((I113+J113+K113+L113+M113)*$J$12+('Simulador para calculos'!I113+'Simulador para calculos'!J113+'Simulador para calculos'!K113+'Simulador para calculos'!L113+'Simulador para calculos'!M113)*NOT($J$12),"") ->  | U113: =IFERROR((1+'Simulación Cliente'!$E$21)^(T113/360),"") ->  | AB113: 92 | AS113: 92 | AT113: 2030-05-01 | AU113: 30 | AV113: 2799 | AW113: -695112.6129 | AX113: 18683.52393 | AY113: -8295.885717 | AZ113: -312.8006758 | BA113: 153.9469269 | BB113: 412357.84 | BC113: 422586.6245 | BD113: -713796.1369 | BE113: 2.10998627e-34 | BF113: 2.10998627e-34 | BJ113: 92 | BK113: 2030-05-01 | BL113: 30 | BM113: 2799 | BN113: -4537773.388 | BO113: 25777.14913 | BP113: -54156.47585 | BQ113: -2041.998025 | BR113: 153.9469269 | BS113: 412357.84 | BT113: 382090.4622 | BU113: -4563550.537 | BV113: 2.10998627e-34 | BW113: 2.10998627e-34 | CA113: 92 | CB113: 2030-05-01 | CC113: 30 | CD113: 2799 | CE113: -695112.6129 | CF113: 18683.52393 | CG113: -8295.885717 | CH113: -312.8006758 | CI113: 153.9469269 | CJ113: 412357.84 | CK113: 422586.6245 | CL113: -713796.1369 | CM113: 2.10998627e-34 | CN113: 2.10998627e-34 | CR113: 92 | CS113: 2030-05-01 | CT113: 30 | CU113: 2799 | CV113: -4537773.388 | CW113: 25777.14913 | CX113: -54156.47585 | CY113: -2041.998025 | CZ113: 153.9469269 | DA113: 412357.84 | DB113: 382090.4622 | DC113: -4563550.537 | DD113: 2.10998627e-34 | DE113: 2.10998627e-34
B114: 93 | S114: =IFERROR((I114+J114+K114+L114+M114)*$J$12+('Simulador para calculos'!I114+'Simulador para calculos'!J114+'Simulador para calculos'!K114+'Simulador para calculos'!L114+'Simulador para calculos'!M114)*NOT($J$12),"") ->  | U114: =IFERROR((1+'Simulación Cliente'!$E$21)^(T114/360),"") ->  | AB114: 93 | AS114: 93 | AT114: 2030-06-01 | AU114: 31 | AV114: 2830 | AW114: -713796.1369 | AX114: 19211.32767 | AY114: -8804.572434 | AZ114: -331.9176926 | BA114: 153.9469269 | BB114: 412357.84 | BC114: 422586.6245 | BD114: -733007.4645 | BE114: 8.939394278e-35 | BF114: 8.939394278e-35 | BJ114: 93 | BK114: 2030-06-01 | BL114: 31 | BM114: 2830 | BN114: -4563550.537 | BO114: 27991.48007 | BP114: -56290.73791 | BQ114: -2122.066913 | BR114: 153.9469269 | BS114: 412357.84 | BT114: 382090.4622 | BU114: -4591542.018 | BV114: 8.939394278e-35 | BW114: 8.939394278e-35 | CA114: 93 | CB114: 2030-06-01 | CC114: 31 | CD114: 2830 | CE114: -713796.1369 | CF114: 19211.32767 | CG114: -8804.572434 | CH114: -331.9176926 | CI114: 153.9469269 | CJ114: 412357.84 | CK114: 422586.6245 | CL114: -733007.4645 | CM114: 8.939394278e-35 | CN114: 8.939394278e-35 | CR114: 93 | CS114: 2030-06-01 | CT114: 31 | CU114: 2830 | CV114: -4563550.537 | CW114: 27991.48007 | CX114: -56290.73791 | CY114: -2122.066913 | CZ114: 153.9469269 | DA114: 412357.84 | DB114: 382090.4622 | DC114: -4591542.018 | DD114: 8.939394278e-35 | DE114: 8.939394278e-35
B115: 94 | S115: =IFERROR((I115+J115+K115+L115+M115)*$J$12+('Simulador para calculos'!I115+'Simulador para calculos'!J115+'Simulador para calculos'!K115+'Simulador para calculos'!L115+'Simulador para calculos'!M115)*NOT($J$12),"") ->  | U115: =IFERROR((1+'Simulación Cliente'!$E$21)^(T115/360),"") ->  | AB115: 94 | AS115: 94 | AT115: 2030-07-01 | AU115: 30 | AV115: 2860 | AW115: -733007.4645 | AX115: 19152.83623 | AY115: -8748.145325 | AZ115: -329.853359 | BA115: 153.9469269 | BB115: 412357.84 | BC115: 422586.6245 | BD115: -752160.3008 | BE115: 3.89374849e-35 | BF115: 3.89374849e-35 | BJ115: 94 | BK115: 2030-07-01 | BL115: 30 | BM115: 2860 | BN115: -4591542.018 | BO115: 408533.5139 | BP115: -54798.18253 | BQ115: -2066.193908 | BR115: 153.9469269 | BS115: 412357.84 | BT115: 764180.9243 | BU115: -5000075.531 | BV115: 7.787496981e-35 | BW115: 3.89374849e-35 | CA115: 94 | CB115: 2030-07-01 | CC115: 30 | CD115: 2860 | CE115: -733007.4645 | CF115: 19152.83623 | CG115: -8748.145325 | CH115: -329.853359 | CI115: 153.9469269 | CJ115: 412357.84 | CK115: 422586.6245 | CL115: -752160.3008 | CM115: 3.89374849e-35 | CN115: 3.89374849e-35 | CR115: 94 | CS115: 2030-07-01 | CT115: 30 | CU115: 2860 | CV115: -4591542.018 | CW115: 408533.5139 | CX115: -54798.18253 | CY115: -2066.193908 | CZ115: 153.9469269 | DA115: 412357.84 | DB115: 764180.9243 | DC115: -5000075.531 | DD115: 7.787496981e-35 | DE115: 3.89374849e-35
B116: 95 | S116: =IFERROR((I116+J116+K116+L116+M116)*$J$12+('Simulador para calculos'!I116+'Simulador para calculos'!J116+'Simulador para calculos'!K116+'Simulador para calculos'!L116+'Simulador para calculos'!M116)*NOT($J$12),"") ->  | U116: =IFERROR((1+'Simulación Cliente'!$E$21)^(T116/360),"") ->  | AB116: 95 | AS116: 95 | AT116: 2030-08-01 | AU116: 31 | AV116: 2891 | AW116: -752160.3008 | AX116: 19702.38357 | AY116: -9277.788864 | AZ116: -349.7571626 | BA116: 153.9469269 | BB116: 412357.84 | BC116: 422586.6245 | BD116: -771862.6843 | BE116: 1.649667273e-35 | BF116: 1.649667273e-35 | BJ116: 95 | BK116: 2030-08-01 | BL116: 31 | BM116: 2891 | BN116: -5000075.531 | BO116: 33578.93858 | BP116: -61675.21077 | BQ116: -2325.052557 | BR116: 153.9469269 | BS116: 412357.84 | BT116: 382090.4622 | BU116: -5033654.47 | BV116: 1.649667273e-35 | BW116: 1.649667273e-35 | CA116: 95 | CB116: 2030-08-01 | CC116: 31 | CD116: 2891 | CE116: -752160.3008 | CF116: 19702.38357 | CG116: -9277.788864 | CH116: -349.7571626 | CI116: 153.9469269 | CJ116: 412357.84 | CK116: 422586.6245 | CL116: -771862.6843 | CM116: 1.649667273e-35 | CN116: 1.649667273e-35 | CR116: 95 | CS116: 2030-08-01 | CT116: 31 | CU116: 2891 | CV116: -5000075.531 | CW116: 33578.93858 | CX116: -61675.21077 | CY116: -2325.052557 | CZ116: 153.9469269 | DA116: 412357.84 | DB116: 382090.4622 | DC116: -5033654.47 | DD116: 1.649667273e-35 | DE116: 1.649667273e-35
B117: 96 | S117: =IFERROR((I117+J117+K117+L117+M117)*$J$12+('Simulador para calculos'!I117+'Simulador para calculos'!J117+'Simulador para calculos'!K117+'Simulador para calculos'!L117+'Simulador para calculos'!M117)*NOT($J$12),"") ->  | U117: =IFERROR((1+'Simulación Cliente'!$E$21)^(T117/360),"") ->  | AB117: 96 | AS117: 96 | AT117: 2030-09-01 | AU117: 31 | AV117: 2922 | AW117: -771862.6843 | AX117: 19954.57131 | AY117: -9520.814924 | AZ117: -358.9188397 | BA117: 153.9469269 | BB117: 412357.84 | BC117: 422586.6245 | BD117: -791817.2556 | BE117: 6.989157414e-36 | BF117: 6.989157414e-36 | BJ117: 96 | BK117: 2030-09-01 | BL117: 31 | BM117: 2922 | BN117: -5033654.47 | BO117: 34008.74427 | BP117: -62089.40214 | BQ117: -2340.666881 | BR117: 153.9469269 | BS117: 412357.84 | BT117: 382090.4622 | BU117: -5067663.214 | BV117: 6.989157414e-36 | BW117: 6.989157414e-36 | CA117: 96 | CB117: 2030-09-01 | CC117: 31 | CD117: 2922 | CE117: -771862.6843 | CF117: 19954.57131 | CG117: -9520.814924 | CH117: -358.9188397 | CI117: 153.9469269 | CJ117: 412357.84 | CK117: 422586.6245 | CL117: -791817.2556 | CM117: 6.989157414e-36 | CN117: 6.989157414e-36 | CR117: 96 | CS117: 2030-09-01 | CT117: 31 | CU117: 2922 | CV117: -5033654.47 | CW117: 34008.74427 | CX117: -62089.40214 | CY117: -2340.666881 | CZ117: 153.9469269 | DA117: 412357.84 | DB117: 382090.4622 | DC117: -5067663.214 | DD117: 6.989157414e-36 | DE117: 6.989157414e-36
B118: 97 | S118: =IFERROR((I118+J118+K118+L118+M118)*$J$12+('Simulador para calculos'!I118+'Simulador para calculos'!J118+'Simulador para calculos'!K118+'Simulador para calculos'!L118+'Simulador para calculos'!M118)*NOT($J$12),"") ->  | U118: =IFERROR((1+'Simulación Cliente'!$E$21)^(T118/360),"") ->  | AB118: 97 | AS118: 97 | AT118: 2030-10-01 | AU118: 30 | AV118: 2952 | AW118: -791817.2556 | AX118: 19881.17152 | AY118: -9450.016212 | AZ118: -356.317765 | BA118: 153.9469269 | BB118: 412357.84 | BC118: 422586.6245 | BD118: -811698.4271 | BE118: 3.044280215e-36 | BF118: 3.044280215e-36 | BJ118: 97 | BK118: 2030-10-01 | BL118: 30 | BM118: 2952 | BN118: -5067663.214 | BO118: 32339.61864 | BP118: -60480.49495 | BQ118: -2280.448446 | BR118: 153.9469269 | BS118: 412357.84 | BT118: 382090.4622 | BU118: -5100002.833 | BV118: 3.044280215e-36 | BW118: 3.044280215e-36 | CA118: 97 | CB118: 2030-10-01 | CC118: 30 | CD118: 2952 | CE118: -791817.2556 | CF118: 19881.17152 | CG118: -9450.016212 | CH118: -356.317765 | CI118: 153.9469269 | CJ118: 412357.84 | CK118: 422586.6245 | CL118: -811698.4271 | CM118: 3.044280215e-36 | CN118: 3.044280215e-36 | CR118: 97 | CS118: 2030-10-01 | CT118: 30 | CU118: 2952 | CV118: -5067663.214 | CW118: 32339.61864 | CX118: -60480.49495 | CY118: -2280.448446 | CZ118: 153.9469269 | DA118: 412357.84 | DB118: 382090.4622 | DC118: -5100002.833 | DD118: 3.044280215e-36 | DE118: 3.044280215e-36
B119: 98 | S119: =IFERROR((I119+J119+K119+L119+M119)*$J$12+('Simulador para calculos'!I119+'Simulador para calculos'!J119+'Simulador para calculos'!K119+'Simulador para calculos'!L119+'Simulador para calculos'!M119)*NOT($J$12),"") ->  | U119: =IFERROR((1+'Simulación Cliente'!$E$21)^(T119/360),"") ->  | AB119: 98 | AS119: 98 | AT119: 2030-11-01 | AU119: 31 | AV119: 2983 | AW119: -811698.4271 | AX119: 20464.46321 | AY119: -10012.18307 | AZ119: -377.442599 | BA119: 153.9469269 | BB119: 412357.84 | BC119: 422586.6245 | BD119: -832162.8904 | BE119: 1.289772427e-36 | BF119: 1.289772427e-36 | BJ119: 98 | BK119: 2030-11-01 | BL119: 31 | BM119: 2983 | BN119: -5100002.833 | BO119: 34857.99398 | BP119: -62907.79963 | BQ119: -2371.519101 | BR119: 153.9469269 | BS119: 412357.84 | BT119: 382090.4622 | BU119: -5134860.827 | BV119: 1.289772427e-36 | BW119: 1.289772427e-36 | CA119: 98 | CB119: 2030-11-01 | CC119: 31 | CD119: 2983 | CE119: -811698.4271 | CF119: 20464.46321 | CG119: -10012.18307 | CH119: -377.442599 | CI119: 153.9469269 | CJ119: 412357.84 | CK119: 422586.6245 | CL119: -832162.8904 | CM119: 1.289772427e-36 | CN119: 1.289772427e-36 | CR119: 98 | CS119: 2030-11-01 | CT119: 31 | CU119: 2983 | CV119: -5100002.833 | CW119: 34857.99398 | CX119: -62907.79963 | CY119: -2371.519101 | CZ119: 153.9469269 | DA119: 412357.84 | DB119: 382090.4622 | DC119: -5134860.827 | DD119: 1.289772427e-36 | DE119: 1.289772427e-36
B120: 99 | S120: =IFERROR((I120+J120+K120+L120+M120)*$J$12+('Simulador para calculos'!I120+'Simulador para calculos'!J120+'Simulador para calculos'!K120+'Simulador para calculos'!L120+'Simulador para calculos'!M120)*NOT($J$12),"") ->  | U120: =IFERROR((1+'Simulación Cliente'!$E$21)^(T120/360),"") ->  | AB120: 99 | AS120: 99 | AT120: 2030-12-01 | AU120: 30 | AV120: 3013 | AW120: -832162.8904 | AX120: 20380.83576 | AY120: -9931.524918 | AZ120: -374.4733007 | BA120: 153.9469269 | BB120: 412357.84 | BC120: 422586.6245 | BD120: -852543.7261 | BE120: 5.617885603e-37 | BF120: 5.617885603e-37 | BJ120: 99 | BK120: 2030-12-01 | BL120: 30 | BM120: 3013 | BN120: -5134860.827 | BO120: 415262.2959 | BP120: -61282.47107 | BQ120: -2310.687372 | BR120: 153.9469269 | BS120: 412357.84 | BT120: 764180.9243 | BU120: -5550123.123 | BV120: 1.123577121e-36 | BW120: 5.617885603e-37 | CA120: 99 | CB120: 2030-12-01 | CC120: 30 | CD120: 3013 | CE120: -832162.8904 | CF120: 20380.83576 | CG120: -9931.524918 | CH120: -374.4733007 | CI120: 153.9469269 | CJ120: 412357.84 | CK120: 422586.6245 | CL120: -852543.7261 | CM120: 5.617885603e-37 | CN120: 5.617885603e-37 | CR120: 99 | CS120: 2030-12-01 | CT120: 30 | CU120: 3013 | CV120: -5134860.827 | CW120: 415262.2959 | CX120: -61282.47107 | CY120: -2310.687372 | CZ120: 153.9469269 | DA120: 412357.84 | DB120: 764180.9243 | DC120: -5550123.123 | DD120: 1.123577121e-36 | DE120: 5.617885603e-37
B121: 100 | S121: =IFERROR((I121+J121+K121+L121+M121)*$J$12+('Simulador para calculos'!I121+'Simulador para calculos'!J121+'Simulador para calculos'!K121+'Simulador para calculos'!L121+'Simulador para calculos'!M121)*NOT($J$12),"") ->  | U121: =IFERROR((1+'Simulación Cliente'!$E$21)^(T121/360),"") ->  | AB121: 100 | AS121: 100 | AT121: 2031-01-01 | AU121: 31 | AV121: 3044 | AW121: -852543.7261 | AX121: 20987.27729 | AY121: -10516.00394 | AZ121: -396.4358055 | BA121: 153.9469269 | BB121: 412357.84 | BC121: 422586.6245 | BD121: -873531.0034 | BE121: 2.380133706e-37 | BF121: 2.380133706e-37 | BJ121: 100 | BK121: 2031-01-01 | BL121: 31 | BM121: 3044 | BN121: -5550123.123 | BO121: 40619.47036 | BP121: -68459.96851 | BQ121: -2580.826605 | BR121: 153.9469269 | BS121: 412357.84 | BT121: 382090.4622 | BU121: -5590742.593 | BV121: 2.380133706e-37 | BW121: 2.380133706e-37 | CA121: 100 | CB121: 2031-01-01 | CC121: 31 | CD121: 3044 | CE121: -852543.7261 | CF121: 20987.27729 | CG121: -10516.00394 | CH121: -396.4358055 | CI121: 153.9469269 | CJ121: 412357.84 | CK121: 422586.6245 | CL121: -873531.0034 | CM121: 2.380133706e-37 | CN121: 2.380133706e-37 | CR121: 100 | CS121: 2031-01-01 | CT121: 31 | CU121: 3044 | CV121: -5550123.123 | CW121: 40619.47036 | CX121: -68459.96851 | CY121: -2580.826605 | CZ121: 153.9469269 | DA121: 412357.84 | DB121: 382090.4622 | DC121: -5590742.593 | DD121: 2.380133706e-37 | DE121: 2.380133706e-37
B122: 101 | S122: =IFERROR((I122+J122+K122+L122+M122)*$J$12+('Simulador para calculos'!I122+'Simulador para calculos'!J122+'Simulador para calculos'!K122+'Simulador para calculos'!L122+'Simulador para calculos'!M122)*NOT($J$12),"") ->  | U122: =IFERROR((1+'Simulación Cliente'!$E$21)^(T122/360),"") ->  | AB122: 101 | AS122: 101 | AT122: 2031-02-01 | AU122: 31 | AV122: 3075 | AW122: -873531.0034 | AX122: 21255.91149 | AY122: -10774.87898 | AZ122: -406.1949626 | BA122: 153.9469269 | BB122: 412357.84 | BC122: 422586.6245 | BD122: -894786.9149 | BE122: 1.00839299e-37 | BF122: 1.00839299e-37 | BJ122: 101 | BK122: 2031-02-01 | BL122: 31 | BM122: 3075 | BN122: -5590742.593 | BO122: 41139.39386 | BP122: -68961.00382 | BQ122: -2599.714801 | BR122: 153.9469269 | BS122: 412357.84 | BT122: 382090.4622 | BU122: -5631881.987 | BV122: 1.00839299e-37 | BW122: 1.00839299e-37 | CA122: 101 | CB122: 2031-02-01 | CC122: 31 | CD122: 3075 | CE122: -873531.0034 | CF122: 21255.91149 | CG122: -10774.87898 | CH122: -406.1949626 | CI122: 153.9469269 | CJ122: 412357.84 | CK122: 422586.6245 | CL122: -894786.9149 | CM122: 1.00839299e-37 | CN122: 1.00839299e-37 | CR122: 101 | CS122: 2031-02-01 | CT122: 31 | CU122: 3075 | CV122: -5590742.593 | CW122: 41139.39386 | CX122: -68961.00382 | CY122: -2599.714801 | CZ122: 153.9469269 | DA122: 412357.84 | DB122: 382090.4622 | DC122: -5631881.987 | DD122: 1.00839299e-37 | DE122: 1.00839299e-37
B123: 102 | S123: =IFERROR((I123+J123+K123+L123+M123)*$J$12+('Simulador para calculos'!I123+'Simulador para calculos'!J123+'Simulador para calculos'!K123+'Simulador para calculos'!L123+'Simulador para calculos'!M123)*NOT($J$12),"") ->  | U123: =IFERROR((1+'Simulación Cliente'!$E$21)^(T123/360),"") ->  | AB123: 102 | AS123: 102 | AT123: 2031-03-01 | AU123: 28 | AV123: 3103 | AW123: -894786.9149 | AX123: 20413.68338 | AY123: -9963.040975 | AZ123: -375.804868 | BA123: 153.9469269 | BB123: 412357.84 | BC123: 422586.6245 | BD123: -915200.5983 | BE123: 4.642504151e-38 | BF123: 4.642504151e-38 | BJ123: 102 | BK123: 2031-03-01 | BL123: 28 | BM123: 3103 | BN123: -5631881.987 | BO123: 34652.44722 | BP123: -62708.41702 | BQ123: -2365.354959 | BR123: 153.9469269 | BS123: 412357.84 | BT123: 382090.4622 | BU123: -5666534.434 | BV123: 4.642504151e-38 | BW123: 4.642504151e-38 | CA123: 102 | CB123: 2031-03-01 | CC123: 28 | CD123: 3103 | CE123: -894786.9149 | CF123: 20413.68338 | CG123: -9963.040975 | CH123: -375.804868 | CI123: 153.9469269 | CJ123: 412357.84 | CK123: 422586.6245 | CL123: -915200.5983 | CM123: 4.642504151e-38 | CN123: 4.642504151e-38 | CR123: 102 | CS123: 2031-03-01 | CT123: 28 | CU123: 3103 | CV123: -5631881.987 | CW123: 34652.44722 | CX123: -62708.41702 | CY123: -2365.354959 | CZ123: 153.9469269 | DA123: 412357.84 | DB123: 382090.4622 | DC123: -5666534.434 | DD123: 4.642504151e-38 | DE123: 4.642504151e-38
B124: 103 | S124: =IFERROR((I124+J124+K124+L124+M124)*$J$12+('Simulador para calculos'!I124+'Simulador para calculos'!J124+'Simulador para calculos'!K124+'Simulador para calculos'!L124+'Simulador para calculos'!M124)*NOT($J$12),"") ->  | U124: =IFERROR((1+'Simulación Cliente'!$E$21)^(T124/360),"") ->  | AB124: 103 | AS124: 103 | AT124: 2031-04-01 | AU124: 31 | AV124: 3134 | AW124: -915200.5983 | AX124: 21789.27644 | AY124: -11288.86743 | AZ124: -425.5714695 | BA124: 153.9469269 | BB124: 412357.84 | BC124: 422586.6245 | BD124: -936989.8747 | BE124: 1.966893132e-38 | BF124: 1.966893132e-38 | BJ124: 103 | BK124: 2031-04-01 | BL124: 31 | BM124: 3134 | BN124: -5666534.434 | BO124: 42109.51877 | BP124: -69895.88525 | BQ124: -2634.958271 | BR124: 153.9469269 | BS124: 412357.84 | BT124: 382090.4622 | BU124: -5708643.953 | BV124: 1.966893132e-38 | BW124: 1.966893132e-38 | CA124: 103 | CB124: 2031-04-01 | CC124: 31 | CD124: 3134 | CE124: -915200.5983 | CF124: 21789.27644 | CG124: -11288.86743 | CH124: -425.5714695 | CI124: 153.9469269 | CJ124: 412357.84 | CK124: 422586.6245 | CL124: -936989.8747 | CM124: 1.966893132e-38 | CN124: 1.966893132e-38 | CR124: 103 | CS124: 2031-04-01 | CT124: 31 | CU124: 3134 | CV124: -5666534.434 | CW124: 42109.51877 | CX124: -69895.88525 | CY124: -2634.958271 | CZ124: 153.9469269 | DA124: 412357.84 | DB124: 382090.4622 | DC124: -5708643.953 | DD124: 1.966893132e-38 | DE124: 1.966893132e-38
B125: 104 | S125: =IFERROR((I125+J125+K125+L125+M125)*$J$12+('Simulador para calculos'!I125+'Simulador para calculos'!J125+'Simulador para calculos'!K125+'Simulador para calculos'!L125+'Simulador para calculos'!M125)*NOT($J$12),"") ->  | U125: =IFERROR((1+'Simulación Cliente'!$E$21)^(T125/360),"") ->  | AB125: 104 | AS125: 104 | AT125: 2031-05-01 | AU125: 30 | AV125: 3164 | AW125: -936989.8747 | AX125: 21679.07523 | AY125: -11182.59225 | AZ125: -421.6454436 | BA125: 153.9469269 | BB125: 412357.84 | BC125: 422586.6245 | BD125: -958668.9499 | BE125: 8.567232776e-39 | BF125: 8.567232776e-39 | BJ125: 104 | BK125: 2031-05-01 | BL125: 30 | BM125: 3164 | BN125: -5708643.953 | BO125: 40277.90384 | BP125: -68130.33881 | BQ125: -2568.889779 | BR125: 153.9469269 | BS125: 412357.84 | BT125: 382090.4622 | BU125: -5748921.857 | BV125: 8.567232776e-39 | BW125: 8.567232776e-39 | CA125: 104 | CB125: 2031-05-01 | CC125: 30 | CD125: 3164 | CE125: -936989.8747 | CF125: 21679.07523 | CG125: -11182.59225 | CH125: -421.6454436 | CI125: 153.9469269 | CJ125: 412357.84 | CK125: 422586.6245 | CL125: -958668.9499 | CM125: 8.567232776e-39 | CN125: 8.567232776e-39 | CR125: 104 | CS125: 2031-05-01 | CT125: 30 | CU125: 3164 | CV125: -5708643.953 | CW125: 40277.90384 | CX125: -68130.33881 | CY125: -2568.889779 | CZ125: 153.9469269 | DA125: 412357.84 | DB125: 382090.4622 | DC125: -5748921.857 | DD125: 8.567232776e-39 | DE125: 8.567232776e-39
B126: 105 | S126: =IFERROR((I126+J126+K126+L126+M126)*$J$12+('Simulador para calculos'!I126+'Simulador para calculos'!J126+'Simulador para calculos'!K126+'Simulador para calculos'!L126+'Simulador para calculos'!M126)*NOT($J$12),"") ->  | U126: =IFERROR((1+'Simulación Cliente'!$E$21)^(T126/360),"") ->  | AB126: 105 | AS126: 105 | AT126: 2031-06-01 | AU126: 31 | AV126: 3195 | AW126: -958668.9499 | AX126: 22345.66522 | AY126: -11825.04328 | AZ126: -445.7844046 | BA126: 153.9469269 | BB126: 412357.84 | BC126: 422586.6245 | BD126: -981014.6152 | BE126: 3.629685782e-39 | BF126: 3.629685782e-39 | BJ126: 105 | BK126: 2031-06-01 | BL126: 31 | BM126: 3195 | BN126: -5748921.857 | BO126: 43164.06618 | BP126: -70912.12223 | BQ126: -2673.26871 | BR126: 153.9469269 | BS126: 412357.84 | BT126: 382090.4622 | BU126: -5792085.923 | BV126: 3.629685782e-39 | BW126: 3.629685782e-39 | CA126: 105 | CB126: 2031-06-01 | CC126: 31 | CD126: 3195 | CE126: -958668.9499 | CF126: 22345.66522 | CG126: -11825.04328 | CH126: -445.7844046 | CI126: 153.9469269 | CJ126: 412357.84 | CK126: 422586.6245 | CL126: -981014.6152 | CM126: 3.629685782e-39 | CN126: 3.629685782e-39 | CR126: 105 | CS126: 2031-06-01 | CT126: 31 | CU126: 3195 | CV126: -5748921.857 | CW126: 43164.06618 | CX126: -70912.12223 | CY126: -2673.26871 | CZ126: 153.9469269 | DA126: 412357.84 | DB126: 382090.4622 | DC126: -5792085.923 | DD126: 3.629685782e-39 | DE126: 3.629685782e-39
B127: 106 | S127: =IFERROR((I127+J127+K127+L127+M127)*$J$12+('Simulador para calculos'!I127+'Simulador para calculos'!J127+'Simulador para calculos'!K127+'Simulador para calculos'!L127+'Simulador para calculos'!M127)*NOT($J$12),"") ->  | U127: =IFERROR((1+'Simulación Cliente'!$E$21)^(T127/360),"") ->  | AB127: 106 | AS127: 106 | AT127: 2031-07-01 | AU127: 30 | AV127: 3225 | AW127: -981014.6152 | AX127: 22224.3037 | AY127: -11708.00958 | AZ127: -441.4565768 | BA127: 153.9469269 | BB127: 412357.84 | BC127: 422586.6245 | BD127: -1003238.919 | BE127: 1.580988946e-39 | BF127: 1.580988946e-39 | BJ127: 106 | BK127: 2031-07-01 | BL127: 30 | BM127: 3225 | BN127: -5792085.923 | BO127: 423401.7608 | BP127: -69126.18471 | BQ127: -2606.438665 | BR127: 153.9469269 | BS127: 412357.84 | BT127: 764180.9243 | BU127: -6215487.684 | BV127: 3.161977892e-39 | BW127: 1.580988946e-39 | CA127: 106 | CB127: 2031-07-01 | CC127: 30 | CD127: 3225 | CE127: -981014.6152 | CF127: 22224.3037 | CG127: -11708.00958 | CH127: -441.4565768 | CI127: 153.9469269 | CJ127: 412357.84 | CK127: 422586.6245 | CL127: -1003238.919 | CM127: 1.580988946e-39 | CN127: 1.580988946e-39 | CR127: 106 | CS127: 2031-07-01 | CT127: 30 | CU127: 3225 | CV127: -5792085.923 | CW127: 423401.7608 | CX127: -69126.18471 | CY127: -2606.438665 | CZ127: 153.9469269 | DA127: 412357.84 | DB127: 764180.9243 | DC127: -6215487.684 | DD127: 3.161977892e-39 | DE127: 1.580988946e-39
B128: 107 | S128: =IFERROR((I128+J128+K128+L128+M128)*$J$12+('Simulador para calculos'!I128+'Simulador para calculos'!J128+'Simulador para calculos'!K128+'Simulador para calculos'!L128+'Simulador para calculos'!M128)*NOT($J$12),"") ->  | U128: =IFERROR((1+'Simulación Cliente'!$E$21)^(T128/360),"") ->  | AB128: 107 | AS128: 107 | AT128: 2031-08-01 | AU128: 31 | AV128: 3256 | AW128: -1003238.919 | AX128: 22916.15455 | AY128: -12374.80742 | AZ128: -466.5095956 | BA128: 153.9469269 | BB128: 412357.84 | BC128: 422586.6245 | BD128: -1026155.073 | BE128: 6.698187441e-40 | BF128: 6.698187441e-40 | BJ128: 107 | BK128: 2031-08-01 | BL128: 31 | BM128: 3256 | BN128: -6215487.684 | BO128: 49136.04313 | BP128: -76667.14443 | BQ128: -2890.223446 | BR128: 153.9469269 | BS128: 412357.84 | BT128: 382090.4622 | BU128: -6264623.727 | BV128: 6.698187441e-40 | BW128: 6.698187441e-40 | CA128: 107 | CB128: 2031-08-01 | CC128: 31 | CD128: 3256 | CE128: -1003238.919 | CF128: 22916.15455 | CG128: -12374.80742 | CH128: -466.5095956 | CI128: 153.9469269 | CJ128: 412357.84 | CK128: 422586.6245 | CL128: -1026155.073 | CM128: 6.698187441e-40 | CN128: 6.698187441e-40 | CR128: 107 | CS128: 2031-08-01 | CT128: 31 | CU128: 3256 | CV128: -6215487.684 | CW128: 49136.04313 | CX128: -76667.14443 | CY128: -2890.223446 | CZ128: 153.9469269 | DA128: 412357.84 | DB128: 382090.4622 | DC128: -6264623.727 | DD128: 6.698187441e-40 | DE128: 6.698187441e-40
B129: 108 | S129: =IFERROR((I129+J129+K129+L129+M129)*$J$12+('Simulador para calculos'!I129+'Simulador para calculos'!J129+'Simulador para calculos'!K129+'Simulador para calculos'!L129+'Simulador para calculos'!M129)*NOT($J$12),"") ->  | U129: =IFERROR((1+'Simulación Cliente'!$E$21)^(T129/360),"") ->  | AB129: 108 | AS129: 108 | AT129: 2031-09-01 | AU129: 31 | AV129: 3287 | AW129: -1026155.073 | AX129: 23209.47811 | AY129: -12657.47488 | AZ129: -477.1656873 | BA129: 153.9469269 | BB129: 412357.84 | BC129: 422586.6245 | BD129: -1049364.552 | BE129: 2.837825977e-40 | BF129: 2.837825977e-40 | BJ129: 108 | BK129: 2031-09-01 | BL129: 31 | BM129: 3287 | BN129: -6264623.727 | BO129: 49764.97757 | BP129: -77273.23044 | BQ129: -2913.071878 | BR129: 153.9469269 | BS129: 412357.84 | BT129: 382090.4622 | BU129: -6314388.704 | BV129: 2.837825977e-40 | BW129: 2.837825977e-40 | CA129: 108 | CB129: 2031-09-01 | CC129: 31 | CD129: 3287 | CE129: -1026155.073 | CF129: 23209.47811 | CG129: -12657.47488 | CH129: -477.1656873 | CI129: 153.9469269 | CJ129: 412357.84 | CK129: 422586.6245 | CL129: -1049364.552 | CM129: 2.837825977e-40 | CN129: 2.837825977e-40 | CR129: 108 | CS129: 2031-09-01 | CT129: 31 | CU129: 3287 | CV129: -6264623.727 | CW129: 49764.97757 | CX129: -77273.23044 | CY129: -2913.071878 | CZ129: 153.9469269 | DA129: 412357.84 | DB129: 382090.4622 | DC129: -6314388.704 | DD129: 2.837825977e-40 | DE129: 2.837825977e-40
B130: 109 | S130: =IFERROR((I130+J130+K130+L130+M130)*$J$12+('Simulador para calculos'!I130+'Simulador para calculos'!J130+'Simulador para calculos'!K130+'Simulador para calculos'!L130+'Simulador para calculos'!M130)*NOT($J$12),"") ->  | U130: =IFERROR((1+'Simulación Cliente'!$E$21)^(T130/360),"") ->  | AB130: 109 | AS130: 109 | AT130: 2031-10-01 | AU130: 30 | AV130: 3317 | AW130: -1049364.552 | AX130: 23070.7898 | AY130: -12523.73822 | AZ130: -472.2140482 | BA130: 153.9469269 | BB130: 412357.84 | BC130: 422586.6245 | BD130: -1072435.341 | BE130: 1.236077106e-40 | BF130: 1.236077106e-40 | BJ130: 109 | BK130: 2031-10-01 | BL130: 30 | BM130: 3317 | BN130: -6314388.704 | BO130: 47779.80569 | BP130: -75359.65553 | BQ130: -2841.474917 | BR130: 153.9469269 | BS130: 412357.84 | BT130: 382090.4622 | BU130: -6362168.51 | BV130: 1.236077106e-40 | BW130: 1.236077106e-40 | CA130: 109 | CB130: 2031-10-01 | CC130: 30 | CD130: 3317 | CE130: -1049364.552 | CF130: 23070.7898 | CG130: -12523.73822 | CH130: -472.2140482 | CI130: 153.9469269 | CJ130: 412357.84 | CK130: 422586.6245 | CL130: -1072435.341 | CM130: 1.236077106e-40 | CN130: 1.236077106e-40 | CR130: 109 | CS130: 2031-10-01 | CT130: 30 | CU130: 3317 | CV130: -6314388.704 | CW130: 47779.80569 | CX130: -75359.65553 | CY130: -2841.474917 | CZ130: 153.9469269 | DA130: 412357.84 | DB130: 382090.4622 | DC130: -6362168.51 | DD130: 1.236077106e-40 | DE130: 1.236077106e-40
B131: 110 | S131: =IFERROR((I131+J131+K131+L131+M131)*$J$12+('Simulador para calculos'!I131+'Simulador para calculos'!J131+'Simulador para calculos'!K131+'Simulador para calculos'!L131+'Simulador para calculos'!M131)*NOT($J$12),"") ->  | U131: =IFERROR((1+'Simulación Cliente'!$E$21)^(T131/360),"") ->  | AB131: 110 | AS131: 110 | AT131: 2031-11-01 | AU131: 31 | AV131: 3348 | AW131: -1072435.341 | AX131: 23801.85903 | AY131: -13228.33531 | AZ131: -498.6861733 | BA131: 153.9469269 | BB131: 412357.84 | BC131: 422586.6245 | BD131: -1096237.2 | BE131: 5.236896926e-41 | BF131: 5.236896926e-41 | BJ131: 110 | BK131: 2031-11-01 | BL131: 31 | BM131: 3348 | BN131: -6362168.51 | BO131: 51013.53707 | BP131: -78476.43128 | BQ131: -2958.430542 | BR131: 153.9469269 | BS131: 412357.84 | BT131: 382090.4622 | BU131: -6413182.047 | BV131: 5.236896926e-41 | BW131: 5.236896926e-41 | CA131: 110 | CB131: 2031-11-01 | CC131: 31 | CD131: 3348 | CE131: -1072435.341 | CF131: 23801.85903 | CG131: -13228.33531 | CH131: -498.6861733 | CI131: 153.9469269 | CJ131: 412357.84 | CK131: 422586.6245 | CL131: -1096237.2 | CM131: 5.236896926e-41 | CN131: 5.236896926e-41 | CR131: 110 | CS131: 2031-11-01 | CT131: 31 | CU131: 3348 | CV131: -6362168.51 | CW131: 51013.53707 | CX131: -78476.43128 | CY131: -2958.430542 | CZ131: 153.9469269 | DA131: 412357.84 | DB131: 382090.4622 | DC131: -6413182.047 | DD131: 5.236896926e-41 | DE131: 5.236896926e-41
B132: 111 | S132: =IFERROR((I132+J132+K132+L132+M132)*$J$12+('Simulador para calculos'!I132+'Simulador para calculos'!J132+'Simulador para calculos'!K132+'Simulador para calculos'!L132+'Simulador para calculos'!M132)*NOT($J$12),"") ->  | U132: =IFERROR((1+'Simulación Cliente'!$E$21)^(T132/360),"") ->  | AB132: 111 | AS132: 111 | AT132: 2031-12-01 | AU132: 30 | AV132: 3378 | AW132: -1096237.2 | AX132: 23651.28846 | AY132: -13083.14417 | AZ132: -493.3067402 | BA132: 153.9469269 | BB132: 412357.84 | BC132: 422586.6245 | BD132: -1119888.489 | BE132: 2.281044875e-41 | BF132: 2.281044875e-41 | BJ132: 111 | BK132: 2031-12-01 | BL132: 30 | BM132: 3378 | BN132: -6413182.047 | BO132: 431093.7831 | BP132: -76538.71381 | BQ132: -2885.931921 | BR132: 153.9469269 | BS132: 412357.84 | BT132: 764180.9243 | BU132: -6844275.83 | BV132: 4.562089749e-41 | BW132: 2.281044875e-41 | CA132: 111 | CB132: 2031-12-01 | CC132: 30 | CD132: 3378 | CE132: -1096237.2 | CF132: 23651.28846 | CG132: -13083.14417 | CH132: -493.3067402 | CI132: 153.9469269 | CJ132: 412357.84 | CK132: 422586.6245 | CL132: -1119888.489 | CM132: 2.281044875e-41 | CN132: 2.281044875e-41 | CR132: 111 | CS132: 2031-12-01 | CT132: 30 | CU132: 3378 | CV132: -6413182.047 | CW132: 431093.7831 | CX132: -76538.71381 | CY132: -2885.931921 | CZ132: 153.9469269 | DA132: 412357.84 | DB132: 764180.9243 | DC132: -6844275.83 | DD132: 4.562089749e-41 | DE132: 2.281044875e-41
B133: 112 | S133: =IFERROR((I133+J133+K133+L133+M133)*$J$12+('Simulador para calculos'!I133+'Simulador para calculos'!J133+'Simulador para calculos'!K133+'Simulador para calculos'!L133+'Simulador para calculos'!M133)*NOT($J$12),"") ->  | U133: =IFERROR((1+'Simulación Cliente'!$E$21)^(T133/360),"") ->  | AB133: 112 | AS133: 112 | AT133: 2032-01-01 | AU133: 31 | AV133: 3409 | AW133: -1119888.489 | AX133: 24409.25264 | AY133: -13813.66304 | AZ133: -520.7520523 | BA133: 153.9469269 | BB133: 412357.84 | BC133: 422586.6245 | BD133: -1144297.741 | BE133: 9.66411952e-42 | BF133: 9.66411952e-42 | BJ133: 112 | BK133: 2032-01-01 | BL133: 31 | BM133: 3409 | BN133: -6844275.83 | BO133: 57184.44294 | BP133: -84423.15556 | BQ133: -3182.612127 | BR133: 153.9469269 | BS133: 412357.84 | BT133: 382090.4622 | BU133: -6901460.273 | BV133: 9.66411952e-42 | BW133: 9.66411952e-42 | CA133: 112 | CB133: 2032-01-01 | CC133: 31 | CD133: 3409 | CE133: -1119888.489 | CF133: 24409.25264 | CG133: -13813.66304 | CH133: -520.7520523 | CI133: 153.9469269 | CJ133: 412357.84 | CK133: 422586.6245 | CL133: -1144297.741 | CM133: 9.66411952e-42 | CN133: 9.66411952e-42 | CR133: 112 | CS133: 2032-01-01 | CT133: 31 | CU133: 3409 | CV133: -6844275.83 | CW133: 57184.44294 | CX133: -84423.15556 | CY133: -3182.612127 | CZ133: 153.9469269 | DA133: 412357.84 | DB133: 382090.4622 | DC133: -6901460.273 | DD133: 9.66411952e-42 | DE133: 9.66411952e-42
B134: 113 | S134: =IFERROR((I134+J134+K134+L134+M134)*$J$12+('Simulador para calculos'!I134+'Simulador para calculos'!J134+'Simulador para calculos'!K134+'Simulador para calculos'!L134+'Simulador para calculos'!M134)*NOT($J$12),"") ->  | U134: =IFERROR((1+'Simulación Cliente'!$E$21)^(T134/360),"") ->  | AB134: 113 | AS134: 113 | AT134: 2032-02-01 | AU134: 31 | AV134: 3440 | AW134: -1144297.741 | AX134: 24721.68764 | AY134: -14114.74766 | AZ134: -532.1024399 | BA134: 153.9469269 | BB134: 412357.84 | BC134: 422586.6245 | BD134: -1169019.429 | BE134: 4.094404592e-42 | BF134: 4.094404592e-42 | BJ134: 113 | BK134: 2032-02-01 | BL134: 31 | BM134: 3440 | BN134: -6901460.273 | BO134: 57916.39576 | BP134: -85128.51742 | BQ134: -3209.203092 | BR134: 153.9469269 | BS134: 412357.84 | BT134: 382090.4622 | BU134: -6959376.669 | BV134: 4.094404592e-42 | BW134: 4.094404592e-42 | CA134: 113 | CB134: 2032-02-01 | CC134: 31 | CD134: 3440 | CE134: -1144297.741 | CF134: 24721.68764 | CG134: -14114.74766 | CH134: -532.1024399 | CI134: 153.9469269 | CJ134: 412357.84 | CK134: 422586.6245 | CL134: -1169019.429 | CM134: 4.094404592e-42 | CN134: 4.094404592e-42 | CR134: 113 | CS134: 2032-02-01 | CT134: 31 | CU134: 3440 | CV134: -6901460.273 | CW134: 57916.39576 | CX134: -85128.51742 | CY134: -3209.203092 | CZ134: 153.9469269 | DA134: 412357.84 | DB134: 382090.4622 | DC134: -6959376.669 | DD134: 4.094404592e-42 | DE134: 4.094404592e-42
B135: 114 | S135: =IFERROR((I135+J135+K135+L135+M135)*$J$12+('Simulador para calculos'!I135+'Simulador para calculos'!J135+'Simulador para calculos'!K135+'Simulador para calculos'!L135+'Simulador para calculos'!M135)*NOT($J$12),"") ->  | U135: =IFERROR((1+'Simulación Cliente'!$E$21)^(T135/360),"") ->  | AB135: 114 | AS135: 114 | AT135: 2032-03-01 | AU135: 29 | AV135: 3469 | AW135: -1169019.429 | AX135: 24067.3969 | AY135: -13484.03972 | AZ135: -508.5196383 | BA135: 153.9469269 | BB135: 412357.84 | BC135: 422586.6245 | BD135: -1193086.826 | BE135: 1.833504155e-42 | BF135: 1.833504155e-42 | BJ135: 114 | BK135: 2032-03-01 | BL135: 29 | BM135: 3469 | BN135: -6959376.669 | BO135: 52878.82296 | BP135: -80272.84156 | BQ135: -3027.30615 | BR135: 153.9469269 | BS135: 412357.84 | BT135: 382090.4622 | BU135: -7012255.492 | BV135: 1.833504155e-42 | BW135: 1.833504155e-42 | CA135: 114 | CB135: 2032-03-01 | CC135: 29 | CD135: 3469 | CE135: -1169019.429 | CF135: 24067.3969 | CG135: -13484.03972 | CH135: -508.5196383 | CI135: 153.9469269 | CJ135: 412357.84 | CK135: 422586.6245 | CL135: -1193086.826 | CM135: 1.833504155e-42 | CN135: 1.833504155e-42 | CR135: 114 | CS135: 2032-03-01 | CT135: 29 | CU135: 3469 | CV135: -6959376.669 | CW135: 52878.82296 | CX135: -80272.84156 | CY135: -3027.30615 | CZ135: 153.9469269 | DA135: 412357.84 | DB135: 382090.4622 | DC135: -7012255.492 | DD135: 1.833504155e-42 | DE135: 1.833504155e-42
B136: 115 | S136: =IFERROR((I136+J136+K136+L136+M136)*$J$12+('Simulador para calculos'!I136+'Simulador para calculos'!J136+'Simulador para calculos'!K136+'Simulador para calculos'!L136+'Simulador para calculos'!M136)*NOT($J$12),"") ->  | U136: =IFERROR((1+'Simulación Cliente'!$E$21)^(T136/360),"") ->  | AB136: 115 | AS136: 115 | AT136: 2032-04-01 | AU136: 31 | AV136: 3500 | AW136: -1193086.826 | AX136: 25346.18106 | AY136: -14716.55398 | AZ136: -554.7895344 | BA136: 153.9469269 | BB136: 412357.84 | BC136: 422586.6245 | BD136: -1218433.007 | BE136: 7.768020478e-43 | BF136: 7.768020478e-43 | BJ136: 115 | BK136: 2032-04-01 | BL136: 31 | BM136: 3500 | BN136: -7012255.492 | BO136: 59334.55897 | BP136: -86495.16047 | BQ136: -3260.723255 | BR136: 153.9469269 | BS136: 412357.84 | BT136: 382090.4622 | BU136: -7071590.051 | BV136: 7.768020478e-43 | BW136: 7.768020478e-43 | CA136: 115 | CB136: 2032-04-01 | CC136: 31 | CD136: 3500 | CE136: -1193086.826 | CF136: 25346.18106 | CG136: -14716.55398 | CH136: -554.7895344 | CI136: 153.9469269 | CJ136: 412357.84 | CK136: 422586.6245 | CL136: -1218433.007 | CM136: 7.768020478e-43 | CN136: 7.768020478e-43 | CR136: 115 | CS136: 2032-04-01 | CT136: 31 | CU136: 3500 | CV136: -7012255.492 | CW136: 59334.55897 | CX136: -86495.16047 | CY136: -3260.723255 | CZ136: 153.9469269 | DA136: 412357.84 | DB136: 382090.4622 | DC136: -7071590.051 | DD136: 7.768020478e-43 | DE136: 7.768020478e-43
B137: 116 | S137: =IFERROR((I137+J137+K137+L137+M137)*$J$12+('Simulador para calculos'!I137+'Simulador para calculos'!J137+'Simulador para calculos'!K137+'Simulador para calculos'!L137+'Simulador para calculos'!M137)*NOT($J$12),"") ->  | U137: =IFERROR((1+'Simulación Cliente'!$E$21)^(T137/360),"") ->  | AB137: 116 | AS137: 116 | AT137: 2032-05-01 | AU137: 30 | AV137: 3530 | AW137: -1218433.007 | AX137: 25164.63372 | AY137: -14541.50132 | AZ137: -548.2948532 | BA137: 153.9469269 | BB137: 412357.84 | BC137: 422586.6245 | BD137: -1243597.641 | BE137: 3.383531039e-43 | BF137: 3.383531039e-43 | BJ137: 116 | BK137: 2032-05-01 | BL137: 30 | BM137: 3530 | BN137: -7071590.051 | BO137: 57157.43574 | BP137: -84396.54497 | BQ137: -3182.215523 | BR137: 153.9469269 | BS137: 412357.84 | BT137: 382090.4622 | BU137: -7128747.487 | BV137: 3.383531039e-43 | BW137: 3.383531039e-43 | CA137: 116 | CB137: 2032-05-01 | CC137: 30 | CD137: 3530 | CE137: -1218433.007 | CF137: 25164.63372 | CG137: -14541.50132 | CH137: -548.2948532 | CI137: 153.9469269 | CJ137: 412357.84 | CK137: 422586.6245 | CL137: -1243597.641 | CM137: 3.383531039e-43 | CN137: 3.383531039e-43 | CR137: 116 | CS137: 2032-05-01 | CT137: 30 | CU137: 3530 | CV137: -7071590.051 | CW137: 57157.43574 | CX137: -84396.54497 | CY137: -3182.215523 | CZ137: 153.9469269 | DA137: 412357.84 | DB137: 382090.4622 | DC137: -7128747.487 | DD137: 3.383531039e-43 | DE137: 3.383531039e-43
B138: 117 | S138: =IFERROR((I138+J138+K138+L138+M138)*$J$12+('Simulador para calculos'!I138+'Simulador para calculos'!J138+'Simulador para calculos'!K138+'Simulador para calculos'!L138+'Simulador para calculos'!M138)*NOT($J$12),"") ->  | U138: =IFERROR((1+'Simulación Cliente'!$E$21)^(T138/360),"") ->  | AB138: 117 | AS138: 117 | AT138: 2032-06-01 | AU138: 31 | AV138: 3561 | AW138: -1243597.641 | AX138: 25992.71238 | AY138: -15339.5976 | AZ138: -578.2772394 | BA138: 153.9469269 | BB138: 412357.84 | BC138: 422586.6245 | BD138: -1269590.353 | BE138: 1.433503072e-43 | BF138: 1.433503072e-43 | BJ138: 117 | BK138: 2032-06-01 | BL138: 31 | BM138: 3561 | BN138: -7128747.487 | BO138: 60825.64012 | BP138: -87932.07243 | BQ138: -3314.892439 | BR138: 153.9469269 | BS138: 412357.84 | BT138: 382090.4622 | BU138: -7189573.127 | BV138: 1.433503072e-43 | BW138: 1.433503072e-43 | CA138: 117 | CB138: 2032-06-01 | CC138: 31 | CD138: 3561 | CE138: -1243597.641 | CF138: 25992.71238 | CG138: -15339.5976 | CH138: -578.2772394 | CI138: 153.9469269 | CJ138: 412357.84 | CK138: 422586.6245 | CL138: -1269590.353 | CM138: 1.433503072e-43 | CN138: 1.433503072e-43 | CR138: 117 | CS138: 2032-06-01 | CT138: 31 | CU138: 3561 | CV138: -7128747.487 | CW138: 60825.64012 | CX138: -87932.07243 | CY138: -3314.892439 | CZ138: 153.9469269 | DA138: 412357.84 | DB138: 382090.4622 | DC138: -7189573.127 | DD138: 1.433503072e-43 | DE138: 1.433503072e-43
B139: 118 | S139: =IFERROR((I139+J139+K139+L139+M139)*$J$12+('Simulador para calculos'!I139+'Simulador para calculos'!J139+'Simulador para calculos'!K139+'Simulador para calculos'!L139+'Simulador para calculos'!M139)*NOT($J$12),"") ->  | U139: =IFERROR((1+'Simulación Cliente'!$E$21)^(T139/360),"") ->  | AB139: 118 | AS139: 118 | AT139: 2032-07-01 | AU139: 30 | AV139: 3591 | AW139: -1269590.353 | AX139: 25798.1966 | AY139: -15152.0434 | AZ139: -571.3156589 | BA139: 153.9469269 | BB139: 412357.84 | BC139: 422586.6245 | BD139: -1295388.55 | BE139: 6.243935832e-44 | BF139: 6.243935832e-44 | BJ139: 118 | BK139: 2032-07-01 | BL139: 30 | BM139: 3591 | BN139: -7189573.127 | BO139: 440709.0702 | BP139: -85804.62489 | BQ139: -3235.307907 | BR139: 153.9469269 | BS139: 412357.84 | BT139: 764180.9243 | BU139: -7630282.197 | BV139: 1.248787166e-43 | BW139: 6.243935832e-44 | CA139: 118 | CB139: 2032-07-01 | CC139: 30 | CD139: 3591 | CE139: -1269590.353 | CF139: 25798.1966 | CG139: -15152.0434 | CH139: -571.3156589 | CI139: 153.9469269 | CJ139: 412357.84 | CK139: 422586.6245 | CL139: -1295388.55 | CM139: 6.243935832e-44 | CN139: 6.243935832e-44 | CR139: 118 | CS139: 2032-07-01 | CT139: 30 | CU139: 3591 | CV139: -7189573.127 | CW139: 440709.0702 | CX139: -85804.62489 | CY139: -3235.307907 | CZ139: 153.9469269 | DA139: 412357.84 | DB139: 764180.9243 | DC139: -7630282.197 | DD139: 1.248787166e-43 | DE139: 6.243935832e-44
B140: 119 | S140: =IFERROR((I140+J140+K140+L140+M140)*$J$12+('Simulador para calculos'!I140+'Simulador para calculos'!J140+'Simulador para calculos'!K140+'Simulador para calculos'!L140+'Simulador para calculos'!M140)*NOT($J$12),"") ->  | U140: =IFERROR((1+'Simulación Cliente'!$E$21)^(T140/360),"") ->  | AB140: 119 | AS140: 119 | AT140: 2032-08-01 | AU140: 31 | AV140: 3622 | AW140: -1295388.55 | AX140: 26655.62873 | AY140: -15978.43099 | AZ140: -602.3601926 | BA140: 153.9469269 | BB140: 412357.84 | BC140: 422586.6245 | BD140: -1322044.178 | BE140: 2.645372865e-44 | BF140: 2.645372865e-44 | BJ140: 119 | BK140: 2032-08-01 | BL140: 31 | BM140: 3622 | BN140: -7630282.197 | BO140: 67245.21385 | BP140: -94118.43077 | BQ140: -3548.107828 | BR140: 153.9469269 | BS140: 412357.84 | BT140: 382090.4622 | BU140: -7697527.411 | BV140: 2.645372865e-44 | BW140: 2.645372865e-44 | CA140: 119 | CB140: 2032-08-01 | CC140: 31 | CD140: 3622 | CE140: -1295388.55 | CF140: 26655.62873 | CG140: -15978.43099 | CH140: -602.3601926 | CI140: 153.9469269 | CJ140: 412357.84 | CK140: 422586.6245 | CL140: -1322044.178 | CM140: 2.645372865e-44 | CN140: 2.645372865e-44 | CR140: 119 | CS140: 2032-08-01 | CT140: 31 | CU140: 3622 | CV140: -7630282.197 | CW140: 67245.21385 | CX140: -94118.43077 | CY140: -3548.107828 | CZ140: 153.9469269 | DA140: 412357.84 | DB140: 382090.4622 | DC140: -7697527.411 | DD140: 2.645372865e-44 | DE140: 2.645372865e-44
B141: 120 | S141: =IFERROR((I141+J141+K141+L141+M141)*$J$12+('Simulador para calculos'!I141+'Simulador para calculos'!J141+'Simulador para calculos'!K141+'Simulador para calculos'!L141+'Simulador para calculos'!M141)*NOT($J$12),"") ->  | U141: =IFERROR((1+'Simulación Cliente'!$E$21)^(T141/360),"") ->  | AB141: 120 | AS141: 120 | AT141: 2032-09-01 | AU141: 31 | AV141: 3653 | AW141: -1322044.178 | AX141: 26996.81702 | AY141: -16307.22433 | AZ141: -614.7551529 | BA141: 153.9469269 | BB141: 412357.84 | BC141: 422586.6245 | BD141: -1349040.995 | BE141: 1.120767058e-44 | BF141: 1.120767058e-44 | BJ141: 120 | BK141: 2032-09-01 | BL141: 31 | BM141: 3653 | BN141: -7697527.411 | BO141: 68105.94312 | BP141: -94947.89079 | BQ141: -3579.377087 | BR141: 153.9469269 | BS141: 412357.84 | BT141: 382090.4622 | BU141: -7765633.354 | BV141: 1.120767058e-44 | BW141: 1.120767058e-44 | CA141: 120 | CB141: 2032-09-01 | CC141: 31 | CD141: 3653 | CE141: -1322044.178 | CF141: 26996.81702 | CG141: -16307.22433 | CH141: -614.7551529 | CI141: 153.9469269 | CJ141: 412357.84 | CK141: 422586.6245 | CL141: -1349040.995 | CM141: 1.120767058e-44 | CN141: 1.120767058e-44 | CR141: 120 | CS141: 2032-09-01 | CT141: 31 | CU141: 3653 | CV141: -7697527.411 | CW141: 68105.94312 | CX141: -94947.89079 | CY141: -3579.377087 | CZ141: 153.9469269 | DA141: 412357.84 | DB141: 382090.4622 | DC141: -7765633.354 | DD141: 1.120767058e-44 | DE141: 1.120767058e-44
B142: 121 | S142: =IFERROR((I142+J142+K142+L142+M142)*$J$12+('Simulador para calculos'!I142+'Simulador para calculos'!J142+'Simulador para calculos'!K142+'Simulador para calculos'!L142+'Simulador para calculos'!M142)*NOT($J$12),"") ->  | U142: =IFERROR((1+'Simulación Cliente'!$E$21)^(T142/360),"") ->  | AB142: 121 | AS142: 121 | AT142: 2032-10-01 | AU142: 30 | AV142: 3683 | AW142: -1349040.995 | AX142: 26782.16042 | AY142: -16100.25443 | AZ142: -607.068448 | BA142: 153.9469269 | BB142: 412357.84 | BC142: 422586.6245 | BD142: -1375823.156 | BE142: 4.881745793e-45 | BF142: 4.881745793e-45 | BJ142: 121 | BK142: 2032-10-01 | BL142: 30 | BM142: 3683 | BN142: -7765633.354 | BO142: 65752.87917 | BP142: -92679.66891 | BQ142: -3494.535009 | BR142: 153.9469269 | BS142: 412357.84 | BT142: 382090.4622 | BU142: -7831386.233 | BV142: 4.881745793e-45 | BW142: 4.881745793e-45 | CA142: 121 | CB142: 2032-10-01 | CC142: 30 | CD142: 3683 | CE142: -1349040.995 | CF142: 26782.16042 | CG142: -16100.25443 | CH142: -607.068448 | CI142: 153.9469269 | CJ142: 412357.84 | CK142: 422586.6245 | CL142: -1375823.156 | CM142: 4.881745793e-45 | CN142: 4.881745793e-45 | CR142: 121 | CS142: 2032-10-01 | CT142: 30 | CU142: 3683 | CV142: -7765633.354 | CW142: 65752.87917 | CX142: -92679.66891 | CY142: -3494.535009 | CZ142: 153.9469269 | DA142: 412357.84 | DB142: 382090.4622 | DC142: -7831386.233 | DD142: 4.881745793e-45 | DE142: 4.881745793e-45
B143: 122 | S143: =IFERROR((I143+J143+K143+L143+M143)*$J$12+('Simulador para calculos'!I143+'Simulador para calculos'!J143+'Simulador para calculos'!K143+'Simulador para calculos'!L143+'Simulador para calculos'!M143)*NOT($J$12),"") ->  | U143: =IFERROR((1+'Simulación Cliente'!$E$21)^(T143/360),"") ->  | AB143: 122 | AS143: 122 | AT143: 2032-11-01 | AU143: 31 | AV143: 3714 | AW143: -1375823.156 | AX143: 27685.18037 | AY143: -16970.58026 | AZ143: -639.762565 | BA143: 153.9469269 | BB143: 412357.84 | BC143: 422586.6245 | BD143: -1403508.336 | BE143: 2.068252814e-45 | BF143: 2.068252814e-45 | BJ143: 122 | BK143: 2032-11-01 | BL143: 31 | BM143: 3714 | BN143: -7831386.233 | BO143: 69819.31722 | BP143: -96599.02006 | BQ143: -3641.621906 | BR143: 153.9469269 | BS143: 412357.84 | BT143: 382090.4622 | BU143: -7901205.55 | BV143: 2.068252814e-45 | BW143: 2.068252814e-45 | CA143: 122 | CB143: 2032-11-01 | CC143: 31 | CD143: 3714 | CE143: -1375823.156 | CF143: 27685.18037 | CG143: -16970.58026 | CH143: -639.762565 | CI143: 153.9469269 | CJ143: 412357.84 | CK143: 422586.6245 | CL143: -1403508.336 | CM143: 2.068252814e-45 | CN143: 2.068252814e-45 | CR143: 122 | CS143: 2032-11-01 | CT143: 31 | CU143: 3714 | CV143: -7831386.233 | CW143: 69819.31722 | CX143: -96599.02006 | CY143: -3641.621906 | CZ143: 153.9469269 | DA143: 412357.84 | DB143: 382090.4622 | DC143: -7901205.55 | DD143: 2.068252814e-45 | DE143: 2.068252814e-45
B144: 123 | S144: =IFERROR((I144+J144+K144+L144+M144)*$J$12+('Simulador para calculos'!I144+'Simulador para calculos'!J144+'Simulador para calculos'!K144+'Simulador para calculos'!L144+'Simulador para calculos'!M144)*NOT($J$12),"") ->  | U144: =IFERROR((1+'Simulación Cliente'!$E$21)^(T144/360),"") ->  | AB144: 123 | AS144: 123 | AT144: 2032-12-01 | AU144: 30 | AV144: 3744 | AW144: -1403508.336 | AX144: 27456.71623 | AY144: -16750.29994 | AZ144: -631.5787513 | BA144: 153.9469269 | BB144: 412357.84 | BC144: 422586.6245 | BD144: -1430965.053 | BE144: 9.008727015e-46 | BF144: 9.008727015e-46 | BJ144: 123 | BK144: 2032-12-01 | BL144: 30 | BM144: 3744 | BN144: -7901205.55 | BO144: 449522.3477 | BP144: -94297.66782 | BQ144: -3555.542498 | BR144: 153.9469269 | BS144: 412357.84 | BT144: 764180.9243 | BU144: -8350727.898 | BV144: 1.801745403e-45 | BW144: 9.008727015e-46 | CA144: 123 | CB144: 2032-12-01 | CC144: 30 | CD144: 3744 | CE144: -1403508.336 | CF144: 27456.71623 | CG144: -16750.29994 | CH144: -631.5787513 | CI144: 153.9469269 | CJ144: 412357.84 | CK144: 422586.6245 | CL144: -1430965.053 | CM144: 9.008727015e-46 | CN144: 9.008727015e-46 | CR144: 123 | CS144: 2032-12-01 | CT144: 30 | CU144: 3744 | CV144: -7901205.55 | CW144: 449522.3477 | CX144: -94297.66782 | CY144: -3555.542498 | CZ144: 153.9469269 | DA144: 412357.84 | DB144: 764180.9243 | DC144: -8350727.898 | DD144: 1.801745403e-45 | DE144: 9.008727015e-46
B145: 124 | S145: =IFERROR((I145+J145+K145+L145+M145)*$J$12+('Simulador para calculos'!I145+'Simulador para calculos'!J145+'Simulador para calculos'!K145+'Simulador para calculos'!L145+'Simulador para calculos'!M145)*NOT($J$12),"") ->  | U145: =IFERROR((1+'Simulación Cliente'!$E$21)^(T145/360),"") ->  | AB145: 124 | AS145: 124 | AT145: 2033-01-01 | AU145: 31 | AV145: 3775 | AW145: -1430965.053 | AX145: 28390.98889 | AY145: -17650.74761 | AZ145: -665.4037392 | BA145: 153.9469269 | BB145: 412357.84 | BC145: 422586.6245 | BD145: -1459356.041 | BE145: 3.81673397e-46 | BF145: 3.81673397e-46 | BJ145: 124 | BK145: 2033-01-01 | BL145: 31 | BM145: 3775 | BN145: -8350727.898 | BO145: 76466.81746 | BP145: -103005.0246 | BQ145: -3883.117592 | BR145: 153.9469269 | BS145: 412357.84 | BT145: 382090.4622 | BU145: -8427194.716 | BV145: 3.81673397e-46 | BW145: 3.81673397e-46 | CA145: 124 | CB145: 2033-01-01 | CC145: 31 | CD145: 3775 | CE145: -1430965.053 | CF145: 28390.98889 | CG145: -17650.74761 | CH145: -665.4037392 | CI145: 153.9469269 | CJ145: 412357.84 | CK145: 422586.6245 | CL145: -1459356.041 | CM145: 3.81673397e-46 | CN145: 3.81673397e-46 | CR145: 124 | CS145: 2033-01-01 | CT145: 31 | CU145: 3775 | CV145: -8350727.898 | CW145: 76466.81746 | CX145: -103005.0246 | CY145: -3883.117592 | CZ145: 153.9469269 | DA145: 412357.84 | DB145: 382090.4622 | DC145: -8427194.716 | DD145: 3.81673397e-46 | DE145: 3.81673397e-46
B146: 125 | S146: =IFERROR((I146+J146+K146+L146+M146)*$J$12+('Simulador para calculos'!I146+'Simulador para calculos'!J146+'Simulador para calculos'!K146+'Simulador para calculos'!L146+'Simulador para calculos'!M146)*NOT($J$12),"") ->  | U146: =IFERROR((1+'Simulación Cliente'!$E$21)^(T146/360),"") ->  | AB146: 125 | AS146: 125 | AT146: 2033-02-01 | AU146: 31 | AV146: 3806 | AW146: -1459356.041 | AX146: 28754.38955 | AY146: -18000.94636 | AZ146: -678.605648 | BA146: 153.9469269 | BB146: 412357.84 | BC146: 422586.6245 | BD146: -1488110.431 | BE146: 1.617038475e-46 | BF146: 1.617038475e-46 | BJ146: 125 | BK146: 2033-02-01 | BL146: 31 | BM146: 3806 | BN146: -8427194.716 | BO146: 77445.58196 | BP146: -103948.2318 | BQ146: -3918.674928 | BR146: 153.9469269 | BS146: 412357.84 | BT146: 382090.4622 | BU146: -8504640.298 | BV146: 1.617038475e-46 | BW146: 1.617038475e-46 | CA146: 125 | CB146: 2033-02-01 | CC146: 31 | CD146: 3806 | CE146: -1459356.041 | CF146: 28754.38955 | CG146: -18000.94636 | CH146: -678.605648 | CI146: 153.9469269 | CJ146: 412357.84 | CK146: 422586.6245 | CL146: -1488110.431 | CM146: 1.617038475e-46 | CN146: 1.617038475e-46 | CR146: 125 | CS146: 2033-02-01 | CT146: 31 | CU146: 3806 | CV146: -8427194.716 | CW146: 77445.58196 | CX146: -103948.2318 | CY146: -3918.674928 | CZ146: 153.9469269 | DA146: 412357.84 | DB146: 382090.4622 | DC146: -8504640.298 | DD146: 1.617038475e-46 | DE146: 1.617038475e-46
B147: 126 | S147: =IFERROR((I147+J147+K147+L147+M147)*$J$12+('Simulador para calculos'!I147+'Simulador para calculos'!J147+'Simulador para calculos'!K147+'Simulador para calculos'!L147+'Simulador para calculos'!M147)*NOT($J$12),"") ->  | U147: =IFERROR((1+'Simulación Cliente'!$E$21)^(T147/360),"") ->  | AB147: 126 | AS147: 126 | AT147: 2033-03-01 | AU147: 28 | AV147: 3834 | AW147: -1488110.431 | AX147: 27269.26013 | AY147: -16569.42558 | AZ147: -624.9970074 | BA147: 153.9469269 | BB147: 412357.84 | BC147: 422586.6245 | BD147: -1515379.691 | BE147: 7.44462517e-47 | BF147: 7.44462517e-47 | BJ147: 126 | BK147: 2033-03-01 | BL147: 28 | BM147: 3834 | BN147: -8504640.298 | BO147: 67845.83084 | BP147: -94695.26024 | BQ147: -3571.895354 | BR147: 153.9469269 | BS147: 412357.84 | BT147: 382090.4622 | BU147: -8572486.128 | BV147: 7.44462517e-47 | BW147: 7.44462517e-47 | CA147: 126 | CB147: 2033-03-01 | CC147: 28 | CD147: 3834 | CE147: -1488110.431 | CF147: 27269.26013 | CG147: -16569.42558 | CH147: -624.9970074 | CI147: 153.9469269 | CJ147: 412357.84 | CK147: 422586.6245 | CL147: -1515379.691 | CM147: 7.44462517e-47 | CN147: 7.44462517e-47 | CR147: 126 | CS147: 2033-03-01 | CT147: 28 | CU147: 3834 | CV147: -8504640.298 | CW147: 67845.83084 | CX147: -94695.26024 | CY147: -3571.895354 | CZ147: 153.9469269 | DA147: 412357.84 | DB147: 382090.4622 | DC147: -8572486.128 | DD147: 7.44462517e-47 | DE147: 7.44462517e-47
B148: 127 | S148: =IFERROR((I148+J148+K148+L148+M148)*$J$12+('Simulador para calculos'!I148+'Simulador para calculos'!J148+'Simulador para calculos'!K148+'Simulador para calculos'!L148+'Simulador para calculos'!M148)*NOT($J$12),"") ->  | U148: =IFERROR((1+'Simulación Cliente'!$E$21)^(T148/360),"") ->  | AB148: 127 | AS148: 127 | AT148: 2033-04-01 | AU148: 31 | AV148: 3865 | AW148: -1515379.691 | AX148: 29471.48438 | AY148: -18691.99 | AZ148: -704.6568405 | BA148: 153.9469269 | BB148: 412357.84 | BC148: 422586.6245 | BD148: -1544851.175 | BE148: 3.154069796e-47 | BF148: 3.154069796e-47 | BJ148: 127 | BK148: 2033-04-01 | BL148: 31 | BM148: 3865 | BN148: -8572486.128 | BO148: 79305.29161 | BP148: -105740.3804 | BQ148: -3986.235942 | BR148: 153.9469269 | BS148: 412357.84 | BT148: 382090.4622 | BU148: -8651791.42 | BV148: 3.154069796e-47 | BW148: 3.154069796e-47 | CA148: 127 | CB148: 2033-04-01 | CC148: 31 | CD148: 3865 | CE148: -1515379.691 | CF148: 29471.48438 | CG148: -18691.99 | CH148: -704.6568405 | CI148: 153.9469269 | CJ148: 412357.84 | CK148: 422586.6245 | CL148: -1544851.175 | CM148: 3.154069796e-47 | CN148: 3.154069796e-47 | CR148: 127 | CS148: 2033-04-01 | CT148: 31 | CU148: 3865 | CV148: -8572486.128 | CW148: 79305.29161 | CX148: -105740.3804 | CY148: -3986.235942 | CZ148: 153.9469269 | DA148: 412357.84 | DB148: 382090.4622 | DC148: -8651791.42 | DD148: 3.154069796e-47 | DE148: 3.154069796e-47
B149: 128 | S149: =IFERROR((I149+J149+K149+L149+M149)*$J$12+('Simulador para calculos'!I149+'Simulador para calculos'!J149+'Simulador para calculos'!K149+'Simulador para calculos'!L149+'Simulador para calculos'!M149)*NOT($J$12),"") ->  | U149: =IFERROR((1+'Simulación Cliente'!$E$21)^(T149/360),"") ->  | AB149: 128 | AS149: 128 | AT149: 2033-05-01 | AU149: 30 | AV149: 3895 | AW149: -1544851.175 | AX149: 29207.18969 | AY149: -18437.16912 | AZ149: -695.183029 | BA149: 153.9469269 | BB149: 412357.84 | BC149: 422586.6245 | BD149: -1574058.365 | BE149: 1.373824011e-47 | BF149: 1.373824011e-47 | BJ149: 128 | BK149: 2033-05-01 | BL149: 30 | BM149: 3895 | BN149: -8651791.42 | BO149: 76727.58563 | BP149: -103255.6042 | BQ149: -3893.306139 | BR149: 153.9469269 | BS149: 412357.84 | BT149: 382090.4622 | BU149: -8728519.006 | BV149: 1.373824011e-47 | BW149: 1.373824011e-47 | CA149: 128 | CB149: 2033-05-01 | CC149: 30 | CD149: 3895 | CE149: -1544851.175 | CF149: 29207.18969 | CG149: -18437.16912 | CH149: -695.183029 | CI149: 153.9469269 | CJ149: 412357.84 | CK149: 422586.6245 | CL149: -1574058.365 | CM149: 1.373824011e-47 | CN149: 1.373824011e-47 | CR149: 128 | CS149: 2033-05-01 | CT149: 30 | CU149: 3895 | CV149: -8651791.42 | CW149: 76727.58563 | CX149: -103255.6042 | CY149: -3893.306139 | CZ149: 153.9469269 | DA149: 412357.84 | DB149: 382090.4622 | DC149: -8728519.006 | DD149: 1.373824011e-47 | DE149: 1.373824011e-47
B150: 129 | M150: =IF(B150>C$6,"",C$15) ->  | S150: =IFERROR((I150+J150+K150+L150+M150)*$J$12+('Simulador para calculos'!I150+'Simulador para calculos'!J150+'Simulador para calculos'!K150+'Simulador para calculos'!L150+'Simulador para calculos'!M150)*NOT($J$12),"") ->  | U150: =IFERROR((1+'Simulación Cliente'!$E$21)^(T150/360),"") ->  | AB150: 129 | AI150: =IF(AB150>AC$6,"",((1+AC$12)^(AD150/30)-1)*AF150) ->  | AJ150: =IF(AB150>AC$6,"",AC$4*AC$14) ->  | AK150: =IF(AB150>AC$6,"",AC$15) ->  | AL150: =IF(AB150>AC$6,"",IF(AB150=AC$6,AF150+AH150+AI150+AJ150+AK150,IF(AND(AC$9=2,MONTH(AC150)=7),2*AC$17,IF(AND(AC$10=2,MONTH(AC150)=12),2*AC$17,AC$17)))) ->  | AM150: =IF(AB150>AC$6,"",AF150-AG150) ->  | AS150: 129 | AT150: 2033-06-01 | AU150: 31 | AV150: 3926 | AW150: -1574058.365 | AX150: 30222.56316 | AY150: -19415.78299 | AZ150: =IF(AS150>AT$6,"",((1+AT$12)^(AU150/30)-1)*AW150) -> -731.9426285 | BA150: =IF(AS150>AT$6,"",AT$4*AT$14) -> 153.9469269 | BB150: =IF(AS150>AT$6,"",AT$15) -> 412357.84 | BC150: =IF(AS150>AT$6,"",IF(AS150=AT$6,AW150+AY150+AZ150+BA150+BB150,IF(AND(AT$9=2,MONTH(AT150)=7),2*AT$17,IF(AND(AT$10=2,MONTH(AT150)=12),2*AT$17,AT$17)))) -> 422586.6245 | BD150: =IF(AS150>AT$6,"",AW150-AX150) -> -1604280.928 | BE150: 5.820490247e-48 | BF150: 5.820490247e-48 | BJ150: 129 | BK150: 2033-06-01 | BL150: 31 | BM150: 3926 | BN150: -8728519.006 | BO150: 81302.49048 | BP150: -107665.0235 | BQ150: =IF(BJ150>BK$6,"",((1+BK$12)^(BL150/30)-1)*BN150) -> -4058.791774 | BR150: =IF(BJ150>BK$6,"",BK$4*BK$14) -> 153.9469269 | BS150: =IF(BJ150>BK$6,"",BK$15) -> 412357.84 | BT150: =IF(BJ150>BK$6,"",IF(BJ150=BK$6,BN150+BP150+BQ150+BR150+BS150,IF(AND(BK$9=2,MONTH(BK150)=7),2*BK$17,IF(AND(BK$10=2,MONTH(BK150)=12),2*BK$17,BK$17)))) -> 382090.4622 | BU150: =IF(BJ150>BK$6,"",BN150-BO150) -> -8809821.496 | BV150: 5.820490247e-48 | BW150: 5.820490247e-48 | CA150: 129 | CB150: 2033-06-01 | CC150: 31 | CD150: 3926 | CE150: -1574058.365 | CF150: 30222.56316 | CG150: -19415.78299 | CH150: =IF(CA150>CB$6,"",((1+CB$12)^(CC150/30)-1)*CE150) -> -731.9426285 | CI150: =IF(CA150>CB$6,"",CB$4*CB$14) -> 153.9469269 | CJ150: =IF(CA150>CB$6,"",CB$15) -> 412357.84 | CK150: =IF(CA150>CB$6,"",IF(CA150=CB$6,CE150+CG150+CH150+CI150+CJ150,IF(AND(CB$9=2,MONTH(CB150)=7),2*CB$17,IF(AND(CB$10=2,MONTH(CB150)=12),2*CB$17,CB$17)))) -> 422586.6245 | CL150: =IF(CA150>CB$6,"",CE150-CF150) -> -1604280.928 | CM150: 5.820490247e-48 | CN150: 5.820490247e-48 | CR150: 129 | CS150: 2033-06-01 | CT150: 31 | CU150: 3926 | CV150: -8728519.006 | CW150: 81302.49048 | CX150: -107665.0235 | CY150: =IF(CR150>CS$6,"",((1+CS$12)^(CT150/30)-1)*CV150) -> -4058.791774 | CZ150: =IF(CR150>CS$6,"",CS$4*CS$14) -> 153.9469269 | DA150: =IF(CR150>CS$6,"",CS$15) -> 412357.84 | DB150: =IF(CR150>CS$6,"",IF(CR150=CS$6,CV150+CX150+CY150+CZ150+DA150,IF(AND(CS$9=2,MONTH(CS150)=7),2*CS$17,IF(AND(CS$10=2,MONTH(CS150)=12),2*CS$17,CS$17)))) -> 382090.4622 | DC150: =IF(CR150>CS$6,"",CV150-CW150) -> -8809821.496 | DD150: 5.820490247e-48 | DE150: 5.820490247e-48
B151: 130 | D151: =IF(B151<=$C$6,WEEKDAY(C151,2),"") ->  | E151: =IF(D151=7,C151+1,C151) ->  | G151: =IFERROR(F151+G150,"") ->  | H151: =IF(B151>C$6,"",O150) ->  | I151: =IF(B151>C$6,"",N151-M151-L151-K151-J151) ->  | K151: =IF(B151>C$6,"",0) ->  | L151: =IF(B151>C$6,"",D$4*C$14) ->  | N151: =IF(B151>C$6,"",IF(B151=C$6,H151+J151+K151+L151+M151,IF(AND(C$9=2,MONTH(C151)=7),2*C$17,IF(AND(C$10=2,MONTH(C151)=12),2*C$17,C$17)))) ->  | O151: =IF(B151>C$6,"",H151-I151) ->  | P151: =IFERROR(IF(AND(MONTH(C151)=7,C$9=2),2/(1+C$11)^(G151/360),IF(AND(MONTH(C151)=12,C$10=2),2/(1+C$11)^(G151/360),1/(1+C$11)^(G151/360))),"") ->  | Q151: =IFERROR(1/(1+C$11)^(G151/360),"") ->  | S151: =IFERROR((I151+J151+K151+L151+M151)*$J$12+('Simulador para calculos'!I151+'Simulador para calculos'!J151+'Simulador para calculos'!K151+'Simulador para calculos'!L151+'Simulador para calculos'!M151)*NOT($J$12),"") ->  | T151: =G151 ->  | U151: =IFERROR((1+'Simulación Cliente'!$E$21)^(T151/360),"") ->  | V151: =IFERROR(ROUND(S151/U151,2),"") ->  | AB151: 130 | AC151: =IF(AB151>AC$6,"",EDATE(AC$22,AB150)) ->  | AE151: =IFERROR(AD151+AE150,"") ->  | AF151: =IF(AB151>AC$6,"",AM150) ->  | AN151: =IFERROR(IF(AND(MONTH(AC151)=7,AC$9=2),2/(1+AC$13)^(AE151/360),IF(AND(MONTH(AC151)=12,AC$10=2),2/(1+AC$13)^(AE151/360),1/(1+AC$13)^(AE151/360))),"") ->  | AO151: =IFERROR(1/(1+AC$13)^(AE151/360),"") ->  | AS151: 130 | AT151: =IF(AS151>AT$6,"",EDATE(AT$22,AS150)) -> 2033-07-01 | AU151: 30 | AV151: =IFERROR(AU151+AV150,"") -> 3956 | AW151: =IF(AS151>AT$6,"",BD150) -> -1604280.928 | AX151: 29943.20295 | AY151: -19146.439 | AZ151: -721.9264177 | BA151: 153.9469269 | BB151: 412357.84 | BC151: 422586.6245 | BD151: -1634224.131 | BE151: =IFERROR(IF(AND(MONTH(AT151)=7,AT$9=2),2/(1+AT$13)^(AV151/360),IF(AND(MONTH(AT151)=12,AT$10=2),2/(1+AT$13)^(AV151/360),1/(1+AT$13)^(AV151/360))),"") -> 2.535241696e-48 | BF151: =IFERROR(1/(1+AT$13)^(AV151/360),"") -> 2.535241696e-48 | BJ151: 130 | BK151: =IF(BJ151>BK$6,"",EDATE(BK$22,BJ150)) -> 2033-07-01 | BL151: 30 | BM151: =IFERROR(BL151+BM150,"") -> 3956 | BN151: =IF(BJ151>BK$6,"",BU150) -> -8809821.496 | BO151: 460775.1859 | BP151: -105141.6288 | BQ151: -3964.419673 | BR151: 153.9469269 | BS151: 412357.84 | BT151: 764180.9243 | BU151: -9270596.682 | BV151: =IFERROR(IF(AND(MONTH(BK151)=7,BK$9=2),2/(1+BK$13)^(BM151/360),IF(AND(MONTH(BK151)=12,BK$10=2),2/(1+BK$13)^(BM151/360),1/(1+BK$13)^(BM151/360))),"") -> 5.070483392e-48 | BW151: =IFERROR(1/(1+BK$13)^(BM151/360),"") -> 2.535241696e-48 | CA151: 130 | CB151: =IF(CA151>CB$6,"",EDATE(CB$22,CA150)) -> 2033-07-01 | CC151: 30 | CD151: =IFERROR(CC151+CD150,"") -> 3956 | CE151: =IF(CA151>CB$6,"",CL150) -> -1604280.928 | CF151: 29943.20295 | CG151: -19146.439 | CH151: -721.9264177 | CI151: 153.9469269 | CJ151: 412357.84 | CK151: 422586.6245 | CL151: -1634224.131 | CM151: =IFERROR(IF(AND(MONTH(CB151)=7,CB$9=2),2/(1+CB$13)^(CD151/360),IF(AND(MONTH(CB151)=12,CB$10=2),2/(1+CB$13)^(CD151/360),1/(1+CB$13)^(CD151/360))),"") -> 2.535241696e-48 | CN151: =IFERROR(1/(1+CB$13)^(CD151/360),"") -> 2.535241696e-48 | CR151: 130 | CS151: =IF(CR151>CS$6,"",EDATE(CS$22,CR150)) -> 2033-07-01 | CT151: 30 | CU151: =IFERROR(CT151+CU150,"") -> 3956 | CV151: =IF(CR151>CS$6,"",DC150) -> -8809821.496 | CW151: 460775.1859 | CX151: -105141.6288 | CY151: -3964.419673 | CZ151: 153.9469269 | DA151: 412357.84 | DB151: 764180.9243 | DC151: -9270596.682 | DD151: =IFERROR(IF(AND(MONTH(CS151)=7,CS$9=2),2/(1+CS$13)^(CU151/360),IF(AND(MONTH(CS151)=12,CS$10=2),2/(1+CS$13)^(CU151/360),1/(1+CS$13)^(CU151/360))),"") -> 5.070483392e-48 | DE151: =IFERROR(1/(1+CS$13)^(CU151/360),"") -> 2.535241696e-48
B152: 131 | C152: =IF(B152>C$6,"",EDATE(C$22,B151)) ->  | F152: =IF(B152>C$6,"",E152-E151) ->  | J152: =IF(B152>C$6,"",((1+C$11)^(F152/360)-1)*H152) ->  | S152: =IFERROR((I152+J152+K152+L152+M152)*$J$12+('Simulador para calculos'!I152+'Simulador para calculos'!J152+'Simulador para calculos'!K152+'Simulador para calculos'!L152+'Simulador para calculos'!M152)*NOT($J$12),"") ->  | U152: =IFERROR((1+'Simulación Cliente'!$E$21)^(T152/360),"") ->  | AB152: 131 | AH152: =IF(AB152>AC$6,"",((1+AC$11)^(AD152/360)-1)*AF152) ->  | AS152: 131 | AT152: 2033-08-01 | AU152: 31 | AV152: 3987 | AW152: -1634224.131 | AX152: 30992.6765 | AY152: =IF(AS152>AT$6,"",((1+AT$11)^(AU152/360)-1)*AW152) -> -20157.91904 | AZ152: -759.9199196 | BA152: 153.9469269 | BB152: 412357.84 | BC152: 422586.6245 | BD152: -1665216.808 | BE152: 1.074107705e-48 | BF152: 1.074107705e-48 | BJ152: 131 | BK152: 2033-08-01 | BL152: 31 | BM152: 3987 | BN152: -9270596.682 | BO152: 88241.00847 | BP152: =IF(BJ152>BK$6,"",((1+BK$11)^(BL152/360)-1)*BN152) -> -114351.4734 | BQ152: -4310.859784 | BR152: 153.9469269 | BS152: 412357.84 | BT152: 382090.4622 | BU152: -9358837.69 | BV152: 1.074107705e-48 | BW152: 1.074107705e-48 | CA152: 131 | CB152: 2033-08-01 | CC152: 31 | CD152: 3987 | CE152: -1634224.131 | CF152: 30992.6765 | CG152: =IF(CA152>CB$6,"",((1+CB$11)^(CC152/360)-1)*CE152) -> -20157.91904 | CH152: -759.9199196 | CI152: 153.9469269 | CJ152: 412357.84 | CK152: 422586.6245 | CL152: -1665216.808 | CM152: 1.074107705e-48 | CN152: 1.074107705e-48 | CR152: 131 | CS152: 2033-08-01 | CT152: 31 | CU152: 3987 | CV152: -9270596.682 | CW152: 88241.00847 | CX152: =IF(CR152>CS$6,"",((1+CS$11)^(CT152/360)-1)*CV152) -> -114351.4734 | CY152: -4310.859784 | CZ152: 153.9469269 | DA152: 412357.84 | DB152: 382090.4622 | DC152: -9358837.69 | DD152: 1.074107705e-48 | DE152: 1.074107705e-48
B153: 132 | S153: =IFERROR((I153+J153+K153+L153+M153)*$J$12+('Simulador para calculos'!I153+'Simulador para calculos'!J153+'Simulador para calculos'!K153+'Simulador para calculos'!L153+'Simulador para calculos'!M153)*NOT($J$12),"") ->  | U153: =IFERROR((1+'Simulación Cliente'!$E$21)^(T153/360),"") ->  | AB153: 132 | AD153: =IF(AB153>AC$6,"",AC153-AC152) ->  | AG153: =IF(AB153>AC$6,"",AL153-AK153-AJ153-AI153-AH153) ->  | AS153: 132 | AT153: 2033-09-01 | AU153: =IF(AS153>AT$6,"",AT153-AT152) -> 31 | AV153: 4018 | AW153: -1665216.808 | AX153: =IF(AS153>AT$6,"",BC153-BB153-BA153-AZ153-AY153) -> 31389.3784 | AY153: -20540.20923 | AZ153: -774.3316222 | BA153: 153.9469269 | BB153: 412357.84 | BC153: 422586.6245 | BD153: -1696606.186 | BE153: 4.550679979e-49 | BF153: 4.550679979e-49 | BJ153: 132 | BK153: 2033-09-01 | BL153: =IF(BJ153>BK$6,"",BK153-BK152) -> 31 | BM153: 4018 | BN153: -9358837.69 | BO153: =IF(BJ153>BK$6,"",BT153-BS153-BR153-BQ153-BP153) -> 89370.48097 | BP153: -115439.9136 | BQ153: -4351.89216 | BR153: 153.9469269 | BS153: 412357.84 | BT153: 382090.4622 | BU153: -9448208.171 | BV153: 4.550679979e-49 | BW153: 4.550679979e-49 | CA153: 132 | CB153: 2033-09-01 | CC153: =IF(CA153>CB$6,"",CB153-CB152) -> 31 | CD153: 4018 | CE153: -1665216.808 | CF153: =IF(CA153>CB$6,"",CK153-CJ153-CI153-CH153-CG153) -> 31389.3784 | CG153: -20540.20923 | CH153: -774.3316222 | CI153: 153.9469269 | CJ153: 412357.84 | CK153: 422586.6245 | CL153: -1696606.186 | CM153: 4.550679979e-49 | CN153: 4.550679979e-49 | CR153: 132 | CS153: 2033-09-01 | CT153: =IF(CR153>CS$6,"",CS153-CS152) -> 31 | CU153: 4018 | CV153: -9358837.69 | CW153: =IF(CR153>CS$6,"",DB153-DA153-CZ153-CY153-CX153) -> 89370.48097 | CX153: -115439.9136 | CY153: -4351.89216 | CZ153: 153.9469269 | DA153: 412357.84 | DB153: 382090.4622 | DC153: -9448208.171 | DD153: 4.550679979e-49 | DE153: 4.550679979e-49
B154: 133 | S154: =IFERROR((I154+J154+K154+L154+M154)*$J$12+('Simulador para calculos'!I154+'Simulador para calculos'!J154+'Simulador para calculos'!K154+'Simulador para calculos'!L154+'Simulador para calculos'!M154)*NOT($J$12),"") ->  | U154: =IFERROR((1+'Simulación Cliente'!$E$21)^(T154/360),"") ->  | AB154: 133 | AS154: 133 | AT154: 2033-10-01 | AU154: 30 | AV154: 4048 | AW154: -1696606.186 | AX154: 31086.61364 | AY154: -20248.30332 | AZ154: -763.4727838 | BA154: 153.9469269 | BB154: 412357.84 | BC154: 422586.6245 | BD154: -1727692.8 | BE154: 1.982148091e-49 | BF154: 1.982148091e-49 | BJ154: 133 | BK154: 2033-10-01 | BL154: 30 | BM154: 4048 | BN154: -9448208.171 | BO154: 86590.88249 | BP154: -112760.5136 | BQ154: -4251.693677 | BR154: 153.9469269 | BS154: 412357.84 | BT154: 382090.4622 | BU154: -9534799.054 | BV154: 1.982148091e-49 | BW154: 1.982148091e-49 | CA154: 133 | CB154: 2033-10-01 | CC154: 30 | CD154: 4048 | CE154: -1696606.186 | CF154: 31086.61364 | CG154: -20248.30332 | CH154: -763.4727838 | CI154: 153.9469269 | CJ154: 412357.84 | CK154: 422586.6245 | CL154: -1727692.8 | CM154: 1.982148091e-49 | CN154: 1.982148091e-49 | CR154: 133 | CS154: 2033-10-01 | CT154: 30 | CU154: 4048 | CV154: -9448208.171 | CW154: 86590.88249 | CX154: -112760.5136 | CY154: -4251.693677 | CZ154: 153.9469269 | DA154: 412357.84 | DB154: 382090.4622 | DC154: -9534799.054 | DD154: 1.982148091e-49 | DE154: 1.982148091e-49
B155: 134 | S155: =IFERROR((I155+J155+K155+L155+M155)*$J$12+('Simulador para calculos'!I155+'Simulador para calculos'!J155+'Simulador para calculos'!K155+'Simulador para calculos'!L155+'Simulador para calculos'!M155)*NOT($J$12),"") ->  | U155: =IFERROR((1+'Simulación Cliente'!$E$21)^(T155/360),"") ->  | AB155: 134 | AS155: 134 | AT155: 2033-11-01 | AU155: 31 | AV155: 4079 | AW155: -1727692.8 | AX155: 32189.06231 | AY155: -21310.84159 | AZ155: -803.3831764 | BA155: 153.9469269 | BB155: 412357.84 | BC155: 422586.6245 | BD155: -1759881.862 | BE155: 8.397781326e-50 | BF155: 8.397781326e-50 | BJ155: 134 | BK155: 2033-11-01 | BL155: 31 | BM155: 4079 | BN155: -9534799.054 | BO155: 91622.76166 | BP155: -117610.3716 | BQ155: -4433.714808 | BR155: 153.9469269 | BS155: 412357.84 | BT155: 382090.4622 | BU155: -9626421.816 | BV155: 8.397781326e-50 | BW155: 8.397781326e-50 | CA155: 134 | CB155: 2033-11-01 | CC155: 31 | CD155: 4079 | CE155: -1727692.8 | CF155: 32189.06231 | CG155: -21310.84159 | CH155: -803.3831764 | CI155: 153.9469269 | CJ155: 412357.84 | CK155: 422586.6245 | CL155: -1759881.862 | CM155: 8.397781326e-50 | CN155: 8.397781326e-50 | CR155: 134 | CS155: 2033-11-01 | CT155: 31 | CU155: 4079 | CV155: -9534799.054 | CW155: 91622.76166 | CX155: -117610.3716 | CY155: -4433.714808 | CZ155: 153.9469269 | DA155: 412357.84 | DB155: 382090.4622 | DC155: -9626421.816 | DD155: 8.397781326e-50 | DE155: 8.397781326e-50
B156: 135 | S156: =IFERROR((I156+J156+K156+L156+M156)*$J$12+('Simulador para calculos'!I156+'Simulador para calculos'!J156+'Simulador para calculos'!K156+'Simulador para calculos'!L156+'Simulador para calculos'!M156)*NOT($J$12),"") ->  | U156: =IFERROR((1+'Simulación Cliente'!$E$21)^(T156/360),"") ->  | AB156: 135 | AS156: 135 | AT156: 2033-12-01 | AU156: 30 | AV156: 4109 | AW156: -1759881.862 | AX156: 31870.2571 | AY156: -21003.47272 | AZ156: -791.946838 | BA156: 153.9469269 | BB156: 412357.84 | BC156: 422586.6245 | BD156: -1791752.119 | BE156: 3.657837136e-50 | BF156: 3.657837136e-50 | BJ156: 135 | BK156: 2033-12-01 | BL156: 30 | BM156: 4109 | BN156: -9626421.816 | BO156: 470888.448 | BP156: -114887.4208 | BQ156: -4331.889817 | BR156: 153.9469269 | BS156: 412357.84 | BT156: 764180.9243 | BU156: -10097310.26 | BV156: 7.315674272e-50 | BW156: 3.657837136e-50 | CA156: 135 | CB156: 2033-12-01 | CC156: 30 | CD156: 4109 | CE156: -1759881.862 | CF156: 31870.2571 | CG156: -21003.47272 | CH156: -791.946838 | CI156: 153.9469269 | CJ156: 412357.84 | CK156: 422586.6245 | CL156: -1791752.119 | CM156: 3.657837136e-50 | CN156: 3.657837136e-50 | CR156: 135 | CS156: 2033-12-01 | CT156: 30 | CU156: 4109 | CV156: -9626421.816 | CW156: 470888.448 | CX156: -114887.4208 | CY156: -4331.889817 | CZ156: 153.9469269 | DA156: 412357.84 | DB156: 764180.9243 | DC156: -10097310.26 | DD156: 7.315674272e-50 | DE156: 3.657837136e-50
B157: 136 | S157: =IFERROR((I157+J157+K157+L157+M157)*$J$12+('Simulador para calculos'!I157+'Simulador para calculos'!J157+'Simulador para calculos'!K157+'Simulador para calculos'!L157+'Simulador para calculos'!M157)*NOT($J$12),"") ->  | U157: =IFERROR((1+'Simulación Cliente'!$E$21)^(T157/360),"") ->  | AB157: 136 | AS157: 136 | AT157: 2034-01-01 | AU157: 31 | AV157: 4140 | AW157: -1791752.119 | AX157: 33009.01258 | AY157: -22101.00406 | AZ157: -833.1709833 | BA157: 153.9469269 | BB157: 412357.84 | BC157: 422586.6245 | BD157: -1824761.132 | BE157: 1.549718537e-50 | BF157: 1.549718537e-50 | BJ157: 136 | BK157: 2034-01-01 | BL157: 31 | BM157: 4140 | BN157: -10097310.26 | BO157: 98822.82601 | BP157: -124548.8663 | BQ157: -4695.284482 | BR157: 153.9469269 | BS157: 412357.84 | BT157: 382090.4622 | BU157: -10196133.09 | BV157: 1.549718537e-50 | BW157: 1.549718537e-50 | CA157: 136 | CB157: 2034-01-01 | CC157: 31 | CD157: 4140 | CE157: -1791752.119 | CF157: 33009.01258 | CG157: -22101.00406 | CH157: -833.1709833 | CI157: 153.9469269 | CJ157: 412357.84 | CK157: 422586.6245 | CL157: -1824761.132 | CM157: 1.549718537e-50 | CN157: 1.549718537e-50 | CR157: 136 | CS157: 2034-01-01 | CT157: 31 | CU157: 4140 | CV157: -10097310.26 | CW157: 98822.82601 | CX157: -124548.8663 | CY157: -4695.284482 | CZ157: 153.9469269 | DA157: 412357.84 | DB157: 382090.4622 | DC157: -10196133.09 | DD157: 1.549718537e-50 | DE157: 1.549718537e-50
B158: 137 | S158: =IFERROR((I158+J158+K158+L158+M158)*$J$12+('Simulador para calculos'!I158+'Simulador para calculos'!J158+'Simulador para calculos'!K158+'Simulador para calculos'!L158+'Simulador para calculos'!M158)*NOT($J$12),"") ->  | U158: =IFERROR((1+'Simulación Cliente'!$E$21)^(T158/360),"") ->  | AB158: 137 | AS158: 137 | AT158: 2034-02-01 | AU158: 31 | AV158: 4171 | AW158: -1824761.132 | AX158: 33431.5233 | AY158: -22508.16547 | AZ158: -848.5202892 | BA158: 153.9469269 | BB158: 412357.84 | BC158: 422586.6245 | BD158: -1858192.655 | BE158: 6.565703872e-51 | BF158: 6.565703872e-51 | BJ158: 137 | BK158: 2034-02-01 | BL158: 31 | BM158: 4171 | BN158: -10196133.09 | BO158: 100087.7443 | BP158: -125767.8316 | BQ158: -4741.237441 | BR158: 153.9469269 | BS158: 412357.84 | BT158: 382090.4622 | BU158: -10296220.83 | BV158: 6.565703872e-51 | BW158: 6.565703872e-51 | CA158: 137 | CB158: 2034-02-01 | CC158: 31 | CD158: 4171 | CE158: -1824761.132 | CF158: 33431.5233 | CG158: -22508.16547 | CH158: -848.5202892 | CI158: 153.9469269 | CJ158: 412357.84 | CK158: 422586.6245 | CL158: -1858192.655 | CM158: 6.565703872e-51 | CN158: 6.565703872e-51 | CR158: 137 | CS158: 2034-02-01 | CT158: 31 | CU158: 4171 | CV158: -10196133.09 | CW158: 100087.7443 | CX158: -125767.8316 | CY158: -4741.237441 | CZ158: 153.9469269 | DA158: 412357.84 | DB158: 382090.4622 | DC158: -10296220.83 | DD158: 6.565703872e-51 | DE158: 6.565703872e-51
B159: 138 | S159: =IFERROR((I159+J159+K159+L159+M159)*$J$12+('Simulador para calculos'!I159+'Simulador para calculos'!J159+'Simulador para calculos'!K159+'Simulador para calculos'!L159+'Simulador para calculos'!M159)*NOT($J$12),"") ->  | U159: =IFERROR((1+'Simulación Cliente'!$E$21)^(T159/360),"") ->  | AB159: 138 | AS159: 138 | AT159: 2034-03-01 | AU159: 28 | AV159: 4199 | AW159: -1858192.655 | AX159: 31545.38778 | AY159: -20690.12103 | AZ159: -780.4292104 | BA159: 153.9469269 | BB159: 412357.84 | BC159: 422586.6245 | BD159: -1889738.043 | BE159: 3.022760748e-51 | BF159: 3.022760748e-51 | BJ159: 138 | BK159: 2034-03-01 | BL159: 28 | BM159: 4199 | BN159: -10296220.83 | BO159: 88546.70908 | BP159: -114643.6859 | BQ159: -4324.347894 | BR159: 153.9469269 | BS159: 412357.84 | BT159: 382090.4622 | BU159: -10384767.54 | BV159: 3.022760748e-51 | BW159: 3.022760748e-51 | CA159: 138 | CB159: 2034-03-01 | CC159: 28 | CD159: 4199 | CE159: -1858192.655 | CF159: 31545.38778 | CG159: -20690.12103 | CH159: -780.4292104 | CI159: 153.9469269 | CJ159: 412357.84 | CK159: 422586.6245 | CL159: -1889738.043 | CM159: 3.022760748e-51 | CN159: 3.022760748e-51 | CR159: 138 | CS159: 2034-03-01 | CT159: 28 | CU159: 4199 | CV159: -10296220.83 | CW159: 88546.70908 | CX159: -114643.6859 | CY159: -4324.347894 | CZ159: 153.9469269 | DA159: 412357.84 | DB159: 382090.4622 | DC159: -10384767.54 | DD159: 3.022760748e-51 | DE159: 3.022760748e-51
B160: 139 | S160: =IFERROR((I160+J160+K160+L160+M160)*$J$12+('Simulador para calculos'!I160+'Simulador para calculos'!J160+'Simulador para calculos'!K160+'Simulador para calculos'!L160+'Simulador para calculos'!M160)*NOT($J$12),"") ->  | U160: =IFERROR((1+'Simulación Cliente'!$E$21)^(T160/360),"") ->  | AB160: 139 | AS160: 139 | AT160: 2034-04-01 | AU160: 31 | AV160: 4230 | AW160: -1889738.043 | AX160: 34263.21862 | AY160: -23309.6463 | AZ160: -878.7347794 | BA160: 153.9469269 | BB160: 412357.84 | BC160: 422586.6245 | BD160: -1924001.261 | BE160: 1.280655259e-51 | BF160: 1.280655259e-51 | BJ160: 139 | BK160: 2034-04-01 | BL160: 31 | BM160: 4230 | BN160: -10384767.54 | BO160: 102502.2387 | BP160: -128094.6104 | BQ160: -4828.953119 | BR160: 153.9469269 | BS160: 412357.84 | BT160: 382090.4622 | BU160: -10487269.78 | BV160: 1.280655259e-51 | BW160: 1.280655259e-51 | CA160: 139 | CB160: 2034-04-01 | CC160: 31 | CD160: 4230 | CE160: -1889738.043 | CF160: 34263.21862 | CG160: -23309.6463 | CH160: -878.7347794 | CI160: 153.9469269 | CJ160: 412357.84 | CK160: 422586.6245 | CL160: -1924001.261 | CM160: 1.280655259e-51 | CN160: 1.280655259e-51 | CR160: 139 | CS160: 2034-04-01 | CT160: 31 | CU160: 4230 | CV160: -10384767.54 | CW160: 102502.2387 | CX160: -128094.6104 | CY160: -4828.953119 | CZ160: 153.9469269 | DA160: 412357.84 | DB160: 382090.4622 | DC160: -10487269.78 | DD160: 1.280655259e-51 | DE160: 1.280655259e-51
B161: 140 | S161: =IFERROR((I161+J161+K161+L161+M161)*$J$12+('Simulador para calculos'!I161+'Simulador para calculos'!J161+'Simulador para calculos'!K161+'Simulador para calculos'!L161+'Simulador para calculos'!M161)*NOT($J$12),"") ->  | U161: =IFERROR((1+'Simulación Cliente'!$E$21)^(T161/360),"") ->  | AB161: 140 | AS161: 140 | AT161: 2034-05-01 | AU161: 30 | AV161: 4260 | AW161: -1924001.261 | AX161: 33902.80897 | AY161: -22962.17086 | AZ161: -865.8005677 | BA161: 153.9469269 | BB161: 412357.84 | BC161: 422586.6245 | BD161: -1957904.07 | BE161: 5.578173785e-52 | BF161: 5.578173785e-52 | BJ161: 140 | BK161: 2034-05-01 | BL161: 30 | BM161: 4260 | BN161: -10487269.78 | BO161: 99459.23702 | BP161: -125161.2904 | BQ161: -4719.271402 | BR161: 153.9469269 | BS161: 412357.84 | BT161: 382090.4622 | BU161: -10586729.02 | BV161: 5.578173785e-52 | BW161: 5.578173785e-52 | CA161: 140 | CB161: 2034-05-01 | CC161: 30 | CD161: 4260 | CE161: -1924001.261 | CF161: 33902.80897 | CG161: -22962.17086 | CH161: -865.8005677 | CI161: 153.9469269 | CJ161: 412357.84 | CK161: 422586.6245 | CL161: -1957904.07 | CM161: 5.578173785e-52 | CN161: 5.578173785e-52 | CR161: 140 | CS161: 2034-05-01 | CT161: 30 | CU161: 4260 | CV161: -10487269.78 | CW161: 99459.23702 | CX161: -125161.2904 | CY161: -4719.271402 | CZ161: 153.9469269 | DA161: 412357.84 | DB161: 382090.4622 | DC161: -10586729.02 | DD161: 5.578173785e-52 | DE161: 5.578173785e-52
B162: 141 | S162: =IFERROR((I162+J162+K162+L162+M162)*$J$12+('Simulador para calculos'!I162+'Simulador para calculos'!J162+'Simulador para calculos'!K162+'Simulador para calculos'!L162+'Simulador para calculos'!M162)*NOT($J$12),"") ->  | U162: =IFERROR((1+'Simulación Cliente'!$E$21)^(T162/360),"") ->  | AB162: 141 | AS162: 141 | AT162: 2034-06-01 | AU162: 31 | AV162: 4291 | AW162: -1957904.07 | AX162: 35135.73418 | AY162: -24150.46442 | AZ162: -910.43222 | BA162: 153.9469269 | BB162: 412357.84 | BC162: 422586.6245 | BD162: -1993039.805 | BE162: 2.363308971e-52 | BF162: 2.363308971e-52 | BJ162: 141 | BK162: 2034-06-01 | BL162: 31 | BM162: 4291 | BN162: -10586729.02 | BO162: 105087.3172 | BP162: -130585.7761 | BQ162: -4922.86591 | BR162: 153.9469269 | BS162: 412357.84 | BT162: 382090.4622 | BU162: -10691816.34 | BV162: 2.363308971e-52 | BW162: 2.363308971e-52 | CA162: 141 | CB162: 2034-06-01 | CC162: 31 | CD162: 4291 | CE162: -1957904.07 | CF162: 35135.73418 | CG162: -24150.46442 | CH162: -910.43222 | CI162: 153.9469269 | CJ162: 412357.84 | CK162: 422586.6245 | CL162: -1993039.805 | CM162: 2.363308971e-52 | CN162: 2.363308971e-52 | CR162: 141 | CS162: 2034-06-01 | CT162: 31 | CU162: 4291 | CV162: -10586729.02 | CW162: 105087.3172 | CX162: -130585.7761 | CY162: -4922.86591 | CZ162: 153.9469269 | DA162: 412357.84 | DB162: 382090.4622 | DC162: -10691816.34 | DD162: 2.363308971e-52 | DE162: 2.363308971e-52
B163: 142 | S163: =IFERROR((I163+J163+K163+L163+M163)*$J$12+('Simulador para calculos'!I163+'Simulador para calculos'!J163+'Simulador para calculos'!K163+'Simulador para calculos'!L163+'Simulador para calculos'!M163)*NOT($J$12),"") ->  | U163: =IFERROR((1+'Simulación Cliente'!$E$21)^(T163/360),"") ->  | AB163: 142 | AS163: 142 | AT163: 2034-07-01 | AU163: 30 | AV163: 4321 | AW163: -1993039.805 | AX163: 34757.82319 | AY163: -23786.11773 | AZ163: -896.8679121 | BA163: 153.9469269 | BB163: 412357.84 | BC163: 422586.6245 | BD163: -2027797.628 | BE163: 1.029390857e-52 | BF163: 1.029390857e-52 | BJ163: 142 | BK163: 2034-07-01 | BL163: 30 | BM163: 4321 | BN163: -10691816.34 | BO163: 484082.9249 | BP163: -127602.4701 | BQ163: -4811.317351 | BR163: 153.9469269 | BS163: 412357.84 | BT163: 764180.9243 | BU163: -11175899.26 | BV163: 2.058781715e-52 | BW163: 1.029390857e-52 | CA163: 142 | CB163: 2034-07-01 | CC163: 30 | CD163: 4321 | CE163: -1993039.805 | CF163: 34757.82319 | CG163: -23786.11773 | CH163: -896.8679121 | CI163: 153.9469269 | CJ163: 412357.84 | CK163: 422586.6245 | CL163: -2027797.628 | CM163: 1.029390857e-52 | CN163: 1.029390857e-52 | CR163: 142 | CS163: 2034-07-01 | CT163: 30 | CU163: 4321 | CV163: -10691816.34 | CW163: 484082.9249 | CX163: -127602.4701 | CY163: -4811.317351 | CZ163: 153.9469269 | DA163: 412357.84 | DB163: 764180.9243 | DC163: -11175899.26 | DD163: 2.058781715e-52 | DE163: 1.029390857e-52
B164: 143 | S164: =IFERROR((I164+J164+K164+L164+M164)*$J$12+('Simulador para calculos'!I164+'Simulador para calculos'!J164+'Simulador para calculos'!K164+'Simulador para calculos'!L164+'Simulador para calculos'!M164)*NOT($J$12),"") ->  | U164: =IFERROR((1+'Simulación Cliente'!$E$21)^(T164/360),"") ->  | AB164: 143 | AS164: 143 | AT164: 2034-08-01 | AU164: 31 | AV164: 4352 | AW164: -2027797.628 | AX164: 36030.36188 | AY164: -25012.59137 | AZ164: -942.9329679 | BA164: 153.9469269 | BB164: 412357.84 | BC164: 422586.6245 | BD164: -2063827.99 | BE164: 4.361227781e-53 | BF164: 4.361227781e-53 | BJ164: 143 | BK164: 2034-08-01 | BL164: 31 | BM164: 4352 | BN164: -11175899.26 | BO164: 112628.6134 | BP164: -137853.106 | BQ164: -5196.832127 | BR164: 153.9469269 | BS164: 412357.84 | BT164: 382090.4622 | BU164: -11288527.87 | BV164: 4.361227781e-53 | BW164: 4.361227781e-53 | CA164: 143 | CB164: 2034-08-01 | CC164: 31 | CD164: 4352 | CE164: -2027797.628 | CF164: 36030.36188 | CG164: -25012.59137 | CH164: -942.9329679 | CI164: 153.9469269 | CJ164: 412357.84 | CK164: 422586.6245 | CL164: -2063827.99 | CM164: 4.361227781e-53 | CN164: 4.361227781e-53 | CR164: 143 | CS164: 2034-08-01 | CT164: 31 | CU164: 4352 | CV164: -11175899.26 | CW164: 112628.6134 | CX164: -137853.106 | CY164: -5196.832127 | CZ164: 153.9469269 | DA164: 412357.84 | DB164: 382090.4622 | DC164: -11288527.87 | DD164: 4.361227781e-53 | DE164: 4.361227781e-53
B165: 144 | S165: =IFERROR((I165+J165+K165+L165+M165)*$J$12+('Simulador para calculos'!I165+'Simulador para calculos'!J165+'Simulador para calculos'!K165+'Simulador para calculos'!L165+'Simulador para calculos'!M165)*NOT($J$12),"") ->  | U165: =IFERROR((1+'Simulación Cliente'!$E$21)^(T165/360),"") ->  | AB165: 144 | AS165: 144 | AT165: 2034-09-01 | AU165: 31 | AV165: 4383 | AW165: -2063827.99 | AX165: 36491.54544 | AY165: -25457.02069 | AZ165: -959.6872118 | BA165: 153.9469269 | BB165: 412357.84 | BC165: 422586.6245 | BD165: -2100319.535 | BE165: 1.847724567e-53 | BF165: 1.847724567e-53 | BJ165: 144 | BK165: 2034-09-01 | BL165: 31 | BM165: 4383 | BN165: -11288527.87 | BO165: 114070.2438 | BP165: -139242.3638 | BQ165: -5249.204825 | BR165: 153.9469269 | BS165: 412357.84 | BT165: 382090.4622 | BU165: -11402598.12 | BV165: 1.847724567e-53 | BW165: 1.847724567e-53 | CA165: 144 | CB165: 2034-09-01 | CC165: 31 | CD165: 4383 | CE165: -2063827.99 | CF165: 36491.54544 | CG165: -25457.02069 | CH165: -959.6872118 | CI165: 153.9469269 | CJ165: 412357.84 | CK165: 422586.6245 | CL165: -2100319.535 | CM165: 1.847724567e-53 | CN165: 1.847724567e-53 | CR165: 144 | CS165: 2034-09-01 | CT165: 31 | CU165: 4383 | CV165: -11288527.87 | CW165: 114070.2438 | CX165: -139242.3638 | CY165: -5249.204825 | CZ165: 153.9469269 | DA165: 412357.84 | DB165: 382090.4622 | DC165: -11402598.12 | DD165: 1.847724567e-53 | DE165: 1.847724567e-53
B166: 145 | S166: =IFERROR((I166+J166+K166+L166+M166)*$J$12+('Simulador para calculos'!I166+'Simulador para calculos'!J166+'Simulador para calculos'!K166+'Simulador para calculos'!L166+'Simulador para calculos'!M166)*NOT($J$12),"") ->  | U166: =IFERROR((1+'Simulación Cliente'!$E$21)^(T166/360),"") ->  | AB166: 145 | AS166: 145 | AT166: 2034-10-01 | AU166: 30 | AV166: 4413 | AW166: -2100319.535 | AX166: 36086.43892 | AY166: -25066.45759 | AZ166: -945.1437908 | BA166: 153.9469269 | BB166: 412357.84 | BC166: 422586.6245 | BD166: -2136405.974 | BE166: 8.048168051e-54 | BF166: 8.048168051e-54 | BJ166: 145 | BK166: 2034-10-01 | BL166: 30 | BM166: 4413 | BN166: -11402598.12 | BO166: 110795.2054 | BP166: -136085.361 | BQ166: -5131.169153 | BR166: 153.9469269 | BS166: 412357.84 | BT166: 382090.4622 | BU166: -11513393.32 | BV166: 8.048168051e-54 | BW166: 8.048168051e-54 | CA166: 145 | CB166: 2034-10-01 | CC166: 30 | CD166: 4413 | CE166: -2100319.535 | CF166: 36086.43892 | CG166: -25066.45759 | CH166: -945.1437908 | CI166: 153.9469269 | CJ166: 412357.84 | CK166: 422586.6245 | CL166: -2136405.974 | CM166: 8.048168051e-54 | CN166: 8.048168051e-54 | CR166: 145 | CS166: 2034-10-01 | CT166: 30 | CU166: 4413 | CV166: -11402598.12 | CW166: 110795.2054 | CX166: -136085.361 | CY166: -5131.169153 | CZ166: 153.9469269 | DA166: 412357.84 | DB166: 382090.4622 | DC166: -11513393.32 | DD166: 8.048168051e-54 | DE166: 8.048168051e-54
B167: 146 | S167: =IFERROR((I167+J167+K167+L167+M167)*$J$12+('Simulador para calculos'!I167+'Simulador para calculos'!J167+'Simulador para calculos'!K167+'Simulador para calculos'!L167+'Simulador para calculos'!M167)*NOT($J$12),"") ->  | U167: =IFERROR((1+'Simulación Cliente'!$E$21)^(T167/360),"") ->  | AB167: 146 | AS167: 146 | AT167: 2034-11-01 | AU167: 31 | AV167: 4444 | AW167: -2136405.974 | AX167: 37420.53343 | AY167: -26352.25966 | AZ167: -993.4362276 | BA167: 153.9469269 | BB167: 412357.84 | BC167: 422586.6245 | BD167: -2173826.508 | BE167: 3.40977325e-54 | BF167: 3.40977325e-54 | BJ167: 146 | BK167: 2034-11-01 | BL167: 31 | BM167: 4444 | BN167: -11513393.32 | BO167: 116948.4899 | BP167: -142016.0467 | BQ167: -5353.768043 | BR167: 153.9469269 | BS167: 412357.84 | BT167: 382090.4622 | BU167: -11630341.81 | BV167: 3.40977325e-54 | BW167: 3.40977325e-54 | CA167: 146 | CB167: 2034-11-01 | CC167: 31 | CD167: 4444 | CE167: -2136405.974 | CF167: 37420.53343 | CG167: -26352.25966 | CH167: -993.4362276 | CI167: 153.9469269 | CJ167: 412357.84 | CK167: 422586.6245 | CL167: -2173826.508 | CM167: 3.40977325e-54 | CN167: 3.40977325e-54 | CR167: 146 | CS167: 2034-11-01 | CT167: 31 | CU167: 4444 | CV167: -11513393.32 | CW167: 116948.4899 | CX167: -142016.0467 | CY167: -5353.768043 | CZ167: 153.9469269 | DA167: 412357.84 | DB167: 382090.4622 | DC167: -11630341.81 | DD167: 3.40977325e-54 | DE167: 3.40977325e-54
B168: 147 | S168: =IFERROR((I168+J168+K168+L168+M168)*$J$12+('Simulador para calculos'!I168+'Simulador para calculos'!J168+'Simulador para calculos'!K168+'Simulador para calculos'!L168+'Simulador para calculos'!M168)*NOT($J$12),"") ->  | U168: =IFERROR((1+'Simulación Cliente'!$E$21)^(T168/360),"") ->  | AB168: 147 | AS168: 147 | AT168: 2034-12-01 | AU168: 30 | AV168: 4474 | AW168: -2173826.508 | AX168: 36996.79281 | AY168: -25943.73334 | AZ168: -978.2219284 | BA168: 153.9469269 | BB168: 412357.84 | BC168: 422586.6245 | BD168: -2210823.3 | BE168: 1.485201238e-54 | BF168: 1.485201238e-54 | BJ168: 147 | BK168: 2034-12-01 | BL168: 30 | BM168: 4474 | BN168: -11630341.81 | BO168: 495706.1804 | BP168: -138803.3892 | BQ168: -5233.653816 | BR168: 153.9469269 | BS168: 412357.84 | BT168: 764180.9243 | BU168: -12126047.99 | BV168: 2.970402475e-54 | BW168: 1.485201238e-54 | CA168: 147 | CB168: 2034-12-01 | CC168: 30 | CD168: 4474 | CE168: -2173826.508 | CF168: 36996.79281 | CG168: -25943.73334 | CH168: -978.2219284 | CI168: 153.9469269 | CJ168: 412357.84 | CK168: 422586.6245 | CL168: -2210823.3 | CM168: 1.485201238e-54 | CN168: 1.485201238e-54 | CR168: 147 | CS168: 2034-12-01 | CT168: 30 | CU168: 4474 | CV168: -11630341.81 | CW168: 495706.1804 | CX168: -138803.3892 | CY168: -5233.653816 | CZ168: 153.9469269 | DA168: 412357.84 | DB168: 764180.9243 | DC168: -12126047.99 | DD168: 2.970402475e-54 | DE168: 1.485201238e-54
B169: 148 | S169: =IFERROR((I169+J169+K169+L169+M169)*$J$12+('Simulador para calculos'!I169+'Simulador para calculos'!J169+'Simulador para calculos'!K169+'Simulador para calculos'!L169+'Simulador para calculos'!M169)*NOT($J$12),"") ->  | U169: =IFERROR((1+'Simulación Cliente'!$E$21)^(T169/360),"") ->  | AB169: 148 | AS169: 148 | AT169: 2035-01-01 | AU169: 31 | AV169: 4505 | AW169: -2210823.3 | AX169: 38373.06474 | AY169: -27270.18665 | AZ169: -1028.040544 | BA169: 153.9469269 | BB169: 412357.84 | BC169: 422586.6245 | BD169: -2249196.365 | BE169: 6.292362957e-55 | BF169: 6.292362957e-55 | BJ169: 148 | BK169: 2035-01-01 | BL169: 31 | BM169: 4505 | BN169: -12126047.99 | BO169: 124790.3835 | BP169: -149573.0537 | BQ169: -5638.654601 | BR169: 153.9469269 | BS169: 412357.84 | BT169: 382090.4622 | BU169: -12250838.38 | BV169: 6.292362957e-55 | BW169: 6.292362957e-55 | CA169: 148 | CB169: 2035-01-01 | CC169: 31 | CD169: 4505 | CE169: -2210823.3 | CF169: 38373.06474 | CG169: -27270.18665 | CH169: -1028.040544 | CI169: 153.9469269 | CJ169: 412357.84 | CK169: 422586.6245 | CL169: -2249196.365 | CM169: 6.292362957e-55 | CN169: 6.292362957e-55 | CR169: 148 | CS169: 2035-01-01 | CT169: 31 | CU169: 4505 | CV169: -12126047.99 | CW169: 124790.3835 | CX169: -149573.0537 | CY169: -5638.654601 | CZ169: 153.9469269 | DA169: 412357.84 | DB169: 382090.4622 | DC169: -12250838.38 | DD169: 6.292362957e-55 | DE169: 6.292362957e-55
B170: 149 | S170: =IFERROR((I170+J170+K170+L170+M170)*$J$12+('Simulador para calculos'!I170+'Simulador para calculos'!J170+'Simulador para calculos'!K170+'Simulador para calculos'!L170+'Simulador para calculos'!M170)*NOT($J$12),"") ->  | U170: =IFERROR((1+'Simulación Cliente'!$E$21)^(T170/360),"") ->  | AB170: 149 | AS170: 149 | AT170: 2035-02-01 | AU170: 31 | AV170: 4536 | AW170: -2249196.365 | AX170: 38864.23457 | AY170: -27743.51288 | AZ170: -1045.884153 | BA170: 153.9469269 | BB170: 412357.84 | BC170: 422586.6245 | BD170: -2288060.6 | BE170: 2.66589002e-55 | BF170: 2.66589002e-55 | BJ170: 149 | BK170: 2035-02-01 | BL170: 31 | BM170: 4536 | BN170: -12250838.38 | BO170: 126387.6829 | BP170: -151112.3251 | BQ170: -5696.682564 | BR170: 153.9469269 | BS170: 412357.84 | BT170: 382090.4622 | BU170: -12377226.06 | BV170: 2.66589002e-55 | BW170: 2.66589002e-55 | CA170: 149 | CB170: 2035-02-01 | CC170: 31 | CD170: 4536 | CE170: -2249196.365 | CF170: 38864.23457 | CG170: -27743.51288 | CH170: -1045.884153 | CI170: 153.9469269 | CJ170: 412357.84 | CK170: 422586.6245 | CL170: -2288060.6 | CM170: 2.66589002e-55 | CN170: 2.66589002e-55 | CR170: 149 | CS170: 2035-02-01 | CT170: 31 | CU170: 4536 | CV170: -12250838.38 | CW170: 126387.6829 | CX170: -151112.3251 | CY170: -5696.682564 | CZ170: 153.9469269 | DA170: 412357.84 | DB170: 382090.4622 | DC170: -12377226.06 | DD170: 2.66589002e-55 | DE170: 2.66589002e-55
B171: 150 | S171: =IFERROR((I171+J171+K171+L171+M171)*$J$12+('Simulador para calculos'!I171+'Simulador para calculos'!J171+'Simulador para calculos'!K171+'Simulador para calculos'!L171+'Simulador para calculos'!M171)*NOT($J$12),"") ->  | U171: =IFERROR((1+'Simulación Cliente'!$E$21)^(T171/360),"") ->  | AB171: 150 | AS171: 150 | AT171: 2035-03-01 | AU171: 28 | AV171: 4564 | AW171: -2288060.6 | AX171: 36512.31156 | AY171: -25476.50298 | AZ171: -960.9710394 | BA171: 153.9469269 | BB171: 412357.84 | BC171: 422586.6245 | BD171: -2324572.911 | BE171: 1.227339501e-55 | BF171: 1.227339501e-55 | BJ171: 150 | BK171: 2035-03-01 | BL171: 28 | BM171: 4564 | BN171: -12377226.06 | BO171: 112591.7548 | BP171: -137814.7225 | BQ171: -5198.356981 | BR171: 153.9469269 | BS171: 412357.84 | BT171: 382090.4622 | BU171: -12489817.81 | BV171: 1.227339501e-55 | BW171: 1.227339501e-55 | CA171: 150 | CB171: 2035-03-01 | CC171: 28 | CD171: 4564 | CE171: -2288060.6 | CF171: 36512.31156 | CG171: -25476.50298 | CH171: -960.9710394 | CI171: 153.9469269 | CJ171: 412357.84 | CK171: 422586.6245 | CL171: -2324572.911 | CM171: 1.227339501e-55 | CN171: 1.227339501e-55 | CR171: 150 | CS171: 2035-03-01 | CT171: 28 | CU171: 4564 | CV171: -12377226.06 | CW171: 112591.7548 | CX171: -137814.7225 | CY171: -5198.356981 | CZ171: 153.9469269 | DA171: 412357.84 | DB171: 382090.4622 | DC171: -12489817.81 | DD171: 1.227339501e-55 | DE171: 1.227339501e-55
B172: 151 | S172: =IFERROR((I172+J172+K172+L172+M172)*$J$12+('Simulador para calculos'!I172+'Simulador para calculos'!J172+'Simulador para calculos'!K172+'Simulador para calculos'!L172+'Simulador para calculos'!M172)*NOT($J$12),"") ->  | U172: =IFERROR((1+'Simulación Cliente'!$E$21)^(T172/360),"") ->  | AB172: 151 | AS172: 151 | AT172: 2035-04-01 | AU172: 31 | AV172: 4595 | AW172: -2324572.911 | AX172: 39829.04375 | AY172: -28673.2717 | AZ172: -1080.934509 | BA172: 153.9469269 | BB172: 412357.84 | BC172: 422586.6245 | BD172: -2364401.955 | BE172: 5.199878248e-56 | BF172: 5.199878248e-56 | BJ172: 151 | BK172: 2035-04-01 | BL172: 31 | BM172: 4595 | BN172: -12489817.81 | BO172: 129446.5861 | BP172: -154060.102 | BQ172: -5807.808836 | BR172: 153.9469269 | BS172: 412357.84 | BT172: 382090.4622 | BU172: -12619264.4 | BV172: 5.199878248e-56 | BW172: 5.199878248e-56 | CA172: 151 | CB172: 2035-04-01 | CC172: 31 | CD172: 4595 | CE172: -2324572.911 | CF172: 39829.04375 | CG172: -28673.2717 | CH172: -1080.934509 | CI172: 153.9469269 | CJ172: 412357.84 | CK172: 422586.6245 | CL172: -2364401.955 | CM172: 5.199878248e-56 | CN172: 5.199878248e-56 | CR172: 151 | CS172: 2035-04-01 | CT172: 31 | CU172: 4595 | CV172: -12489817.81 | CW172: 129446.5861 | CX172: -154060.102 | CY172: -5807.808836 | CZ172: 153.9469269 | DA172: 412357.84 | DB172: 382090.4622 | DC172: -12619264.4 | DD172: 5.199878248e-56 | DE172: 5.199878248e-56
B173: 152 | S173: =IFERROR((I173+J173+K173+L173+M173)*$J$12+('Simulador para calculos'!I173+'Simulador para calculos'!J173+'Simulador para calculos'!K173+'Simulador para calculos'!L173+'Simulador para calculos'!M173)*NOT($J$12),"") ->  | U173: =IFERROR((1+'Simulación Cliente'!$E$21)^(T173/360),"") ->  | AB173: 152 | AS173: 152 | AT173: 2035-05-01 | AU173: 30 | AV173: 4625 | AW173: -2364401.955 | AX173: 39356.99205 | AY173: -28218.17363 | AZ173: -1063.98088 | BA173: 153.9469269 | BB173: 412357.84 | BC173: 422586.6245 | BD173: -2403758.947 | BE173: 2.264920581e-56 | BF173: 2.264920581e-56 | BJ173: 152 | BK173: 2035-05-01 | BL173: 30 | BM173: 4625 | BN173: -12619264.4 | BO173: 125863.1214 | BP173: -150605.7772 | BQ173: -5678.66898 | BR173: 153.9469269 | BS173: 412357.84 | BT173: 382090.4622 | BU173: -12745127.52 | BV173: 2.264920581e-56 | BW173: 2.264920581e-56 | CA173: 152 | CB173: 2035-05-01 | CC173: 30 | CD173: 4625 | CE173: -2364401.955 | CF173: 39356.99205 | CG173: -28218.17363 | CH173: -1063.98088 | CI173: 153.9469269 | CJ173: 412357.84 | CK173: 422586.6245 | CL173: -2403758.947 | CM173: 2.264920581e-56 | CN173: 2.264920581e-56 | CR173: 152 | CS173: 2035-05-01 | CT173: 30 | CU173: 4625 | CV173: -12619264.4 | CW173: 125863.1214 | CX173: -150605.7772 | CY173: -5678.66898 | CZ173: 153.9469269 | DA173: 412357.84 | DB173: 382090.4622 | DC173: -12745127.52 | DD173: 2.264920581e-56 | DE173: 2.264920581e-56
B174: 153 | S174: =IFERROR((I174+J174+K174+L174+M174)*$J$12+('Simulador para calculos'!I174+'Simulador para calculos'!J174+'Simulador para calculos'!K174+'Simulador para calculos'!L174+'Simulador para calculos'!M174)*NOT($J$12),"") ->  | U174: =IFERROR((1+'Simulación Cliente'!$E$21)^(T174/360),"") ->  | AB174: 153 | AS174: 153 | AT174: 2035-06-01 | AU174: 31 | AV174: 4656 | AW174: -2403758.947 | AX174: 40842.61387 | AY174: -29650.02004 | AZ174: -1117.756292 | BA174: 153.9469269 | BB174: 412357.84 | BC174: 422586.6245 | BD174: -2444601.561 | BE174: 9.595805605e-57 | BF174: 9.595805605e-57 | BJ174: 153 | BK174: 2035-06-01 | BL174: 31 | BM174: 4656 | BN174: -12745127.52 | BO174: 132714.5144 | BP174: -157209.3104 | BQ174: -5926.52874 | BR174: 153.9469269 | BS174: 412357.84 | BT174: 382090.4622 | BU174: -12877842.04 | BV174: 9.595805605e-57 | BW174: 9.595805605e-57 | CA174: 153 | CB174: 2035-06-01 | CC174: 31 | CD174: 4656 | CE174: -2403758.947 | CF174: 40842.61387 | CG174: -29650.02004 | CH174: -1117.756292 | CI174: 153.9469269 | CJ174: 412357.84 | CK174: 422586.6245 | CL174: -2444601.561 | CM174: 9.595805605e-57 | CN174: 9.595805605e-57 | CR174: 153 | CS174: 2035-06-01 | CT174: 31 | CU174: 4656 | CV174: -12745127.52 | CW174: 132714.5144 | CX174: -157209.3104 | CY174: -5926.52874 | CZ174: 153.9469269 | DA174: 412357.84 | DB174: 382090.4622 | DC174: -12877842.04 | DD174: 9.595805605e-57 | DE174: 9.595805605e-57
B175: 154 | S175: =IFERROR((I175+J175+K175+L175+M175)*$J$12+('Simulador para calculos'!I175+'Simulador para calculos'!J175+'Simulador para calculos'!K175+'Simulador para calculos'!L175+'Simulador para calculos'!M175)*NOT($J$12),"") ->  | U175: =IFERROR((1+'Simulación Cliente'!$E$21)^(T175/360),"") ->  | AB175: 154 | AS175: 154 | AT175: 2035-07-01 | AU175: 30 | AV175: 4686 | AW175: -2444601.561 | AX175: 40350.23149 | AY175: -29175.32324 | AZ175: -1100.070702 | BA175: 153.9469269 | BB175: 412357.84 | BC175: 422586.6245 | BD175: -2484951.792 | BE175: 4.179662786e-57 | BF175: 4.179662786e-57 | BJ175: 154 | BK175: 2035-07-01 | BL175: 30 | BM175: 4686 | BN175: -12877842.04 | BO175: 511155.9622 | BP175: -153691.7959 | BQ175: -5795.028917 | BR175: 153.9469269 | BS175: 412357.84 | BT175: 764180.9243 | BU175: -13388998 | BV175: 8.359325571e-57 | BW175: 4.179662786e-57 | CA175: 154 | CB175: 2035-07-01 | CC175: 30 | CD175: 4686 | CE175: -2444601.561 | CF175: 40350.23149 | CG175: -29175.32324 | CH175: -1100.070702 | CI175: 153.9469269 | CJ175: 412357.84 | CK175: 422586.6245 | CL175: -2484951.792 | CM175: 4.179662786e-57 | CN175: 4.179662786e-57 | CR175: 154 | CS175: 2035-07-01 | CT175: 30 | CU175: 4686 | CV175: -12877842.04 | CW175: 511155.9622 | CX175: -153691.7959 | CY175: -5795.028917 | CZ175: 153.9469269 | DA175: 412357.84 | DB175: 764180.9243 | DC175: -13388998 | DD175: 8.359325571e-57 | DE175: 4.179662786e-57
B176: 155 | S176: =IFERROR((I176+J176+K176+L176+M176)*$J$12+('Simulador para calculos'!I176+'Simulador para calculos'!J176+'Simulador para calculos'!K176+'Simulador para calculos'!L176+'Simulador para calculos'!M176)*NOT($J$12),"") ->  | U176: =IFERROR((1+'Simulación Cliente'!$E$21)^(T176/360),"") ->  | AB176: 155 | AS176: 155 | AT176: 2035-08-01 | AU176: 31 | AV176: 4717 | AW176: -2484951.792 | AX176: 41881.87087 | AY176: -30651.52208 | AZ176: -1155.511248 | BA176: 153.9469269 | BB176: 412357.84 | BC176: 422586.6245 | BD176: -2526833.663 | BE176: 1.770800792e-57 | BF176: 1.770800792e-57 | BJ176: 155 | BK176: 2035-08-01 | BL176: 31 | BM176: 4717 | BN176: -13388998 | BO176: 140955.9659 | BP176: -165151.3599 | BQ176: -6225.930757 | BR176: 153.9469269 | BS176: 412357.84 | BT176: 382090.4622 | BU176: -13529953.96 | BV176: 1.770800792e-57 | BW176: 1.770800792e-57 | CA176: 155 | CB176: 2035-08-01 | CC176: 31 | CD176: 4717 | CE176: -2484951.792 | CF176: 41881.87087 | CG176: -30651.52208 | CH176: -1155.511248 | CI176: 153.9469269 | CJ176: 412357.84 | CK176: 422586.6245 | CL176: -2526833.663 | CM176: 1.770800792e-57 | CN176: 1.770800792e-57 | CR176: 155 | CS176: 2035-08-01 | CT176: 31 | CU176: 4717 | CV176: -13388998 | CW176: 140955.9659 | CX176: -165151.3599 | CY176: -6225.930757 | CZ176: 153.9469269 | DA176: 412357.84 | DB176: 382090.4622 | DC176: -13529953.96 | DD176: 1.770800792e-57 | DE176: 1.770800792e-57
B177: 156 | S177: =IFERROR((I177+J177+K177+L177+M177)*$J$12+('Simulador para calculos'!I177+'Simulador para calculos'!J177+'Simulador para calculos'!K177+'Simulador para calculos'!L177+'Simulador para calculos'!M177)*NOT($J$12),"") ->  | U177: =IFERROR((1+'Simulación Cliente'!$E$21)^(T177/360),"") ->  | AB177: 156 | AS177: 156 | AT177: 2035-09-01 | AU177: 31 | AV177: 4748 | AW177: -2526833.663 | AX177: 42417.95292 | AY177: -31168.12892 | AZ177: -1174.986464 | BA177: 153.9469269 | BB177: 412357.84 | BC177: 422586.6245 | BD177: -2569251.616 | BE177: 7.50236468e-58 | BF177: 7.50236468e-58 | BJ177: 156 | BK177: 2035-09-01 | BL177: 31 | BM177: 4748 | BN177: -13529953.96 | BO177: 142760.1824 | BP177: -166890.0314 | BQ177: -6291.475773 | BR177: 153.9469269 | BS177: 412357.84 | BT177: 382090.4622 | BU177: -13672714.15 | BV177: 7.50236468e-58 | BW177: 7.50236468e-58 | CA177: 156 | CB177: 2035-09-01 | CC177: 31 | CD177: 4748 | CE177: -2526833.663 | CF177: 42417.95292 | CG177: -31168.12892 | CH177: -1174.986464 | CI177: 153.9469269 | CJ177: 412357.84 | CK177: 422586.6245 | CL177: -2569251.616 | CM177: 7.50236468e-58 | CN177: 7.50236468e-58 | CR177: 156 | CS177: 2035-09-01 | CT177: 31 | CU177: 4748 | CV177: -13529953.96 | CW177: 142760.1824 | CX177: -166890.0314 | CY177: -6291.475773 | CZ177: 153.9469269 | DA177: 412357.84 | DB177: 382090.4622 | DC177: -13672714.15 | DD177: 7.50236468e-58 | DE177: 7.50236468e-58
B178: 157 | S178: =IFERROR((I178+J178+K178+L178+M178)*$J$12+('Simulador para calculos'!I178+'Simulador para calculos'!J178+'Simulador para calculos'!K178+'Simulador para calculos'!L178+'Simulador para calculos'!M178)*NOT($J$12),"") ->  | U178: =IFERROR((1+'Simulación Cliente'!$E$21)^(T178/360),"") ->  | AB178: 157 | AS178: 157 | AT178: 2035-10-01 | AU178: 30 | AV178: 4778 | AW178: -2569251.616 | AX178: 41893.97161 | AY178: -30662.97085 | AZ178: -1156.163227 | BA178: 153.9469269 | BB178: 412357.84 | BC178: 422586.6245 | BD178: -2611145.588 | BE178: 3.267818852e-58 | BF178: 3.267818852e-58 | BJ178: 157 | BK178: 2035-10-01 | BL178: 30 | BM178: 4778 | BN178: -13672714.15 | BO178: 138909.6671 | BP178: -163178.2705 | BQ178: -6152.721366 | BR178: 153.9469269 | BS178: 412357.84 | BT178: 382090.4622 | BU178: -13811623.81 | BV178: 3.267818852e-58 | BW178: 3.267818852e-58 | CA178: 157 | CB178: 2035-10-01 | CC178: 30 | CD178: 4778 | CE178: -2569251.616 | CF178: 41893.97161 | CG178: -30662.97085 | CH178: -1156.163227 | CI178: 153.9469269 | CJ178: 412357.84 | CK178: 422586.6245 | CL178: -2611145.588 | CM178: 3.267818852e-58 | CN178: 3.267818852e-58 | CR178: 157 | CS178: 2035-10-01 | CT178: 30 | CU178: 4778 | CV178: -13672714.15 | CW178: 138909.6671 | CX178: -163178.2705 | CY178: -6152.721366 | CZ178: 153.9469269 | DA178: 412357.84 | DB178: 382090.4622 | DC178: -13811623.81 | DD178: 3.267818852e-58 | DE178: 3.267818852e-58
